{"text_format":"1","workbook":"xlsx","n_sheets":6,"sheets":["注意事項","入力","Mデータ","入力チェック","入力チェック２","受注者・コンサル　申請CSVレイアウト"],"not_rendered":{"charts":0,"images":8,"macros":1,"external_links":0,"defined_names":5,"comments":0,"pivot_tables":0},"unopened":[],"bounds":{"document_bytes":16777216,"sheet_cells":100000,"rows_first":2000,"rows_last":500,"rows_between":2000,"halvings":0,"cell_chars":16384,"cell_head_chars":4096},"cells_cut":0,"cells_raw":0,"read":"whole","date_system":"1900"}

{"sheet":"注意事項","index":0,"n_rows":22,"n_cols":5,"rows_kept":22,"cut":false,"hidden":true,"merged":[]}
[]
[]
[]
[]
[null,null,"(1)",null,"Excel起動時、以下の画面が表示された場合は「ﾏｸﾛを有効にする」をクリックしてください。"]
[]
[]
[]
[]
[]
[]
[]
[]
[]
[]
[]
[]
[]
[]
[]
[]
[null,null,"(2)",null,"以下の文字は、使用できません。"]

{"sheet":"入力","index":1,"n_rows":262,"n_cols":68,"rows_kept":262,"cut":false,"hidden":false,"merged":[[143,47,143,48],[176,41,176,49],[183,41,183,49],[181,32,181,40],[74,2,74,14],[80,2,80,10],[177,37,177,38],[176,32,176,40],[141,33,141,58],[142,39,142,40],[142,51,142,52],[177,23,178,23],[106,27,106,28],[107,27,107,28],[105,24,105,25],[106,24,106,25],[106,30,106,31],[143,39,143,40],[142,33,142,34],[143,33,143,34],[107,30,107,31],[105,27,105,28],[143,51,143,52],[143,54,143,55],[187,67,187,70],[184,32,184,40],[185,32,185,40],[183,32,183,40],[182,41,182,49],[178,37,178,38],[187,41,187,49],[185,41,185,49],[186,23,186,31],[186,32,186,40],[182,32,182,40],[250,29,250,31],[177,43,177,44],[178,43,178,44],[185,23,185,31],[186,41,186,49],[181,23,181,31],[177,34,177,35],[177,32,178,32],[179,41,179,49],[201,16,201,26],[178,19,178,20],[179,32,179,40],[178,25,178,26],[177,28,177,29],[178,28,178,29],[178,34,178,35],[177,46,177,47],[178,46,178,47],[194,14,194,22],[198,14,198,22],[196,14,196,22],[184,23,184,31],[187,32,187,40],[180,32,180,40],[248,25,249,28],[234,21,234,23],[232,17,233,20],[234,13,234,15],[234,17,234,19],[234,29,234,31],[239,29,239,32],[232,25,233,28],[232,33,233,36],[239,25,239,28],[246,29,246,31],[243,17,243,20],[250,5,250,7],[248,5,249,8],[239,17,239,20],[247,17,247,20],[220,19,220,20],[219,19,219,20],[223,4,223,30],[221,19,221,20],[220,22,220,23],[220,4,220,14],[215,28,221,45],[216,19,216,20],[217,4,217,14],[246,9,246,11],[246,13,246,15],[218,22,218,23],[242,25,242,27],[242,29,242,31],[242,33,242,35],[242,13,242,15],[246,25,246,27],[250,25,250,27],[248,21,249,24],[247,25,247,28],[1,44,2,44],[3,1,3,38],[184,41,184,49],[177,16,177,17],[180,41,180,49],[181,41,181,49],[77,2,77,28],[232,21,233,24],[83,2,83,17],[86,2,86,18],[177,41,178,41],[197,14,197,22],[178,16,178,17],[187,23,187,31],[182,23,182,31],[187,14,187,22],[179,23,179,31],[180,14,180,22],[179,14,179,22],[183,23,183,31],[186,14,186,22],[212,14,212,23],[211,14,211,23],[204,16,204,26],[258,5,258,7],[258,9,258,11],[258,13,258,15],[258,17,258,19],[258,21,258,23],[258,25,258,27],[201,2,201,6],[258,29,258,31],[258,33,258,35],[256,9,257,12],[256,13,257,16],[256,17,257,20],[252,33,253,36],[254,33,254,35],[210,24,210,27],[210,14,210,23],[218,16,218,17],[211,26,211,27],[212,26,212,27],[216,16,216,17],[218,19,218,20],[216,22,216,23],[211,24,211,25],[212,24,212,25],[258,49,258,51],[256,49,256,52],[257,49,257,52],[256,45,257,48],[256,41,257,44],[258,45,258,47],[258,37,258,39],[258,41,258,43],[256,21,257,24],[256,25,257,28],[256,29,257,32],[256,33,257,36],[256,37,257,40],[255,33,255,36],[255,41,255,44],[248,45,249,48],[248,49,249,52],[246,41,246,43],[248,41,249,44],[250,45,250,47],[246,45,246,47],[247,41,247,44],[247,45,247,48],[247,49,247,52],[250,41,250,43],[255,49,255,52],[250,49,250,51],[246,37,246,39],[247,37,247,40],[251,37,251,40],[251,41,251,44],[252,37,253,40],[252,41,253,44],[246,49,246,51],[255,45,255,48],[255,37,255,40],[246,33,246,35],[242,49,242,51],[240,45,241,48],[240,49,241,52],[242,41,242,43],[242,45,242,47],[231,49,231,52],[231,25,231,28],[231,29,231,32],[231,33,231,36],[231,37,231,40],[234,41,234,43],[232,29,233,32],[234,45,234,47],[234,49,234,51],[232,37,233,40],[232,41,233,44],[234,33,234,35],[239,49,239,52],[240,29,241,32],[240,41,241,44],[239,33,239,36],[235,13,238,52],[239,45,239,48],[232,45,233,48],[142,54,142,55],[142,47,142,48],[141,25,141,32],[100,27,100,28],[100,24,100,25],[141,22,141,24],[103,27,103,28],[104,27,104,28],[105,30,105,31],[102,27,102,28],[102,24,102,25],[103,24,103,25],[104,24,104,25],[177,25,177,26],[176,23,176,31],[152,2,152,16],[151,1,151,16],[177,19,177,20],[155,2,155,16],[176,14,176,22],[176,2,176,3],[215,4,215,14],[199,14,199,22],[205,7,205,15],[209,14,209,23],[203,16,203,26],[193,2,193,3],[182,14,182,22],[181,4,181,13],[194,2,199,3],[204,7,204,15],[202,7,202,15],[208,14,208,23],[203,7,203,15],[186,4,186,13],[180,23,180,31],[195,14,195,22],[142,1,142,7],[142,22,142,24],[231,21,231,24],[234,25,234,27],[234,9,234,11],[231,2,232,3],[224,10,224,17],[231,4,238,4],[225,2,225,7],[225,10,225,15],[233,2,258,3],[239,4,246,4],[247,4,254,4],[234,5,234,7],[252,13,253,16],[252,17,253,20],[248,9,249,12],[251,5,251,8],[255,5,255,8],[254,5,254,7],[254,13,254,15],[254,17,254,19],[256,5,257,8],[252,5,253,8],[223,2,223,3],[218,4,219,14],[224,18,224,25],[211,6,212,13],[224,2,224,9],[215,2,215,3],[208,6,208,13],[209,6,209,13],[202,2,205,6],[205,16,205,26],[202,16,202,26],[217,22,217,23],[216,2,221,3],[215,16,215,25],[216,4,216,14],[219,16,219,17],[213,14,213,23],[217,16,217,17],[207,4,207,5],[211,4,212,4],[207,2,207,3],[207,6,207,13],[201,7,201,15],[154,2,154,16],[145,1,145,7],[145,8,145,10],[153,2,153,16],[146,1,146,7],[182,4,182,13],[184,14,184,22],[185,4,185,13],[193,14,193,22],[183,4,183,13],[184,4,184,13],[177,2,187,3],[185,14,185,22],[181,14,181,22],[193,4,193,13],[177,14,178,14],[187,4,187,13],[147,1,147,7],[183,14,183,22],[32,53,32,55],[103,30,103,31],[141,9,141,11],[141,12,141,21],[95,1,95,3],[96,1,96,19],[103,9,103,12],[94,9,94,32],[101,1,101,8],[101,9,101,12],[97,24,97,32],[98,1,98,8],[98,9,98,12],[99,1,99,8],[98,30,98,31],[97,1,97,8],[104,9,104,12],[99,30,99,31],[100,30,100,31],[101,30,101,31],[102,30,102,31],[104,30,104,31],[99,14,99,21],[91,9,91,27],[1,1,2,35],[17,16,17,19],[10,12,10,42],[9,12,9,42],[1,37,2,37],[13,12,13,30],[15,15,15,17],[7,10,7,15],[12,12,12,30],[15,12,15,13],[21,17,21,19],[21,21,21,23],[90,9,90,27],[38,18,38,22],[38,23,38,27],[39,18,39,22],[39,23,39,27],[31,2,31,11],[51,1,51,3],[32,19,32,20],[22,12,22,15],[22,17,22,19],[24,12,24,35],[32,13,32,14],[32,16,32,17],[32,2,32,11],[35,2,35,11],[33,2,33,11],[34,2,34,11],[39,2,39,17],[48,2,48,16],[36,2,36,11],[45,2,45,16],[42,2,42,13],[18,16,18,41],[38,28,38,32],[39,28,39,32],[19,16,19,30],[21,12,21,15],[27,13,27,18],[22,21,22,23],[105,1,105,8],[105,9,105,12],[102,1,102,8],[102,9,102,12],[103,1,103,8],[100,1,100,8],[100,9,100,12],[98,27,98,28],[99,24,99,25],[98,24,98,25],[99,27,99,28],[101,24,101,25],[97,13,97,22],[101,27,101,28],[97,9,97,12],[99,9,99,12],[98,14,98,21],[244,45,245,48],[244,49,245,52],[243,45,243,48],[243,49,243,52],[232,13,233,16],[100,14,100,21],[101,14,101,21],[116,1,116,10],[110,1,115,10],[105,14,105,21],[106,1,106,8],[106,9,106,12],[107,1,107,8],[107,9,107,12],[109,1,109,19],[107,14,107,21],[102,14,102,21],[103,14,103,21],[104,14,104,21],[120,1,120,18],[132,1,132,10],[104,1,104,8],[107,24,107,25],[232,49,233,52],[232,5,233,8],[243,5,243,8],[247,5,247,8],[244,9,245,12],[242,5,242,7],[240,9,241,12],[235,9,235,12],[232,9,233,12],[239,9,239,12],[239,5,239,8],[246,5,246,7],[242,9,242,11],[235,5,235,8],[244,5,245,8],[247,9,247,12],[240,5,241,8],[238,5,238,7],[236,5,237,8],[242,37,242,39],[246,21,246,23],[246,17,246,19],[234,37,234,39],[236,9,237,12],[238,9,238,11],[240,13,241,16],[240,33,241,36],[240,37,241,40],[239,21,239,24],[244,33,245,36],[242,21,242,23],[243,13,243,16],[240,17,241,20],[240,21,241,24],[240,25,241,28],[92,9,92,12],[92,14,92,16],[92,18,92,20],[93,9,93,12],[93,14,93,16],[93,18,93,20],[106,14,106,21],[141,1,141,7],[121,1,131,10],[143,1,143,7],[176,4,179,13],[156,2,156,16],[143,22,143,24],[210,6,210,13],[208,2,213,3],[239,37,239,40],[239,41,239,44],[247,29,247,32],[247,33,247,36],[239,13,239,16],[211,5,212,5],[231,41,231,44],[244,21,245,24],[243,37,243,40],[242,17,242,19],[243,21,243,24],[243,41,243,44],[243,25,243,28],[243,29,243,32],[243,33,243,36],[244,37,245,40],[244,25,245,28],[243,9,243,12],[231,45,231,48],[221,15,221,18],[219,22,219,23],[231,5,231,8],[231,9,231,12],[231,13,231,16],[213,6,213,13],[225,37,225,38],[224,34,224,38],[220,16,220,17],[225,24,225,25],[225,8,225,9],[221,4,221,14],[225,26,225,31],[225,34,225,36],[224,26,224,33],[225,32,225,33],[225,18,225,23],[217,19,217,20],[231,17,231,20],[225,16,225,17],[255,9,255,12],[255,13,255,16],[255,17,255,20],[254,9,254,11],[255,21,255,24],[251,21,251,24],[251,29,251,32],[255,29,255,32],[251,25,251,28],[251,13,251,16],[251,17,251,20],[252,21,253,24],[252,25,253,28],[251,9,251,12],[254,21,254,23],[255,25,255,28],[250,9,250,11],[252,9,253,12],[248,29,249,32],[244,13,245,16],[244,17,245,20],[250,37,250,39],[250,21,250,23],[254,37,254,39],[254,41,254,43],[254,29,254,31],[254,25,254,27],[252,29,253,32],[244,41,245,44],[244,29,245,32],[248,37,249,40],[248,33,249,36],[250,33,250,35],[251,33,251,36],[250,17,250,19],[248,13,249,16],[248,17,249,20],[247,21,247,24],[247,13,247,16],[250,13,250,15]]}
[null,null,null,null,null,null,null,null,null,null,null,null,null,null,null,null,null,null,null,null,null,null,null,null,null,null,null,null,null,null,null,null,null,null,null,null,null,null,"Ver 3.6"]
[null,"入札参加資格審査申請書（コンサル）当初申請用",null,null,null,null,null,null,null,null,null,null,null,null,null,null,null,null,null,null,null,null,null,null,null,null,null,null,null,null,null,null,null,null,null,null,null,"(1)",null,null,null,null,null,null,"(2)"]
[]
[null,"情報入力後に(1)「確認」ボタンをクリックしてください。\n(1)「確認」ボタンクリック後，入力チェックＯＫなら(2)「取込用CSVファイル作成」ボタンをクリックしてください。"]
["◎","基本情報"]
[]
[null,null,"０１ 法人・個人の区分",null,null,null,null,null,null,null,null,null,"（0．法人　1．個人）"]
[null,null,"０２ 法人番号",null,null,null,null,null,null,null,null,null,null,null,null,null,"（半角数字１３文字，法人の場合必須）"]
[]
[null,null,"０３ 商号又は名称(フリガナ)",null,null,null,null,null,null,null,null,null,null,null,null,null,null,null,null,null,null,null,null,null,null,null,null,null,null,null,null,null,null,null,null,null,null,null,null,null,null,null,null,"（全角カタカナ，５０文字以内）"]
[null,null,"０４ 商号又は名称（漢字等）",null,null,null,null,null,null,null,null,null,null,null,null,null,null,null,null,null,null,null,null,null,null,null,null,null,null,null,null,null,null,null,null,null,null,null,null,null,null,null,null,"（全角，５０文字以内）"]
[]
[null,null,"０５ 代表者役職",null,null,null,null,null,null,null,null,null,null,null,null,null,null,null,null,null,null,null,null,null,null,null,null,null,null,null,null,null,null,null,null,null,null,null,null,null,null,null,null,"（全角，２０文字以内）"]
[null,null,"０６ 代表者氏名（漢字等）",null,null,null,null,null,null,null,null,null,null,null,null,null,null,null,null,null,null,null,null,null,null,null,null,null,null,null,null,null,null,null,null,null,null,null,null,null,null,null,null,"（全角，３０文字以内）"]
[]
[null,null,"０７ 郵便番号（本店）",null,null,null,null,null,null,null,null,null,null,null,"－",null,null,null,null,"（半角数字，３文字－半角数字，４文字，合計７文字）"]
[]
[null,null,"０８ 本店所在地市区町村コード(本店)",null,null,null,null,null,null,null,null,null,null,null,null,null,null,null,null,null,null,null,null,null,null,"（半角数字５文字）",null,null,null,null,null,"※市区町村名は入力しないで下さい。"]
[null,null,"０９ 本店所在地（漢字等）",null,null,null,null,null,null,null,null,null,null,null,null,null,null,null,null,null,null,null,null,null,null,null,null,null,null,null,null,null,null,null,null,null,null,null,null,null,null,null,null,"（大字以降番地まで：全角，３５文字以内）"]
[null,null,null,null,null,null,null,null,null,null,null,null,null,null,null,null,null,null,null,null,null,null,null,null,null,null,null,null,null,null,null,null,"（ビル名など：全角，２０文字以内）"]
[]
[null,null,"１０　電話番号",null,null,null,null,null,null,null,null,null,null,null,null,null,"－",null,null,null,"－",null,null,null,null,"（半角数字，６文字以内－半角数字，４文字以内－半角数字，４文字以内，合計１４文字以内）"]
[null,null,"１１ ＦＡＸ番号",null,null,null,null,null,null,null,null,null,null,null,null,null,"－",null,null,null,"－",null,null,null,null,"（半角数字，６文字以内－半角数字，４文字以内－半角数字，４文字以内，合計１４文字以内）"]
[]
[null,null,"１２ Ｅメールアドレス",null,null,null,null,null,null,null,null,null,null,null,null,null,null,null,null,null,null,null,null,null,null,null,null,null,null,null,null,null,null,null,null,null,null,"（半角英数字，４５文字以内）"]
[null,null,"１３ Ｅメールアドレス区分",null,null,null,null,null,null,null,null,null,null,null,"（0.法人用　1.担当者用）"]
[]
[null,null,"１４ ＴＥＣＲＩＳ業者登録番号",null,null,null,null,null,null,null,null,null,null,null,null,null,null,null,null,null,"（半角英数字，１０文字）"]
[null,null,null,null,null,null,null,null,null,null,null,null,null,"※一般財団法人日本建設情報総合センターの運営する「測量調査設計業務実績情報サービス」(ＴＥＣＲＩＳ)の会社コードを"]
[null,null,null,null,null,null,null,null,null,null,null,null,null,"記入してください。登録がない場合は記入しないでください。"]
[]
[null,null,"１５ ＩＳＯ９００１取得有無",null,null,null,null,null,null,null,null,null,null,null,"（0．なし　1．あり）"]
[null,null,"１６ ＩＳＯ９００１取得年月日",null,null,null,null,null,null,null,null,null,null,null,null,"年",null,null,"月",null,null,"日",null,"（元号は，「昭和→3，平成→4，令和→5」と記入してください。）「なし」なら空白",null,null,null,null,null,null,null,null,null,null,null,null,null,null,null,null,null,null,null,null,null,null,null,null,null,null,null,null,null,null,null,null,null,null,null,null,"西暦変換",{"$f":"IFERROR(VLOOKUP(M33,Mデータ!$D:$F,3,FALSE),0)+N33-1","v":-1}]
[null,null,"１６ ＩＳＯ９００２取得有無"]
[null,null,"１７ ＩＳＯ９００２取得年月日"]
[null,null,"１８ ＩＳＯ１４００１取得有無",null,null,null,null,null,null,null,null,null,null,null,"（0．なし　1．あり）"]
[null,null,"１９ ＩＳＯ１４００１取得年月日",null,null,null,null,null,null,null,null,null,null,null,null,"年",null,null,"月",null,null,"日",null,"（元号は，「昭和→3，平成→4」と記入してください。）「なし」なら空白"]
[]
[null,null,null,null,null,null,null,null,null,null,null,null,null,null,null,null,null,null,"測量ＣＰＤ",null,null,null,null,"建築ＣＰＤ",null,null,null,null,"建設系ＣＰＤ"]
[null,null,"１７ 継続学習ＣＰＤ学習単位数・認定時間数",null,null,null,null,null,null,null,null,null,null,null,null,null,null,null,null,null,null,null,null,null,null,null,null,null,null,null,null,null,null,"（半角数字，３文字）"]
[null,null,"（　広島県内の本店，営業所等に所属の有資格技術者の前年度および前々年度の総学習単位数・認定時間数を記入してください（上限999）。取得した学習単位等がない場合は記入しないでください。　）"]
[]
[null,null,"１８ 地域防災活動への貢献認定有無",null,null,null,null,null,null,null,null,null,null,null,null,null,"（半角数字，１文字）"]
[null,null,"（　広島県公共土木施設災害支援制度の支援団体の認定を受けている場合（情報収集活動を行う者に限る。）は「1」を，該当しない場合は「0」選択してください。　）"]
[]
[null,null,"１８ 社会資本維持管理活動への貢献認定有無",null,null,null,null,null,null,null,null,null,null,null,null,null,null,null,null,"（半角数字，１文字）"]
[null,null,"（　広島県アダプトシステムの認定を受けている団体（マイロード・ラブリバー認定団体）である場合は，「1」を，該当しない場合は「0」を選択してください。　）"]
[]
[null,null,"２０ 不当要求防止責任者の選任の届出の有無",null,null,null,null,null,null,null,null,null,null,null,null,null,null,null,null,"（半角数字，１文字）"]
[null,null,"（　不当要求防止責任者の講習を受け，責任者を選定している場合は，「1」を，該当しない場合は「0」を選択してください。　）"]
[]
[null,""]
[]
[]
[]
[]
[]
[]
[]
[]
[]
[]
[]
[]
[]
[]
[]
[]
[]
[]
[]
[]
[null,null,"１９ 県内営業所の有無",null,null,null,null,null,null,null,null,null,"（0．なし　1．あり）"]
[]
[null,null,"２０ 消防団協力事業所の認定有無",null,null,null,null,null,null,null,null,null,null,null,null,null,null,"（半角数字，１文字）"]
[null,null,"（　広島県内に主たる営業所がある者のうち，県内市町の消防団協力事業所表示制度に基づき，消防団協力事業所に認定されている場合は，「1」を，該当しない場合は「0」を選択してください。　）"]
[]
[null,null,"２１ 協力雇用主の登録または暴力団離脱者社会復帰支援事業協力事業所の登録有無",null,null,null,null,null,null,null,null,null,null,null,null,null,null,null,null,null,null,null,null,null,null,null,null,null,null,null,null,"（半角数字，１文字）"]
[null,null,"（　広島県内に主たる営業所がある者で，犯罪や非行をした人を雇用し，立ち直りを助ける協力雇用主として広島保護観察所に登録されている場合，または，広島県内に主たる営業所がある者で，"]
[null,null,"　　公益財団法人暴力追放広島県民会議が行う暴力団離脱者の社会復帰支援事業における協力事業所として登録されている場合は，「1」を，該当しない場合は「0」を選択してください。　）"]
[null,null,"２２ 障害者雇用の有無",null,null,null,null,null,null,null,null,null,null,"（半角数字，１文字）"]
[null,null,"（　広島県内に主たる営業所がある者のうち，障害者の雇用義務のある者で，障害者雇用の割合が法定雇用率を達成してる場合，又は雇用義務のない者で，"]
[null,null,"　　１名以上障害者を雇用している場合は，「1」を，該当しない場合は「0」を選択してください。　）"]
[null,null,"２３ 広島県仕事と家庭の両立支援企業の登録有無",null,null,null,null,null,null,null,null,null,null,null,null,null,null,null,null,null,"（半角数字，１文字）"]
[null,null,"（　広島県仕事と家庭の両立支援企業として登録されている場合は，「1」を，該当しない場合は「0」を選択してください。　）"]
[]
[null,null,"２５ 広島県働き方改革実践企業認定制度の登録有無",null,null,null,null,null,null,null,null,null,null,null,null,null,null,null,null,"0",null,"（半角数字，１文字）"]
[null,null,"（　広島県商工会議所連合会及び広島県商工会連合会が行う広島県働き方改革実践企業認定制度において登録されている場合は，「1」を，該当しない場合は「0」を選択してください。　）"]
[]
[null,null,"２４ 申請事務担当者"]
[null,null,"部署名",null,null,null,null,null,null,null,null,null,null,null,null,null,null,null,null,null,null,null,null,null,null,null,null,null,null,"（全角，３０文字以内）"]
[null,null,"担当者氏名",null,null,null,null,null,null,null,null,null,null,null,null,null,null,null,null,null,null,null,null,null,null,null,null,null,null,"（全角，３０文字以内）"]
[null,null,"電話番号",null,null,null,null,null,null,null,null,null,null,"－",null,null,null,"－",null,null,null,null,"（半角数字，６文字以内－半角数字，４文字以内－半角数字，４文字以内，合計１４文字以内）"]
[null,null,"ＦＡＸ番号",null,null,null,null,null,null,null,null,null,null,"－",null,null,null,"－",null,null,null,null,"（半角数字，６文字以内－半角数字，４文字以内－半角数字，４文字以内，合計１４文字以内）"]
[null,null,"Ｅメールアドレス",null,null,null,null,null,null,null,null,null,null,null,null,null,null,null,null,null,null,null,null,null,null,null,null,null,null,null,null,null,null,null,"（半角英数字，４５文字以内）"]
[null,""]
[null,"２５ 法令等の登録等の有無と登録等を受けている事業一覧"]
[null,"登録事業者",null,null,null,null,null,null,null,"登録の有無",null,null,null,"登録番号",null,null,null,null,null,null,null,null,null,"元","登録年月日"]
[null,"測量業者(例)",null,null,null,null,null,null,null,"○",null,null,null,"第","１２３４５６７８",null,null,null,null,null,null,null,"号",4,"16",null,"年","04",null,"月","18",null,"日"]
[null,"測量業者",null,null,null,null,null,null,null,null,null,null,null,"第",null,null,null,null,null,null,null,null,"号",null,null,null,"年",null,null,"月",null,null,"日",null,null,null,null,null,null,null,null,null,null,null,null,null,null,null,null,null,null,null,null,null,null,null,null,null,null,null,"西暦変換",{"$f":"IFERROR(VLOOKUP(X100,Mデータ!$D:$F,3,FALSE),0)+Y100-1","v":-1}]
[null,"建築士事務所",null,null,null,null,null,null,null,null,null,null,null,"第",null,null,null,null,null,null,null,null,"号",null,null,null,"年",null,null,"月",null,null,"日",null,null,null,null,null,null,null,null,null,null,null,null,null,null,null,null,null,null,null,null,null,null,null,null,null,null,null,"西暦変換",{"$f":"IFERROR(VLOOKUP(X101,Mデータ!$D:$F,3,FALSE),0)+Y101-1","v":-1}]
[null,"地質調査業者",null,null,null,null,null,null,null,null,null,null,null,"第",null,null,null,null,null,null,null,null,"号",null,null,null,"年",null,null,"月",null,null,"日",null,null,null,null,null,null,null,null,null,null,null,null,null,null,null,null,null,null,null,null,null,null,null,null,null,null,null,"西暦変換",{"$f":"IFERROR(VLOOKUP(X102,Mデータ!$D:$F,3,FALSE),0)+Y102-1","v":-1}]
[null,"補償コンサルタント",null,null,null,null,null,null,null,null,null,null,null,"第",null,null,null,null,null,null,null,null,"号",null,null,null,"年",null,null,"月",null,null,"日",null,null,null,null,null,null,null,null,null,null,null,null,null,null,null,null,null,null,null,null,null,null,null,null,null,null,null,"西暦変換",{"$f":"IFERROR(VLOOKUP(X103,Mデータ!$D:$F,3,FALSE),0)+Y103-1","v":-1}]
[null,"建設コンサルタント",null,null,null,null,null,null,null,null,null,null,null,"第",null,null,null,null,null,null,null,null,"号",null,null,null,"年",null,null,"月",null,null,"日",null,null,null,null,null,null,null,null,null,null,null,null,null,null,null,null,null,null,null,null,null,null,null,null,null,null,null,"西暦変換",{"$f":"IFERROR(VLOOKUP(X104,Mデータ!$D:$F,3,FALSE),0)+Y104-1","v":-1}]
[null,"不動産鑑定業者",null,null,null,null,null,null,null,null,null,null,null,"第",null,null,null,null,null,null,null,null,"号",null,null,null,"年",null,null,"月",null,null,"日",null,null,null,null,null,null,null,null,null,null,null,null,null,null,null,null,null,null,null,null,null,null,null,null,null,null,null,"西暦変換",{"$f":"IFERROR(VLOOKUP(X105,Mデータ!$D:$F,3,FALSE),0)+Y105-1","v":-1}]
[null,"土地家屋調査士",null,null,null,null,null,null,null,null,null,null,null,"第",null,null,null,null,null,null,null,null,"号",null,null,null,"年",null,null,"月",null,null,"日",null,null,null,null,null,null,null,null,null,null,null,null,null,null,null,null,null,null,null,null,null,null,null,null,null,null,null,"西暦変換",{"$f":"IFERROR(VLOOKUP(X106,Mデータ!$D:$F,3,FALSE),0)+Y106-1","v":-1}]
[null,"司法書士",null,null,null,null,null,null,null,null,null,null,null,"第",null,null,null,null,null,null,null,null,"号",null,null,null,"年",null,null,"月",null,null,"日",null,null,null,null,null,null,null,null,null,null,null,null,null,null,null,null,null,null,null,null,null,null,null,null,null,null,null,"西暦変換",{"$f":"IFERROR(VLOOKUP(X107,Mデータ!$D:$F,3,FALSE),0)+Y107-1","v":-1}]
[null,"計量証明事業者",null,null,null,null,null,null,null,null,null,null,null,"第",null,null,null,null,null,null,null,null,"号",null,null,null,"年",null,null,"月",null,null,"日",null,null,null,null,null,null,null,null,null,null,null,null,null,null,null,null,null,null,null,null,null,null,null,null,null,null,null,"西暦変換",{"$f":"IFERROR(VLOOKUP(X108,Mデータ!$D:$F,3,FALSE),0)+Y108-1","v":-1}]
[]
[null,"２６ 補償関係コンサルタント登録業者の登録部門内容",null,null,null,null,null,null,null,null,null,null,null,null,null,null,null,null,null,null,null,{"$f":"\"※（上記\" & LEFT(B97,2) & \"の補償コンサルタントに登録有と記入した場合のみ，\"& LEFT(B110,2) & \"は１つ以上の登録有を記入してください。）\"","v":"※（上記２５の補償コンサルタントに登録有と記入した場合のみ，２６は１つ以上の登録有を記入してください。）"}]
[null,"部門名"]
[]
[]
[]
[null,null,null,null,null,null,null,null,null,null,null,null,null,null,""]
[]
[null,"登録の有無",null,null,null,null,null,null,null,null,null,"○"]
[]
[]
[]
[null,"２７ 建設コンサルタント登録業者の登録部門内容",null,null,null,null,null,null,null,null,null,null,null,null,null,null,null,null,null,null,null,{"$f":"\"※（上記\" & LEFT(B97,2) & \"の建設コンサルタントに登録有と記入した場合のみ，\" & LEFT(B121,2) & \"は１つ以上の登録有を記入してください。）\"","v":"※（上記２５の建設コンサルタントに登録有と記入した場合のみ，２７は１つ以上の登録有を記入してください。）"}]
[null,"部門名"]
[]
[]
[]
[]
[]
[]
[]
[]
[]
[]
[null,"登録の有無",null,null,null,null,null,null,null,null,null,"○"]
[]
[]
[]
[]
[]
[]
["◎","希望業務"]
[null,null,null,null,null,null,null,null,null,null,null,null,null,null,null,null,null,null,null,{"$f":"\"※「\" & LEFT(B142,2)& \"　希望業務の内容」は，希望する部門の下欄に「○」を記入してください。\"","v":"※「２８　希望業務の内容」は，希望する部門の下欄に「○」を記入してください。"}]
[null,"２８ 希望業務の内容",null,null,null,null,null,null,"見本","測量",null,null,"建築関係建設コンサルタント業務",null,null,null,null,null,null,null,null,null,"地質調査",null,null,"補償関係コンサルタント",null,null,null,null,null,null,null,"土木関係建設コンサルタント業務"]
[null,"希望業務",null,null,null,null,null,null,"測量一般（例）","測量一般","地図の調整","航空測量","建築一般","意匠","構造","暖冷房","衛生","電気","建築積算","機械設備積算","電気設備積算","調査","地質調査",null,null,"土地調査","土地評価","物件","機械工作物","営業・特殊補償","事業損失","補償関連","総合補償","河川・砂防及び海岸・海洋",null,"港湾・空港","電力土木","道路","鉄道","上水道及び工業用水道",null,"下水道","農業土木","森林土木","水産土木","廃棄物","造園","都市計画及び地方計画",null,"地質","土質及び基礎","鋼構造及びコンクリート",null,"トンネル","施工計画・施工設備及び積算",null,"建設環境","機械","電気・電子"]
[null,"希望の有無",null,null,null,null,null,null,"○"]
[]
[null,null,null,null,null,null,null,null,"その他"]
[null,"希望業務",null,null,null,null,null,null,"不動産鑑定","登記手続等","その他"]
[null,"希望の有無"]
[]
[]
[null,"希望業務「その他」を希望した場合のみ，その内容を５項目以内で簡単に記入してください。"]
[null,"２８－１　その他業務の具体的内容（希望業務）"]
[null,"１"]
[null,"２"]
[null,"３"]
[null,"４"]
[null,"５"]
[]
[]
[]
[]
[]
[]
[]
[]
[]
[]
[]
[]
[]
[]
[]
[]
[]
[]
["◎","経営状況等"]
[null,null,"２９",null,"①競争参加資格希望業務区分",null,null,null,null,null,null,null,null,null,"②直前１期決算",null,null,null,null,null,null,null,null,"③直前２期決算",null,null,null,null,null,null,null,null,"④直前３期決算",null,null,null,null,null,null,null,null,"⑤直前４期決算",null,null,null,null,null,null,null,null,"（元号は，「平成→4，令和→5」",null,null,null,null,null,null,null,null,null,"②直前１期決算",null,"③直前２期決算",null,"④直前３期決算",null,"⑤直前４期決算"]
[null,null,"希望業務実績高",null,null,null,null,null,null,null,null,null,null,null,"元号",null,null,null,"年",null,null,"月","自","元号",null,null,null,"年",null,null,"月","自","元号",null,null,null,"年",null,null,"月","自","元号",null,null,null,"年",null,null,"月","自","　と記入してください。）",null,null,null,null,null,null,null,null,null,"西暦変換",{"$f":"IFERROR(VLOOKUP(P178,Mデータ!$D:$F,3,FALSE),0)+Q178-1","v":-1},"西暦変換",{"$f":"IFERROR(VLOOKUP(Y178,Mデータ!$D:$F,3,FALSE),0)+Z178-1","v":-1},"西暦変換",{"$f":"IFERROR(VLOOKUP(AH178,Mデータ!$D:$F,3,FALSE),0)+AI178-1","v":-1},"西暦変換",{"$f":"IFERROR(VLOOKUP(AQ178,Mデータ!$D:$F,3,FALSE),0)+AR178-1","v":-1}]
[null,null,null,null,null,null,null,null,null,null,null,null,null,null,null,null,null,null,"年",null,null,"月","至",null,null,null,null,"年",null,null,"月","至",null,null,null,null,"年",null,null,"月","至",null,null,null,null,"年",null,null,"月","至","（半角数字，２文字以内）",null,null,null,null,null,null,null,null,null,"西暦変換",{"$f":"IFERROR(VLOOKUP(P179,Mデータ!$D:$F,3,FALSE),0)+Q179-1","v":-1},"西暦変換",{"$f":"IFERROR(VLOOKUP(Y179,Mデータ!$D:$F,3,FALSE),0)+Z179-1","v":-1},"西暦変換",{"$f":"IFERROR(VLOOKUP(AH179,Mデータ!$D:$F,3,FALSE),0)+AI179-1","v":-1},"西暦変換",{"$f":"IFERROR(VLOOKUP(AQ179,Mデータ!$D:$F,3,FALSE),0)+AR179-1","v":-1}]
[null,null,null,null,null,null,null,null,null,null,null,null,null,null,"（千円）",null,null,null,null,null,null,null,null,"（千円）",null,null,null,null,null,null,null,null,"（千円）",null,null,null,null,null,null,null,null,"（千円）"]
[null,null,null,null,"測量(例)",null,null,null,null,null,null,null,null,null,999999999,null,null,null,null,null,null,null,null,999999999]
[null,null,null,null,"測量"]
[null,null,null,null,"建築関係建設コンサルタント業務"]
[null,null,null,null,"地質調査業務",null,null,null,null,null,null,null,null,null,null,null,null,null,null,null,null,null,null,null,null,null,null,null,null,null,null,null,null,null,null,null,null,null,null,null,null,null,null,null,null,null,null,null,null,null,"（半角数字，９文字以内）"]
[null,null,null,null,"補償関係コンサルタント業務"]
[null,null,null,null,"土木関係建設コンサルタント業務"]
[null,null,null,null,"その他業務（上記５業務以外）"]
[null,null,null,null,"合計",null,null,null,null,null,null,null,null,null,{"$f":"SUM(O182:W187)","v":0},null,null,null,null,null,null,null,null,{"$f":"SUM(X182:AF187)","v":0},null,null,null,null,null,null,null,null,{"$f":"SUM(AG182:AO187)","v":0},null,null,null,null,null,null,null,null,{"$f":"SUM(AP182:AX187)","v":0}]
[null,null,null,"※","１","②から⑤の金額はいずれも消費税及び地方消費税を含まない額を記入してください。"]
[null,null,null,null,"２",{"$f":"\"「\"&LEFT(C177,2)&\"　希望業務実績高」には，測量・建設コンサルタント業務以外の業務（建設業を兼業している場合は，その完成工事高等）の実績高は記入しないでください。\"","v":"「２９　希望業務実績高」には，測量・建設コンサルタント業務以外の業務（建設業を兼業している場合は，その完成工事高等）の実績高は記入しないでください。"}]
[null,null,null,null,"３","直前１期と直前２期の期間の合計が２４か月未満の場合，④，⑤の表は入力必須です。"]
[null,null,null,null,"４","１期あたりの期間が１２か月を超えないように入力してください。（例：「平成１５年８月３１日」から「平成１６年８月３０日」までの場合，「平成１５年８月」から「平成１６年７月」まで"]
[]
[null,null,"３０",null,"区　　　分",null,null,null,null,null,null,null,null,null,"直前決算時(千円)"]
[null,null,"自己資本金額",null,"①",null,"（うち外国資本）(例)",null,null,null,null,null,null,null,999999999]
[null,null,null,null,"①",null,"（うち外国資本）",null,null,null,null,null,null,null,null,null,null,null,null,null,null,null,null,null,"（半角数字，９文字以内）"]
[null,null,null,null,"②",null,"株主資本",null,null,null,null,null,null,null,null,null,null,null,null,null,null,null,null,null,"※マイナス記号入力可能"]
[null,null,null,null,"③",null,"評価・換算差額等"]
[null,null,null,null,"④",null,"新株予約権"]
[null,null,null,null,null,null,null,null,"計",null,null,null,null,null,{"$f":"SUM(O197:W199)","v":0}]
[]
[null,null,"３１　損益計算書",null,null,null,null,"税引前当期利益（千円）"]
[null,null,"３２　貸借対照表",null,null,null,null,"①　流動資産　（千円）"]
[null,null,null,null,null,null,null,"②　流動負債　（千円）",null,null,null,null,null,null,null,null,null,null,null,null,null,null,null,null,null,null,null,null,"（半角数字，１１文字以内）"]
[null,null,null,null,null,null,null,"③　固定資産　（千円）"]
[null,null,null,null,null,null,null,"④　総資本額　（千円）"]
[]
[null,null,"３３",null,"選択",null,"区分",null,null,null,null,null,null,null,"国名"]
[null,null,"外\n資\n状\n況",null,"○","①","外国籍会社(例)",null,null,null,null,null,null,null,"アメリカ合衆国"]
[null,null,null,null,null,"①","外国籍会社",null,null,null,null,null,null,null,null,null,null,null,null,null,null,null,null,null,null,null,null,null,null,"国名：（全角，１０文字以内）"]
[null,null,null,null,null,"②","日本国籍会社（１００％外資）",null,null,null,null,null,null,null,null,null,null,null,null,null,null,null,null,null,"外資比率",null,null,null,null,"外資比率：（半角数字，２文字以内）"]
[null,null,null,null,null,"③","日本国籍会社（一部外資）",null,null,null,null,null,null,null,null,null,null,null,null,null,null,null,null,null,null,null,"（％）"]
[null,null,null,null,null,null,null,null,null,null,null,null,null,null,null,null,null,null,null,null,null,null,null,null,null,null,"（％）"]
[null,null,null,null,null,"④","外資なし"]
[]
[null,null,"３４",null,"区分",null,null,null,null,null,null,null,null,null,null,"元","営業年月日",null,null,null,null,null,null,null,null,null,null,null,"\n※登録年月日の元号は，\n　「明治→1，大正→2，昭和→3，平成→4，令和→5」\n　で記入してください。\n\n（例）平成16年4月18日の場合，\n　　　「416年04月18日」と記入してください。"]
[null,null,"営業年数等",null,"①　創業（例）",null,null,null,null,null,null,null,null,null,null,4,"16",null,"年","04",null,"月","18",null,"日"]
[null,null,null,null,"①　創業",null,null,null,null,null,null,null,null,null,null,null,null,null,"年",null,null,"月",null,null,"日",null,null,null,null,null,null,null,null,null,null,null,null,null,null,null,null,null,null,null,null,null,null,null,null,null,null,null,null,null,null,null,null,null,null,null,"西暦変換",{"$f":"IFERROR(VLOOKUP(P218,Mデータ!$D:$F,3,FALSE),0)+Q218-1","v":-1}]
[null,null,null,null,"②　休業又は転（廃）業の期間",null,null,null,null,null,null,null,null,null,null,null,null,null,"年",null,null,"月",null,null,"日","自",null,null,null,null,null,null,null,null,null,null,null,null,null,null,null,null,null,null,null,null,null,null,null,null,null,null,null,null,null,null,null,null,null,null,"西暦変換",{"$f":"IFERROR(VLOOKUP(P219,Mデータ!$D:$F,3,FALSE),0)+Q219-1","v":-1}]
[null,null,null,null,null,null,null,null,null,null,null,null,null,null,null,null,null,null,"年",null,null,"月",null,null,"日","至",null,null,null,null,null,null,null,null,null,null,null,null,null,null,null,null,null,null,null,null,null,null,null,null,null,null,null,null,null,null,null,null,null,null,"西暦変換",{"$f":"IFERROR(VLOOKUP(P220,Mデータ!$D:$F,3,FALSE),0)+Q220-1","v":-1}]
[null,null,null,null,"③　現組織への変更",null,null,null,null,null,null,null,null,null,null,null,null,null,"年",null,null,"月",null,null,"日",null,null,null,null,null,null,null,null,null,null,null,null,null,null,null,null,null,null,null,null,null,null,null,null,null,null,null,null,null,null,null,null,null,null,null,"西暦変換",{"$f":"IFERROR(VLOOKUP(P221,Mデータ!$D:$F,3,FALSE),0)+Q221-1","v":-1}]
[null,null,null,null,"④　営業年数",null,null,null,null,null,null,null,null,null,null,null,null,null,null,"（年）",null,null,"（半角数字４文字以内）"]
[]
[null,null,"３５",null,"常勤職員の数"]
[null,null,"①技術職員",null,null,null,null,null,null,null,"②事務職員",null,null,null,null,null,null,null,"③その他職員",null,null,null,null,null,null,null,"計＝①＋②＋③",null,null,null,null,null,null,null,"④役職員等"]
[null,null,null,null,null,null,null,null,"（人）",null,null,null,null,null,null,null,"（人）",null,null,null,null,null,null,null,"（人）",null,{"$f":"C226+K226+S226","v":0},null,null,null,null,null,"（人）",null,null,null,null,"（人）"]
[]
[null,null,null,null,"※","④役職員等の数は①＋②＋③以下となるように入力してください。"]
[]
[]
[]
[null,null,"３６",null,null,"８４１",null,null,null,"８４２",null,null,null,"１３７",null,null,null,"２３８",null,null,null,"０６２",null,null,null,"１１３",null,null,null,"１０１",null,null,null,"２０２",null,null,null,"２２２",null,null,null,"２４１",null,null,null,"３４２",null,null,null,"２４３"]
[null,null,null,null,null,"構造設計\n一級建築士",null,null,null,"設備設計\n一級建築士",null,null,null,"一級建築士",null,null,null,"二級建築士",null,null,null,"建築設備士",null,null,null,"一級土木\n施工管理技士",null,null,null,"測量士",null,null,null,"測量士補",null,null,null,"環境計量士",null,null,null,"不動産鑑定士",null,null,null,"不動産\n鑑定士補",null,null,null,"土地家屋\n調査士"]
[null,null,"有資格者数"]
[null,null,null,null,null,null,null,null,"人",null,null,null,"人",null,null,null,"人",null,null,null,"人",null,null,null,"人",null,null,null,"人",null,null,null,"人",null,null,null,"人",null,null,null,"人",null,null,null,"人",null,null,null,"人",null,null,null,"人"]
[null,null,null,null,null,"２４４",null,null,null,"３０１"]
[null,null,null,null,null,"司法書士",null,null,null,"建築積算士\n（建築積算資格者）"]
[]
[null,null,null,null,null,null,null,null,"人",null,null,null,"人"]
[null,null,null,null,"技術士","１６１",null,null,null,"１６２",null,null,null,"１６３",null,null,null,"１６４",null,null,null,"１６５",null,null,null,"１６６",null,null,null,"１６７",null,null,null,"１６８",null,null,null,"１６９",null,null,null,"１７０",null,null,null,"１７１",null,null,null,"１７２"]
[null,null,null,null,null,"機械部門\n（※）",null,null,null,"機械部門\n（その他）",null,null,null,"電気電子\n部門",null,null,null,"建設部門\n（土質及び基礎）",null,null,null,"建設部門（鋼構造及びｺﾝｸﾘｰﾄ）",null,null,null,"建設部門（都市及び地方計画）",null,null,null,"建設部門（河川砂防及び海岸）",null,null,null,"建設部門（港湾及び空港）",null,null,null,"建設部門\n（電力土木）",null,null,null,"建設部門\n（道路）",null,null,null,"建設部門\n（鉄道）",null,null,null,"建設部門\n（トンネル）"]
[]
[null,null,null,null,null,null,null,null,"人",null,null,null,"人",null,null,null,"人",null,null,null,"人",null,null,null,"人",null,null,null,"人",null,null,null,"人",null,null,null,"人",null,null,null,"人",null,null,null,"人",null,null,null,"人",null,null,null,"人"]
[null,null,null,null,null,"１７３",null,null,null,"１７４",null,null,null,"１７５",null,null,null,"１７６",null,null,null,"１７７",null,null,null,"１７８",null,null,null,"１７９",null,null,null,"１８０",null,null,null,"１８１",null,null,null,"１８２",null,null,null,"１８３",null,null,null,"１８４"]
[null,null,null,null,null,"建設部門（施工計画，施工設備及び積算）",null,null,null,"建設部門\n（建設環境）",null,null,null,"農業部門\n（農林土木）",null,null,null,"森林部門\n（森林土木）",null,null,null,"水産部門\n（水産土木）",null,null,null,"情報工学部門",null,null,null,"応用理学部門\n（地質）",null,null,null,"応用理学部門\n（その他）",null,null,null,"上下水道部門（上水道及び工業用水道）",null,null,null,"上下水道部門\n（下水道）",null,null,null,"上下水道部門\n（水道環境）",null,null,null,"その他の部門"]
[]
[null,null,null,null,null,null,null,null,"人",null,null,null,"人",null,null,null,"人",null,null,null,"人",null,null,null,"人",null,null,null,"人",null,null,null,"人",null,null,null,"人",null,null,null,"人",null,null,null,"人",null,null,null,"人",null,null,null,"人"]
[null,null,null,null,"ＲＣＣＭ","７０１",null,null,null,"７０２",null,null,null,"７０３",null,null,null,"７０４",null,null,null,"７０５",null,null,null,"７０６",null,null,null,"７０７",null,null,null,"７０８",null,null,null,"７０９",null,null,null,"７１０",null,null,null,"７１１",null,null,null,"７１２"]
[null,null,null,null,null,"河川・砂防\n及び海岸",null,null,null,"港湾及び空港",null,null,null,"電力土木",null,null,null,"道路",null,null,null,"鉄道",null,null,null,"造園",null,null,null,"都市計画及び\n地方計画",null,null,null,"地質",null,null,null,"土質及び基礎",null,null,null,"鋼構造及び\nコンクリート",null,null,null,"トンネル",null,null,null,"施工計画，施工設備及び積算"]
[]
[null,null,null,null,null,null,null,null,"人",null,null,null,"人",null,null,null,"人",null,null,null,"人",null,null,null,"人",null,null,null,"人",null,null,null,"人",null,null,null,"人",null,null,null,"人",null,null,null,"人",null,null,null,"人",null,null,null,"人"]
[null,null,null,null,null,"７１３",null,null,null,"７１４",null,null,null,"７１５",null,null,null,"７１６",null,null,null,"７１７",null,null,null,"７１８",null,null,null,"７１９",null,null,null,"７２０",null,null,null,"７２１",null,null,null,"７２２"]
[null,null,null,null,null,"建設環境",null,null,null,"上水道及び\n工業用水道",null,null,null,"下水道",null,null,null,"農業土木",null,null,null,"森林土木",null,null,null,"建設機械",null,null,null,"電気電子",null,null,null,"水産土木",null,null,null,"廃棄物",null,null,null,"建設情報"]
[]
[null,null,null,null,null,null,null,null,"人",null,null,null,"人",null,null,null,"人",null,null,null,"人",null,null,null,"人",null,null,null,"人",null,null,null,"人",null,null,null,"人",null,null,null,"人",null,null,null,"人"]
[null,null,null,null,null,"２４５",null,null,null,"３４６",null,null,null,"２４７",null,null,null,"２５８",null,null,null,"２２３",null,null,null,"２２４",null,null,null,"２４８",null,null,null,"２５１",null,null,null,"３０２",null,null,null,"００１",null,null,null,"００２",null,null,null,"００３"]
[null,null,null,null,null,"公認会計士数",null,null,null,"会計士補",null,null,null,"税理士",null,null,null,"第一種電気\n主任技術者",null,null,null,"第一種伝送交換主任技術者",null,null,null,"線路主任\n技術者",null,null,null,"中小企業\n診断士",null,null,null,"地質調査技士",null,null,null,"土地区画\n整理士",null,null,null,"建設ｺﾝｻﾙﾀﾝﾄ業務実務経験者",null,null,null,"用地調査等業務実務経験者",null,null,null,"公共用地取得"]
[null,null,null,null,null,null,null,null,null,null,null,null,null,null,null,null,null,null,null,null,null,null,null,null,null,null,null,null,null,null,null,null,null,null,null,null,null,null,null,null,null,null,null,null,null,null,null,null,null,"実務経験者"]
[null,null,null,null,null,null,null,null,"人",null,null,null,"人",null,null,null,"人",null,null,null,"人",null,null,null,"人",null,null,null,"人",null,null,null,"人",null,null,null,"人",null,null,null,"人",null,null,null,"人",null,null,null,"人",null,null,null,"人"]
[]
[null,null,null,"※","１","技術士の機械部門（※）は、選択科目「流体機械」、「建設、鉱山、荷役及び運搬機械又は「機械設備」を指します。"]
[null,null,null,null,"２","技術士の総合技術監理部門については、上記各部門の選択科目（記載のない部門はすべての選択科目）の有資格者数に加えて記入してください。"]

{"sheet":"Mデータ","index":2,"n_rows":3756,"n_cols":10,"rows_kept":3756,"cut":false,"hidden":true,"merged":[]}
["市区町村コード",null,null,"元号コード",null,"西暦","県別コード",null,null,"マスタデータ変更履歴"]
["01101","札幌市中央区",null,"1","明治",1868,"01","北海道",null,"2010/7/29　市区町村コード変更（資格審査市区町村マスタより抽出）"]
["01102","札幌市北区",null,"2","大正",1912,"02","青森県",null,"2012/8/31　市区町村コード変更（資格審査市区町村マスタより抽出）"]
["01103","札幌市東区",null,"3","昭和",1926,"03","岩手県",null,"2023/9/29　市区町村コード変更（資格審査市区町村マスタより抽出）"]
["01104","札幌市白石区",null,"4","平成",1989,"04","宮城県",null,"2023/9/29　F列に西暦を追加（CSV出力も和暦ではなく西暦で出力するよう「受注者・工事　申請CSVレイアウト」のBC列を変更）"]
["01105","札幌市豊平区",null,"5","令和",2019,"05","秋田県"]
["01106","札幌市南区",null,null,null,null,"06","山形県"]
["01107","札幌市西区",null,null,null,null,"07","福島県"]
["01108","札幌市厚別区",null,null,null,null,"08","茨城県"]
["01109","札幌市手稲区",null,null,null,null,"09","栃木県"]
["01110","札幌市清田区",null,null,null,null,"10","群馬県"]
["01202","函館市",null,null,null,null,"11","埼玉県"]
["01203","小樽市",null,null,null,null,"12","千葉県"]
["01204","旭川市",null,null,null,null,"13","東京都"]
["01205","室蘭市",null,null,null,null,"14","神奈川県"]
["01206","釧路市",null,null,null,null,"15","新潟県"]
["01207","帯広市",null,null,null,null,"16","富山県"]
["01208","北見市",null,null,null,null,"17","石川県"]
["01209","夕張市",null,null,null,null,"18","福井県"]
["01210","岩見沢市",null,null,null,null,"19","山梨県"]
["01211","網走市",null,null,null,null,"20","長野県"]
["01212","留萌市",null,null,null,null,"21","岐阜県"]
["01213","苫小牧市",null,null,null,null,"22","静岡県"]
["01214","稚内市",null,null,null,null,"23","愛知県"]
["01215","美唄市",null,null,null,null,"24","三重県"]
["01216","芦別市",null,null,null,null,"25","滋賀県"]
["01217","江別市",null,null,null,null,"26","京都府"]
["01218","赤平市",null,null,null,null,"27","大阪府"]
["01219","紋別市",null,null,null,null,"28","兵庫県"]
["01220","士別市",null,null,null,null,"29","奈良県"]
["01221","名寄市",null,null,null,null,"30","和歌山県"]
["01222","三笠市",null,null,null,null,"31","鳥取県"]
["01223","根室市",null,null,null,null,"32","島根県"]
["01224","千歳市",null,null,null,null,"33","岡山県"]
["01225","滝川市",null,null,null,null,"34","広島県"]
["01226","砂川市",null,null,null,null,"35","山口県"]
["01227","歌志内市",null,null,null,null,"36","徳島県"]
["01228","深川市",null,null,null,null,"37","香川県"]
["01229","富良野市",null,null,null,null,"38","愛媛県"]
["01230","登別市",null,null,null,null,"39","高知県"]
["01231","恵庭市",null,null,null,null,"40","福岡県"]
["01233","伊達市",null,null,null,null,"41","佐賀県"]
["01234","北広島市",null,null,null,null,"42","長崎県"]
["01235","石狩市",null,null,null,null,"43","熊本県"]
["01236","北斗市",null,null,null,null,"44","大分県"]
["01301","北広島市",null,null,null,null,"45","宮崎県"]
["01302","石狩市",null,null,null,null,"46","鹿児島県"]
["01303","石狩郡当別町",null,null,null,null,"47","沖縄県"]
["01304","石狩郡新篠津村"]
["01305","厚田郡厚田村"]
["01306","浜益郡浜益村"]
["01331","松前郡松前町"]
["01332","松前郡福島町"]
["01333","上磯郡知内町"]
["01334","上磯郡木古内町"]
["01335","上磯郡上磯町"]
["01336","亀田郡大野町"]
["01337","亀田郡七飯町"]
["01339","亀田郡戸井町"]
["01340","亀田郡恵山町"]
["01341","亀田郡椴法華村"]
["01342","茅部郡南茅部町"]
["01343","茅部郡鹿部町"]
["01344","茅部郡砂原町"]
["01345","茅部郡森町"]
["01346","山越郡八雲町"]
["01347","山越郡長万部町"]
["01361","檜山郡江差町"]
["01362","檜山郡上ノ国町"]
["01363","檜山郡厚沢部町"]
["01364","爾志郡乙部町"]
["01365","爾志郡熊石町"]
["01366","久遠郡大成町"]
["01367","奥尻郡奥尻町"]
["01368","瀬棚郡瀬棚町"]
["01369","瀬棚郡北檜山町"]
["01370","瀬棚郡今金町"]
["01371","久遠郡せたな町"]
["01391","島牧郡島牧村"]
["01392","寿都郡寿都町"]
["01393","寿都郡黒松内町"]
["01394","磯谷郡蘭越町"]
["01395","虻田郡ニセコ町"]
["01396","虻田郡真狩村"]
["01397","虻田郡留寿都村"]
["01398","虻田郡喜茂別町"]
["01399","虻田郡京極町"]
["01400","虻田郡倶知安町"]
["01401","岩内郡共和町"]
["01402","岩内郡岩内町"]
["01403","古宇郡泊村"]
["01404","古宇郡神恵内村"]
["01405","積丹郡積丹町"]
["01406","古平郡古平町"]
["01407","余市郡仁木町"]
["01408","余市郡余市町"]
["01409","余市郡赤井川村"]
["01421","空知郡北村"]
["01422","空知郡栗沢町"]
["01423","空知郡南幌町"]
["01424","空知郡奈井江町"]
["01425","空知郡上砂川町"]
["01427","夕張郡由仁町"]
["01428","夕張郡長沼町"]
["01429","夕張郡栗山町"]
["01430","樺戸郡月形町"]
["01431","樺戸郡浦臼町"]
["01432","樺戸郡新十津川町"]
["01433","雨竜郡妹背牛町"]
["01434","雨竜郡秩父別町"]
["01436","雨竜郡雨竜町"]
["01437","雨竜郡北竜町"]
["01438","雨竜郡沼田町"]
["01439","雨竜郡幌加内町"]
["01452","上川郡鷹栖町"]
["01453","上川郡東神楽町"]
["01454","上川郡当麻町"]
["01455","上川郡比布町"]
["01456","上川郡愛別町"]
["01457","上川郡上川町"]
["01458","上川郡東川町"]
["01459","上川郡美瑛町"]
["01460","空知郡上富良野町"]
["01461","空知郡中富良野町"]
["01462","空知郡南富良野町"]
["01463","勇払郡占冠村"]
["01464","上川郡和寒町"]
["01465","上川郡剣淵町"]
["01466","上川郡朝日町"]
["01467","上川郡風連町"]
["01468","上川郡下川町"]
["01469","中川郡美深町"]
["01470","中川郡音威子府村"]
["01471","中川郡中川町"]
["01472","雨竜郡幌加内町"]
["01481","増毛郡増毛町"]
["01482","留萌郡小平町"]
["01483","苫前郡苫前町"]
["01484","苫前郡羽幌町"]
["01485","苫前郡初山別村"]
["01486","天塩郡遠別町"]
["01487","天塩郡天塩町"]
["01488","天塩郡幌延町"]
["01511","宗谷郡猿払村"]
["01512","枝幸郡浜頓別町"]
["01513","枝幸郡中頓別町"]
["01514","枝幸郡枝幸町"]
["01515","枝幸郡歌登町"]
["01516","天塩郡豊富町"]
["01517","礼文郡礼文町"]
["01518","利尻郡利尻町"]
["01519","利尻郡利尻富士町"]
["01520","天塩郡幌延町"]
["01541","網走郡東藻琴村"]
["01542","網走郡女満別町"]
["01543","網走郡美幌町"]
["01544","網走郡津別町"]
["01545","斜里郡斜里町"]
["01546","斜里郡清里町"]
["01547","斜里郡小清水町"]
["01548","常呂郡端野町"]
["01549","常呂郡訓子府町"]
["01550","常呂郡置戸町"]
["01551","常呂郡留辺蘂町"]
["01552","常呂郡佐呂間町"]
["01553","常呂郡常呂町"]
["01554","紋別郡生田原町"]
["01555","紋別郡遠軽町"]
["01556","紋別郡丸瀬布町"]
["01557","紋別郡白滝村"]
["01558","紋別郡上湧別町"]
["01559","紋別郡湧別町"]
["01560","紋別郡滝上町"]
["01561","紋別郡興部町"]
["01562","紋別郡西興部村"]
["01563","紋別郡雄武町"]
["01564","網走郡大空町"]
["01571","虻田郡豊浦町"]
["01572","虻田郡虻田町"]
["01573","虻田郡洞爺村"]
["01574","有珠郡大滝村"]
["01575","有珠郡壮瞥町"]
["01578","白老郡白老町"]
["01579","勇払郡早来町"]
["01580","勇払郡追分町"]
["01581","勇払郡厚真町"]
["01582","勇払郡鵡川町"]
["01583","勇払郡穂別町"]
["01584","虻田郡洞爺湖町"]
["01585","勇払郡安平町"]
["01586","勇払郡むかわ町"]
["01601","沙流郡日高町"]
["01602","沙流郡平取町"]
["01603","沙流郡門別町"]
["01604","新冠郡新冠町"]
["01605","静内郡静内町"]
["01606","三石郡三石町"]
["01607","浦河郡浦河町"]
["01608","様似郡様似町"]
["01609","幌泉郡えりも町"]
["01610","日高郡新ひだか町"]
["01631","河東郡音更町"]
["01632","河東郡士幌町"]
["01633","河東郡上士幌町"]
["01634","河東郡鹿追町"]
["01635","上川郡新得町"]
["01636","上川郡清水町"]
["01637","河西郡芽室町"]
["01638","河西郡中札内村"]
["01639","河西郡更別村"]
["01640","広尾郡忠類村"]
["01641","広尾郡大樹町"]
["01642","広尾郡広尾町"]
["01643","中川郡幕別町"]
["01644","中川郡池田町"]
["01645","中川郡豊頃町"]
["01646","中川郡本別町"]
["01647","足寄郡足寄町"]
["01648","足寄郡陸別町"]
["01649","十勝郡浦幌町"]
["01661","釧路郡釧路町"]
["01662","厚岸郡厚岸町"]
["01663","厚岸郡浜中町"]
["01664","川上郡標茶町"]
["01665","川上郡弟子屈町"]
["01666","阿寒郡阿寒町"]
["01667","阿寒郡鶴居村"]
["01668","白糠郡白糠町"]
["01669","白糠郡音別町"]
["01691","野付郡別海町"]
["01692","標津郡中標津町"]
["01693","標津郡標津町"]
["01694","目梨郡羅臼町"]
["02201","青森市"]
["02202","弘前市"]
["02203","八戸市"]
["02204","黒石市"]
["02205","五所川原市"]
["02206","十和田市"]
["02207","三沢市"]
["02208","むつ市"]
["02209","つがる市"]
["02210","平川市"]
["02301","東津軽郡平内町"]
["02302","東津軽郡蟹田町"]
["02303","東津軽郡今別町"]
["02304","東津軽郡蓬田村"]
["02305","東津軽郡平館村"]
["02306","東津軽郡三厩村"]
["02307","東津軽郡外ヶ浜町"]
["02321","西津軽郡鰺ケ沢町"]
["02322","西津軽郡木造町"]
["02323","西津軽郡深浦町"]
["02324","西津軽郡森田村"]
["02325","西津軽郡岩崎村"]
["02326","西津軽郡柏村"]
["02327","西津軽郡稲垣村"]
["02328","西津軽郡車力村"]
["02341","中津軽郡岩木町"]
["02342","中津軽郡相馬村"]
["02343","中津軽郡西目屋村"]
["02361","南津軽郡藤崎町"]
["02362","南津軽郡大鰐町"]
["02363","南津軽郡尾上町"]
["02364","南津軽郡浪岡町"]
["02365","南津軽郡平賀町"]
["02366","南津軽郡常盤村"]
["02367","南津軽郡田舎館村"]
["02368","南津軽郡碇ケ関村"]
["02381","北津軽郡板柳町"]
["02382","北津軽郡金木町"]
["02383","北津軽郡中里町"]
["02384","北津軽郡鶴田町"]
["02385","北津軽郡市浦村"]
["02386","北津軽郡小泊村"]
["02387","北津軽郡中泊町"]
["02401","上北郡野辺地町"]
["02402","上北郡七戸町"]
["02403","上北郡百石町"]
["02404","上北郡十和田湖町"]
["02405","上北郡六戸町"]
["02406","上北郡横浜町"]
["02407","上北郡上北町"]
["02408","上北郡東北町"]
["02409","上北郡天間林村"]
["02410","上北郡下田町"]
["02411","上北郡六ケ所村"]
["02412","上北郡おいらせ町"]
["02421","下北郡川内町"]
["02422","下北郡大畑町"]
["02423","下北郡大間町"]
["02424","下北郡東通村"]
["02425","下北郡風間浦村"]
["02426","下北郡佐井村"]
["02427","下北郡脇野沢村"]
["02441","三戸郡三戸町"]
["02442","三戸郡五戸町"]
["02443","三戸郡田子町"]
["02444","三戸郡名川町"]
["02445","三戸郡南部町"]
["02446","三戸郡階上町"]
["02447","三戸郡福地村"]
["02448","三戸郡南郷村"]
["02449","三戸郡倉石村"]
["02450","三戸郡新郷村"]
["03201","盛岡市"]
["03202","宮古市"]
["03203","大船渡市"]
["03204","水沢市"]
["03205","花巻市"]
["03206","北上市"]
["03207","久慈市"]
["03208","遠野市"]
["03209","一関市"]
["03210","陸前高田市"]
["03211","釜石市"]
["03212","江刺市"]
["03213","二戸市"]
["03214","八幡平市"]
["03215","奥州市"]
["03216","滝沢市"]
["03299","一関市"]
["03301","岩手郡雫石町"]
["03302","岩手郡葛巻町"]
["03303","岩手郡岩手町"]
["03304","岩手郡西根町"]
["03305","岩手郡滝沢村"]
["03306","岩手郡松尾村"]
["03307","岩手郡玉山村"]
["03308","岩手郡安代町"]
["03321","紫波郡紫波町"]
["03322","紫波郡矢巾町"]
["03323","紫波郡都南村"]
["03341","稗貫郡大迫町"]
["03342","稗貫郡石鳥谷町"]
["03361","和賀郡東和町"]
["03362","和賀郡和賀町"]
["03363","和賀郡湯田町"]
["03364","和賀郡江釣子村"]
["03365","和賀郡沢内村"]
["03366","和賀郡西和賀町"]
["03381","胆沢郡金ケ崎町"]
["03382","胆沢郡前沢町"]
["03383","胆沢郡胆沢町"]
["03384","胆沢郡衣川村"]
["03401","西磐井郡花泉町"]
["03402","西磐井郡平泉町"]
["03421","東磐井郡大東町"]
["03422","東磐井郡藤沢町"]
["03423","東磐井郡千厩町"]
["03424","東磐井郡東山町"]
["03425","東磐井郡室根村"]
["03426","東磐井郡川崎村"]
["03441","気仙郡住田町"]
["03442","気仙郡三陸町"]
["03461","上閉伊郡大槌町"]
["03462","上閉伊郡宮守村"]
["03481","下閉伊郡田老町"]
["03482","下閉伊郡山田町"]
["03483","下閉伊郡岩泉町"]
["03484","下閉伊郡田野畑村"]
["03485","下閉伊郡普代村"]
["03486","下閉伊郡新里村"]
["03487","下閉伊郡川井村"]
["03501","九戸郡軽米町"]
["03502","九戸郡種市町"]
["03503","九戸郡野田村"]
["03504","九戸郡山形村"]
["03505","九戸郡大野村"]
["03506","九戸郡九戸村"]
["03507","九戸郡洋野町"]
["03521","二戸郡浄法寺町"]
["03523","二戸郡安代町"]
["03524","二戸郡一戸町"]
["04101","仙台市青葉区"]
["04102","仙台市宮城野区"]
["04103","仙台市若林区"]
["04104","仙台市太白区"]
["04105","仙台市泉区"]
["04107","仙台市宮城野区"]
["04108","仙台市若林区"]
["04109","仙台市太白区"]
["04201","仙台市"]
["04202","石巻市"]
["04203","塩釜市"]
["04204","古川市"]
["04205","気仙沼市"]
["04206","白石市"]
["04207","名取市"]
["04208","角田市"]
["04209","多賀城市"]
["04210","泉市"]
["04211","岩沼市"]
["04212","登米市"]
["04213","栗原市"]
["04214","東松島市"]
["04215","大崎市"]
["04216","富谷市"]
["04301","刈田郡蔵王町"]
["04302","刈田郡七ヶ宿町"]
["04321","柴田郡大河原町"]
["04322","柴田郡村田町"]
["04323","柴田郡柴田町"]
["04324","柴田郡川崎町"]
["04341","伊具郡丸森町"]
["04361","亘理郡亘理町"]
["04362","亘理郡山元町"]
["04382","名取郡秋保町"]
["04401","宮城郡松島町"]
["04404","宮城郡七ヶ浜町"]
["04405","宮城郡宮城町"]
["04406","宮城郡利府町"]
["04421","黒川郡大和町"]
["04422","黒川郡大郷町"]
["04423","黒川郡富谷町"]
["04424","黒川郡大衡村"]
["04441","加美郡中新田町"]
["04442","加美郡小野田町"]
["04443","加美郡宮崎町"]
["04444","加美郡色麻町"]
["04445","加美郡加美町"]
["04461","志田郡松山町"]
["04462","志田郡三本木町"]
["04463","志田郡鹿島台町"]
["04481","玉造郡岩出山町"]
["04482","玉造郡鳴子町"]
["04501","遠田郡涌谷町"]
["04502","遠田郡田尻町"]
["04503","遠田郡小牛田町"]
["04504","遠田郡南郷町"]
["04505","遠田郡美里町"]
["04521","栗原郡築館町"]
["04522","栗原郡若柳町"]
["04523","栗原郡栗駒町"]
["04524","栗原郡高清水町"]
["04525","栗原郡一迫町"]
["04526","栗原郡瀬峰町"]
["04527","栗原郡鴬沢町"]
["04528","栗原郡金成町"]
["04529","栗原郡志波姫町"]
["04530","栗原郡花山村"]
["04541","登米郡迫町"]
["04542","登米郡登米町"]
["04543","登米郡東和町"]
["04544","登米郡中田町"]
["04545","登米郡豊里町"]
["04546","登米郡米山町"]
["04547","登米郡石越町"]
["04548","登米郡南方町"]
["04561","桃生郡河北町"]
["04562","桃生郡矢本町"]
["04563","桃生郡雄勝町"]
["04564","桃生郡河南町"]
["04565","桃生郡桃生町"]
["04566","桃生郡鳴瀬町"]
["04567","桃生郡北上町"]
["04581","牡鹿郡女川町"]
["04582","牡鹿郡牡鹿町"]
["04601","本吉郡志津川町"]
["04602","本吉郡津山町"]
["04603","本吉郡本吉町"]
["04604","本吉郡唐桑町"]
["04605","本吉郡歌津町"]
["04606","本吉郡南三陸町"]
["05201","秋田市"]
["05202","能代市"]
["05203","横手市"]
["05204","大館市"]
["05205","本荘市"]
["05206","男鹿市"]
["05207","湯沢市"]
["05208","大曲市"]
["05209","鹿角市"]
["05210","由利本荘市"]
["05211","潟上市"]
["05212","大仙市"]
["05213","北秋田市"]
["05214","にかほ市"]
["05215","仙北市"]
["05303","鹿角郡小坂町"]
["05321","北秋田郡鷹巣町"]
["05322","北秋田郡比内町"]
["05323","北秋田郡森吉町"]
["05324","北秋田郡阿仁町"]
["05325","北秋田郡田代町"]
["05326","北秋田郡合川町"]
["05327","北秋田郡上小阿仁村"]
["05341","山本郡琴丘町"]
["05342","山本郡二ツ井町"]
["05343","山本郡八森町"]
["05344","山本郡山本町"]
["05345","山本郡八竜町"]
["05346","山本郡藤里町"]
["05347","山本郡峰浜村"]
["05348","山本郡三種町"]
["05349","山本郡八峰町"]
["05361","南秋田郡五城目町"]
["05362","南秋田郡昭和町"]
["05363","南秋田郡八郎潟町"]
["05364","南秋田郡飯田川町"]
["05365","南秋田郡天王町"]
["05366","南秋田郡井川町"]
["05367","南秋田郡若美町"]
["05368","南秋田郡大潟村"]
["05381","河辺郡河辺町"]
["05382","河辺郡雄和町"]
["05401","由利郡仁賀保町"]
["05402","由利郡金浦町"]
["05403","由利郡象潟町"]
["05404","由利郡矢島町"]
["05405","由利郡岩城町"]
["05406","由利郡由利町"]
["05407","由利郡西目町"]
["05408","由利郡鳥海町"]
["05409","由利郡東由利町"]
["05410","由利郡大内町"]
["05421","仙北郡神岡町"]
["05422","仙北郡西仙北町"]
["05423","仙北郡角館町"]
["05424","仙北郡六郷町"]
["05425","仙北郡中仙町"]
["05426","仙北郡田沢湖町"]
["05427","仙北郡協和町"]
["05428","仙北郡南外村"]
["05429","仙北郡仙北町"]
["05430","仙北郡西木村"]
["05431","仙北郡太田町"]
["05432","仙北郡千畑町"]
["05433","仙北郡仙南村"]
["05434","仙北郡美郷町"]
["05441","平鹿郡増田町"]
["05442","平鹿郡平鹿町"]
["05443","平鹿郡雄物川町"]
["05444","平鹿郡大森町"]
["05445","平鹿郡十文字町"]
["05446","平鹿郡山内村"]
["05447","平鹿郡大雄村"]
["05461","雄勝郡稲川町"]
["05462","雄勝郡雄勝町"]
["05463","雄勝郡羽後町"]
["05464","雄勝郡東成瀬村"]
["05465","雄勝郡皆瀬村"]
["06201","山形市"]
["06202","米沢市"]
["06203","鶴岡市"]
["06204","酒田市"]
["06205","新庄市"]
["06206","寒河江市"]
["06207","上山市"]
["06208","村山市"]
["06209","長井市"]
["06210","天童市"]
["06211","東根市"]
["06212","尾花沢市"]
["06213","南陽市"]
["06301","東村山郡山辺町"]
["06302","東村山郡中山町"]
["06321","西村山郡河北町"]
["06322","西村山郡西川町"]
["06323","西村山郡朝日町"]
["06324","西村山郡大江町"]
["06341","北村山郡大石田町"]
["06361","最上郡金山町"]
["06362","最上郡最上町"]
["06363","最上郡舟形町"]
["06364","最上郡真室川町"]
["06365","最上郡大蔵村"]
["06366","最上郡鮭川村"]
["06367","最上郡戸沢村"]
["06381","東置賜郡高畠町"]
["06382","東置賜郡川西町"]
["06401","西置賜郡小国町"]
["06402","西置賜郡白鷹町"]
["06403","西置賜郡飯豊町"]
["06421","東田川郡立川町"]
["06422","東田川郡余目町"]
["06423","東田川郡藤島町"]
["06424","東田川郡羽黒町"]
["06425","東田川郡櫛引町"]
["06426","東田川郡三川町"]
["06427","東田川郡朝日村"]
["06428","東田川郡庄内町"]
["06441","西田川郡温海町"]
["06461","飽海郡遊佐町"]
["06462","飽海郡八幡町"]
["06463","飽海郡松山町"]
["06464","飽海郡平田町"]
["07201","福島市"]
["07202","会津若松市"]
["07203","郡山市"]
["07204","いわき市"]
["07205","白河市"]
["07206","原町市"]
["07207","須賀川市"]
["07208","喜多方市"]
["07209","相馬市"]
["07210","二本松市"]
["07211","田村市"]
["07212","南相馬市"]
["07213","伊達市"]
["07214","本宮市"]
["07301","伊達郡桑折町"]
["07302","伊達郡伊達町"]
["07303","伊達郡国見町"]
["07304","伊達郡梁川町"]
["07305","伊達郡保原町"]
["07306","伊達郡霊山町"]
["07307","伊達郡月舘町"]
["07308","伊達郡川俣町"]
["07309","伊達郡飯野町"]
["07321","安達郡安達町"]
["07322","安達郡大玉村"]
["07323","安達郡本宮町"]
["07324","安達郡白沢村"]
["07325","安達郡岩代町"]
["07326","安達郡東和町"]
["07341","岩瀬郡長沼町"]
["07342","岩瀬郡鏡石町"]
["07343","岩瀬郡岩瀬村"]
["07344","岩瀬郡天栄村"]
["07361","南会津郡田島町"]
["07362","南会津郡下郷町"]
["07363","南会津郡舘岩村"]
["07364","南会津郡檜枝岐村"]
["07365","南会津郡伊南村"]
["07366","南会津郡南郷村"]
["07367","南会津郡只見町"]
["07368","南会津郡南会津町"]
["07381","北会津郡北会津村"]
["07401","耶麻郡熱塩加納村"]
["07402","耶麻郡北塩原村"]
["07403","耶麻郡塩川町"]
["07404","耶麻郡山都町"]
["07405","耶麻郡西会津町"]
["07406","耶麻郡高郷村"]
["07407","耶麻郡磐梯町"]
["07408","耶麻郡猪苗代町"]
["07421","河沼郡会津坂下町"]
["07422","河沼郡湯川村"]
["07423","河沼郡柳津町"]
["07424","河沼郡河東町"]
["07441","大沼郡会津高田町"]
["07442","大沼郡会津本郷町"]
["07443","大沼郡新鶴村"]
["07444","大沼郡三島町"]
["07445","大沼郡金山町"]
["07446","大沼郡昭和村"]
["07447","大沼郡会津美里町"]
["07461","西白河郡西郷村"]
["07462","西白河郡表郷村"]
["07463","西白河郡東村"]
["07464","西白河郡泉崎村"]
["07465","西白河郡中島村"]
["07466","西白河郡矢吹町"]
["07467","西白河郡大信村"]
["07481","東白川郡棚倉町"]
["07482","東白川郡矢祭町"]
["07483","東白川郡塙町"]
["07484","東白川郡鮫川村"]
["07485","石川郡古殿町"]
["07501","石川郡石川町"]
["07502","石川郡玉川村"]
["07503","石川郡平田村"]
["07504","石川郡浅川町"]
["07505","石川郡古殿町"]
["07521","田村郡三春町"]
["07522","田村郡小野町"]
["07523","田村郡滝根町"]
["07524","田村郡大越町"]
["07525","田村郡都路村"]
["07526","田村郡常葉町"]
["07527","田村郡船引町"]
["07541","双葉郡広野町"]
["07542","双葉郡楢葉町"]
["07543","双葉郡富岡町"]
["07544","双葉郡川内村"]
["07545","双葉郡大熊町"]
["07546","双葉郡双葉町"]
["07547","双葉郡浪江町"]
["07548","双葉郡葛尾村"]
["07561","相馬郡新地町"]
["07562","相馬郡鹿島町"]
["07563","相馬郡小高町"]
["07564","相馬郡飯舘村"]
["08201","水戸市"]
["08202","日立市"]
["08203","土浦市"]
["08204","古河市"]
["08205","石岡市"]
["08206","下館市"]
["08207","結城市"]
["08208","龍ヶ崎市"]
["08209","ひたちなか市"]
["08210","下妻市"]
["08211","水海道市"]
["08212","常陸太田市"]
["08213","ひたちなか市"]
["08214","高萩市"]
["08215","北茨城市"]
["08216","笠間市"]
["08217","取手市"]
["08218","岩井市"]
["08219","牛久市"]
["08220","つくば市"]
["08221","ひたちなか市"]
["08222","鹿嶋市"]
["08223","潮来市"]
["08224","守谷市"]
["08225","常陸大宮市"]
["08226","那珂市"]
["08227","筑西市"]
["08228","坂東市"]
["08229","稲敷市"]
["08230","かすみがうら市"]
["08231","桜川市"]
["08232","神栖市"]
["08233","行方市"]
["08234","鉾田市"]
["08235","つくばみらい市"]
["08236","小美玉市"]
["08301","東茨城郡常澄村"]
["08302","東茨城郡茨城町"]
["08303","東茨城郡小川町"]
["08304","東茨城郡美野里町"]
["08305","東茨城郡内原町"]
["08306","東茨城郡常北町"]
["08307","東茨城郡桂村"]
["08308","東茨城郡御前山村"]
["08309","東茨城郡大洗町"]
["08310","東茨城郡城里町"]
["08321","西茨城郡友部町"]
["08322","西茨城郡岩間町"]
["08323","西茨城郡七会村"]
["08324","西茨城郡岩瀬町"]
["08341","那珂郡東海村"]
["08342","那珂郡那珂町"]
["08343","那珂郡瓜連町"]
["08344","那珂郡大宮町"]
["08345","那珂郡山方町"]
["08346","那珂郡美和村"]
["08347","那珂郡緒川村"]
["08361","久慈郡金砂郷町"]
["08362","久慈郡水府村"]
["08363","久慈郡里美村"]
["08364","久慈郡大子町"]
["08381","多賀郡十王町"]
["08401","鹿島郡旭村"]
["08402","鹿島郡鉾田町"]
["08403","鹿島郡大洋村"]
["08404","鹿嶋市"]
["08405","鹿嶋市"]
["08406","鹿島郡神栖町"]
["08407","鹿島郡波崎町"]
["08421","行方郡麻生町"]
["08422","潮来市"]
["08423","潮来市"]
["08424","行方郡北浦町"]
["08425","行方郡玉造町"]
["08441","稲敷郡江戸崎町"]
["08442","稲敷郡美浦村"]
["08443","稲敷郡阿見町"]
["08445","稲敷郡茎崎町"]
["08446","稲敷郡新利根町"]
["08447","稲敷郡河内町"]
["08448","稲敷郡桜川村"]
["08449","稲敷郡東町"]
["08461","新治郡霞ヶ浦町"]
["08462","新治郡玉里村"]
["08463","新治郡八郷町"]
["08464","新治郡千代田町"]
["08465","新治郡新治村"]
["08466","新治郡桜村"]
["08481","筑波郡谷田部町"]
["08482","筑波郡伊奈町"]
["08483","筑波郡谷和原村"]
["08484","筑波郡豊里町"]
["08485","筑波郡筑波町"]
["08486","筑波郡大穂町"]
["08501","真壁郡関城町"]
["08502","真壁郡明野町"]
["08503","真壁郡真壁町"]
["08504","真壁郡大和村"]
["08505","真壁郡協和町"]
["08521","結城郡八千代町"]
["08522","結城郡千代川村"]
["08523","結城郡石下町"]
["08541","猿島郡総和町"]
["08542","猿島郡五霞町"]
["08543","猿島郡三和町"]
["08544","猿島郡猿島町"]
["08546","猿島郡境町"]
["08561","北相馬郡守谷町"]
["08563","北相馬郡藤代町"]
["08564","北相馬郡利根町"]
["09201","宇都宮市"]
["09202","足利市"]
["09203","栃木市"]
["09204","佐野市"]
["09205","鹿沼市"]
["09206","日光市"]
["09207","今市市"]
["09208","小山市"]
["09209","真岡市"]
["09210","大田原市"]
["09211","矢板市"]
["09212","黒磯市"]
["09213","那須塩原市"]
["09214","さくら市"]
["09215","那須烏山市"]
["09216","下野市"]
["09299","下野市"]
["09301","河内郡上三川町"]
["09302","河内郡南河内町"]
["09303","河内郡上河内町"]
["09304","河内郡河内町"]
["09321","上都賀郡西方町"]
["09322","上都賀郡粟野町"]
["09323","上都賀郡足尾町"]
["09341","芳賀郡二宮町"]
["09342","芳賀郡益子町"]
["09343","芳賀郡茂木町"]
["09344","芳賀郡市貝町"]
["09345","芳賀郡芳賀町"]
["09361","下都賀郡壬生町"]
["09362","下都賀郡石橋町"]
["09363","下都賀郡国分寺町"]
["09364","下都賀郡野木町"]
["09365","下都賀郡大平町"]
["09366","下都賀郡藤岡町"]
["09367","下都賀郡岩舟町"]
["09368","下都賀郡都賀町"]
["09382","塩谷郡栗山村"]
["09383","塩谷郡藤原町"]
["09384","塩谷郡塩谷町"]
["09385","塩谷郡氏家町"]
["09386","塩谷郡高根沢町"]
["09387","塩谷郡喜連川町"]
["09401","那須郡南那須町"]
["09402","那須郡烏山町"]
["09403","那須郡馬頭町"]
["09404","那須郡小川町"]
["09405","那須郡湯津上村"]
["09406","那須郡黒羽町"]
["09407","那須郡那須町"]
["09409","那須郡西那須野町"]
["09410","那須郡塩原町"]
["09411","那須郡那珂川町"]
["09421","安蘇郡田沼町"]
["09422","安蘇郡葛生町"]
["10201","前橋市"]
["10202","高崎市"]
["10203","桐生市"]
["10204","伊勢崎市"]
["10205","太田市"]
["10206","沼田市"]
["10207","館林市"]
["10208","渋川市"]
["10209","藤岡市"]
["10210","富岡市"]
["10211","安中市"]
["10212","みどり市"]
["10301","勢多郡北橘村"]
["10302","勢多郡赤城村"]
["10303","勢多郡富士見村"]
["10304","勢多郡大胡町"]
["10305","勢多郡宮城村"]
["10306","勢多郡粕川村"]
["10307","勢多郡新里村"]
["10308","勢多郡黒保根村"]
["10309","勢多郡東村"]
["10321","群馬郡榛名町"]
["10322","群馬郡倉淵村"]
["10323","群馬郡箕郷町"]
["10324","群馬郡群馬町"]
["10341","北群馬郡子持村"]
["10342","北群馬郡小野上村"]
["10343","北群馬郡伊香保町"]
["10344","北群馬郡榛東村"]
["10345","北群馬郡吉岡町"]
["10361","多野郡新町"]
["10362","多野郡鬼石町"]
["10363","多野郡吉井町"]
["10364","多野郡万場町"]
["10365","多野郡中里村"]
["10366","多野郡上野村"]
["10367","多野郡神流町"]
["10381","甘楽郡妙義町"]
["10382","甘楽郡下仁田町"]
["10383","甘楽郡南牧村"]
["10384","甘楽郡甘楽町"]
["10401","碓氷郡松井田町"]
["10421","吾妻郡中之条町"]
["10422","吾妻郡東村"]
["10423","吾妻郡吾妻町"]
["10424","吾妻郡長野原町"]
["10425","吾妻郡嬬恋村"]
["10426","吾妻郡草津町"]
["10427","吾妻郡六合村"]
["10428","吾妻郡高山村"]
["10429","吾妻郡東吾妻町"]
["10441","利根郡白沢村"]
["10442","利根郡利根村"]
["10443","利根郡片品村"]
["10444","利根郡川場村"]
["10445","利根郡月夜野町"]
["10446","利根郡水上町"]
["10447","利根郡新治村"]
["10448","利根郡昭和村"]
["10449","利根郡みなかみ町"]
["10461","佐波郡赤堀町"]
["10462","佐波郡東村"]
["10463","佐波郡境町"]
["10464","佐波郡玉村町"]
["10481","新田郡尾島町"]
["10482","新田郡新田町"]
["10483","新田郡藪塚本町"]
["10484","新田郡笠懸町"]
["10501","山田郡大間々町"]
["10521","邑楽郡板倉町"]
["10522","邑楽郡明和町"]
["10523","邑楽郡千代田町"]
["10524","邑楽郡大泉町"]
["10525","邑楽郡邑楽町"]
["11100","さいたま市"]
["11101","さいたま市西区"]
["11102","さいたま市北区"]
["11103","さいたま市大宮区"]
["11104","さいたま市見沼区"]
["11105","さいたま市中央区"]
["11106","さいたま市桜区"]
["11107","さいたま市浦和区"]
["11108","さいたま市南区"]
["11109","さいたま市緑区"]
["11110","さいたま市岩槻区"]
["11201","川越市"]
["11202","熊谷市"]
["11203","川口市"]
["11204","浦和市"]
["11205","大宮市"]
["11206","行田市"]
["11207","秩父市"]
["11208","所沢市"]
["11209","飯能市"]
["11210","加須市"]
["11211","本庄市"]
["11212","東松山市"]
["11213","岩槻市"]
["11214","春日部市"]
["11215","狭山市"]
["11216","羽生市"]
["11217","鴻巣市"]
["11218","深谷市"]
["11219","上尾市"]
["11220","与野市"]
["11221","草加市"]
["11222","越谷市"]
["11223","蕨市"]
["11224","戸田市"]
["11225","入間市"]
["11226","鳩ヶ谷市"]
["11227","朝霞市"]
["11228","志木市"]
["11229","和光市"]
["11230","新座市"]
["11231","桶川市"]
["11232","久喜市"]
["11233","北本市"]
["11234","八潮市"]
["11235","富士見市"]
["11236","上福岡市"]
["11237","三郷市"]
["11238","蓮田市"]
["11239","坂戸市"]
["11240","幸手市"]
["11241","鶴ヶ島市"]
["11242","日高市"]
["11243","吉川市"]
["11244","さいたま市"]
["11245","ふじみ野市"]
["11246","白岡市"]
["11299","さいたま市"]
["11301","北足立郡伊奈町"]
["11304","北足立郡吹上町"]
["11322","入間郡大井町"]
["11324","入間郡三芳町"]
["11326","入間郡毛呂山町"]
["11327","入間郡越生町"]
["11328","入間郡鶴ヶ島町"]
["11329","入間郡日高町"]
["11330","入間郡名栗村"]
["11341","比企郡滑川町"]
["11342","比企郡嵐山町"]
["11343","比企郡小川町"]
["11344","比企郡都幾川村"]
["11345","比企郡玉川村"]
["11346","比企郡川島町"]
["11347","比企郡吉見町"]
["11348","比企郡鳩山町"]
["11349","比企郡ときがわ町"]
["11361","秩父郡横瀬町"]
["11362","秩父郡皆野町"]
["11363","秩父郡長瀞町"]
["11364","秩父郡吉田町"]
["11365","秩父郡小鹿野町"]
["11366","秩父郡両神村"]
["11367","秩父郡大滝村"]
["11368","秩父郡荒川村"]
["11369","秩父郡東秩父村"]
["11381","児玉郡美里町"]
["11382","児玉郡児玉町"]
["11383","児玉郡神川町"]
["11384","児玉郡神泉村"]
["11385","児玉郡上里町"]
["11401","大里郡大里村"]
["11402","大里郡江南町"]
["11403","大里郡妻沼町"]
["11405","大里郡岡部町"]
["11406","大里郡川本町"]
["11407","大里郡花園町"]
["11408","大里郡寄居町"]
["11421","北埼玉郡騎西町"]
["11422","北埼玉郡南河原村"]
["11423","北埼玉郡川里村"]
["11424","北埼玉郡北川辺町"]
["11425","北埼玉郡大利根町"]
["11442","南埼玉郡宮代町"]
["11445","南埼玉郡白岡町"]
["11446","南埼玉郡菖蒲町"]
["11461","北葛飾郡栗橋町"]
["11462","北葛飾郡鷲宮町"]
["11464","北葛飾郡杉戸町"]
["11465","北葛飾郡松伏町"]
["11466","吉川市"]
["11468","北葛飾郡庄和町"]
["12101","千葉市中央区"]
["12102","千葉市花見川区"]
["12103","千葉市稲毛区"]
["12104","千葉市若葉区"]
["12105","千葉市緑区"]
["12106","千葉市美浜区"]
["12201","千葉市"]
["12202","銚子市"]
["12203","市川市"]
["12204","船橋市"]
["12205","館山市"]
["12206","木更津市"]
["12207","松戸市"]
["12208","野田市"]
["12209","佐原市"]
["12210","茂原市"]
["12211","成田市"]
["12212","佐倉市"]
["12213","東金市"]
["12214","八日市場市"]
["12215","旭市"]
["12216","習志野市"]
["12217","柏市"]
["12218","勝浦市"]
["12219","市原市"]
["12220","流山市"]
["12221","八千代市"]
["12222","我孫子市"]
["12223","鴨川市"]
["12224","鎌ヶ谷市"]
["12225","君津市"]
["12226","富津市"]
["12227","浦安市"]
["12228","四街道市"]
["12229","袖ケ浦市"]
["12230","八街市"]
["12231","印西市"]
["12232","白井市"]
["12233","富里市"]
["12234","南房総市"]
["12235","匝瑳市"]
["12236","香取市"]
["12237","山武市"]
["12238","いすみ市"]
["12239","大網白里市"]
["12298","いすみ市"]
["12299","旭市"]
["12303","東葛飾郡関宿町"]
["12305","東葛飾郡沼南町"]
["12322","印旛郡酒々井町"]
["12323","印旛郡八街町"]
["12324","印旛郡富里町"]
["12325","印旛郡印旛村"]
["12326","白井市"]
["12327","印西市"]
["12328","印旛郡本埜村"]
["12329","印旛郡栄町"]
["12341","香取郡下総町"]
["12342","香取郡神崎町"]
["12343","香取郡大栄町"]
["12344","香取郡小見川町"]
["12345","香取郡山田町"]
["12346","香取郡栗源町"]
["12347","香取郡多古町"]
["12348","香取郡干潟町"]
["12349","香取郡東庄町"]
["12361","海上郡海上町"]
["12362","海上郡飯岡町"]
["12381","匝瑳郡光町"]
["12382","匝瑳郡野栄町"]
["12402","山武郡大網白里町"]
["12403","山武郡九十九里町"]
["12404","山武郡成東町"]
["12405","山武郡山武町"]
["12406","山武郡蓮沼村"]
["12407","山武郡松尾町"]
["12408","山武郡横芝町"]
["12409","山武郡芝山町"]
["12410","山武郡横芝光町"]
["12421","長生郡一宮町"]
["12422","長生郡睦沢町"]
["12423","長生郡長生村"]
["12424","長生郡白子町"]
["12426","長生郡長柄町"]
["12427","長生郡長南町"]
["12441","夷隅郡大多喜町"]
["12442","夷隅郡夷隅町"]
["12443","夷隅郡御宿町"]
["12444","夷隅郡大原町"]
["12445","夷隅郡岬町"]
["12461","安房郡富浦町"]
["12462","安房郡富山町"]
["12463","安房郡鋸南町"]
["12464","安房郡三芳村"]
["12465","安房郡白浜町"]
["12466","安房郡千倉町"]
["12467","安房郡丸山町"]
["12468","安房郡和田町"]
["12472","安房郡天津小湊町"]
["12481","君津郡袖ヶ浦町"]
["13101","千代田区"]
["13102","中央区"]
["13103","港区"]
["13104","新宿区"]
["13105","文京区"]
["13106","台東区"]
["13107","墨田区"]
["13108","江東区"]
["13109","品川区"]
["13110","目黒区"]
["13111","大田区"]
["13112","世田谷区"]
["13113","渋谷区"]
["13114","中野区"]
["13115","杉並区"]
["13116","豊島区"]
["13117","北区"]
["13118","荒川区"]
["13119","板橋区"]
["13120","練馬区"]
["13121","足立区"]
["13122","葛飾区"]
["13123","江戸川区"]
["13199","東京都境界未定地域"]
["13201","八王子市"]
["13202","立川市"]
["13203","武蔵野市"]
["13204","三鷹市"]
["13205","青梅市"]
["13206","府中市"]
["13207","昭島市"]
["13208","調布市"]
["13209","町田市"]
["13210","小金井市"]
["13211","小平市"]
["13212","日野市"]
["13213","東村山市"]
["13214","国分寺市"]
["13215","国立市"]
["13216","西東京市"]
["13217","西東京市"]
["13218","福生市"]
["13219","狛江市"]
["13220","東大和市"]
["13221","清瀬市"]
["13222","東久留米市"]
["13223","武蔵村山市"]
["13224","多摩市"]
["13225","稲城市"]
["13226","あきる野市"]
["13227","羽村市"]
["13228","あきる野市"]
["13229","西東京市"]
["13302","西多摩郡羽村町"]
["13303","西多摩郡瑞穂町"]
["13305","西多摩郡日の出町"]
["13306","あきる野市"]
["13307","西多摩郡桧原村"]
["13308","西多摩郡奥多摩町"]
["13361","大島町"]
["13362","利島村"]
["13363","新島村"]
["13364","神津島村"]
["13381","三宅村"]
["13382","御蔵島村"]
["13401","八丈町"]
["13402","青ヶ島村"]
["13421","小笠原村"]
["13666","市区無効"]
["14101","横浜市鶴見区"]
["14102","横浜市神奈川区"]
["14103","横浜市西区"]
["14104","横浜市中区"]
["14105","横浜市南区"]
["14106","横浜市保土ヶ谷区"]
["14107","横浜市磯子区"]
["14108","横浜市金沢区"]
["14109","横浜市港北区"]
["14110","横浜市戸塚区"]
["14111","横浜市港南区"]
["14112","横浜市旭区"]
["14113","横浜市緑区"]
["14114","横浜市瀬谷区"]
["14115","横浜市栄区"]
["14116","横浜市泉区"]
["14117","横浜市青葉区"]
["14118","横浜市都筑区"]
["14130","川崎市"]
["14131","川崎市川崎区"]
["14132","川崎市幸区"]
["14133","川崎市中原区"]
["14134","川崎市高津区"]
["14135","川崎市多摩区"]
["14136","川崎市宮前区"]
["14137","川崎市麻生区"]
["14151","相模原市緑区"]
["14152","相模原市中央区"]
["14153","相模原市南区"]
["14201","横須賀市"]
["14203","平塚市"]
["14204","鎌倉市"]
["14205","藤沢市"]
["14206","小田原市"]
["14207","茅ヶ崎市"]
["14208","逗子市"]
["14209","相模原市"]
["14210","三浦市"]
["14211","秦野市"]
["14212","厚木市"]
["14213","大和市"]
["14214","伊勢原市"]
["14215","海老名市"]
["14216","座間市"]
["14217","南足柄市"]
["14218","綾瀬市"]
["14301","三浦郡葉山町"]
["14321","高座郡寒川町"]
["14341","中郡大磯町"]
["14342","中郡二宮町"]
["14361","足柄上郡中井町"]
["14362","足柄上郡大井町"]
["14363","足柄上郡松田町"]
["14364","足柄上郡山北町"]
["14366","足柄上郡開成町"]
["14382","足柄下郡箱根町"]
["14383","足柄下郡真鶴町"]
["14384","足柄下郡湯河原町"]
["14401","愛甲郡愛川町"]
["14402","愛甲郡清川村"]
["14421","津久井郡城山町"]
["14422","津久井郡津久井町"]
["14423","津久井郡相模湖町"]
["14424","津久井郡藤野町"]
["15101","新潟市北区"]
["15102","新潟市東区"]
["15103","新潟市中央区"]
["15104","新潟市江南区"]
["15105","新潟市秋葉区"]
["15106","新潟市南区"]
["15107","新潟市西区"]
["15108","新潟市西蒲区"]
["15196","新潟市南区"]
["15197","新潟市西区"]
["15201","新潟市"]
["15202","長岡市"]
["15204","三条市"]
["15205","柏崎市"]
["15206","新発田市"]
["15207","新津市"]
["15208","小千谷市"]
["15209","加茂市"]
["15210","十日町市"]
["15211","見附市"]
["15212","村上市"]
["15213","燕市"]
["15215","栃尾市"]
["15216","糸魚川市"]
["15217","新井市"]
["15218","五泉市"]
["15219","両津市"]
["15220","白根市"]
["15221","豊栄市"]
["15222","上越市"]
["15223","阿賀野市"]
["15224","佐渡市"]
["15225","魚沼市"]
["15226","南魚沼市"]
["15227","胎内市"]
["15297","新潟市"]
["15298","新潟市"]
["15299","上越市"]
["15301","北蒲原郡安田町"]
["15302","北蒲原郡京ヶ瀬村"]
["15303","北蒲原郡水原町"]
["15304","北蒲原郡笹神村"]
["15306","北蒲原郡豊浦町"]
["15307","北蒲原郡聖籠町"]
["15308","北蒲原郡加治川村"]
["15309","北蒲原郡紫雲寺町"]
["15310","北蒲原郡中条町"]
["15311","北蒲原郡黒川村"]
["15321","中蒲原郡小須戸町"]
["15322","中蒲原郡村松町"]
["15323","中蒲原郡横越町"]
["15324","中蒲原郡亀田町"]
["15341","西蒲原郡岩室村"]
["15342","西蒲原郡弥彦村"]
["15343","西蒲原郡分水町"]
["15344","西蒲原郡吉田町"]
["15345","西蒲原郡巻町"]
["15346","西蒲原郡西川町"]
["15347","西蒲原郡黒埼町"]
["15348","西蒲原郡味方村"]
["15349","西蒲原郡潟東村"]
["15350","西蒲原郡月潟村"]
["15351","西蒲原郡中之口村"]
["15361","南蒲原郡田上町"]
["15362","南蒲原郡下田村"]
["15363","南蒲原郡栄町"]
["15364","南蒲原郡中之島町"]
["15381","東蒲原郡津川町"]
["15382","東蒲原郡鹿瀬町"]
["15383","東蒲原郡上川村"]
["15384","東蒲原郡三川村"]
["15385","東蒲原郡阿賀町"]
["15401","三島郡越路町"]
["15402","三島郡三島町"]
["15403","三島郡与板町"]
["15404","三島郡和島村"]
["15405","三島郡出雲崎町"]
["15406","三島郡寺泊町"]
["15421","古志郡山古志村"]
["15441","北魚沼郡川口町"]
["15442","北魚沼郡堀之内町"]
["15443","北魚沼郡小出町"]
["15444","北魚沼郡湯之谷村"]
["15445","北魚沼郡広神村"]
["15446","北魚沼郡守門村"]
["15447","北魚沼郡入広瀬村"]
["15461","南魚沼郡湯沢町"]
["15462","南魚沼郡塩沢町"]
["15463","南魚沼郡六日町"]
["15464","南魚沼郡大和町"]
["15481","中魚沼郡川西町"]
["15482","中魚沼郡津南町"]
["15483","中魚沼郡中里村"]
["15501","刈羽郡高柳町"]
["15502","刈羽郡小国町"]
["15504","刈羽郡刈羽村"]
["15505","刈羽郡西山町"]
["15521","東頸城郡安塚町"]
["15522","東頸城郡浦川原村"]
["15523","東頸城郡松代町"]
["15524","東頸城郡松之山町"]
["15525","東頸城郡大島村"]
["15526","東頸城郡牧村"]
["15541","中頸城郡柿崎町"]
["15542","中頸城郡大潟町"]
["15543","中頸城郡頸城村"]
["15544","中頸城郡吉川町"]
["15545","中頸城郡妙高高原町"]
["15546","中頸城郡中郷村"]
["15547","中頸城郡妙高村"]
["15548","中頸城郡板倉町"]
["15549","中頸城郡清里村"]
["15550","中頸城郡三和村"]
["15561","西頸城郡名立町"]
["15562","西頸城郡能生町"]
["15563","西頸城郡青海町"]
["15581","岩船郡関川村"]
["15582","岩船郡荒川町"]
["15583","岩船郡神林村"]
["15584","岩船郡朝日村"]
["15585","岩船郡山北町"]
["15586","岩船郡粟島浦村"]
["15601","佐渡郡相川町"]
["15602","佐渡郡佐和田町"]
["15603","佐渡郡金井町"]
["15604","佐渡郡新穂村"]
["15605","佐渡郡畑野町"]
["15606","佐渡郡真野町"]
["15607","佐渡郡小木町"]
["15608","佐渡郡羽茂町"]
["15609","佐渡郡赤泊村"]
["16201","富山市"]
["16202","高岡市"]
["16203","新湊市"]
["16204","魚津市"]
["16205","氷見市"]
["16206","滑川市"]
["16207","黒部市"]
["16208","砺波市"]
["16209","小矢部市"]
["16210","南砺市"]
["16211","射水市"]
["16299","富山市"]
["16301","上新川郡大沢野町"]
["16302","上新川郡大山町"]
["16321","中新川郡舟橋村"]
["16322","中新川郡上市町"]
["16323","中新川郡立山町"]
["16341","下新川郡宇奈月町"]
["16342","下新川郡入善町"]
["16343","下新川郡朝日町"]
["16361","婦負郡八尾町"]
["16362","婦負郡婦中町"]
["16363","婦負郡山田村"]
["16364","婦負郡細入村"]
["16381","射水郡小杉町"]
["16382","射水郡大門町"]
["16383","射水郡下村"]
["16384","射水郡大島町"]
["16401","東礪波郡城端町"]
["16402","東礪波郡平村"]
["16403","東礪波郡上平村"]
["16404","東礪波郡利賀村"]
["16405","東礪波郡庄川町"]
["16406","東礪波郡井波町"]
["16407","東礪波郡井口村"]
["16408","東礪波郡福野町"]
["16421","西礪波郡福光町"]
["16422","西礪波郡福岡町"]
["17201","金沢市"]
["17202","七尾市"]
["17203","小松市"]
["17204","輪島市"]
["17205","珠洲市"]
["17206","加賀市"]
["17207","羽咋市"]
["17208","松任市"]
["17209","かほく市"]
["17210","白山市"]
["17211","能美市"]
["17212","野々市市"]
["17301","江沼郡山中町"]
["17321","能美郡根上町"]
["17322","能美郡寺井町"]
["17323","能美郡辰口町"]
["17324","能美郡川北町"]
["17342","石川郡美川町"]
["17343","石川郡鶴来町"]
["17344","石川郡野々市町"]
["17345","石川郡河内村"]
["17346","石川郡吉野谷村"]
["17347","石川郡鳥越村"]
["17348","石川郡尾口村"]
["17349","石川郡白峰村"]
["17361","河北郡津幡町"]
["17362","河北郡高松町"]
["17363","河北郡七塚町"]
["17364","河北郡宇ノ気町"]
["17365","河北郡内灘町"]
["17382","羽咋郡富来町"]
["17383","羽咋郡志雄町"]
["17384","羽咋郡志賀町"]
["17385","羽咋郡押水町"]
["17386","羽咋郡宝達志水町"]
["17401","鹿島郡田鶴浜町"]
["17402","鹿島郡鳥屋町"]
["17403","鹿島郡中島町"]
["17404","鹿島郡鹿島町"]
["17405","鹿島郡能登島町"]
["17406","鹿島郡鹿西町"]
["17407","鹿島郡中能登町"]
["17421","鳳至郡穴水町"]
["17422","鳳至郡門前町"]
["17423","鳳至郡能都町"]
["17424","鳳至郡柳田村"]
["17441","珠洲郡内浦町"]
["17461","鳳珠郡穴水町"]
["17462","鳳珠郡門前町"]
["17463","鳳珠郡能登町"]
["18201","福井市"]
["18202","敦賀市"]
["18203","武生市"]
["18204","小浜市"]
["18205","大野市"]
["18206","勝山市"]
["18207","鯖江市"]
["18208","あわら市"]
["18209","越前市"]
["18210","坂井市"]
["18298","福井市"]
["18299","越前市"]
["18302","足羽郡美山町"]
["18321","吉田郡松岡町"]
["18322","吉田郡永平寺町"]
["18323","吉田郡上志比村"]
["18342","大野郡和泉村"]
["18361","坂井郡三国町"]
["18362","坂井郡芦原町"]
["18363","坂井郡金津町"]
["18364","坂井郡丸岡町"]
["18365","坂井郡春江町"]
["18366","坂井郡坂井町"]
["18381","今立郡今立町"]
["18382","今立郡池田町"]
["18401","南条郡南条町"]
["18402","南条郡今庄町"]
["18403","南条郡河野村"]
["18404","南条郡南越前町"]
["18421","丹生郡朝日町"]
["18422","丹生郡宮崎村"]
["18423","丹生郡越前町"]
["18424","丹生郡越廼村"]
["18425","丹生郡織田町"]
["18426","丹生郡清水町"]
["18441","三方郡三方町"]
["18442","三方郡美浜町"]
["18461","遠敷郡上中町"]
["18462","遠敷郡名田庄村"]
["18481","大飯郡高浜町"]
["18482","大飯郡大飯町"]
["18483","大飯郡おおい町"]
["18501","三方上中郡若狭町"]
["18599","三方上中郡若狭町"]
["19201","甲府市"]
["19202","富士吉田市"]
["19203","塩山市"]
["19204","都留市"]
["19205","山梨市"]
["19206","大月市"]
["19207","韮崎市"]
["19208","南アルプス市"]
["19209","北杜市"]
["19210","甲斐市"]
["19211","笛吹市"]
["19212","上野原市"]
["19213","甲州市"]
["19214","中央市"]
["19294","甲府市"]
["19295","甲府市"]
["19296","中央市"]
["19297","上野原市"]
["19298","笛吹市"]
["19299","甲斐市"]
["19301","東山梨郡春日居町"]
["19302","東山梨郡牧丘町"]
["19303","東山梨郡三富村"]
["19304","東山梨郡勝沼町"]
["19305","東山梨郡大和村"]
["19321","東八代郡石和町"]
["19322","東八代郡御坂町"]
["19323","東八代郡一宮町"]
["19324","東八代郡八代町"]
["19325","東八代郡境川村"]
["19326","東八代郡中道町"]
["19327","東八代郡芦川村"]
["19328","東八代郡豊富村"]
["19341","西八代郡上九一色村"]
["19342","西八代郡三珠町"]
["19343","西八代郡市川大門町"]
["19344","西八代郡六郷町"]
["19345","西八代郡下部町"]
["19346","西八代郡市川三郷町"]
["19349","西八代郡上九一色村"]
["19361","南巨摩郡増穂町"]
["19362","南巨摩郡鰍沢町"]
["19363","南巨摩郡中富町"]
["19364","南巨摩郡早川町"]
["19365","南巨摩郡身延町"]
["19366","南巨摩郡南部町"]
["19367","南巨摩郡富沢町"]
["19368","南巨摩郡富士川町"]
["19381","中巨摩郡竜王町"]
["19382","中巨摩郡敷島町"]
["19383","中巨摩郡玉穂町"]
["19384","中巨摩郡昭和町"]
["19385","中巨摩郡田富町"]
["19386","中巨摩郡八田村"]
["19387","中巨摩郡白根町"]
["19388","中巨摩郡芦安村"]
["19389","中巨摩郡若草町"]
["19390","中巨摩郡櫛形町"]
["19391","中巨摩郡甲西町"]
["19399","南巨摩郡身延町"]
["19401","北巨摩郡双葉町"]
["19402","北巨摩郡明野村"]
["19403","北巨摩郡須玉町"]
["19404","北巨摩郡高根町"]
["19405","北巨摩郡長坂町"]
["19406","北巨摩郡大泉村"]
["19407","北巨摩郡小淵沢町"]
["19408","北巨摩郡白州町"]
["19409","北巨摩郡武川村"]
["19421","南都留郡秋山村"]
["19422","南都留郡道志村"]
["19423","南都留郡西桂町"]
["19424","南都留郡忍野村"]
["19425","南都留郡山中湖村"]
["19426","南都留郡河口湖町"]
["19427","南都留郡勝山村"]
["19428","南都留郡足和田村"]
["19429","南都留郡鳴沢村"]
["19430","南都留郡富士河口湖町"]
["19441","北都留郡上野原町"]
["19442","北都留郡小菅村"]
["19443","北都留郡丹波山村"]
["19499","南都留郡富士河口湖町"]
["20201","長野市"]
["20202","松本市"]
["20203","上田市"]
["20204","岡谷市"]
["20205","飯田市"]
["20206","諏訪市"]
["20207","須坂市"]
["20208","小諸市"]
["20209","伊那市"]
["20210","駒ヶ根市"]
["20211","中野市"]
["20212","大町市"]
["20213","飯山市"]
["20214","茅野市"]
["20215","塩尻市"]
["20216","更埴市"]
["20217","佐久市"]
["20218","千曲市"]
["20219","東御市"]
["20220","安曇野市"]
["20301","南佐久郡臼田町"]
["20302","南佐久郡佐久町"]
["20303","南佐久郡小海町"]
["20304","南佐久郡川上村"]
["20305","南佐久郡南牧村"]
["20306","南佐久郡南相木村"]
["20307","南佐久郡北相木村"]
["20308","南佐久郡八千穂村"]
["20309","南佐久郡佐久穂町"]
["20321","北佐久郡軽井沢町"]
["20322","北佐久郡望月町"]
["20323","北佐久郡御代田町"]
["20324","北佐久郡立科町"]
["20325","北佐久郡浅科村"]
["20326","北佐久郡北御牧村"]
["20341","小県郡丸子町"]
["20342","小県郡長門町"]
["20343","小県郡東部町"]
["20345","小県郡真田町"]
["20346","小県郡武石村"]
["20347","小県郡和田村"]
["20349","小県郡青木村"]
["20350","小県郡長和町"]
["20361","諏訪郡下諏訪町"]
["20362","諏訪郡富士見町"]
["20363","諏訪郡原村"]
["20381","上伊那郡高遠町"]
["20382","上伊那郡辰野町"]
["20383","上伊那郡箕輪町"]
["20384","上伊那郡飯島町"]
["20385","上伊那郡南箕輪村"]
["20386","上伊那郡中川村"]
["20387","上伊那郡長谷村"]
["20388","上伊那郡宮田村"]
["20402","下伊那郡松川町"]
["20403","下伊那郡高森町"]
["20404","下伊那郡阿南町"]
["20405","飯田市"]
["20406","下伊那郡清内路村"]
["20407","下伊那郡阿智村"]
["20408","下伊那郡浪合村"]
["20409","下伊那郡平谷村"]
["20410","下伊那郡根羽村"]
["20411","下伊那郡下条村"]
["20412","下伊那郡売木村"]
["20413","下伊那郡天竜村"]
["20414","下伊那郡泰阜村"]
["20415","下伊那郡喬木村"]
["20416","下伊那郡豊丘村"]
["20417","下伊那郡大鹿村"]
["20418","下伊那郡上村"]
["20419","下伊那郡南信濃村"]
["20421","木曽郡木曽福島町"]
["20422","木曽郡上松町"]
["20423","木曽郡南木曽町"]
["20424","木曽郡楢川村"]
["20425","木曽郡木祖村"]
["20426","木曽郡日義村"]
["20427","木曽郡開田村"]
["20428","木曽郡三岳村"]
["20429","木曽郡王滝村"]
["20430","木曽郡大桑村"]
["20431","木曽郡山口村"]
["20432","木曽郡木曽町"]
["20441","東筑摩郡明科町"]
["20443","東筑摩郡四賀村"]
["20444","東筑摩郡本城村"]
["20445","東筑摩郡坂北村"]
["20446","東筑摩郡麻績村"]
["20447","東筑摩郡坂井村"]
["20448","東筑摩郡生坂村"]
["20449","東筑摩郡波田町"]
["20450","東筑摩郡山形村"]
["20451","東筑摩郡朝日村"]
["20452","東筑摩郡筑北村"]
["20461","南安曇郡豊科町"]
["20462","南安曇郡穂高町"]
["20463","南安曇郡奈川村"]
["20464","南安曇郡安曇村"]
["20465","南安曇郡梓川村"]
["20466","南安曇郡三郷村"]
["20467","南安曇郡堀金村"]
["20481","北安曇郡池田町"]
["20482","北安曇郡松川村"]
["20483","北安曇郡八坂村"]
["20484","北安曇郡美麻村"]
["20485","北安曇郡白馬村"]
["20486","北安曇郡小谷村"]
["20501","更級郡上山田町"]
["20502","更級郡大岡村"]
["20521","埴科郡坂城町"]
["20522","埴科郡戸倉町"]
["20541","上高井郡小布施町"]
["20543","上高井郡高山村"]
["20561","下高井郡山ノ内町"]
["20562","下高井郡木島平村"]
["20563","下高井郡野沢温泉村"]
["20581","上水内郡信州新町"]
["20582","上水内郡豊野町"]
["20583","上水内郡信濃町"]
["20584","上水内郡牟礼村"]
["20585","上水内郡三水村"]
["20586","上水内郡戸隠村"]
["20587","上水内郡鬼無里村"]
["20588","上水内郡小川村"]
["20589","上水内郡中条村"]
["20590","上水内郡飯綱町"]
["20601","下水内郡豊田村"]
["20602","下水内郡栄村"]
["21201","岐阜市"]
["21202","大垣市"]
["21203","高山市"]
["21204","多治見市"]
["21205","関市"]
["21206","中津川市"]
["21207","美濃市"]
["21208","瑞浪市"]
["21209","羽島市"]
["21210","恵那市"]
["21211","美濃加茂市"]
["21212","土岐市"]
["21213","各務原市"]
["21214","可児市"]
["21215","山県市"]
["21216","瑞穂市"]
["21217","飛騨市"]
["21218","本巣市"]
["21219","郡上市"]
["21220","下呂市"]
["21221","海津市"]
["21299","高山市"]
["21301","羽島郡川島町"]
["21302","羽島郡岐南町"]
["21303","羽島郡笠松町"]
["21304","羽島郡柳津町"]
["21321","海津郡海津町"]
["21322","海津郡平田町"]
["21323","海津郡南濃町"]
["21341","養老郡養老町"]
["21342","養老郡上石津町"]
["21361","不破郡垂井町"]
["21362","不破郡関ヶ原町"]
["21381","安八郡神戸町"]
["21382","安八郡輪之内町"]
["21383","安八郡安八町"]
["21384","安八郡墨俣町"]
["21401","揖斐郡揖斐川町"]
["21402","揖斐郡谷汲村"]
["21403","揖斐郡大野町"]
["21404","揖斐郡池田町"]
["21405","揖斐郡春日村"]
["21406","揖斐郡久瀬村"]
["21407","揖斐郡藤橋村"]
["21408","揖斐郡坂内村"]
["21409","揖斐郡徳山村"]
["21421","本巣郡北方町"]
["21422","本巣郡本巣町"]
["21423","本巣郡穂積町"]
["21424","本巣郡巣南町"]
["21425","本巣郡真正町"]
["21426","本巣郡糸貫町"]
["21427","本巣郡根尾村"]
["21441","山県郡高富町"]
["21442","山県郡伊自良村"]
["21443","山県郡美山町"]
["21461","武儀郡洞戸村"]
["21462","武儀郡板取村"]
["21463","武儀郡武芸川町"]
["21464","武儀郡武儀町"]
["21465","武儀郡上之保村"]
["21481","郡上郡八幡町"]
["21482","郡上郡大和町"]
["21483","郡上郡白鳥町"]
["21484","郡上郡高鷲村"]
["21485","郡上郡美並村"]
["21486","郡上郡明宝村"]
["21487","郡上郡和良村"]
["21501","加茂郡坂祝町"]
["21502","加茂郡富加町"]
["21503","加茂郡川辺町"]
["21504","加茂郡七宗町"]
["21505","加茂郡八百津町"]
["21506","加茂郡白川町"]
["21507","加茂郡東白川村"]
["21521","可児郡御嵩町"]
["21523","可児郡兼山町"]
["21541","土岐郡笠原町"]
["21561","恵那郡坂下町"]
["21562","恵那郡川上村"]
["21563","恵那郡加子母村"]
["21564","恵那郡付知町"]
["21565","恵那郡福岡町"]
["21566","恵那郡蛭川村"]
["21567","恵那郡岩村町"]
["21568","恵那郡山岡町"]
["21569","恵那郡明智町"]
["21570","恵那郡串原村"]
["21571","恵那郡上矢作町"]
["21581","益田郡萩原町"]
["21582","益田郡小坂町"]
["21583","益田郡下呂町"]
["21584","益田郡金山町"]
["21585","益田郡馬瀬村"]
["21601","大野郡丹生川村"]
["21602","大野郡清見村"]
["21603","大野郡荘川村"]
["21604","大野郡白川村"]
["21605","大野郡宮村"]
["21606","大野郡久々野町"]
["21607","大野郡朝日村"]
["21608","大野郡高根村"]
["21621","吉城郡古川町"]
["21622","吉城郡国府町"]
["21623","吉城郡河合村"]
["21624","吉城郡宮川村"]
["21625","吉城郡神岡町"]
["21626","吉城郡上宝村"]
["22101","静岡市葵区"]
["22102","静岡市駿河区"]
["22103","静岡市清水区"]
["22131","浜松市中区"]
["22132","浜松市東区"]
["22133","浜松市西区"]
["22134","浜松市南区"]
["22135","浜松市北区"]
["22136","浜松市浜北区"]
["22137","浜松市天竜区"]
["22201","静岡市"]
["22202","浜松市"]
["22203","沼津市"]
["22204","清水市"]
["22205","熱海市"]
["22206","三島市"]
["22207","富士宮市"]
["22208","伊東市"]
["22209","島田市"]
["22210","富士市"]
["22211","磐田市"]
["22212","焼津市"]
["22213","掛川市"]
["22214","藤枝市"]
["22215","御殿場市"]
["22216","袋井市"]
["22217","天竜市"]
["22218","浜北市"]
["22219","下田市"]
["22220","裾野市"]
["22221","湖西市"]
["22222","伊豆市"]
["22223","御前崎市"]
["22224","菊川市"]
["22225","伊豆の国市"]
["22226","牧之原市"]
["22301","賀茂郡東伊豆町"]
["22302","賀茂郡河津町"]
["22304","賀茂郡南伊豆町"]
["22305","賀茂郡松崎町"]
["22306","賀茂郡西伊豆町"]
["22307","賀茂郡賀茂村"]
["22321","田方郡伊豆長岡町"]
["22322","田方郡修善寺町"]
["22323","田方郡戸田村"]
["22324","田方郡土肥町"]
["22325","田方郡函南町"]
["22326","田方郡韮山町"]
["22327","田方郡大仁町"]
["22328","田方郡天城湯ヶ島町"]
["22329","田方郡中伊豆町"]
["22341","駿東郡清水町"]
["22342","駿東郡長泉町"]
["22344","駿東郡小山町"]
["22361","富士郡芝川町"]
["22381","庵原郡富士川町"]
["22382","庵原郡蒲原町"]
["22383","庵原郡由比町"]
["22401","志太郡岡部町"]
["22402","志太郡大井川町"]
["22421","榛原郡御前崎町"]
["22422","榛原郡相良町"]
["22423","榛原郡榛原町"]
["22424","榛原郡吉田町"]
["22425","榛原郡金谷町"]
["22426","榛原郡川根町"]
["22427","榛原郡中川根町"]
["22428","榛原郡本川根町"]
["22429","榛原郡川根本町"]
["22442","小笠郡大須賀町"]
["22444","小笠郡浜岡町"]
["22445","小笠郡小笠町"]
["22446","小笠郡菊川町"]
["22447","小笠郡大東町"]
["22461","周智郡森町"]
["22462","周智郡春野町"]
["22481","磐田郡浅羽町"]
["22482","磐田郡福田町"]
["22483","磐田郡竜洋町"]
["22484","磐田郡豊田町"]
["22485","磐田郡豊岡村"]
["22486","磐田郡龍山村"]
["22487","磐田郡佐久間町"]
["22488","磐田郡水窪町"]
["22501","浜名郡可美村"]
["22502","浜名郡舞阪町"]
["22503","浜名郡新居町"]
["22505","浜名郡雄踏町"]
["22521","引佐郡細江町"]
["22522","引佐郡引佐町"]
["22523","引佐郡三ヶ日町"]
["23101","名古屋市千種区"]
["23102","名古屋市東区"]
["23103","名古屋市北区"]
["23104","名古屋市西区"]
["23105","名古屋市中村区"]
["23106","名古屋市中区"]
["23107","名古屋市昭和区"]
["23108","名古屋市瑞穂区"]
["23109","名古屋市熱田区"]
["23110","名古屋市中川区"]
["23111","名古屋市港区"]
["23112","名古屋市南区"]
["23113","名古屋市守山区"]
["23114","名古屋市緑区"]
["23115","名古屋市名東区"]
["23116","名古屋市天白区"]
["23201","豊橋市"]
["23202","岡崎市"]
["23203","一宮市"]
["23204","瀬戸市"]
["23205","半田市"]
["23206","春日井市"]
["23207","豊川市"]
["23208","津島市"]
["23209","碧南市"]
["23210","刈谷市"]
["23211","豊田市"]
["23212","安城市"]
["23213","西尾市"]
["23214","蒲郡市"]
["23215","犬山市"]
["23216","常滑市"]
["23217","江南市"]
["23218","尾西市"]
["23219","小牧市"]
["23220","稲沢市"]
["23221","新城市"]
["23222","東海市"]
["23223","大府市"]
["23224","知多市"]
["23225","知立市"]
["23226","尾張旭市"]
["23227","高浜市"]
["23228","岩倉市"]
["23229","豊明市"]
["23230","日進市"]
["23231","田原市"]
["23232","愛西市"]
["23233","清須市"]
["23234","北名古屋市"]
["23235","弥富市"]
["23236","みよし市"]
["23237","あま市"]
["23238","長久手市"]
["23302","愛知郡東郷町"]
["23303","日進市"]
["23304","愛知郡長久手町"]
["23341","西春日井郡西枇杷島町"]
["23342","西春日井郡豊山町"]
["23343","西春日井郡師勝町"]
["23344","西春日井郡西春町"]
["23345","西春日井郡春日町"]
["23346","西春日井郡清洲町"]
["23347","西春日井郡新川町"]
["23361","丹羽郡大口町"]
["23362","丹羽郡扶桑町"]
["23381","葉栗郡木曽川町"]
["23401","中島郡祖父江町"]
["23402","中島郡平和町"]
["23421","海部郡七宝町"]
["23422","海部郡美和町"]
["23423","海部郡甚目寺町"]
["23424","海部郡大治町"]
["23425","海部郡蟹江町"]
["23426","海部郡十四山村"]
["23427","海部郡飛島村"]
["23428","海部郡弥富町"]
["23429","海部郡佐屋町"]
["23430","海部郡立田村"]
["23431","海部郡八開村"]
["23432","海部郡佐織町"]
["23441","知多郡阿久比町"]
["23442","知多郡東浦町"]
["23445","知多郡南知多町"]
["23446","知多郡美浜町"]
["23447","知多郡武豊町"]
["23481","幡豆郡一色町"]
["23482","幡豆郡吉良町"]
["23483","幡豆郡幡豆町"]
["23501","額田郡幸田町"]
["23502","額田郡額田町"]
["23521","西加茂郡三好町"]
["23522","西加茂郡藤岡町"]
["23523","西加茂郡小原村"]
["23541","東加茂郡足助町"]
["23543","東加茂郡下山村"]
["23544","東加茂郡旭町"]
["23545","東加茂郡稲武町"]
["23561","北設楽郡設楽町"]
["23562","北設楽郡東栄町"]
["23563","北設楽郡豊根村"]
["23564","北設楽郡富山村"]
["23565","北設楽郡津具村"]
["23566","北設楽郡稲武町"]
["23581","南設楽郡鳳来町"]
["23582","南設楽郡作手村"]
["23601","宝飯郡音羽町"]
["23602","宝飯郡一宮町"]
["23603","宝飯郡小坂井町"]
["23604","宝飯郡御津町"]
["23621","渥美郡田原町"]
["23622","渥美郡赤羽根町"]
["23623","渥美郡渥美町"]
["24201","津市"]
["24202","四日市市"]
["24203","伊勢市"]
["24204","松阪市"]
["24205","桑名市"]
["24206","上野市"]
["24207","鈴鹿市"]
["24208","名張市"]
["24209","尾鷲市"]
["24210","亀山市"]
["24211","鳥羽市"]
["24212","熊野市"]
["24213","久居市"]
["24214","いなべ市"]
["24215","志摩市"]
["24216","伊賀市"]
["24301","桑名郡多度町"]
["24302","桑名郡長島町"]
["24303","桑名郡木曽岬町"]
["24321","員弁郡北勢町"]
["24322","員弁郡員弁町"]
["24323","員弁郡大安町"]
["24324","員弁郡東員町"]
["24325","員弁郡藤原町"]
["24341","三重郡菰野町"]
["24342","三重郡楠町"]
["24343","三重郡朝日町"]
["24344","三重郡川越町"]
["24361","鈴鹿郡関町"]
["24381","安芸郡河芸町"]
["24382","安芸郡芸濃町"]
["24383","安芸郡美里村"]
["24384","安芸郡安濃町"]
["24402","一志郡香良洲町"]
["24403","一志郡一志町"]
["24404","一志郡白山町"]
["24405","一志郡嬉野町"]
["24406","一志郡美杉村"]
["24407","一志郡三雲町"]
["24421","飯南郡飯南町"]
["24422","飯南郡飯高町"]
["24441","多気郡多気町"]
["24442","多気郡明和町"]
["24443","多気郡大台町"]
["24444","多気郡勢和村"]
["24445","多気郡宮川村"]
["24461","度会郡玉城町"]
["24462","度会郡二見町"]
["24463","度会郡小俣町"]
["24464","度会郡南勢町"]
["24465","度会郡南島町"]
["24466","度会郡大宮町"]
["24467","度会郡紀勢町"]
["24468","度会郡御薗村"]
["24469","度会郡大内山村"]
["24470","度会郡度会町"]
["24471","度会郡大紀町"]
["24472","度会郡南伊勢町"]
["24481","阿山郡伊賀町"]
["24482","阿山郡島ヶ原村"]
["24483","阿山郡阿山町"]
["24484","阿山郡大山田村"]
["24501","名賀郡青山町"]
["24521","志摩郡浜島町"]
["24522","志摩郡大王町"]
["24523","志摩郡志摩町"]
["24524","志摩郡阿児町"]
["24525","志摩郡磯部町"]
["24541","北牟婁郡紀伊長島町"]
["24542","北牟婁郡海山町"]
["24543","北牟婁郡紀北町"]
["24561","南牟婁郡御浜町"]
["24562","南牟婁郡紀宝町"]
["24563","南牟婁郡紀和町"]
["24564","南牟婁郡鵜殿村"]
["25201","大津市"]
["25202","彦根市"]
["25203","長浜市"]
["25204","近江八幡市"]
["25205","八日市市"]
["25206","草津市"]
["25207","守山市"]
["25208","栗東市"]
["25209","甲賀市"]
["25210","野洲市"]
["25211","湖南市"]
["25212","高島市"]
["25213","東近江市"]
["25214","米原市"]
["25301","滋賀郡志賀町"]
["25321","栗太郡栗東町"]
["25342","野洲郡中主町"]
["25343","野洲郡野洲町"]
["25361","甲賀郡石部町"]
["25362","甲賀郡甲西町"]
["25363","甲賀郡水口町"]
["25364","甲賀郡土山町"]
["25365","甲賀郡甲賀町"]
["25366","甲賀郡甲南町"]
["25367","甲賀郡信楽町"]
["25381","蒲生郡安土町"]
["25382","蒲生郡蒲生町"]
["25383","蒲生郡日野町"]
["25384","蒲生郡竜王町"]
["25401","神崎郡永源寺町"]
["25402","神崎郡五個荘町"]
["25403","神崎郡能登川町"]
["25421","愛知郡愛東町"]
["25422","愛知郡湖東町"]
["25423","愛知郡秦荘町"]
["25424","愛知郡愛知川町"]
["25425","愛知郡愛荘町"]
["25441","犬上郡豊郷町"]
["25442","犬上郡甲良町"]
["25443","犬上郡多賀町"]
["25461","坂田郡山東町"]
["25462","坂田郡伊吹町"]
["25463","坂田郡米原町"]
["25464","坂田郡近江町"]
["25481","東浅井郡浅井町"]
["25482","東浅井郡虎姫町"]
["25483","東浅井郡湖北町"]
["25484","東浅井郡びわ町"]
["25501","伊香郡高月町"]
["25502","伊香郡木之本町"]
["25503","伊香郡余呉町"]
["25504","伊香郡西浅井町"]
["25521","高島郡マキノ町"]
["25522","高島郡今津町"]
["25523","高島郡朽木村"]
["25524","高島郡安曇川町"]
["25525","高島郡高島町"]
["25526","高島郡新旭町"]
["26101","京都市北区"]
["26102","京都市上京区"]
["26103","京都市左京区"]
["26104","京都市中京区"]
["26105","京都市東山区"]
["26106","京都市下京区"]
["26107","京都市南区"]
["26108","京都市右京区"]
["26109","京都市伏見区"]
["26110","京都市山科区"]
["26111","京都市西京区"]
["26199","京都市西京区"]
["26201","福知山市"]
["26202","舞鶴市"]
["26203","綾部市"]
["26204","宇治市"]
["26205","宮津市"]
["26206","亀岡市"]
["26207","城陽市"]
["26208","向日市"]
["26209","長岡京市"]
["26210","八幡市"]
["26211","京田辺市"]
["26212","京丹後市"]
["26213","南丹市"]
["26214","木津川市"]
["26303","乙訓郡大山崎町"]
["26322","久世郡久御山町"]
["26342","京田辺市"]
["26343","綴喜郡井手町"]
["26344","綴喜郡宇治田原町"]
["26361","相楽郡山城町"]
["26362","相楽郡木津町"]
["26363","相楽郡加茂町"]
["26364","相楽郡笠置町"]
["26365","相楽郡和束町"]
["26366","相楽郡精華町"]
["26367","相楽郡南山城村"]
["26381","北桑田郡京北町"]
["26382","北桑田郡美山町"]
["26401","船井郡園部町"]
["26402","船井郡八木町"]
["26403","船井郡丹波町"]
["26404","船井郡日吉町"]
["26405","船井郡瑞穂町"]
["26406","船井郡和知町"]
["26407","船井郡京丹波町"]
["26421","天田郡三和町"]
["26422","天田郡夜久野町"]
["26441","加佐郡大江町"]
["26461","与謝郡加悦町"]
["26462","与謝郡岩滝町"]
["26463","与謝郡伊根町"]
["26464","与謝郡野田川町"]
["26465","与謝郡与謝野町"]
["26481","中郡峰山町"]
["26482","中郡大宮町"]
["26501","竹野郡網野町"]
["26502","竹野郡丹後町"]
["26503","竹野郡弥栄町"]
["26521","熊野郡久美浜町"]
["27102","大阪市都島区"]
["27103","大阪市福島区"]
["27104","大阪市此花区"]
["27105","大阪市東区"]
["27106","大阪市西区"]
["27107","大阪市港区"]
["27108","大阪市大正区"]
["27109","大阪市天王寺区"]
["27110","大阪市南区"]
["27111","大阪市浪速区"]
["27112","大阪市大淀区"]
["27113","大阪市西淀川区"]
["27114","大阪市東淀川区"]
["27115","大阪市東成区"]
["27116","大阪市生野区"]
["27117","大阪市旭区"]
["27118","大阪市城東区"]
["27119","大阪市阿倍野区"]
["27120","大阪市住吉区"]
["27121","大阪市東住吉区"]
["27122","大阪市西成区"]
["27123","大阪市淀川区"]
["27124","大阪市鶴見区"]
["27125","大阪市住之江区"]
["27126","大阪市平野区"]
["27127","大阪市北区"]
["27128","大阪市中央区"]
["27140","堺市"]
["27141","堺市堺区"]
["27142","堺市中区"]
["27143","堺市東区"]
["27144","堺市西区"]
["27145","堺市南区"]
["27146","堺市北区"]
["27147","堺市美原区"]
["27201","堺市"]
["27202","岸和田市"]
["27203","豊中市"]
["27204","池田市"]
["27205","吹田市"]
["27206","泉大津市"]
["27207","高槻市"]
["27208","貝塚市"]
["27209","守口市"]
["27210","枚方市"]
["27211","茨木市"]
["27212","八尾市"]
["27213","泉佐野市"]
["27214","富田林市"]
["27215","寝屋川市"]
["27216","河内長野市"]
["27217","松原市"]
["27218","大東市"]
["27219","和泉市"]
["27220","箕面市"]
["27221","柏原市"]
["27222","羽曳野市"]
["27223","門真市"]
["27224","摂津市"]
["27225","高石市"]
["27226","藤井寺市"]
["27227","東大阪市"]
["27228","泉南市"]
["27229","四條畷市"]
["27230","交野市"]
["27231","大阪狭山市"]
["27232","阪南市"]
["27301","三島郡島本町"]
["27321","豊能郡豊能町"]
["27322","豊能郡能勢町"]
["27341","泉北郡忠岡町"]
["27361","泉南郡熊取町"]
["27362","泉南郡田尻町"]
["27366","泉南郡岬町"]
["27367","泉南郡阪南町"]
["27381","南河内郡太子町"]
["27382","南河内郡河南町"]
["27383","南河内郡千早赤阪村"]
["27384","南河内郡狭山町"]
["27385","南河内郡美原町"]
["28101","神戸市東灘区"]
["28102","神戸市灘区"]
["28105","神戸市兵庫区"]
["28106","神戸市長田区"]
["28107","神戸市須磨区"]
["28108","神戸市垂水区"]
["28109","神戸市北区"]
["28110","神戸市中央区"]
["28111","神戸市西区"]
["28201","姫路市"]
["28202","尼崎市"]
["28203","明石市"]
["28204","西宮市"]
["28205","洲本市"]
["28206","芦屋市"]
["28207","伊丹市"]
["28208","相生市"]
["28209","豊岡市"]
["28210","加古川市"]
["28211","龍野市"]
["28212","赤穂市"]
["28213","西脇市"]
["28214","宝塚市"]
["28215","三木市"]
["28216","高砂市"]
["28217","川西市"]
["28218","小野市"]
["28219","三田市"]
["28220","加西市"]
["28221","篠山市"]
["28222","養父市"]
["28223","丹波市"]
["28224","南あわじ市"]
["28225","朝来市"]
["28226","淡路市"]
["28227","宍粟市"]
["28228","加東市"]
["28229","たつの市"]
["28301","川辺郡猪名川町"]
["28321","美嚢郡吉川町"]
["28341","加東郡社町"]
["28342","加東郡滝野町"]
["28343","加東郡東条町"]
["28361","多可郡中町"]
["28362","多可郡加美町"]
["28363","多可郡八千代町"]
["28364","多可郡黒田庄町"]
["28365","多可郡多可町"]
["28381","加古郡稲美町"]
["28382","加古郡播磨町"]
["28421","飾磨郡家島町"]
["28422","飾磨郡夢前町"]
["28441","神崎郡神崎町"]
["28442","神崎郡市川町"]
["28443","神崎郡福崎町"]
["28444","神崎郡香寺町"]
["28445","神崎郡大河内町"]
["28446","神崎郡神河町"]
["28461","揖保郡新宮町"]
["28462","揖保郡揖保川町"]
["28463","揖保郡御津町"]
["28464","揖保郡太子町"]
["28481","赤穂郡上郡町"]
["28501","佐用郡佐用町"]
["28502","佐用郡上月町"]
["28503","佐用郡南光町"]
["28504","佐用郡三日月町"]
["28521","宍粟郡山崎町"]
["28522","宍粟郡安富町"]
["28523","宍粟郡一宮町"]
["28524","宍粟郡波賀町"]
["28525","宍粟郡千種町"]
["28541","城崎郡城崎町"]
["28542","城崎郡竹野町"]
["28543","城崎郡香住町"]
["28544","城崎郡日高町"]
["28561","出石郡出石町"]
["28562","出石郡但東町"]
["28581","美方郡村岡町"]
["28582","美方郡浜坂町"]
["28583","美方郡美方町"]
["28584","美方郡温泉町"]
["28585","美方郡香美町"]
["28586","美方郡新温泉町"]
["28601","養父郡八鹿町"]
["28602","養父郡養父町"]
["28603","養父郡大屋町"]
["28604","養父郡関宮町"]
["28621","朝来郡生野町"]
["28622","朝来郡和田山町"]
["28623","朝来郡山東町"]
["28624","朝来郡朝来町"]
["28641","氷上郡柏原町"]
["28642","氷上郡氷上町"]
["28643","氷上郡青垣町"]
["28644","氷上郡春日町"]
["28645","氷上郡山南町"]
["28646","氷上郡市島町"]
["28661","篠山市"]
["28664","篠山市"]
["28665","篠山市"]
["28666","篠山市"]
["28681","津名郡津名町"]
["28682","津名郡淡路町"]
["28683","津名郡北淡町"]
["28684","津名郡一宮町"]
["28685","津名郡五色町"]
["28686","津名郡東浦町"]
["28701","三原郡緑町"]
["28702","三原郡西淡町"]
["28703","三原郡三原町"]
["28704","三原郡南淡町"]
["29201","奈良市"]
["29202","大和高田市"]
["29203","大和郡山市"]
["29204","天理市"]
["29205","橿原市"]
["29206","桜井市"]
["29207","五條市"]
["29208","御所市"]
["29209","生駒市"]
["29210","香芝市"]
["29211","葛城市"]
["29212","宇陀市"]
["29301","添上郡月ヶ瀬村"]
["29321","山辺郡都祁村"]
["29322","山辺郡山添村"]
["29342","生駒郡平群町"]
["29343","生駒郡三郷町"]
["29344","生駒郡斑鳩町"]
["29345","生駒郡安堵町"]
["29361","磯城郡川西町"]
["29362","磯城郡三宅町"]
["29363","磯城郡田原本町"]
["29381","宇陀郡大宇陀町"]
["29382","宇陀郡菟田野町"]
["29383","宇陀郡榛原町"]
["29384","宇陀郡室生村"]
["29385","宇陀郡曽爾村"]
["29386","宇陀郡御杖村"]
["29401","高市郡高取町"]
["29402","高市郡明日香村"]
["29421","北葛城郡新庄町"]
["29422","北葛城郡当麻町"]
["29423","北葛城郡香芝町"]
["29424","北葛城郡上牧町"]
["29425","北葛城郡王寺町"]
["29426","北葛城郡広陵町"]
["29427","北葛城郡河合町"]
["29441","吉野郡吉野町"]
["29442","吉野郡大淀町"]
["29443","吉野郡下市町"]
["29444","吉野郡黒滝村"]
["29445","吉野郡西吉野村"]
["29446","吉野郡天川村"]
["29447","吉野郡野迫川村"]
["29448","吉野郡大塔村"]
["29449","吉野郡十津川村"]
["29450","吉野郡下北山村"]
["29451","吉野郡上北山村"]
["29452","吉野郡川上村"]
["29453","吉野郡東吉野村"]
["30201","和歌山市"]
["30202","海南市"]
["30203","橋本市"]
["30204","有田市"]
["30205","御坊市"]
["30206","田辺市"]
["30207","新宮市"]
["30208","紀の川市"]
["30209","岩出市"]
["30301","海草郡下津町"]
["30302","海草郡野上町"]
["30303","海草郡美里町"]
["30304","海草郡紀美野町"]
["30321","那賀郡打田町"]
["30322","那賀郡粉河町"]
["30323","那賀郡那賀町"]
["30324","那賀郡桃山町"]
["30325","那賀郡貴志川町"]
["30326","那賀郡岩出町"]
["30341","伊都郡かつらぎ町"]
["30342","伊都郡高野口町"]
["30343","伊都郡九度山町"]
["30344","伊都郡高野町"]
["30345","伊都郡花園村"]
["30361","有田郡湯浅町"]
["30362","有田郡広川町"]
["30363","有田郡吉備町"]
["30364","有田郡金屋町"]
["30365","有田郡清水町"]
["30366","有田郡有田川町"]
["30381","日高郡美浜町"]
["30382","日高郡日高町"]
["30383","日高郡由良町"]
["30384","日高郡川辺町"]
["30385","日高郡中津村"]
["30386","日高郡美山村"]
["30387","日高郡龍神村"]
["30388","日高郡南部川村"]
["30389","日高郡南部町"]
["30390","日高郡印南町"]
["30391","日高郡みなべ町"]
["30392","日高郡日高川町"]
["30401","西牟婁郡白浜町"]
["30402","西牟婁郡中辺路町"]
["30403","西牟婁郡大塔村"]
["30404","西牟婁郡上富田町"]
["30405","西牟婁郡日置川町"]
["30406","西牟婁郡すさみ町"]
["30407","西牟婁郡串本町"]
["30421","東牟婁郡那智勝浦町"]
["30422","東牟婁郡太地町"]
["30423","東牟婁郡古座町"]
["30424","東牟婁郡古座川町"]
["30425","東牟婁郡熊野川町"]
["30426","東牟婁郡本宮町"]
["30427","東牟婁郡北山村"]
["30428","東牟婁郡串本町"]
["31201","鳥取市"]
["31202","米子市"]
["31203","倉吉市"]
["31204","境港市"]
["31299","鳥取市"]
["31301","岩美郡国府町"]
["31302","岩美郡岩美町"]
["31303","岩美郡福部村"]
["31321","八頭郡郡家町"]
["31322","八頭郡船岡町"]
["31323","八頭郡河原町"]
["31324","八頭郡八東町"]
["31325","八頭郡若桜町"]
["31326","八頭郡用瀬町"]
["31327","八頭郡佐治村"]
["31328","八頭郡智頭町"]
["31329","八頭郡八頭町"]
["31341","気高郡気高町"]
["31342","気高郡鹿野町"]
["31343","気高郡青谷町"]
["31361","東伯郡羽合町"]
["31362","東伯郡泊村"]
["31363","東伯郡東郷町"]
["31364","東伯郡三朝町"]
["31365","東伯郡関金町"]
["31366","東伯郡北条町"]
["31367","東伯郡大栄町"]
["31368","東伯郡東伯町"]
["31369","東伯郡赤碕町"]
["31370","東伯郡湯梨浜町"]
["31371","東伯郡琴浦町"]
["31372","東伯郡北栄町"]
["31381","西伯郡西伯町"]
["31382","西伯郡会見町"]
["31383","西伯郡岸本町"]
["31384","西伯郡日吉津村"]
["31385","西伯郡淀江町"]
["31386","西伯郡大山町"]
["31387","西伯郡名和町"]
["31388","西伯郡中山町"]
["31389","西伯郡南部町"]
["31390","西伯郡伯耆町"]
["31399","西伯郡伯耆町"]
["31401","日野郡日南町"]
["31402","日野郡日野町"]
["31403","日野郡江府町"]
["31404","日野郡溝口町"]
["32201","松江市"]
["32202","浜田市"]
["32203","出雲市"]
["32204","益田市"]
["32205","大田市"]
["32206","安来市"]
["32207","江津市"]
["32208","平田市"]
["32209","雲南市"]
["32301","八束郡鹿島町"]
["32302","八束郡島根町"]
["32303","八束郡美保関町"]
["32304","八束郡東出雲町"]
["32305","八束郡八雲村"]
["32306","八束郡玉湯町"]
["32307","八束郡宍道町"]
["32308","八束郡八束町"]
["32321","能義郡広瀬町"]
["32322","能義郡伯太町"]
["32341","仁多郡仁多町"]
["32342","仁多郡横田町"]
["32343","仁多郡奥出雲町"]
["32361","大原郡大東町"]
["32362","大原郡加茂町"]
["32363","大原郡木次町"]
["32381","飯石郡三刀屋町"]
["32382","飯石郡吉田村"]
["32383","飯石郡掛合町"]
["32384","飯石郡頓原町"]
["32385","飯石郡赤来町"]
["32386","飯石郡飯南町"]
["32401","簸川郡斐川町"]
["32402","簸川郡佐田町"]
["32403","簸川郡多伎町"]
["32404","簸川郡湖陵町"]
["32405","簸川郡大社町"]
["32421","邇摩郡温泉津町"]
["32422","邇摩郡仁摩町"]
["32441","邑智郡川本町"]
["32442","邑智郡邑智町"]
["32443","邑智郡大和村"]
["32444","邑智郡羽須美村"]
["32445","邑智郡瑞穂町"]
["32446","邑智郡石見町"]
["32447","邑智郡桜江町"]
["32448","邑智郡美郷町"]
["32449","邑智郡邑南町"]
["32462","那賀郡金城町"]
["32463","那賀郡旭町"]
["32464","那賀郡弥栄村"]
["32465","那賀郡三隅町"]
["32481","美濃郡美都町"]
["32482","美濃郡匹見町"]
["32501","鹿足郡津和野町"]
["32502","鹿足郡日原町"]
["32503","鹿足郡柿木村"]
["32504","鹿足郡六日市町"]
["32505","鹿足郡吉賀町"]
["32521","隠岐郡西郷町"]
["32522","隠岐郡布施村"]
["32523","隠岐郡五箇村"]
["32524","隠岐郡都万村"]
["32525","隠岐郡海士町"]
["32526","隠岐郡西ノ島町"]
["32527","隠岐郡知夫村"]
["32528","隠岐郡隠岐の島町"]
["33101","岡山市北区"]
["33102","岡山市中区"]
["33103","岡山市東区"]
["33104","岡山市南区"]
["33201","岡山市"]
["33202","倉敷市"]
["33203","津山市"]
["33204","玉野市"]
["33205","笠岡市"]
["33207","井原市"]
["33208","総社市"]
["33209","高梁市"]
["33210","新見市"]
["33211","備前市"]
["33212","瀬戸内市"]
["33213","赤磐市"]
["33214","真庭市"]
["33215","美作市"]
["33216","浅口市"]
["33301","御津郡御津町"]
["33303","御津郡建部町"]
["33305","御津郡加茂川町"]
["33321","赤磐郡瀬戸町"]
["33322","赤磐郡山陽町"]
["33323","赤磐郡赤坂町"]
["33324","赤磐郡熊山町"]
["33325","赤磐郡吉井町"]
["33342","和気郡日生町"]
["33344","和気郡吉永町"]
["33345","和気郡佐伯町"]
["33346","和気郡和気町"]
["33361","邑久郡牛窓町"]
["33362","邑久郡邑久町"]
["33363","邑久郡長船町"]
["33401","児島郡灘崎町"]
["33423","都窪郡早島町"]
["33427","都窪郡山手村"]
["33428","都窪郡清音村"]
["33441","浅口郡船穂町"]
["33442","浅口郡金光町"]
["33443","浅口郡鴨方町"]
["33444","浅口郡寄島町"]
["33445","浅口郡里庄町"]
["33461","小田郡矢掛町"]
["33462","小田郡美星町"]
["33481","後月郡芳井町"]
["33503","吉備郡真備町"]
["33521","上房郡有漢町"]
["33522","上房郡北房町"]
["33523","上房郡賀陽町"]
["33541","川上郡成羽町"]
["33542","川上郡川上町"]
["33543","川上郡備中町"]
["33561","阿哲郡大佐町"]
["33562","阿哲郡神郷町"]
["33563","阿哲郡哲多町"]
["33564","阿哲郡哲西町"]
["33581","真庭郡勝山町"]
["33582","真庭郡落合町"]
["33583","真庭郡湯原町"]
["33584","真庭郡久世町"]
["33585","真庭郡美甘村"]
["33586","真庭郡新庄村"]
["33587","真庭郡川上村"]
["33588","真庭郡八束村"]
["33589","真庭郡中和村"]
["33601","苫田郡加茂町"]
["33602","苫田郡富村"]
["33603","苫田郡奥津町"]
["33604","苫田郡上斎原村"]
["33605","苫田郡阿波村"]
["33606","苫田郡鏡野町"]
["33621","勝田郡勝田町"]
["33622","勝田郡勝央町"]
["33623","勝田郡奈義町"]
["33624","勝田郡勝北町"]
["33641","英田郡大原町"]
["33642","英田郡東粟倉村"]
["33643","英田郡西粟倉村"]
["33644","英田郡美作町"]
["33645","英田郡作東町"]
["33646","英田郡英田町"]
["33661","久米郡中央町"]
["33662","久米郡旭町"]
["33663","久米郡久米南町"]
["33664","久米郡久米町"]
["33665","久米郡柵原町"]
["33666","久米郡美咲町"]
["33681","加賀郡吉備中央町"]
["34101","広島市中区"]
["34102","広島市東区"]
["34103","広島市南区"]
["34104","広島市西区"]
["34105","広島市安佐南区"]
["34106","広島市安佐北区"]
["34107","広島市安芸区"]
["34108","広島市佐伯区"]
["34202","呉市"]
["34203","竹原市"]
["34204","三原市"]
["34205","尾道市"]
["34207","福山市"]
["34208","府中市"]
["34209","三次市"]
["34210","庄原市"]
["34211","大竹市"]
["34212","東広島市"]
["34213","廿日市市"]
["34214","安芸高田市"]
["34215","江田島市"]
["34302","安芸郡府中町"]
["34304","安芸郡海田町"]
["34307","安芸郡熊野町"]
["34309","安芸郡坂町"]
["34368","山県郡安芸太田町"]
["34369","山県郡北広島町"]
["34431","豊田郡大崎上島町"]
["34462","世羅郡世羅町"]
["34545","神石郡神石高原町"]
["35201","下関市"]
["35202","宇部市"]
["35203","山口市"]
["35204","萩市"]
["35205","徳山市"]
["35206","防府市"]
["35207","下松市"]
["35208","岩国市"]
["35209","小野田市"]
["35210","光市"]
["35211","長門市"]
["35212","柳井市"]
["35213","美祢市"]
["35214","新南陽市"]
["35215","周南市"]
["35216","山陽小野田市"]
["35291","下関市"]
["35301","大島郡久賀町"]
["35302","大島郡大島町"]
["35303","大島郡東和町"]
["35304","大島郡橘町"]
["35305","大島郡周防大島町"]
["35321","玖珂郡和木町"]
["35322","玖珂郡由宇町"]
["35323","玖珂郡玖珂町"]
["35324","玖珂郡本郷村"]
["35325","玖珂郡周東町"]
["35326","玖珂郡錦町"]
["35327","玖珂郡大畠町"]
["35328","玖珂郡美川町"]
["35329","玖珂郡美和町"]
["35341","熊毛郡上関町"]
["35342","熊毛郡大和町"]
["35343","熊毛郡田布施町"]
["35344","熊毛郡平生町"]
["35345","熊毛郡熊毛町"]
["35361","都濃郡鹿野町"]
["35381","佐波郡徳地町"]
["35401","吉敷郡秋穂町"]
["35402","吉敷郡小郡町"]
["35403","吉敷郡阿知須町"]
["35421","厚狭郡楠町"]
["35422","厚狭郡山陽町"]
["35441","豊浦郡菊川町"]
["35442","豊浦郡豊田町"]
["35443","豊浦郡豊浦町"]
["35444","豊浦郡豊北町"]
["35461","美祢郡美東町"]
["35462","美祢郡秋芳町"]
["35481","大津郡三隅町"]
["35482","大津郡日置町"]
["35483","大津郡油谷町"]
["35501","阿武郡川上村"]
["35502","阿武郡阿武町"]
["35503","阿武郡田万川町"]
["35504","阿武郡阿東町"]
["35505","阿武郡むつみ村"]
["35506","阿武郡須佐町"]
["35507","阿武郡旭村"]
["35508","阿武郡福栄村"]
["36201","徳島市"]
["36202","鳴門市"]
["36203","小松島市"]
["36204","阿南市"]
["36205","吉野川市"]
["36206","阿波市"]
["36207","美馬市"]
["36208","三好市"]
["36301","勝浦郡勝浦町"]
["36302","勝浦郡上勝町"]
["36321","名東郡佐那河内村"]
["36341","名西郡石井町"]
["36342","名西郡神山町"]
["36361","那賀郡那賀川町"]
["36362","那賀郡羽ノ浦町"]
["36363","那賀郡鷲敷町"]
["36364","那賀郡相生町"]
["36365","那賀郡上那賀町"]
["36366","那賀郡木沢村"]
["36367","那賀郡木頭村"]
["36368","那賀郡那賀町"]
["36381","海部郡由岐町"]
["36382","海部郡日和佐町"]
["36383","海部郡牟岐町"]
["36384","海部郡海南町"]
["36385","海部郡海部町"]
["36386","海部郡宍喰町"]
["36387","海部郡美波町"]
["36388","海部郡海陽町"]
["36401","板野郡松茂町"]
["36402","板野郡北島町"]
["36403","板野郡藍住町"]
["36404","板野郡板野町"]
["36405","板野郡上板町"]
["36406","板野郡吉野町"]
["36407","板野郡土成町"]
["36421","阿波郡市場町"]
["36422","阿波郡阿波町"]
["36441","麻植郡鴨島町"]
["36442","麻植郡川島町"]
["36443","麻植郡山川町"]
["36444","麻植郡美郷村"]
["36461","美馬郡脇町"]
["36462","美馬郡美馬町"]
["36463","美馬郡半田町"]
["36464","美馬郡貞光町"]
["36465","美馬郡一宇村"]
["36466","美馬郡穴吹町"]
["36467","美馬郡木屋平村"]
["36468","美馬郡つるぎ町"]
["36481","三好郡三野町"]
["36482","三好郡三好町"]
["36483","三好郡池田町"]
["36484","三好郡山城町"]
["36485","三好郡井川町"]
["36486","三好郡三加茂町"]
["36487","三好郡東祖谷山村"]
["36488","三好郡西祖谷山村"]
["36489","三好郡東みよし町"]
["37201","高松市"]
["37202","丸亀市"]
["37203","坂出市"]
["37204","善通寺市"]
["37205","観音寺市"]
["37206","さぬき市"]
["37207","東かがわ市"]
["37208","三豊市"]
["37299","高松市"]
["37301","大川郡引田町"]
["37302","大川郡白鳥町"]
["37303","大川郡大内町"]
["37304","大川郡津田町"]
["37305","大川郡大川町"]
["37306","大川郡志度町"]
["37307","大川郡寒川町"]
["37308","大川郡長尾町"]
["37321","小豆郡内海町"]
["37322","小豆郡土庄町"]
["37323","小豆郡池田町"]
["37324","小豆郡小豆島町"]
["37341","木田郡三木町"]
["37342","木田郡牟礼町"]
["37343","木田郡庵治町"]
["37361","香川郡塩江町"]
["37362","香川郡香川町"]
["37363","香川郡香南町"]
["37364","香川郡直島町"]
["37381","綾歌郡綾上町"]
["37382","綾歌郡綾南町"]
["37383","綾歌郡国分寺町"]
["37384","綾歌郡綾歌町"]
["37385","綾歌郡飯山町"]
["37386","綾歌郡宇多津町"]
["37387","綾歌郡綾川町"]
["37401","仲多度郡琴南町"]
["37402","仲多度郡満濃町"]
["37403","仲多度郡琴平町"]
["37404","仲多度郡多度津町"]
["37405","仲多度郡仲南町"]
["37406","仲多度郡まんのう町"]
["37421","三豊郡高瀬町"]
["37422","三豊郡山本町"]
["37423","三豊郡三野町"]
["37424","三豊郡大野原町"]
["37425","三豊郡豊中町"]
["37426","三豊郡詫間町"]
["37427","三豊郡仁尾町"]
["37428","三豊郡豊浜町"]
["37429","三豊郡財田町"]
["38201","松山市"]
["38202","今治市"]
["38203","宇和島市"]
["38204","八幡浜市"]
["38205","新居浜市"]
["38206","西条市"]
["38207","大洲市"]
["38208","川之江市"]
["38209","伊予三島市"]
["38210","伊予市"]
["38211","北条市"]
["38212","東予市"]
["38213","四国中央市"]
["38214","西予市"]
["38215","東温市"]
["38299","西条市"]
["38301","宇摩郡新宮村"]
["38302","宇摩郡土居町"]
["38303","宇摩郡別子山村"]
["38321","周桑郡小松町"]
["38323","周桑郡丹原町"]
["38341","越智郡朝倉村"]
["38342","越智郡玉川町"]
["38343","越智郡波方町"]
["38344","越智郡大西町"]
["38345","越智郡菊間町"]
["38346","越智郡吉海町"]
["38347","越智郡宮窪町"]
["38348","越智郡伯方町"]
["38349","越智郡魚島村"]
["38350","越智郡弓削町"]
["38351","越智郡生名村"]
["38352","越智郡岩城村"]
["38353","越智郡上浦町"]
["38354","越智郡大三島町"]
["38355","越智郡関前村"]
["38356","越智郡上島町"]
["38361","温泉郡重信町"]
["38362","温泉郡川内町"]
["38363","温泉郡中島町"]
["38381","上浮穴郡久万町"]
["38382","上浮穴郡面河村"]
["38383","上浮穴郡美川村"]
["38384","上浮穴郡柳谷村"]
["38385","上浮穴郡小田町"]
["38386","上浮穴郡久万高原町"]
["38401","伊予郡松前町"]
["38402","伊予郡砥部町"]
["38403","伊予郡広田村"]
["38404","伊予郡中山町"]
["38405","伊予郡双海町"]
["38421","喜多郡長浜町"]
["38422","喜多郡内子町"]
["38423","喜多郡五十崎町"]
["38424","喜多郡肱川町"]
["38425","喜多郡河辺村"]
["38441","西宇和郡保内町"]
["38442","西宇和郡伊方町"]
["38443","西宇和郡瀬戸町"]
["38444","西宇和郡三崎町"]
["38445","西宇和郡三瓶町"]
["38461","東宇和郡明浜町"]
["38462","東宇和郡宇和町"]
["38463","東宇和郡野村町"]
["38464","東宇和郡城川町"]
["38481","北宇和郡吉田町"]
["38482","北宇和郡三間町"]
["38483","北宇和郡広見町"]
["38484","北宇和郡松野町"]
["38485","北宇和郡日吉村"]
["38486","北宇和郡津島町"]
["38488","北宇和郡鬼北町"]
["38499","喜多郡内子町"]
["38501","南宇和郡内海村"]
["38502","南宇和郡御荘町"]
["38503","南宇和郡城辺町"]
["38504","南宇和郡一本松町"]
["38505","南宇和郡西海町"]
["38506","南宇和郡愛南町"]
["39201","高知市"]
["39202","室戸市"]
["39203","安芸市"]
["39204","南国市"]
["39205","土佐市"]
["39206","須崎市"]
["39207","中村市"]
["39208","宿毛市"]
["39209","土佐清水市"]
["39210","四万十市"]
["39211","香南市"]
["39212","香美市"]
["39301","安芸郡東洋町"]
["39302","安芸郡奈半利町"]
["39303","安芸郡田野町"]
["39304","安芸郡安田町"]
["39305","安芸郡北川村"]
["39306","安芸郡馬路村"]
["39307","安芸郡芸西村"]
["39321","香美郡赤岡町"]
["39322","香美郡香我美町"]
["39323","香美郡土佐山田町"]
["39324","香美郡野市町"]
["39325","香美郡夜須町"]
["39326","香美郡香北町"]
["39327","香美郡吉川村"]
["39328","香美郡物部村"]
["39341","長岡郡本山町"]
["39344","長岡郡大豊町"]
["39361","土佐郡鏡村"]
["39362","土佐郡土佐山村"]
["39363","土佐郡土佐町"]
["39364","土佐郡大川村"]
["39365","土佐郡本川村"]
["39381","吾川郡伊野町"]
["39382","吾川郡池川町"]
["39383","吾川郡春野町"]
["39384","吾川郡吾川村"]
["39385","吾川郡吾北村"]
["39386","吾川郡いの町"]
["39387","吾川郡仁淀川町"]
["39401","高岡郡中土佐町"]
["39402","高岡郡佐川町"]
["39403","高岡郡越知町"]
["39404","高岡郡窪川町"]
["39405","高岡郡檮原町"]
["39406","高岡郡大野見村"]
["39407","高岡郡東津野村"]
["39408","高岡郡葉山村"]
["39409","高岡郡仁淀村"]
["39410","高岡郡日高村"]
["39411","高岡郡津野町"]
["39412","高岡郡四万十町"]
["39421","幡多郡佐賀町"]
["39422","幡多郡大正町"]
["39423","幡多郡大方町"]
["39424","幡多郡大月町"]
["39425","幡多郡十和村"]
["39426","幡多郡西土佐村"]
["39427","幡多郡三原村"]
["39428","幡多郡黒潮町"]
["40101","北九州市門司区"]
["40103","北九州市若松区"]
["40105","北九州市戸畑区"]
["40106","北九州市小倉北区"]
["40107","北九州市小倉南区"]
["40108","北九州市八幡東区"]
["40109","北九州市八幡西区"]
["40130","福岡市"]
["40131","福岡市東区"]
["40132","福岡市博多区"]
["40133","福岡市中央区"]
["40134","福岡市南区"]
["40135","福岡市西区"]
["40136","福岡市城南区"]
["40137","福岡市早良区"]
["40202","大牟田市"]
["40203","久留米市"]
["40204","直方市"]
["40205","飯塚市"]
["40206","田川市"]
["40207","柳川市"]
["40208","山田市"]
["40209","甘木市"]
["40210","八女市"]
["40211","筑後市"]
["40212","大川市"]
["40213","行橋市"]
["40214","豊前市"]
["40215","中間市"]
["40216","小郡市"]
["40217","筑紫野市"]
["40218","春日市"]
["40219","大野城市"]
["40220","宗像市"]
["40221","太宰府市"]
["40222","前原市"]
["40223","古賀市"]
["40224","福津市"]
["40225","うきは市"]
["40226","宮若市"]
["40227","嘉麻市"]
["40228","朝倉市"]
["40229","みやま市"]
["40230","糸島市"]
["40231","那珂川市"]
["40305","筑紫郡那珂川町"]
["40341","粕屋郡宇美町"]
["40342","粕屋郡篠栗町"]
["40343","粕屋郡志免町"]
["40344","粕屋郡須恵町"]
["40345","粕屋郡新宮町"]
["40347","古賀市"]
["40348","粕屋郡久山町"]
["40349","粕屋郡粕屋町"]
["40362","宗像郡福間町"]
["40363","宗像郡津屋崎町"]
["40364","宗像郡玄海町"]
["40365","宗像郡大島村"]
["40381","遠賀郡芦屋町"]
["40382","遠賀郡水巻町"]
["40383","遠賀郡岡垣町"]
["40384","遠賀郡遠賀町"]
["40401","鞍手郡小竹町"]
["40402","鞍手郡鞍手町"]
["40403","鞍手郡宮田町"]
["40404","鞍手郡若宮町"]
["40421","嘉穂郡桂川町"]
["40422","嘉穂郡稲築町"]
["40423","嘉穂郡碓井町"]
["40424","嘉穂郡嘉穂町"]
["40425","嘉穂郡筑穂町"]
["40426","嘉穂郡穂波町"]
["40427","嘉穂郡庄内町"]
["40428","嘉穂郡頴田町"]
["40441","朝倉郡杷木町"]
["40442","朝倉郡朝倉町"]
["40443","朝倉郡三輪町"]
["40444","朝倉郡夜須町"]
["40445","朝倉郡小石原村"]
["40446","朝倉郡宝珠山村"]
["40447","朝倉郡筑前町"]
["40448","朝倉郡東峰村"]
["40461","糸島郡前原町"]
["40462","糸島郡二丈町"]
["40463","糸島郡志摩町"]
["40481","浮羽郡吉井町"]
["40482","浮羽郡田主丸町"]
["40483","浮羽郡浮羽町"]
["40501","三井郡北野町"]
["40503","三井郡大刀洗町"]
["40521","三潴郡城島町"]
["40522","三潴郡大木町"]
["40523","三潴郡三潴町"]
["40541","八女郡黒木町"]
["40542","八女郡上陽町"]
["40543","八女郡立花町"]
["40544","八女郡広川町"]
["40545","八女郡矢部村"]
["40546","八女郡星野村"]
["40561","山門郡瀬高町"]
["40562","山門郡大和町"]
["40563","山門郡三橋町"]
["40564","山門郡山川町"]
["40581","三池郡高田町"]
["40601","田川郡香春町"]
["40602","田川郡添田町"]
["40603","田川郡金田町"]
["40604","田川郡糸田町"]
["40605","田川郡川崎町"]
["40606","田川郡赤池町"]
["40607","田川郡方城町"]
["40608","田川郡大任町"]
["40609","田川郡赤村"]
["40610","田川郡福智町"]
["40621","京都郡苅田町"]
["40622","京都郡犀川町"]
["40623","京都郡勝山町"]
["40624","京都郡豊津町"]
["40625","京都郡みやこ町"]
["40641","築上郡椎田町"]
["40642","築上郡吉富町"]
["40643","築上郡築城町"]
["40644","築上郡新吉富村"]
["40645","築上郡大平村"]
["40646","築上郡上毛町"]
["40647","築上郡築上町"]
["41201","佐賀市"]
["41202","唐津市"]
["41203","鳥栖市"]
["41204","多久市"]
["41205","伊万里市"]
["41206","武雄市"]
["41207","鹿島市"]
["41208","小城市"]
["41209","嬉野市"]
["41210","神埼市"]
["41301","佐賀郡諸富町"]
["41302","佐賀郡川副町"]
["41303","佐賀郡東与賀町"]
["41304","佐賀郡久保田町"]
["41305","佐賀郡大和町"]
["41306","佐賀郡富士町"]
["41321","神埼郡神埼町"]
["41322","神埼郡千代田町"]
["41323","神埼郡三田川町"]
["41324","神埼郡東脊振村"]
["41325","神埼郡脊振村"]
["41326","神埼郡三瀬村"]
["41327","神埼郡吉野ヶ里町"]
["41341","三養基郡基山町"]
["41342","三養基郡中原町"]
["41343","三養基郡北茂安町"]
["41344","三養基郡三根町"]
["41345","三養基郡上峰町"]
["41346","三養基郡みやき町"]
["41361","小城郡小城町"]
["41362","小城郡三日月町"]
["41363","小城郡牛津町"]
["41364","小城郡芦刈町"]
["41381","東松浦郡浜玉町"]
["41382","東松浦郡七山村"]
["41383","東松浦郡厳木町"]
["41384","東松浦郡相知町"]
["41385","東松浦郡北波多村"]
["41386","東松浦郡肥前町"]
["41387","東松浦郡玄海町"]
["41388","東松浦郡鎮西町"]
["41389","東松浦郡呼子町"]
["41401","西松浦郡有田町"]
["41402","西松浦郡西有田町"]
["41421","杵島郡山内町"]
["41422","杵島郡北方町"]
["41423","杵島郡大町町"]
["41424","杵島郡江北町"]
["41425","杵島郡白石町"]
["41426","杵島郡福富町"]
["41427","杵島郡有明町"]
["41441","藤津郡太良町"]
["41442","藤津郡塩田町"]
["41443","藤津郡嬉野町"]
["42201","長崎市"]
["42202","佐世保市"]
["42203","島原市"]
["42204","諫早市"]
["42205","大村市"]
["42206","福江市"]
["42207","平戸市"]
["42208","松浦市"]
["42209","対馬市"]
["42210","壱岐市"]
["42211","五島市"]
["42212","西海市"]
["42213","雲仙市"]
["42214","南島原市"]
["42298","諫早市"]
["42299","長崎市"]
["42301","西彼杵郡香焼町"]
["42302","西彼杵郡伊王島町"]
["42303","西彼杵郡高島町"]
["42304","西彼杵郡野母崎町"]
["42305","西彼杵郡三和町"]
["42306","西彼杵郡多良見町"]
["42307","西彼杵郡長与町"]
["42308","西彼杵郡時津町"]
["42309","西彼杵郡琴海町"]
["42310","西彼杵郡西彼町"]
["42311","西彼杵郡西海町"]
["42312","西彼杵郡大島町"]
["42313","西彼杵郡崎戸町"]
["42314","西彼杵郡大瀬戸町"]
["42315","西彼杵郡外海町"]
["42321","東彼杵郡東彼杵町"]
["42322","東彼杵郡川棚町"]
["42323","東彼杵郡波佐見町"]
["42341","北高来郡森山町"]
["42342","北高来郡飯盛町"]
["42343","北高来郡高来町"]
["42344","北高来郡小長井町"]
["42361","南高来郡有明町"]
["42362","南高来郡国見町"]
["42363","南高来郡瑞穂町"]
["42364","南高来郡吾妻町"]
["42365","南高来郡愛野町"]
["42366","南高来郡千々石町"]
["42367","南高来郡小浜町"]
["42368","南高来郡南串山町"]
["42369","南高来郡加津佐町"]
["42370","南高来郡口之津町"]
["42371","南高来郡南有馬町"]
["42372","南高来郡北有馬町"]
["42373","南高来郡西有家町"]
["42374","南高来郡有家町"]
["42375","南高来郡布津町"]
["42376","南高来郡深江町"]
["42381","北松浦郡大島村"]
["42382","北松浦郡生月町"]
["42383","北松浦郡小値賀町"]
["42384","北松浦郡宇久町"]
["42385","北松浦郡田平町"]
["42386","北松浦郡福島町"]
["42387","北松浦郡鷹島町"]
["42388","北松浦郡江迎町"]
["42389","北松浦郡鹿町町"]
["42390","北松浦郡小佐々町"]
["42391","北松浦郡佐々町"]
["42392","北松浦郡吉井町"]
["42393","北松浦郡世知原町"]
["42401","南松浦郡富江町"]
["42402","南松浦郡玉之浦町"]
["42403","南松浦郡三井楽町"]
["42404","南松浦郡岐宿町"]
["42405","南松浦郡奈留町"]
["42406","南松浦郡若松町"]
["42407","南松浦郡上五島町"]
["42408","南松浦郡新魚目町"]
["42409","南松浦郡有川町"]
["42410","南松浦郡奈良尾町"]
["42411","南松浦郡新上五島町"]
["42421","壱岐郡郷ノ浦町"]
["42422","壱岐郡勝本町"]
["42423","壱岐郡芦辺町"]
["42424","壱岐郡石田町"]
["42441","下県郡厳原町"]
["42442","下県郡美津島町"]
["42443","下県郡豊玉町"]
["42444","上県郡峰町"]
["42445","上県郡上県町"]
["42446","上県郡上対馬町"]
["43101","熊本市中央区"]
["43102","熊本市東区"]
["43103","熊本市西区"]
["43104","熊本市南区"]
["43105","熊本市北区"]
["43201","熊本市"]
["43202","八代市"]
["43203","人吉市"]
["43204","荒尾市"]
["43205","水俣市"]
["43206","玉名市"]
["43207","本渡市"]
["43208","山鹿市"]
["43209","牛深市"]
["43210","菊池市"]
["43211","宇土市"]
["43212","上天草市"]
["43213","宇城市"]
["43214","阿蘇市"]
["43215","天草市"]
["43216","合志市"]
["43301","飽託郡北部町"]
["43302","飽託郡河内町"]
["43303","飽託郡飽田町"]
["43304","飽託郡天明町"]
["43321","宇土郡三角町"]
["43322","宇土郡不知火町"]
["43341","下益城郡城南町"]
["43342","下益城郡富合町"]
["43343","下益城郡松橋町"]
["43344","下益城郡小川町"]
["43345","下益城郡豊野町"]
["43346","下益城郡中央町"]
["43347","下益城郡砥用町"]
["43348","下益城郡美里町"]
["43361","玉名郡岱明町"]
["43362","玉名郡横島町"]
["43363","玉名郡天水町"]
["43364","玉名郡玉東町"]
["43365","玉名郡菊水町"]
["43366","玉名郡三加和町"]
["43367","玉名郡南関町"]
["43368","玉名郡長洲町"]
["43369","玉名郡和水町"]
["43381","鹿本郡鹿北町"]
["43382","鹿本郡菊鹿町"]
["43383","鹿本郡鹿本町"]
["43384","鹿本郡鹿央町"]
["43385","鹿本郡植木町"]
["43401","菊池郡七城町"]
["43402","菊池郡旭志村"]
["43403","菊池郡大津町"]
["43404","菊池郡菊陽町"]
["43405","菊池郡合志町"]
["43406","菊池郡泗水町"]
["43407","菊池郡西合志町"]
["43421","阿蘇郡一の宮町"]
["43422","阿蘇郡阿蘇町"]
["43423","阿蘇郡南小国町"]
["43424","阿蘇郡小国町"]
["43425","阿蘇郡産山村"]
["43426","阿蘇郡波野村"]
["43427","阿蘇郡蘇陽町"]
["43428","阿蘇郡高森町"]
["43429","阿蘇郡白水村"]
["43430","阿蘇郡久木野村"]
["43431","阿蘇郡長陽村"]
["43432","阿蘇郡西原村"]
["43433","阿蘇郡南阿蘇村"]
["43441","上益城郡御船町"]
["43442","上益城郡嘉島町"]
["43443","上益城郡益城町"]
["43444","上益城郡甲佐町"]
["43445","上益城郡矢部町"]
["43446","上益城郡清和村"]
["43447","上益城郡山都町"]
["43461","八代郡坂本村"]
["43462","八代郡千丁町"]
["43463","八代郡鏡町"]
["43464","八代郡竜北町"]
["43465","八代郡宮原町"]
["43466","八代郡東陽村"]
["43467","八代郡泉村"]
["43468","八代郡氷川町"]
["43481","芦北郡田浦町"]
["43482","芦北郡芦北町"]
["43484","芦北郡津奈木町"]
["43501","球磨郡錦町"]
["43502","球磨郡上村"]
["43503","球磨郡免田町"]
["43504","球磨郡岡原村"]
["43505","球磨郡多良木町"]
["43506","球磨郡湯前町"]
["43507","球磨郡水上村"]
["43508","球磨郡須恵村"]
["43509","球磨郡深田村"]
["43510","球磨郡相良村"]
["43511","球磨郡五木村"]
["43512","球磨郡山江村"]
["43513","球磨郡球磨村"]
["43514","球磨郡あさぎり町"]
["43521","天草郡大矢野町"]
["43522","天草郡松島町"]
["43523","天草郡有明町"]
["43524","天草郡姫戸町"]
["43525","天草郡竜ヶ岳町"]
["43526","天草郡御所浦町"]
["43527","天草郡倉岳町"]
["43528","天草郡栖本町"]
["43529","天草郡新和町"]
["43530","天草郡五和町"]
["43531","天草郡苓北町"]
["43532","天草郡天草町"]
["43533","天草郡河浦町"]
["44201","大分市"]
["44202","別府市"]
["44203","中津市"]
["44204","日田市"]
["44205","佐伯市"]
["44206","臼杵市"]
["44207","津久見市"]
["44208","竹田市"]
["44209","豊後高田市"]
["44210","杵築市"]
["44211","宇佐市"]
["44212","豊後大野市"]
["44213","由布市"]
["44214","国東市"]
["44301","西国東郡大田村"]
["44302","西国東郡真玉町"]
["44303","西国東郡香々地町"]
["44321","東国東郡国見町"]
["44322","東国東郡姫島村"]
["44323","東国東郡国東町"]
["44324","東国東郡武蔵町"]
["44325","東国東郡安岐町"]
["44341","速見郡日出町"]
["44342","速見郡山香町"]
["44361","大分郡野津原町"]
["44362","大分郡挾間町"]
["44363","大分郡庄内町"]
["44364","大分郡湯布院町"]
["44381","北海部郡佐賀関町"]
["44401","南海部郡上浦町"]
["44402","南海部郡弥生町"]
["44403","南海部郡本匠村"]
["44404","南海部郡宇目町"]
["44405","南海部郡直川村"]
["44406","南海部郡鶴見町"]
["44407","南海部郡米水津村"]
["44408","南海部郡蒲江町"]
["44421","大野郡野津町"]
["44422","大野郡三重町"]
["44423","大野郡清川村"]
["44424","大野郡緒方町"]
["44425","大野郡朝地町"]
["44426","大野郡大野町"]
["44427","大野郡千歳村"]
["44428","大野郡犬飼町"]
["44441","直入郡荻町"]
["44442","直入郡久住町"]
["44443","直入郡直入町"]
["44461","玖珠郡九重町"]
["44462","玖珠郡玖珠町"]
["44481","日田郡前津江村"]
["44482","日田郡中津江村"]
["44483","日田郡上津江村"]
["44484","日田郡大山町"]
["44485","日田郡天瀬町"]
["44501","下毛郡三光村"]
["44502","下毛郡本耶馬溪町"]
["44503","下毛郡耶馬溪町"]
["44504","下毛郡山国町"]
["44521","宇佐郡院内町"]
["44522","宇佐郡安心院町"]
["45201","宮崎市"]
["45202","都城市"]
["45203","延岡市"]
["45204","日南市"]
["45205","小林市"]
["45206","日向市"]
["45207","串間市"]
["45208","西都市"]
["45209","えびの市"]
["45301","宮崎郡清武町"]
["45302","宮崎郡田野町"]
["45303","宮崎郡佐土原町"]
["45321","南那珂郡北郷町"]
["45322","南那珂郡南郷町"]
["45341","北諸県郡三股町"]
["45342","北諸県郡山之口町"]
["45343","北諸県郡高城町"]
["45344","北諸県郡山田町"]
["45345","北諸県郡高崎町"]
["45361","西諸県郡高原町"]
["45362","西諸県郡野尻町"]
["45363","西諸県郡須木村"]
["45381","東諸県郡高岡町"]
["45382","東諸県郡国富町"]
["45383","東諸県郡綾町"]
["45401","児湯郡高鍋町"]
["45402","児湯郡新富町"]
["45403","児湯郡西米良村"]
["45404","児湯郡木城町"]
["45405","児湯郡川南町"]
["45406","児湯郡都農町"]
["45421","東臼杵郡門川町"]
["45422","東臼杵郡東郷町"]
["45423","東臼杵郡南郷村"]
["45424","東臼杵郡西郷村"]
["45425","東臼杵郡北郷村"]
["45426","東臼杵郡北方町"]
["45427","東臼杵郡北川町"]
["45428","東臼杵郡北浦町"]
["45429","東臼杵郡諸塚村"]
["45430","東臼杵郡椎葉村"]
["45431","東臼杵郡美郷町"]
["45439","東臼杵郡椎葉村"]
["45441","西臼杵郡高千穂町"]
["45442","西臼杵郡日之影町"]
["45443","西臼杵郡五ヶ瀬町"]
["46201","鹿児島市"]
["46202","川内市"]
["46203","鹿屋市"]
["46204","枕崎市"]
["46205","串木野市"]
["46206","阿久根市"]
["46207","名瀬市"]
["46208","出水市"]
["46209","大口市"]
["46210","指宿市"]
["46211","加世田市"]
["46212","国分市"]
["46213","西之表市"]
["46214","垂水市"]
["46215","薩摩川内市"]
["46216","日置市"]
["46217","曽於市"]
["46218","霧島市"]
["46219","いちき串木野市"]
["46220","南さつま市"]
["46221","志布志市"]
["46222","奄美市"]
["46223","南九州市"]
["46224","伊佐市"]
["46225","姶良市"]
["46293","南九州市"]
["46294","鹿屋市"]
["46295","霧島市"]
["46296","南さつま市"]
["46297","鹿児島市"]
["46298","鹿児島市"]
["46299","薩摩川内市"]
["46301","鹿児島郡吉田町"]
["46302","鹿児島郡桜島町"]
["46303","鹿児島郡三島村"]
["46304","鹿児島郡十島村"]
["46321","揖宿郡喜入町"]
["46322","揖宿郡山川町"]
["46323","揖宿郡頴娃町"]
["46324","揖宿郡開聞町"]
["46341","川辺郡笠沙町"]
["46342","川辺郡大浦町"]
["46343","川辺郡坊津町"]
["46344","川辺郡知覧町"]
["46345","川辺郡川辺町"]
["46361","日置郡市来町"]
["46362","日置郡東市来町"]
["46363","日置郡伊集院町"]
["46364","日置郡松元町"]
["46365","日置郡郡山町"]
["46366","日置郡日吉町"]
["46367","日置郡吹上町"]
["46368","日置郡金峰町"]
["46381","薩摩郡樋脇町"]
["46382","薩摩郡入来町"]
["46383","薩摩郡東郷町"]
["46384","薩摩郡宮之城町"]
["46385","薩摩郡鶴田町"]
["46386","薩摩郡薩摩町"]
["46387","薩摩郡祁答院町"]
["46388","薩摩郡里村"]
["46389","薩摩郡上甑村"]
["46390","薩摩郡下甑村"]
["46391","薩摩郡鹿島村"]
["46392","薩摩郡さつま町"]
["46401","出水郡野田町"]
["46402","出水郡高尾野町"]
["46403","出水郡東町"]
["46404","出水郡長島町"]
["46421","伊佐郡菱刈町"]
["46441","姶良郡加治木町"]
["46442","姶良郡姶良町"]
["46443","姶良郡蒲生町"]
["46444","姶良郡溝辺町"]
["46445","姶良郡横川町"]
["46446","姶良郡栗野町"]
["46447","姶良郡吉松町"]
["46448","姶良郡牧園町"]
["46449","姶良郡霧島町"]
["46450","姶良郡隼人町"]
["46451","姶良郡福山町"]
["46452","姶良郡湧水町"]
["46461","曽於郡大隅町"]
["46462","曽於郡輝北町"]
["46463","曽於郡財部町"]
["46464","曽於郡末吉町"]
["46465","曽於郡松山町"]
["46466","曽於郡志布志町"]
["46467","曽於郡有明町"]
["46468","曽於郡大崎町"]
["46481","肝属郡串良町"]
["46482","肝属郡東串良町"]
["46483","肝属郡内之浦町"]
["46484","肝属郡高山町"]
["46485","肝属郡吾平町"]
["46486","肝属郡大根占町"]
["46487","肝属郡根占町"]
["46488","肝属郡田代町"]
["46489","肝属郡佐多町"]
["46490","肝属郡錦江町"]
["46491","肝属郡南大隅町"]
["46492","肝属郡肝付町"]
["46501","熊毛郡中種子町"]
["46502","熊毛郡南種子町"]
["46503","熊毛郡上屋久町"]
["46504","熊毛郡屋久町"]
["46505","熊毛郡屋久島町"]
["46523","大島郡大和村"]
["46524","大島郡宇検村"]
["46525","大島郡瀬戸内町"]
["46526","大島郡住用村"]
["46527","大島郡竜郷町"]
["46528","大島郡笠利町"]
["46529","大島郡喜界町"]
["46530","大島郡徳之島町"]
["46531","大島郡天城町"]
["46532","大島郡伊仙町"]
["46533","大島郡和泊町"]
["46534","大島郡知名町"]
["46535","大島郡与論町"]
["47201","那覇市"]
["47202","石川市"]
["47203","具志川市"]
["47205","宜野湾市"]
["47206","平良市"]
["47207","石垣市"]
["47208","浦添市"]
["47209","名護市"]
["47210","糸満市"]
["47211","沖縄市"]
["47212","豊見城市"]
["47213","うるま市"]
["47214","宮古島市"]
["47215","南城市"]
["47301","国頭郡国頭村"]
["47302","国頭郡大宜味村"]
["47303","国頭郡東村"]
["47306","国頭郡今帰仁村"]
["47308","国頭郡本部町"]
["47311","国頭郡恩納村"]
["47313","国頭郡宜野座村"]
["47314","国頭郡金武町"]
["47315","国頭郡伊江村"]
["47322","中頭郡与那城町"]
["47323","中頭郡勝連町"]
["47324","中頭郡読谷村"]
["47325","中頭郡嘉手納町"]
["47326","中頭郡北谷町"]
["47327","中頭郡北中城村"]
["47328","中頭郡中城村"]
["47329","中頭郡西原町"]
["47341","島尻郡豊見城村"]
["47343","島尻郡東風平町"]
["47344","島尻郡具志頭村"]
["47345","島尻郡玉城村"]
["47346","島尻郡知念村"]
["47347","島尻郡佐敷町"]
["47348","島尻郡与那原町"]
["47349","島尻郡大里村"]
["47350","島尻郡南風原町"]
["47351","島尻郡仲里村"]
["47352","島尻郡具志川村"]
["47353","島尻郡渡嘉敷村"]
["47354","島尻郡座間味村"]
["47355","島尻郡粟国村"]
["47356","島尻郡渡名喜村"]
["47357","島尻郡南大東村"]
["47358","島尻郡北大東村"]
["47359","島尻郡伊平屋村"]
["47360","島尻郡伊是名村"]
["47361","島尻郡久米島町"]
["47362","島尻郡八重瀬町"]
["47371","宮古郡城辺町"]
["47372","宮古郡下地町"]
["47373","宮古郡上野村"]
["47374","宮古郡伊良部町"]
["47375","宮古郡多良間村"]
["47381","八重山郡竹富町"]
["47382","八重山郡与那国町"]

{"sheet":"入力チェック","index":3,"n_rows":359,"n_cols":11,"rows_kept":359,"cut":false,"hidden":true,"merged":[]}
["入力チェック名称","セル位置","入力必須","チェック種別","入力文字数","全桁入力","入力許可数字","入力許可文字列","予備１","予備２","チェック許可"]
["０１ 法人・個人の区分","K7","○","N,N",1,"○","0,1",null,null,null,"YES"]
["０２ 法人番号","K8","×","NN",13,"○",null,null,null,null,"YES"]
["０３ 商号又は名称(フリガナ)","M10","○","ZK",100,"×",null,null,null,null,"YES"]
["０４ 商号又は名称（漢字等）","M11","○","ZN",100,"×",null,null,null,null,"YES"]
["０５ 代表者役職","M13","○","ZN",40,"×",null,null,null,null,"YES"]
["０６ 代表者氏名（漢字等）","M14","○","ZN",60,"×",null,null,null,null,"YES"]
["０７ 郵便番号（本店）左","M16","○","NN",3,"○",null,null,null,null,"YES"]
["０７ 郵便番号（本店）右","P16","○","NN",4,"○",null,null,null,null,"YES"]
["０８ 本店所在地市区町村コード(本店)","Q18","○","NN",5,"○",null,null,null,null,"YES"]
["０９ 本店所在地（漢字等）上","Q19","○","ZN",70,"×",null,null,null,null,"YES"]
["０９ 本店所在地（漢字等）下","Q20","×","ZN",40,"×",null,null,null,null,"YES"]
["１０　電話番号（左）","M22","○","NN",6,"×",null,null,null,null,"YES"]
["１０　電話番号（中）","R22","○","NN",4,"×",null,null,null,null,"YES"]
["１０　電話番号（右）","V22","○","NN",4,"×",null,null,null,null,"YES"]
["１１ ＦＡＸ番号（左）","M23","×","NN",6,"×",null,null,null,null,"YES"]
["１１ ＦＡＸ番号（中）","R23","×","NN",4,"×",null,null,null,null,"YES"]
["１１ ＦＡＸ番号（右）","V23","×","NN",4,"×",null,null,null,null,"YES"]
["１２ Ｅメールアドレス","M25","○","E",45,"×",null,null,null,null,"YES"]
["１３ Ｅメールアドレス区分","M26","○","N,N",1,"○","0,1",null,null,null,"YES"]
["１４ ＴＥＣＲＩＳ業者登録番号","N28","×","NC",10,"×",null,null,null,null,"YES"]
["１５ ＩＳＯ９００１取得有無","M32","○","N,N",1,"○","0,1",null,null,null,"YES"]
["１６ ＩＳＯ９００１取得年月日（元号）","M33","×","N,N",1,"○","3,4,5",null,null,null,"YES"]
["１６ ＩＳＯ９００１取得年月日（年）","N33","×","N-N",2,"×","1,64",null,null,null,"YES"]
["１６ ＩＳＯ９００１取得年月日（月）","Q33","×","N-N",2,"×","1,12",null,null,null,"YES"]
["１６ ＩＳＯ９００１取得年月日（日）","T33","×","N-N",2,"×","1,31",null,null,null,"YES"]
["ＸＸ ＩＳＯ９００２取得有無","M34","○","N,N",1,"○","0,1",null,null,null,"NO"]
["ＸＸ ＩＳＯ９００２取得年月日（元号）","M35","×","N,N",1,"○","3,4",null,null,null,"NO"]
["ＸＸ ＩＳＯ９００２取得年月日（年）","N35","×","N-N",2,"×","1,64",null,null,null,"NO"]
["ＸＸ ＩＳＯ９００２取得年月日（月）","Q35","×","N-N",2,"×","1,12",null,null,null,"NO"]
["ＸＸ ＩＳＯ９００２取得年月日（日）","T35","×","N-N",2,"×","1,31",null,null,null,"NO"]
["ＸＸ ＩＳＯ１４００１取得有無","M36","○","N,N",1,"○","0,1",null,null,null,"NO"]
["ＸＸ ＩＳＯ１４００１取得年月日（元号）","M37","×","N,N",1,"○","3,4",null,null,null,"NO"]
["ＸＸ ＩＳＯ１４００１取得年月日（年）","N37","×","N-N",2,"×","1,64",null,null,null,"NO"]
["ＸＸ ＩＳＯ１４００１取得年月日（月）","Q37","×","N-N",2,"×","1,12",null,null,null,"NO"]
["ＸＸ ＩＳＯ１４００１取得年月日（日）","T37","×","N-N",2,"×","1,31",null,null,null,"NO"]
["１７ 継続学習ＣＰＤ学習単位数・認定時間数　測量ＣＰＤ","S40","×","NN",3,"×",null,null,null,null,"YES"]
["１７ 継続学習ＣＰＤ学習単位数・認定時間数　建築ＣＰＤ","X40","×","NN",3,"×",null,null,null,null,"YES"]
["１７ 継続学習ＣＰＤ学習単位数・認定時間数　建設系ＣＰＤ","AC40","×","NN",3,"×",null,null,null,null,"YES"]
["ＸＸ 地域防災活動への貢献認定有無","O43","○","N,N",1,"○","0,1",null,null,null,"NO"]
["１８ 社会資本維持管理活動への貢献認定有無","R46","○","N,N",1,"○","0,1",null,null,null,"YES"]
["ＸＸ 不当要求防止責任者の選任の届出の有無","R49","○","N,N",1,"○","0,1",null,null,null,"NO"]
["１９ 県内営業所の有無","K73","○","N,N",1,"○","0,1",null,null,null,"YES"]
["２０ 消防団協力事業所の認定有無","P75","○","N,N",1,"○","0,1",null,null,null,"YES"]
["２１ 協力雇用主の登録または暴力団離脱者社会復帰支援事業協力事業所の登録有無","AD78","○","N,N",1,"○","0,1",null,null,null,"YES"]
["２２ 障害者雇用の有無","L81","○","N,N",1,"○","0,1",null,null,null,"YES"]
["２３ 広島県仕事と家庭の両立支援企業の登録有無","S84","○","N,N",1,"○","0,1",null,null,null,"YES"]
["ＸＸ 広島県働き方改革実践企業認定制度の登録有無","T87","×","N,N",1,"×","0,1",null,null,null,"NO"]
["２４ 申請事務担当者　部署名","J91","○","ZN",60,"×",null,null,null,null,"YES"]
["２４ 申請事務担当者　担当者氏名","J92","○","ZN",60,"×",null,null,null,null,"YES"]
["２４ 申請事務担当者　電話番号（左）","J93","○","NN",6,"×",null,null,null,null,"YES"]
["２４ 申請事務担当者　電話番号（中）","O93","○","NN",4,"×",null,null,null,null,"YES"]
["２４ 申請事務担当者　電話番号（右）","S93","○","NN",4,"×",null,null,null,null,"YES"]
["２４ 申請事務担当者　ＦＡＸ番号（左）","J94","×","NN",6,"×",null,null,null,null,"YES"]
["２４ 申請事務担当者　ＦＡＸ番号（中）","O94","×","NN",4,"×",null,null,null,null,"YES"]
["２４ 申請事務担当者　ＦＡＸ番号（右）","S94","×","NN",5,"×",null,null,null,null,"YES"]
["２４ 申請事務担当者　Ｅメールアドレス","J95","○","E",45,"×",null,null,null,null,"YES"]
["２５ 測量業者　登録の有無","J100","×","ZS",2,"○",null,"○",null,null,"YES"]
["２５ 建築士事務所　登録の有無","J101","×","ZS",2,"○",null,"○",null,null,"YES"]
["２５ 地質調査業者　登録の有無","J102","×","ZS",2,"○",null,"○",null,null,"YES"]
["２５ 補償コンサルタント　登録の有無","J103","×","ZS",2,"○",null,"○",null,null,"YES"]
["２５ 建設コンサルタント　登録の有無","J104","×","ZS",2,"○",null,"○",null,null,"YES"]
["２５ 不動産鑑定業者　登録の有無","J105","×","ZS",2,"○",null,"○",null,null,"YES"]
["２５ 土地家屋調査士　登録の有無","J106","×","ZS",2,"○",null,"○",null,null,"YES"]
["２５ 司法書士　登録の有無","J107","×","ZS",2,"○",null,"○",null,null,"YES"]
["２５ 計量証明事業者　登録の有無","J108","×","ZS",2,"○",null,"○",null,null,"YES"]
["２５ 測量業者　登録番号","O100","×","ZN",16,"×",null,null,null,null,"YES"]
["２５ 建築士事務所　登録番号","O101","×","ZN",16,"×",null,null,null,null,"YES"]
["２５ 地質調査業者　登録番号","O102","×","ZN",16,"×",null,null,null,null,"YES"]
["２５ 補償コンサルタント　登録番号","O103","×","ZN",16,"×",null,null,null,null,"YES"]
["２５ 建設コンサルタント　登録番号","O104","×","ZN",16,"×",null,null,null,null,"YES"]
["２５ 不動産鑑定業者　登録番号","O105","×","ZN",16,"×",null,null,null,null,"YES"]
["２５ 土地家屋調査士　登録番号","O106","×","ZN",16,"×",null,null,null,null,"YES"]
["２５ 司法書士　登録番号","O107","×","ZN",16,"×",null,null,null,null,"YES"]
["２５ 計量証明事業者　登録番号","O108","×","ZN",16,"×",null,null,null,null,"YES"]
["２５ 測量業者　登録年月日（元号）","X100","×","N,N",1,"○","1,2,3,4,5",null,null,null,"YES"]
["２５ 測量業者　登録年月日（年）","Y100","×","N-N",2,"×","1,64",null,null,null,"YES"]
["２５ 測量業者　登録年月日（月）","AB100","×","N-N",2,"×","1,12",null,null,null,"YES"]
["２５ 測量業者　登録年月日（日）","AE100","×","N-N",2,"×","1,31",null,null,null,"YES"]
["２５ 建築士事務所　登録年月日（元号）","X101","×","N,N",1,"○","1,2,3,4,5",null,null,null,"YES"]
["２５ 建築士事務所　登録年月日（年）","Y101","×","N-N",2,"×","1,64",null,null,null,"YES"]
["２５ 建築士事務所　登録年月日（月）","AB101","×","N-N",2,"×","1,12",null,null,null,"YES"]
["２５ 建築士事務所　登録年月日（日）","AE101","×","N-N",2,"×","1,31",null,null,null,"YES"]
["２５ 地質調査業者　登録年月日（元号）","X102","×","N,N",1,"○","1,2,3,4,5",null,null,null,"YES"]
["２５ 地質調査業者　登録年月日（年）","Y102","×","N-N",2,"×","1,64",null,null,null,"YES"]
["２５ 地質調査業者　登録年月日（月）","AB102","×","N-N",2,"×","1,12",null,null,null,"YES"]
["２５ 地質調査業者　登録年月日（日）","AE102","×","N-N",2,"×","1,31",null,null,null,"YES"]
["２５ 補償コンサルタント　登録年月日（元号）","X103","×","N,N",1,"○","1,2,3,4,5",null,null,null,"YES"]
["２５ 補償コンサルタント　登録年月日（年）","Y103","×","N-N",2,"×","1,64",null,null,null,"YES"]
["２５ 補償コンサルタント　登録年月日（月）","AB103","×","N-N",2,"×","1,12",null,null,null,"YES"]
["２５ 補償コンサルタント　登録年月日（日）","AE103","×","N-N",2,"×","1,31",null,null,null,"YES"]
["２５ 建設コンサルタント　登録年月日（元号）","X104","×","N,N",1,"○","1,2,3,4,5",null,null,null,"YES"]
["２５ 建設コンサルタント　登録年月日（年）","Y104","×","N-N",2,"×","1,64",null,null,null,"YES"]
["２５ 建設コンサルタント　登録年月日（月）","AB104","×","N-N",2,"×","1,12",null,null,null,"YES"]
["２５ 建設コンサルタント　登録年月日（日）","AE104","×","N-N",2,"×","1,31",null,null,null,"YES"]
["２５ 不動産鑑定業者　登録年月日（元号）","X105","×","N,N",1,"○","1,2,3,4,5",null,null,null,"YES"]
["２５ 不動産鑑定業者　登録年月日（年）","Y105","×","N-N",2,"×","1,64",null,null,null,"YES"]
["２５ 不動産鑑定業者　登録年月日（月）","AB105","×","N-N",2,"×","1,12",null,null,null,"YES"]
["２５ 不動産鑑定業者　登録年月日（日）","AE105","×","N-N",2,"×","1,31",null,null,null,"YES"]
["２５ 土地家屋調査士　登録年月日（元号）","X106","×","N,N",1,"○","1,2,3,4,5",null,null,null,"YES"]
["２５ 土地家屋調査士　登録年月日（年）","Y106","×","N-N",2,"×","1,64",null,null,null,"YES"]
["２５ 土地家屋調査士　登録年月日（月）","AB106","×","N-N",2,"×","1,12",null,null,null,"YES"]
["２５ 土地家屋調査士　登録年月日（日）","AE106","×","N-N",2,"×","1,31",null,null,null,"YES"]
["２５ 司法書士　登録年月日（元号）","X107","×","N,N",1,"○","1,2,3,4,5",null,null,null,"YES"]
["２５ 司法書士　登録年月日（年）","Y107","×","N-N",2,"×","1,64",null,null,null,"YES"]
["２５ 司法書士　登録年月日（月）","AB107","×","N-N",2,"×","1,12",null,null,null,"YES"]
["２５ 司法書士　登録年月日（日）","AE107","×","N-N",2,"×","1,31",null,null,null,"YES"]
["２５ 計量証明事業者　登録年月日（元号）","X108","×","N,N",1,"○","1,2,3,4,5",null,null,null,"YES"]
["２５ 計量証明事業者　登録年月日（年）","Y108","×","N-N",2,"×","1,64",null,null,null,"YES"]
["２５ 計量証明事業者　登録年月日（月）","AB108","×","N-N",2,"×","1,12",null,null,null,"YES"]
["２５ 計量証明事業者　登録年月日（日）","AE108","×","N-N",2,"×","1,31",null,null,null,"YES"]
["２６ 土地調査　登録の有無","M117","×","ZS",2,"○",null,"○",null,null,"YES"]
["２６ 土地評価　登録の有無","N117","×","ZS",2,"○",null,"○",null,null,"YES"]
["２６ 物件　登録の有無","O117","×","ZS",2,"○",null,"○",null,null,"YES"]
["２６ 機械工作物　登録の有無","P117","×","ZS",2,"○",null,"○",null,null,"YES"]
["２６ 営業・特殊補償　登録の有無","Q117","×","ZS",2,"○",null,"○",null,null,"YES"]
["２６ 事業損失　登録の有無","R117","×","ZS",2,"○",null,"○",null,null,"YES"]
["２６ 補償関連　登録の有無","S117","×","ZS",2,"○",null,"○",null,null,"YES"]
["２６ 総合補償　登録の有無","T117","×","ZS",2,"○",null,"○",null,null,"YES"]
["２７ 河川・砂防及び海岸　登録の有無","M133","×","ZS",2,"○",null,"○",null,null,"YES"]
["２７ 港湾・空港　登録の有無","N133","×","ZS",2,"○",null,"○",null,null,"YES"]
["２７ 電力土木　登録の有無","O133","×","ZS",2,"○",null,"○",null,null,"YES"]
["２７ 道路　登録の有無","P133","×","ZS",2,"○",null,"○",null,null,"YES"]
["２７ 鉄道　登録の有無","Q133","×","ZS",2,"○",null,"○",null,null,"YES"]
["２７ 上下水道及び工業用水道　登録の有無","R133","×","ZS",2,"○",null,"○",null,null,"YES"]
["２７ 下水道　登録の有無","S133","×","ZS",2,"○",null,"○",null,null,"YES"]
["２７ 農業土木　登録の有無","T133","×","ZS",2,"○",null,"○",null,null,"YES"]
["２７ 森林土木　登録の有無","U133","×","ZS",2,"○",null,"○",null,null,"YES"]
["２７ 水産土木　登録の有無","V133","×","ZS",2,"○",null,"○",null,null,"YES"]
["２７ 廃棄物　登録の有無","W133","×","ZS",2,"○",null,"○",null,null,"YES"]
["２７ 造園　登録の有無","X133","×","ZS",2,"○",null,"○",null,null,"YES"]
["２７ 都市計画及び地方計画　登録の有無","Y133","×","ZS",2,"○",null,"○",null,null,"YES"]
["２７ 地質　登録の有無","Z133","×","ZS",2,"○",null,"○",null,null,"YES"]
["２７ 土質及び基礎　登録の有無","AA133","×","ZS",2,"○",null,"○",null,null,"YES"]
["２７ 鋼構造及びコンクリート　登録の有無","AB133","×","ZS",2,"○",null,"○",null,null,"YES"]
["２７ トンネル　登録の有無","AC133","×","ZS",2,"○",null,"○",null,null,"YES"]
["２７ 施工計画・施工設備及び積算　登録の有無","AD133","×","ZS",2,"○",null,"○",null,null,"YES"]
["２７ 建設環境　登録の有無","AE133","×","ZS",2,"○",null,"○",null,null,"YES"]
["２７ 機械　登録の有無","AF133","×","ZS",2,"○",null,"○",null,null,"YES"]
["２７ 電気・電子　登録の有無","AG133","×","ZS",2,"○",null,"○",null,null,"YES"]
["２８ 測量一般　希望の有無","J144","×","ZS",2,"○",null,"○",null,null,"YES"]
["２８ 地図の調整　希望の有無","K144","×","ZS",2,"○",null,"○",null,null,"YES"]
["２８ 航空測量　希望の有無","L144","×","ZS",2,"○",null,"○",null,null,"YES"]
["２８ 建築一般　希望の有無","M144","×","ZS",2,"○",null,"○",null,null,"YES"]
["２８ 意匠　希望の有無","N144","×","ZS",2,"○",null,"○",null,null,"YES"]
["２８ 構造　希望の有無","O144","×","ZS",2,"○",null,"○",null,null,"YES"]
["２８ 暖冷房　希望の有無","P144","×","ZS",2,"○",null,"○",null,null,"YES"]
["２８ 衛生　希望の有無","Q144","×","ZS",2,"○",null,"○",null,null,"YES"]
["２８ 電気　希望の有無","R144","×","ZS",2,"○",null,"○",null,null,"YES"]
["２８ 建築積算　希望の有無","S144","×","ZS",2,"○",null,"○",null,null,"YES"]
["２８ 機械設備積算　希望の有無","T144","×","ZS",2,"○",null,"○",null,null,"YES"]
["２８ 電気設備積算　希望の有無","U144","×","ZS",2,"○",null,"○",null,null,"YES"]
["２８ 調査　希望の有無","V144","×","ZS",2,"○",null,"○",null,null,"YES"]
["２８ 地質調査　希望の有無","W144","×","ZS",2,"○",null,"○",null,null,"YES"]
["２８ 土地調査　希望の有無","Z144","×","ZS",2,"○",null,"○",null,null,"YES"]
["２８ 土地評価　希望の有無","AA144","×","ZS",2,"○",null,"○",null,null,"YES"]
["２８ 物件　希望の有無","AB144","×","ZS",2,"○",null,"○",null,null,"YES"]
["２８ 機械工作物　希望の有無","AC144","×","ZS",2,"○",null,"○",null,null,"YES"]
["２８ 営業・特殊補償　希望の有無","AD144","×","ZS",2,"○",null,"○",null,null,"YES"]
["２８ 事業損失　希望の有無","AE144","×","ZS",2,"○",null,"○",null,null,"YES"]
["２８ 補償関連　希望の有無","AF144","×","ZS",2,"○",null,"○",null,null,"YES"]
["２８ 総合補償　希望の有無","AG144","×","ZS",2,"○",null,"○",null,null,"YES"]
["２８ 河川・砂防及び海岸　希望の有無","AH144","×","ZS",2,"○",null,"○",null,null,"YES"]
["２８ 港湾・空港　希望の有無","AJ144","×","ZS",2,"○",null,"○",null,null,"YES"]
["２８ 電力土木　希望の有無","AK144","×","ZS",2,"○",null,"○",null,null,"YES"]
["２８ 道路　希望の有無","AL144","×","ZS",2,"○",null,"○",null,null,"YES"]
["２８ 鉄道　希望の有無","AM144","×","ZS",2,"○",null,"○",null,null,"YES"]
["２８ 上水道及び工業用水道　希望の有無","AN144","×","ZS",2,"○",null,"○",null,null,"YES"]
["２８ 下水道　希望の有無","AP144","×","ZS",2,"○",null,"○",null,null,"YES"]
["２８ 農業土木　希望の有無","AQ144","×","ZS",2,"○",null,"○",null,null,"YES"]
["２８ 森林土木　希望の有無","AR144","×","ZS",2,"○",null,"○",null,null,"YES"]
["２８ 水産土木　希望の有無","AS144","×","ZS",2,"○",null,"○",null,null,"YES"]
["２８ 廃棄物　希望の有無","AT144","×","ZS",2,"○",null,"○",null,null,"YES"]
["２８ 造園　希望の有無","AU144","×","ZS",2,"○",null,"○",null,null,"YES"]
["２８ 都市計画及び地方計画　希望の有無","AV144","×","ZS",2,"○",null,"○",null,null,"YES"]
["２８ 地質　希望の有無","AX144","×","ZS",2,"○",null,"○",null,null,"YES"]
["２８ 土質及び基礎　希望の有無","AY144","×","ZS",2,"○",null,"○",null,null,"YES"]
["２８ 鋼構造及びコンクリート　希望の有無","AZ144","×","ZS",2,"○",null,"○",null,null,"YES"]
["２８ トンネル　希望の有無","BB144","×","ZS",2,"○",null,"○",null,null,"YES"]
["２８ 施工計画・施工設備及び積算　希望の有無","BC144","×","ZS",2,"○",null,"○",null,null,"YES"]
["２８ 建設環境　希望の有無","BE144","×","ZS",2,"○",null,"○",null,null,"YES"]
["２８ 機械　希望の有無","BF144","×","ZS",2,"○",null,"○",null,null,"YES"]
["２８ 電気・電子　希望の有無","BG144","×","ZS",2,"○",null,"○",null,null,"YES"]
["２８ 不動産鑑定　希望の有無","I148","×","ZS",2,"○",null,"○",null,null,"YES"]
["２８ 登記手続等　希望の有無","J148","×","ZS",2,"○",null,"○",null,null,"YES"]
["２８ その他　希望の有無","K148","×","ZS",2,"○",null,"○",null,null,"YES"]
["２８－１　その他業務の具体的内容　（１）","C153","×","ZN",30,"×",null,null,null,null,"YES"]
["２８－１　その他業務の具体的内容　（２）","C154","×","ZN",30,"×",null,null,null,null,"YES"]
["２８－１　その他業務の具体的内容　（３）","C155","×","ZN",30,"×",null,null,null,null,"YES"]
["２８－１　その他業務の具体的内容　（４）","C156","×","ZN",30,"×",null,null,null,null,"YES"]
["２８－１　その他業務の具体的内容　（５）","C157","×","ZN",30,"×",null,null,null,null,"YES"]
["２９ ②直前１期決算　元号（自）","P178","○","N,N",1,"○","4,5",null,null,null,"YES"]
["２９ ②直前１期決算　年（自）","Q178","○","N-N",2,"×","1,31",null,null,null,"YES"]
["２９ ②直前１期決算　月（自）","T178","○","N-N",2,"×","1,12",null,null,null,"YES"]
["２９ ②直前１期決算　元号（至）","P179","○","N,N",1,"○","4,5",null,null,null,"YES"]
["２９ ②直前１期決算　年（至）","Q179","○","N-N",2,"×","1,31",null,null,null,"YES"]
["２９ ②直前１期決算　月（至）","T179","○","N-N",2,"×","1,12",null,null,null,"YES"]
["２９ ③直前２期決算　元号（自）","Y178","○","N,N",1,"○","4,5",null,null,null,"YES"]
["２９ ③直前２期決算　年（自）","Z178","○","N-N",2,"×","1,31",null,null,null,"YES"]
["２９ ③直前２期決算　月（自）","AC178","○","N-N",2,"×","1,12",null,null,null,"YES"]
["２９ ③直前２期決算　元号（至）","Y179","○","N,N",1,"○","4,5",null,null,null,"YES"]
["２９ ③直前２期決算　年（至）","Z179","○","N-N",2,"×","1,31",null,null,null,"YES"]
["２９ ③直前２期決算　月（至）","AC179","○","N-N",2,"×","1,12",null,null,null,"YES"]
["２９ ④直前３期決算　元号（自）","AH178","×","N,N",1,"○","4,5",null,null,null,"YES"]
["２９ ④直前３期決算　年（自）","AI178","×","N-N",2,"×","1,31",null,null,null,"YES"]
["２９ ④直前３期決算　月（自）","AL178","×","N-N",2,"×","1,12",null,null,null,"YES"]
["２９ ④直前３期決算　元号（至）","AH179","×","N,N",1,"○","4,5",null,null,null,"YES"]
["２９ ④直前３期決算　年（至）","AI179","×","N-N",2,"×","1,31",null,null,null,"YES"]
["２９ ④直前３期決算　月（至）","AL179","×","N-N",2,"×","1,12",null,null,null,"YES"]
["２９ ⑤直前４期決算　元号（自）","AQ178","×","N,N",1,"○","4,5",null,null,null,"YES"]
["２９ ⑤直前４期決算　年（自）","AR178","×","N-N",2,"×","1,31",null,null,null,"YES"]
["２９ ⑤直前４期決算　月（自）","AU178","×","N-N",2,"×","1,12",null,null,null,"YES"]
["２９ ⑤直前４期決算　元号（至）","AQ179","×","N,N",1,"○","4,5",null,null,null,"YES"]
["２９ ⑤直前４期決算　年（至）","AR179","×","N-N",2,"×","1,31",null,null,null,"YES"]
["２９ ⑤直前４期決算　月（至）","AU179","×","N-N",2,"×","1,12",null,null,null,"YES"]
["２９ ②直前１期決算　測量","O182","○","NN",9,"×",null,null,null,null,"YES"]
["２９ ②直前１期決算　建築関係建設コンサルタント業務","O183","○","NN",9,"×",null,null,null,null,"YES"]
["２９ ②直前１期決算　地質調査業務","O184","○","NN",9,"×",null,null,null,null,"YES"]
["２９ ②直前１期決算　補償関係コンサルタント業務","O185","○","NN",9,"×",null,null,null,null,"YES"]
["２９ ②直前１期決算　土木関係建設コンサルタント業務","O186","○","NN",9,"×",null,null,null,null,"YES"]
["２９ ②直前１期決算　その他業務（上記５業務以外）","O187","○","NN",9,"×",null,null,null,null,"YES"]
["２９ ③直前２期決算　測量","X182","○","NN",9,"×",null,null,null,null,"YES"]
["２９ ③直前２期決算　建築関係建設コンサルタント業務","X183","○","NN",9,"×",null,null,null,null,"YES"]
["２９ ③直前２期決算　地質調査業務","X184","○","NN",9,"×",null,null,null,null,"YES"]
["２９ ③直前２期決算　補償関係コンサルタント業務","X185","○","NN",9,"×",null,null,null,null,"YES"]
["２９ ③直前２期決算　土木関係建設コンサルタント業務","X186","○","NN",9,"×",null,null,null,null,"YES"]
["２９ ③直前２期決算　その他業務（上記５業務以外）","X187","○","NN",9,"×",null,null,null,null,"YES"]
["２９ ④直前３期決算　測量","AG182","×","NN",9,"×",null,null,null,null,"YES"]
["２９ ④直前３期決算　建築関係建設コンサルタント業務","AG183","×","NN",9,"×",null,null,null,null,"YES"]
["２９ ④直前３期決算　地質調査業務","AG184","×","NN",9,"×",null,null,null,null,"YES"]
["２９ ④直前３期決算　補償関係コンサルタント業務","AG185","×","NN",9,"×",null,null,null,null,"YES"]
["２９ ④直前３期決算　土木関係建設コンサルタント業務","AG186","×","NN",9,"×",null,null,null,null,"YES"]
["２９ ④直前３期決算　その他業務（上記５業務以外）","AG187","×","NN",9,"×",null,null,null,null,"YES"]
["２９ ⑤直前４期決算　測量","AP182","×","NN",9,"×",null,null,null,null,"YES"]
["２９ ⑤直前４期決算　建築関係建設コンサルタント業務","AP183","×","NN",9,"×",null,null,null,null,"YES"]
["２９ ⑤直前４期決算　地質調査業務","AP184","×","NN",9,"×",null,null,null,null,"YES"]
["２９ ⑤直前４期決算　補償関係コンサルタント業務","AP185","×","NN",9,"×",null,null,null,null,"YES"]
["２９ ⑤直前４期決算　土木関係建設コンサルタント業務","AP186","×","NN",9,"×",null,null,null,null,"YES"]
["２９ ⑤直前４期決算　その他業務（上記５業務以外）","AP187","×","NN",9,"×",null,null,null,null,"YES"]
["３０ ①（うち外国資本）　直前決算時","O196","○","NN2",9,"×",null,null,null,null,"YES"]
["ＸＸ ①（うち外国資本）　剰余（欠損）金処分","X196","○","NN2",9,"×",null,null,null,null,"NO"]
["ＸＸ ①（うち外国資本）　決算後の増減額","AP196","○","NN2",9,"×",null,null,null,null,"NO"]
["３０ ②株主資本　直前決算時","O197","○","NN2",9,"×",null,null,null,null,"YES"]
["ＸＸ ②株主資本　剰余（欠損）金処分","X197","○","NN2",9,"×",null,null,null,null,"NO"]
["ＸＸ ②株主資本　決算後の増減額","AP197","○","NN2",9,"×",null,null,null,null,"NO"]
["３０ ③評価・換算差額等　直前決算時","O198","○","NN2",9,"×",null,null,null,null,"YES"]
["ＸＸ ③評価・換算差額等　剰余（欠損）金処分","X198","○","NN2",9,"×",null,null,null,null,"NO"]
["ＸＸ ③評価・換算差額等　決算後の増減額","AP198","○","NN2",9,"×",null,null,null,null,"NO"]
["３０ ④新株予約権　直前決算時","O199","○","NN2",9,"×",null,null,null,null,"YES"]
["ＸＸ ④新株予約権　剰余（欠損）金処","X199","○","NN2",9,"×",null,null,null,null,"NO"]
["ＸＸ ④新株予約権　決算後の増減額","AP199","○","NN2",9,"×",null,null,null,null,"NO"]
["３１ 損益計算書　税引前当期利益","Q202","○","NN2",11,"×",null,null,null,null,"YES"]
["３２ 貸借対照表　①　流動資産","Q203","○","NN2",11,"×",null,null,null,null,"YES"]
["３２ 貸借対照表　②　流動負債","Q204","○","NN2",11,"×",null,null,null,null,"YES"]
["３２ 貸借対照表　③　固定資産","Q205","○","NN2",11,"×",null,null,null,null,"YES"]
["３２ 貸借対照表　④　総資本額","Q206","○","NN2",11,"×",null,null,null,null,"YES"]
["３３ 外資状況　①　選択","E210","×","ZS",2,"○",null,"○",null,null,"YES"]
["３３ 外資状況　②　選択","E211","×","ZS",2,"○",null,"○",null,null,"YES"]
["３３ 外資状況　③　選択","E212","×","ZS",2,"○",null,"○",null,null,"YES"]
["３３ 外資状況　④　選択","E214","×","ZS",2,"○",null,"○",null,null,"YES"]
["３３ 外資状況　①　外国籍会社","O210","×","ZN",20,"×",null,null,null,null,"YES"]
["３３ 外資状況　②　日本国籍会社（１００％外資）","O211","×","ZN",20,"×",null,null,null,null,"YES"]
["３３ 外資状況　③　日本国籍会社（一部外資）上段","O212","×","ZN",20,"×",null,null,null,null,"YES"]
["３３ 外資状況　③　日本国籍会社（一部外資）下段","O213","×","ZN",20,"×",null,null,null,null,"YES"]
["３３ 外資状況　③ 外資比率　上段","Y212","×","NN",2,"×",null,null,null,null,"YES"]
["３３ 外資状況　③ 外資比率　下段","Y213","×","NN",2,"×",null,null,null,null,"YES"]
["３４ 営業年数等　①　創業（元号）","P218","×","N,N",1,"○","1,2,3,4,5",null,null,null,"YES"]
["３４ 営業年数等　①　創業（年）","Q218","×","N-N",2,"×","1,64",null,null,null,"YES"]
["３４ 営業年数等　①　創業（月）","T218","×","N-N",2,"×","1,12",null,null,null,"YES"]
["３４ 営業年数等　①　創業（日）","W218","×","N-N",2,"×","1,31",null,null,null,"YES"]
["３４ 営業年数等　②　休業又は転（廃）業の期間　自（元号）","P219","×","N,N",1,"○","1,2,3,4,5",null,null,null,"YES"]
["３４ 営業年数等　②　休業又は転（廃）業の期間　自（年）","Q219","×","N-N",2,"×","1,64",null,null,null,"YES"]
["３４ 営業年数等　②　休業又は転（廃）業の期間　自（月）","T219","×","N-N",2,"×","1,12",null,null,null,"YES"]
["３４ 営業年数等　②　休業又は転（廃）業の期間　自（日）","W219","×","N-N",2,"×","1,31",null,null,null,"YES"]
["３４ 営業年数等　②　休業又は転（廃）業の期間　至（元号）","P220","×","N,N",1,"○","1,2,3,4,5",null,null,null,"YES"]
["３４ 営業年数等　②　休業又は転（廃）業の期間　至（年）","Q220","×","N-N",2,"×","1,64",null,null,null,"YES"]
["３４ 営業年数等　②　休業又は転（廃）業の期間　至（月）","T220","×","N-N",2,"×","1,12",null,null,null,"YES"]
["３４ 営業年数等　②　休業又は転（廃）業の期間　至（日）","W220","×","N-N",2,"×","1,31",null,null,null,"YES"]
["３４ 営業年数等　③　現組織への変更（元号）","P221","×","N,N",1,"○","1,2,3,4,5",null,null,null,"YES"]
["３４ 営業年数等　③　現組織への変更（年）","Q221","×","N-N",2,"×","1,64",null,null,null,"YES"]
["３４ 営業年数等　③　現組織への変更（月）","T221","×","N-N",2,"×","1,12",null,null,null,"YES"]
["３４ 営業年数等　③　現組織への変更（日）","W221","×","N-N",2,"×","1,31",null,null,null,"YES"]
["３４ 営業年数等　④　営業年数","P222","×","NN",4,"×",null,null,null,null,"YES"]
["３５ 常勤職員の数　①技術職員","C226","○","NN",6,"×",null,null,null,null,"YES"]
["３５ 常勤職員の数　②事務職員","K226","○","NN",6,"×",null,null,null,null,"YES"]
["３５ 常勤職員の数　③その他職員","S226","○","NN",6,"×",null,null,null,null,"YES"]
["３５ 常勤職員の数　④役職員等","AI226","○","NN",3,"×",null,null,null,null,"YES"]
["３６ 構造設計一級建築士","F235","×","NN",3,"×",null,null,null,null,"YES"]
["３６ 設備設計一級建築士","J235","×","NN",3,"×",null,null,null,null,"YES"]
["３６ 一級建築士","N235","×","NN",3,"×",null,null,null,null,"YES"]
["３６ 二級建築士","R235","×","NN",3,"×",null,null,null,null,"YES"]
["３６ 建築設備士","V235","×","NN",3,"×",null,null,null,null,"YES"]
["３６ 一級土木施工管理技士","Z235","×","NN",3,"×",null,null,null,null,"YES"]
["３６ 測量士","AD235","×","NN",3,"×",null,null,null,null,"YES"]
["３６ 測量士補","AH235","×","NN",3,"×",null,null,null,null,"YES"]
["３６ 環境計量士","AL235","×","NN",3,"×",null,null,null,null,"YES"]
["３６ 不動産鑑定士","AP235","×","NN",3,"×",null,null,null,null,"YES"]
["３６ 不動産鑑定士補","AT235","×","NN",3,"×",null,null,null,null,"YES"]
["３６ 土地家屋調査士","AX235","×","NN",3,"×",null,null,null,null,"YES"]
["３６ 司法書士","F239","×","NN",3,"×",null,null,null,null,"YES"]
["３６ 建築積算士（建築積算資格者）","J239","×","NN",3,"×",null,null,null,null,"YES"]
["３６ 機械部門","F243","×","NN",3,"×",null,null,null,null,"YES"]
["３６ 機械部門（その他）","J243","×","NN",3,"×",null,null,null,null,"YES"]
["３６ 電気・電子部門","N243","×","NN",3,"×",null,null,null,null,"YES"]
["３６ 建設部門（土質及び基）","R243","×","NN",3,"×",null,null,null,null,"YES"]
["３６ 建設部門（鋼構造及びｺﾝｸﾘｰﾄ）","V243","×","NN",3,"×",null,null,null,null,"YES"]
["３６ 建設部門（都市及び地方計画）","Z243","×","NN",3,"×",null,null,null,null,"YES"]
["３６ 建設部門（河川砂防及び海岸）","AD243","×","NN",3,"×",null,null,null,null,"YES"]
["３６ 建設部門（港湾及び空港）","AH243","×","NN",3,"×",null,null,null,null,"YES"]
["３６ 建設部門（電力土木）","AL243","×","NN",3,"×",null,null,null,null,"YES"]
["３６ 建設部門（道路）","AP243","×","NN",3,"×",null,null,null,null,"YES"]
["３６ 建設部門（鉄道）","AT243","×","NN",3,"×",null,null,null,null,"YES"]
["３６ 建設部門（トンネル）","AX243","×","NN",3,"×",null,null,null,null,"YES"]
["３６ 建設部門（施工計画施工設備及び積算）","F247","×","NN",3,"×",null,null,null,null,"YES"]
["３６ 建設部門（建設環境）","J247","×","NN",3,"×",null,null,null,null,"YES"]
["３６ 農業部門（農林土木）","N247","×","NN",3,"×",null,null,null,null,"YES"]
["３６ 森林部門（森林土木）","R247","×","NN",3,"×",null,null,null,null,"YES"]
["３６ 水産部門（水産土木）","V247","×","NN",3,"×",null,null,null,null,"YES"]
["３６ 情報工学部門","Z247","×","NN",3,"×",null,null,null,null,"YES"]
["３６ 応用理学部門（地質）","AD247","×","NN",3,"×",null,null,null,null,"YES"]
["３６ 応用理学部門（その他）","AH247","×","NN",3,"×",null,null,null,null,"YES"]
["３６ 上下水道部門（上水道及び工業用水道）","AL247","×","NN",3,"×",null,null,null,null,"YES"]
["３６ 上下水道部門（下水道）","AP247","×","NN",3,"×",null,null,null,null,"YES"]
["３６ 上下水道部門（水道環境）","AT247","×","NN",3,"×",null,null,null,null,"YES"]
["３６ その他の部門","AX247","×","NN",3,"×",null,null,null,null,"YES"]
["３６ 河川・砂防及び海岸","F251","×","NN",3,"×",null,null,null,null,"YES"]
["３６ 港湾及び空港","J251","×","NN",3,"×",null,null,null,null,"YES"]
["３６ 電力土木","N251","×","NN",3,"×",null,null,null,null,"YES"]
["３６ 道路","R251","×","NN",3,"×",null,null,null,null,"YES"]
["３６ 鉄道","V251","×","NN",3,"×",null,null,null,null,"YES"]
["３６ 造園","Z251","×","NN",3,"×",null,null,null,null,"YES"]
["３６ 都市計画及び地方計画","AD251","×","NN",3,"×",null,null,null,null,"YES"]
["３６ 地質","AH251","×","NN",3,"×",null,null,null,null,"YES"]
["３６ 土質及び基礎","AL251","×","NN",3,"×",null,null,null,null,"YES"]
["３６ 鋼構造及びコンクリート","AP251","×","NN",3,"×",null,null,null,null,"YES"]
["３６ トンネル","AT251","×","NN",3,"×",null,null,null,null,"YES"]
["３６ 施工計画、施工設備及び積算","AX251","×","NN",3,"×",null,null,null,null,"YES"]
["３６ 建設環境","F255","×","NN",3,"×",null,null,null,null,"YES"]
["３６ 上水道及び工業用水道","J255","×","NN",3,"×",null,null,null,null,"YES"]
["３６ 下水道","N255","×","NN",3,"×",null,null,null,null,"YES"]
["３６ 農業土木","R255","×","NN",3,"×",null,null,null,null,"YES"]
["３６ 森林土木","V255","×","NN",3,"×",null,null,null,null,"YES"]
["３６ 機械","Z255","×","NN",3,"×",null,null,null,null,"YES"]
["３６ 電気・電子","AD255","×","NN",3,"×",null,null,null,null,"YES"]
["３６ 水産土木","AH255","×","NN",3,"×",null,null,null,null,"YES"]
["３６ 廃棄物","AL255","×","NN",3,"×",null,null,null,null,"YES"]
["３６ 建設情報","AP255","×","NN",3,"×",null,null,null,null,"YES"]
["３６ 公認会計士","F259","×","NN",3,"×",null,null,null,null,"YES"]
["３６ 会計士補","J259","×","NN",3,"×",null,null,null,null,"YES"]
["３６ 税理士","N259","×","NN",3,"×",null,null,null,null,"YES"]
["３６ 第一種電気主任技術者","R259","×","NN",3,"×",null,null,null,null,"YES"]
["３６ 第一種伝送交換主任技術者","V259","×","NN",3,"×",null,null,null,null,"YES"]
["３６ 線路主任技術者","Z259","×","NN",3,"×",null,null,null,null,"YES"]
["３６ 中小企業診断士","AD259","×","NN",3,"×",null,null,null,null,"YES"]
["３６ 地質調査技士","AH259","×","NN",3,"×",null,null,null,null,"YES"]
["３６ 土地区画整理士","AL259","×","NN",3,"×",null,null,null,null,"YES"]
["３６ 建設ｺﾝｻﾙﾀﾝﾄ業務実務経験者","AP259","×","NN",3,"×",null,null,null,null,"YES"]
["３６ 用地調査等業務実務経験者","AT259","×","NN",3,"×",null,null,null,null,"YES"]
["３６ 公共用地取得実務経験者","AX259","×","NN",3,"×",null,null,null,null,"YES"]

{"sheet":"入力チェック２","index":4,"n_rows":227,"n_cols":8,"rows_kept":227,"cut":false,"hidden":true,"merged":[]}
["入力チェック名称","セル位置\n（チェック元）","チェック種別","入力必須項目セル位置","入力許可文字列","予備１","予備２","チェック許可"]
["０１ 法人・個人の区分","K7","IK2","K8","0",null,null,"YES"]
["１１ ＦＡＸ番号","M23","IK","R23,V23",null,null,null,"YES"]
["１１ ＦＡＸ番号","R23","IK","M23,V23",null,null,null,"YES"]
["１１ ＦＡＸ番号","V23","IK","M23,R23",null,null,null,"YES"]
["１５ ＩＳＯ９００１取得有無","M32","IK2","M33,N33,Q33,T33","1",null,null,"YES"]
["１６ ＩＳＯ９００１取得年月日","M33","DT","M33,N33,Q33,T33",null,null,null,"YES"]
["ＸＸ ＩＳＯ１４００１取得有無","M35","IK2","M36,N36,Q36,T36","1",null,null,"NO"]
["ＸＸ ＩＳＯ１４００１取得年月日","M36","DT","M36,N36,Q36,T36",null,null,null,"NO"]
["２４ 申請事務担当者　ＦＡＸ番号","J94","IK","O94,S94",null,null,null,"YES"]
["２４ 申請事務担当者　ＦＡＸ番号","O94","IK","J94,S94",null,null,null,"YES"]
["２４ 申請事務担当者　ＦＡＸ番号","S94","IK","J94,O94",null,null,null,"YES"]
["２５ 測量業者","J100","IK2","O100,X100,Y100,AB100,AE100","○",null,null,"YES"]
["２５ 建築士事務所","J101","IK2","O101,X101,Y101,AB101,AE101","○",null,null,"YES"]
["２５ 地質調査業者","J102","IK2","O102,X102,Y102,AB102,AE102","○",null,null,"YES"]
["２５ 補償コンサルタント","J103","IK2","O103,X103,Y103,AB103,AE103","○",null,null,"YES"]
["２５ 建設コンサルタント","J104","IK2","O104,X104,Y104,AB104,AE104","○",null,null,"YES"]
["２５ 不動産鑑定業者","J105","IK2","O105,X105,Y105,AB105,AE105","○",null,null,"YES"]
["２５ 土地家屋調査士","J106","IK2","O106,X106,Y106,AB106,AE106","○",null,null,"YES"]
["２５ 司法書士","J107","IK2","O107,X107,Y107,AB107,AE107","○",null,null,"YES"]
["２５ 計量証明事業者","J108","IK2","O108,X108,Y108,AB108,AE108","○",null,null,"YES"]
["２５ 測量業者　登録年月日","X100","DT","X100,Y100,AB100,AE100",null,null,null,"YES"]
["２５ 建築士事務所　登録年月日","X101","DT","X101,Y101,AB101,AE101",null,null,null,"YES"]
["２５ 地質調査業者　登録年月日","X102","DT","X102,Y102,AB102,AE102",null,null,null,"YES"]
["２５ 補償コンサルタント　登録年月日","X103","DT","X103,Y103,AB103,AE103",null,null,null,"YES"]
["２５ 建設コンサルタント　登録年月日","X104","DT","X104,Y104,AB104,AE104",null,null,null,"YES"]
["２５ 不動産鑑定業者　登録年月日","X105","DT","X105,Y105,AB105,AE105",null,null,null,"YES"]
["２５ 土地家屋調査士　登録年月日","X106","DT","X106,Y106,AB106,AE106",null,null,null,"YES"]
["２５ 司法書士　登録年月日","X107","DT","X107,Y107,AB107,AE107",null,null,null,"YES"]
["２５ 計量証明事業者　登録年月日","X108","DT","X108,Y108,AB108,AE108",null,null,null,"YES"]
["２６ 補償関係コンサルタント登録業者の登録部門内容","J103","IK3","M117,N117,O117,P117,Q117,R117,S117,T117","○",null,null,"YES"]
["２６ 補償関係コンサルタント登録業者の登録部門内容　土地調査","M117","IK","Z144",null,null,null,"YES"]
["２６ 補償関係コンサルタント登録業者の登録部門内容　土地評価","N117","IK","AA144",null,null,null,"YES"]
["２６ 補償関係コンサルタント登録業者の登録部門内容　物件","O117","IK","AB144",null,null,null,"YES"]
["２６ 補償関係コンサルタント登録業者の登録部門内容　機械工作物","P117","IK","AC144",null,null,null,"YES"]
["２６ 補償関係コンサルタント登録業者の登録部門内容　営業・特殊補償","Q117","IK","AD144",null,null,null,"YES"]
["２６ 補償関係コンサルタント登録業者の登録部門内容　事業損失","R117","IK","AE144",null,null,null,"YES"]
["２６ 補償関係コンサルタント登録業者の登録部門内容　補償関連","S117","IK","AF144",null,null,null,"YES"]
["２６ 補償関係コンサルタント登録業者の登録部門内容　総合補償","T117","IK","AG144",null,null,null,"YES"]
["２７ 建設コンサルタント登録業者の登録部門内容","J104","IK3","M133,N133,O133,P133,Q133,R133,S133,T133,U133,V133,W133,X133,Y133,Z133,AA133,AB133,AC133,AD133,AE133,AF133,AG133","○",null,null,"YES"]
["２７ 建設コンサルタント登録業者の登録部門内容　河川・砂防及び海岸・海洋","M133","IK","AH144",null,null,null,"YES"]
["２７ 建設コンサルタント登録業者の登録部門内容　港湾・空港","N133","IK","AJ144",null,null,null,"YES"]
["２７ 建設コンサルタント登録業者の登録部門内容　電力土木","O133","IK","AK144",null,null,null,"YES"]
["２７ 建設コンサルタント登録業者の登録部門内容　道路","P133","IK","AL144",null,null,null,"YES"]
["２７ 建設コンサルタント登録業者の登録部門内容　鉄道","Q133","IK","AM144",null,null,null,"YES"]
["２７ 建設コンサルタント登録業者の登録部門内容　上水道及び工業用水道","R133","IK","AN144",null,null,null,"YES"]
["２７ 建設コンサルタント登録業者の登録部門内容　下水道","S133","IK","AP144",null,null,null,"YES"]
["２７ 建設コンサルタント登録業者の登録部門内容　農業土木","T133","IK","AQ144",null,null,null,"YES"]
["２７ 建設コンサルタント登録業者の登録部門内容　森林土木","U133","IK","AR144",null,null,null,"YES"]
["２７ 建設コンサルタント登録業者の登録部門内容　水産土木","V133","IK","AS144",null,null,null,"YES"]
["２７ 建設コンサルタント登録業者の登録部門内容　廃棄物","W133","IK","AT144",null,null,null,"YES"]
["２７ 建設コンサルタント登録業者の登録部門内容　造園","X133","IK","AU144",null,null,null,"YES"]
["２７ 建設コンサルタント登録業者の登録部門内容　都市計画及び地方計画","Y133","IK","AV144",null,null,null,"YES"]
["２７ 建設コンサルタント登録業者の登録部門内容　地質","Z133","IK","AX144",null,null,null,"YES"]
["２７ 建設コンサルタント登録業者の登録部門内容　土質及び基礎","AA133","IK","AY144",null,null,null,"YES"]
["２７ 建設コンサルタント登録業者の登録部門内容　鋼構造及びコンクリート","AB133","IK","AZ144",null,null,null,"YES"]
["２７ 建設コンサルタント登録業者の登録部門内容　トンネル","AC133","IK","BB144",null,null,null,"YES"]
["２７ 建設コンサルタント登録業者の登録部門内容　施工計画・施工設備及び積算","AD133","IK","BC144",null,null,null,"YES"]
["２７ 建設コンサルタント登録業者の登録部門内容　建設環境","AE133","IK","BE144",null,null,null,"YES"]
["２７ 建設コンサルタント登録業者の登録部門内容　機械","AF133","IK","BF144",null,null,null,"YES"]
["２７ 建設コンサルタント登録業者の登録部門内容　電気・電子","AG133","IK","BG144",null,null,null,"YES"]
["２８ 希望業務の内容　測量","J100","IK3","J144,K144,L144","○",null,null,"YES"]
["２８ 希望業務の内容　建築一般","J101","IK3","M144","○",null,null,"YES"]
["２８ 希望業務の内容　不動産鑑定","J105","IK3","I148","○",null,null,"YES"]
["２８ 希望業務の内容　測量","J144","KYII4","J144,K144,L144",null,1,"は直前２か年間の年間平均実績高が０なので測量は選択できません。","YES"]
["２８ 希望業務の内容　建築関係建設コンサルタント","M144","KYII4","M144,N144,O144,P144,Q144,R144,S144,T144,U144,V144",null,2,"は直前２か年間の年間平均実績高が０なので建築関係建設コンサルタントは選択できません。","YES"]
["２８ 希望業務の内容　地質調査","W144","KYII4","W144",null,3,"は直前２か年間の年間平均実績高が０なので地質調査は選択できません。","YES"]
["２８ 希望業務の内容　補償関係コンサルタント","Z144","KYII4","Z144,AA144,AB144,AC144,AD144,AE144,AF144,AG144",null,4,"は直前２か年間の年間平均実績高が０なので補償関係コンサルタントは選択できません。","YES"]
["２８ 希望業務の内容　土木関係建設コンサルタント","AH144","KYII4","AH144,AJ144,AK144,AL144,AM144,AN144,AP144,AQ144,AR144,AS144,AT144,AU144,AV144,AX144,AY144,AZ144,BB144,BC144,BE144,BF144,BG144",null,5,"は直前２か年間の年間平均実績高が０なので土木関係建設コンサルタントは選択できません。","YES"]
["２８ 希望業務の内容　その他","I148","KYII4","I148,J148,K148",null,6,"は直前２か年間の年間平均実績高が０なのでその他は選択できません。","YES"]
["２８－１　その他業務の具体的内容","K148","IK3","C153,C154,C155,C156,C157","○",null,null,"YES"]
["２９ ②直前１期決算　年月（自）","P178","DT2","P178,Q178,T178",null,null,null,"YES"]
["２９ ②直前１期決算　年月（至）","P179","DT2","P179,Q179,T179",null,null,null,"YES"]
["２９ ③直前２期決算　年月（自）","Y178","DT2","Y178,Z178,AC178",null,null,null,"YES"]
["２９ ③直前２期決算　年月（至）","Y179","DT2","Y179,Z179,AC179",null,null,null,"YES"]
["２９ ④直前３期決算　年月（自）","AH178","DT2","AH178,AI178,AL178",null,null,null,"YES"]
["２９ ④直前３期決算　年月（至）","AH179","DT2","AH179,AI179,AL179",null,null,null,"YES"]
["２９ ⑤直前４期決算　年月（自）","AQ178","DT2","AQ178,AR178,AU178",null,null,null,"YES"]
["２９ ⑤直前４期決算　年月（至）","AQ179","DT2","AQ179,AR179,AU179",null,null,null,"YES"]
["２９ ④直前３期決算　年月（自）","AH179","IK","AH178,AI178,AL178,AG182,AG183,AG184,AG185,AG186,AG187",null,null,null,"YES"]
["２９ ④直前３期決算　年月（至）","AH178","IK","AH179,AI179,AL179",null,null,null,"YES"]
["２９ ⑤直前４期決算　年月（自）","AQ179","IK","AQ178,AR178,AU178,AP182,AP183,AP184,AP185,AP186,AP187",null,null,null,"YES"]
["２９ ⑤直前４期決算　年月（至）","AQ178","IK","AQ179,AR179,AU179",null,null,null,"YES"]
["２９ ②直前１期決算　年月","Q178","DT22","P178,Q178,T178,P179,Q179,T179","m,>=,12","SAVE01",null,"YES"]
["２９ ③直前２期決算　年月","Z178","DT22","Y178,Z178,AC178,Y179,Z179,AC179","m,>=,12","SAVE02",null,"YES"]
["２９ ④直前３期決算　年月","AI178","DT22","AH178,AI178,AL178,AH179,AI179,AL179","m,>=,12","SAVE03",null,"YES"]
["２９ ⑤直前４期決算　年月","AR178","DT22","AQ178,AR178,AU178,AQ179,AR179,AU179","m,>=,12","SAVE04",null,"YES"]
["３０ 直前１期～直前４期の２３ヶ月チェック","AI178","KYII3","Q178,T178,Q179,T179,Z178,AC178,Z179,AC179,AI178,AL178,AI179,AL179,AR178,AU178,AR179,AU179","<,SAVE01,SAVE02,SAVE03,SAVE04",24,"直前１期から直前４期の期間は、２４ヶ月以上となるように入力してください。","NO"]
["３０ 直前３期決算・直前４期決算","AI178","KYII","AI178,AL178,AI179,AL179,AR178,AU178,AR179,AU179,AG182,AG183,AG184,AG185,AG186,AG187,AP182,AP183,AP184,AP185,AP186,AP187","<,SAVE01,SAVE02",24,"直前１期と直前２期の期間の合計が２４か月未満の場合、④、⑤の表は入力必須です。","NO"]
["２９ ③２期　年月（至）／②１期　年月（自）","Z179","DT23","Y179,Z179,AC179,P178,Q178,T178","m,>,1",null,"直前２期決算の終了年月は、直前１期より前となるように入力してください。","YES"]
["２９ ④３期　年月（至）／③２期　年月（自）","AI179","DT23","AH179,AI179,AL179,Y178,Z178,AC178","m,>,1",null,"直前３期決算の終了年月は、直前２期より前となるように入力してください。","YES"]
["２９ ⑤４期　年月（至）／④３期　年月（自）","AR179","DT23","AQ179,AR179,AU179,AH178,AI178,AL178","m,>,1",null,"直前４期決算の終了年月は、直前３期より前となるように入力してください。","YES"]
["３１ うち外国資本の金額を共通変数へセット","O196","KS","O196,X196,AP196","SAVE01,SAVE02,SAVE03",null,null,"NO"]
["３１ うち外国資本の金額を共通変数へセット","O196","KS","O196","SAVE01",null,null,"NO"]
["３１ 振込資本　相関チェック（直前決算時）","O197","KYII2","O197",">,SAVE01",null,"払込資本金は（うち外国資本）より大きい金額を入力してください。","NO"]
["３１ 振込資本　相関チェック（余剰金処分）","X197","KYII2","X197",">,SAVE02",null,"払込資本金は（うち外国資本）より大きい金額を入力してください。","NO"]
["３１ 振込資本　相関チェック（決算後の増減額）","AP197","KYII2","AP197",">,SAVE03",null,"払込資本金は（うち外国資本）より大きい金額を入力してください。","NO"]
["３３ 外資状況　選択","E210","IK4","E210,E211,E212,E214","○",1,null,"YES"]
["３３ 外資状況　選択","E210","IK6","E210,E211,E212,E214","○",1,null,"YES"]
["３３ 外資状況　③　外国籍会社　国名","E210","IK","O210",null,null,null,"YES"]
["３３ 外資状況　③　日本国籍会社（１００％外資）　国名","E211","IK","O211",null,null,null,"YES"]
["３３ 外資状況　③　日本国籍会社（一部外資）　国名","E212","IK3","O212,O213","○",null,null,"YES"]
["３３ 外資状況　③　日本国籍会社（一部外資）","O212","IK","Y212",null,null,null,"YES"]
["３３ 外資状況　③　日本国籍会社（一部外資）","O213","IK","Y213",null,null,null,"YES"]
["３３ 外資状況　③　日本国籍会社（一部外資）","Y212","IK","O212",null,null,null,"YES"]
["３３ 外資状況　③　日本国籍会社（一部外資）","Y213","IK","O213",null,null,null,"YES"]
["３４ 営業年数等　①　創業　年月日","P218","DT","P218,Q218,T218,W218",null,null,null,"YES"]
["３４ 営業年数等　②　休業又は転（廃）業の期間　自　年月日","P219","DT","P219,Q219,T219,W219",null,null,null,"YES"]
["３４ 営業年数等　②　休業又は転（廃）業の期間　至　年月日","P220","DT","P220,Q220,T220,W220",null,null,null,"YES"]
["３４ 営業年数等　③　現組織への変更　年月日","P221","DT","P221,Q221,T221,W221",null,null,null,"YES"]
["３４ 営業年数等　②　休業又は転（廃）業の期間　自　年月日","P220","IK","P219,Q219,T219,W219",null,null,null,"YES"]
["３４ 営業年数等　②　休業又は転（廃）業の期間　至　年月日","P219","IK","P220,Q220,T220,W220",null,null,null,"YES"]
["３４ 営業年数等　②　休業又は転（廃）業の期間　年月日","P219","DT_K","P219,Q219,T219,W219,P220,Q220,T220,W220",null,null,null,"YES"]
["３５ 常勤職員の数　①、②、③を共通変数へセット","C226","KS","C226,K226,S226","SAVE01,SAVE02,SAVE03",null,null,"YES"]
["３５ 常勤職員の数　④役職員等","AI226","KYII2","AI226","<,SAVE01,SAVE02,SAVE03",null,"④役職員等の数は①＋②＋③以下となるように入力してください。","YES"]
["３７ 有資格者数　相関チェック","F235","KYII2","F235,J235,N235,R235,V235,Z235,AD235,AH235,AL235,AP235,AT235,AX235,F239,J239,F243,J243,N243,R243,V243,Z243,AD243,AH243,AL243,AP243,AT243,AX243,F247,J247,N247,R247,V247,Z247,AD247,AH247,AL247,AP247,AT247,AX247,F251,J251,N251,R251,V251,Z251,AD251,AH251,AL251,AP251,AT251,AX251,F255,J255,N255,R255,V255,Z255,AD255,AH255,F259,J259,N259,R259,V259,Z259,AD259,AH259,AL259,AP259,AT259,AX259","<,SAVE01",null,"入力した有資格者数が３７の①技術職員の数を超えないように記入してください。","NO"]
["３６ 有資格者数　構造設計一級建築士　相関チェック","F235","KYII2","F235","<,SAVE01",null,"入力した有資格者数が３７の①技術職員の数を超えないように記入してください。","YES"]
["３６ 有資格者数　設備設計一級建築士　相関チェック","J235","KYII2","J235","<,SAVE01",null,"入力した有資格者数が３７の①技術職員の数を超えないように記入してください。","YES"]
["３６ 有資格者数　一級建築士　相関チェック","N235","KYII2","N235","<,SAVE01",null,"入力した有資格者数が３７の①技術職員の数を超えないように記入してください。","YES"]
["３６ 有資格者数　二級建築士　相関チェック","R235","KYII2","R235","<,SAVE01",null,"入力した有資格者数が３７の①技術職員の数を超えないように記入してください。","YES"]
["３６ 有資格者数　建築設備士　相関チェック","V235","KYII2","V235","<,SAVE01",null,"入力した有資格者数が３７の①技術職員の数を超えないように記入してください。","YES"]
["３６ 有資格者数　一級土木施行管理技士　相関チェック","Z235","KYII2","Z235","<,SAVE01",null,"入力した有資格者数が３７の①技術職員の数を超えないように記入してください。","YES"]
["３６ 有資格者数　測量士　相関チェック","AD235","KYII2","AD235","<,SAVE01",null,"入力した有資格者数が３７の①技術職員の数を超えないように記入してください。","YES"]
["３６ 有資格者数　測量士補　相関チェック","AH235","KYII2","AH235","<,SAVE01",null,"入力した有資格者数が３７の①技術職員の数を超えないように記入してください。","YES"]
["３６ 有資格者数　環境計量士　相関チェック","AL235","KYII2","AL235","<,SAVE01",null,"入力した有資格者数が３７の①技術職員の数を超えないように記入してください。","YES"]
["３６ 有資格者数　不動産鑑定士　相関チェック","AP235","KYII2","AP235","<,SAVE01",null,"入力した有資格者数が３７の①技術職員の数を超えないように記入してください。","YES"]
["３６ 有資格者数　不動産鑑定士補　相関チェック","AT235","KYII2","AT235","<,SAVE01",null,"入力した有資格者数が３７の①技術職員の数を超えないように記入してください。","YES"]
["３６ 有資格者数　土地家屋調査士　相関チェック","AX235","KYII2","AX235","<,SAVE01",null,"入力した有資格者数が３７の①技術職員の数を超えないように記入してください。","YES"]
["３６ 有資格者数　司法書士　相関チェック","F239","KYII2","F239","<,SAVE01",null,"入力した有資格者数が３７の①技術職員の数を超えないように記入してください。","YES"]
["３６ 有資格者数　建築積算資格者　相関チェック","J239","KYII2","J239","<,SAVE01",null,"入力した有資格者数が３７の①技術職員の数を超えないように記入してください。","YES"]
["３６ 有資格者数　機械部門（※）　相関チェック","F243","KYII2","F243","<,SAVE01",null,"入力した有資格者数が３７の①技術職員の数を超えないように記入してください。","YES"]
["３６ 有資格者数　機械部門（その他）　相関チェック","J243","KYII2","J243","<,SAVE01",null,"入力した有資格者数が３７の①技術職員の数を超えないように記入してください。","YES"]
["３６ 有資格者数　電気・電子部門　相関チェック","N243","KYII2","N243","<,SAVE01",null,"入力した有資格者数が３７の①技術職員の数を超えないように記入してください。","YES"]
["３６ 有資格者数　建設部門（土質及び基礎）　相関チェック","R243","KYII2","R243","<,SAVE01",null,"入力した有資格者数が３７の①技術職員の数を超えないように記入してください。","YES"]
["３６ 有資格者数　建設部門（鋼構造及びｺﾝｸﾘｰﾄ）　相関チェック","V243","KYII2","V243","<,SAVE01",null,"入力した有資格者数が３７の①技術職員の数を超えないように記入してください。","YES"]
["３６ 有資格者数　建設部門（都市及び地方計画）　相関チェック","Z243","KYII2","Z243","<,SAVE01",null,"入力した有資格者数が３７の①技術職員の数を超えないように記入してください。","YES"]
["３６ 有資格者数　建設部門（河川砂防及び海岸）　相関チェック","AD243","KYII2","AD243","<,SAVE01",null,"入力した有資格者数が３７の①技術職員の数を超えないように記入してください。","YES"]
["３６ 有資格者数　建設部門（港湾及び空港）　相関チェック","AH243","KYII2","AH243","<,SAVE01",null,"入力した有資格者数が３７の①技術職員の数を超えないように記入してください。","YES"]
["３６ 有資格者数　建設部門（電力土木）　相関チェック","AL243","KYII2","AL243","<,SAVE01",null,"入力した有資格者数が３７の①技術職員の数を超えないように記入してください。","YES"]
["３６ 有資格者数　建設部門（道路）　相関チェック","AP243","KYII2","AP243","<,SAVE01",null,"入力した有資格者数が３７の①技術職員の数を超えないように記入してください。","YES"]
["３６ 有資格者数　建設部門（鉄道）　相関チェック","AT243","KYII2","AT243","<,SAVE01",null,"入力した有資格者数が３７の①技術職員の数を超えないように記入してください。","YES"]
["３６ 有資格者数　建設部門（トンネル）　相関チェック","AX243","KYII2","AX243","<,SAVE01",null,"入力した有資格者数が３７の①技術職員の数を超えないように記入してください。","YES"]
["３６ 有資格者数　建設部門（施工計画施工設備及び積算）　相関チェック","F247","KYII2","F247","<,SAVE01",null,"入力した有資格者数が３７の①技術職員の数を超えないように記入してください。","YES"]
["３６ 有資格者数　建設部門（建設環境）　相関チェック","J247","KYII2","J247","<,SAVE01",null,"入力した有資格者数が３７の①技術職員の数を超えないように記入してください。","YES"]
["３６ 有資格者数　農業部門（農林土木）　相関チェック","N247","KYII2","N247","<,SAVE01",null,"入力した有資格者数が３７の①技術職員の数を超えないように記入してください。","YES"]
["３６ 有資格者数　森林部門（森林土木）　相関チェック","R247","KYII2","R247","<,SAVE01",null,"入力した有資格者数が３７の①技術職員の数を超えないように記入してください。","YES"]
["３６ 有資格者数　水産部門（水産土木）　相関チェック","V247","KYII2","V247","<,SAVE01",null,"入力した有資格者数が３７の①技術職員の数を超えないように記入してください。","YES"]
["３６ 有資格者数　情報工学部門　相関チェック","Z247","KYII2","Z247","<,SAVE01",null,"入力した有資格者数が３７の①技術職員の数を超えないように記入してください。","YES"]
["３６ 有資格者数　応用理学部門（地質）　相関チェック","AD247","KYII2","AD247","<,SAVE01",null,"入力した有資格者数が３７の①技術職員の数を超えないように記入してください。","YES"]
["３６ 有資格者数　応用理学部門（その他）　相関チェック","AH247","KYII2","AH247","<,SAVE01",null,"入力した有資格者数が３７の①技術職員の数を超えないように記入してください。","YES"]
["３６ 有資格者数　上下水道部門（上水道及び工業用水道）　相関チェック","AL247","KYII2","AL247","<,SAVE01",null,"入力した有資格者数が３７の①技術職員の数を超えないように記入してください。","YES"]
["３６ 有資格者数　上下水道部門（下水道）　相関チェック","AP247","KYII2","AP247","<,SAVE01",null,"入力した有資格者数が３７の①技術職員の数を超えないように記入してください。","YES"]
["３６ 有資格者数　上下水道部門（水道環境）　相関チェック","AT247","KYII2","AT247","<,SAVE01",null,"入力した有資格者数が３７の①技術職員の数を超えないように記入してください。","YES"]
["３６ 有資格者数　その他の部門　相関チェック","AX247","KYII2","AX247","<,SAVE01",null,"入力した有資格者数が３７の①技術職員の数を超えないように記入してください。","YES"]
["３６ 有資格者数　河川・砂防及び海岸　相関チェック","F251","KYII2","F251","<,SAVE01",null,"入力した有資格者数が３７の①技術職員の数を超えないように記入してください。","YES"]
["３６ 有資格者数　港湾及び空港　相関チェック","J251","KYII2","J251","<,SAVE01",null,"入力した有資格者数が３７の①技術職員の数を超えないように記入してください。","YES"]
["３６ 有資格者数　電力土木　相関チェック","N251","KYII2","N251","<,SAVE01",null,"入力した有資格者数が３７の①技術職員の数を超えないように記入してください。","YES"]
["３６ 有資格者数　道路　相関チェック","R251","KYII2","R251","<,SAVE01",null,"入力した有資格者数が３７の①技術職員の数を超えないように記入してください。","YES"]
["３６ 有資格者数　鉄道　相関チェック","V251","KYII2","V251","<,SAVE01",null,"入力した有資格者数が３７の①技術職員の数を超えないように記入してください。","YES"]
["３６ 有資格者数　造園　相関チェック","Z251","KYII2","Z251","<,SAVE01",null,"入力した有資格者数が３７の①技術職員の数を超えないように記入してください。","YES"]
["３６ 有資格者数　都市計画及び地方計画　相関チェック","AD251","KYII2","AD251","<,SAVE01",null,"入力した有資格者数が３７の①技術職員の数を超えないように記入してください。","YES"]
["３６ 有資格者数　地質　相関チェック","AH251","KYII2","AH251","<,SAVE01",null,"入力した有資格者数が３７の①技術職員の数を超えないように記入してください。","YES"]
["３６ 有資格者数　土質及び基礎　相関チェック","AL251","KYII2","AL251","<,SAVE01",null,"入力した有資格者数が３７の①技術職員の数を超えないように記入してください。","YES"]
["３６ 有資格者数　鋼構造及びコンクリート　相関チェック","AP251","KYII2","AP251","<,SAVE01",null,"入力した有資格者数が３７の①技術職員の数を超えないように記入してください。","YES"]
["３６ 有資格者数　トンネル　相関チェック","AT251","KYII2","AT251","<,SAVE01",null,"入力した有資格者数が３７の①技術職員の数を超えないように記入してください。","YES"]
["３６ 有資格者数　施工計画、施工設備及び積算　相関チェック","AX251","KYII2","AX251","<,SAVE01",null,"入力した有資格者数が３７の①技術職員の数を超えないように記入してください。","YES"]
["３６ 有資格者数　建設環境・廃棄物　相関チェック","F255","KYII2","F255","<,SAVE01",null,"入力した有資格者数が３７の①技術職員の数を超えないように記入してください。","YES"]
["３６ 有資格者数　上水道及び工業用水道　相関チェック","J255","KYII2","J255","<,SAVE01",null,"入力した有資格者数が３７の①技術職員の数を超えないように記入してください。","YES"]
["３６ 有資格者数　下水道　相関チェック","N255","KYII2","N255","<,SAVE01",null,"入力した有資格者数が３７の①技術職員の数を超えないように記入してください。","YES"]
["３６ 有資格者数　農業土木　相関チェック","R255","KYII2","R255","<,SAVE01",null,"入力した有資格者数が３７の①技術職員の数を超えないように記入してください。","YES"]
["３６ 有資格者数　森林土木　相関チェック","V255","KYII2","V255","<,SAVE01",null,"入力した有資格者数が３７の①技術職員の数を超えないように記入してください。","YES"]
["３６ 有資格者数　機械　相関チェック","Z255","KYII2","Z255","<,SAVE01",null,"入力した有資格者数が３７の①技術職員の数を超えないように記入してください。","YES"]
["３６ 有資格者数　電気・電子　相関チェック","AD255","KYII2","AD255","<,SAVE01",null,"入力した有資格者数が３７の①技術職員の数を超えないように記入してください。","YES"]
["３６ 有資格者数　水産土木　相関チェック","AH255","KYII2","AH255","<,SAVE01",null,"入力した有資格者数が３７の①技術職員の数を超えないように記入してください。","YES"]
["３６ 有資格者数　廃棄物　相関チェック","AL255","KYII2","AL255","<,SAVE01",null,"入力した有資格者数が３７の①技術職員の数を超えないように記入してください。","YES"]
["３６ 有資格者数　建設情報　相関チェック","AP255","KYII2","AP255","<,SAVE01",null,"入力した有資格者数が３７の①技術職員の数を超えないように記入してください。","YES"]
["３６ 有資格者数　公認会計士　相関チェック","F259","KYII2","F259","<,SAVE01",null,"入力した有資格者数が３７の①技術職員の数を超えないように記入してください。","YES"]
["３６ 有資格者数　会計士補　相関チェック","J259","KYII2","J259","<,SAVE01",null,"入力した有資格者数が３７の①技術職員の数を超えないように記入してください。","YES"]
["３６ 有資格者数　税理士　相関チェック","N259","KYII2","N259","<,SAVE01",null,"入力した有資格者数が３７の①技術職員の数を超えないように記入してください。","YES"]
["３６ 有資格者数　第一種電気主任技術者　相関チェック","R259","KYII2","R259","<,SAVE01",null,"入力した有資格者数が３７の①技術職員の数を超えないように記入してください。","YES"]
["３６ 有資格者数　第一種伝送交換主任技術者　相関チェック","V259","KYII2","V259","<,SAVE01",null,"入力した有資格者数が３７の①技術職員の数を超えないように記入してください。","YES"]
["３６ 有資格者数　線路主任技術者　相関チェック","Z259","KYII2","Z259","<,SAVE01",null,"入力した有資格者数が３７の①技術職員の数を超えないように記入してください。","YES"]
["３６ 有資格者数　中小企業診断士　相関チェック","AD259","KYII2","AD259","<,SAVE01",null,"入力した有資格者数が３７の①技術職員の数を超えないように記入してください。","YES"]
["３６ 有資格者数　地質調査技士　相関チェック","AH259","KYII2","AH259","<,SAVE01",null,"入力した有資格者数が３７の①技術職員の数を超えないように記入してください。","YES"]
["３６ 有資格者数　土地区画整理士　相関チェック","AL259","KYII2","AL259","<,SAVE01",null,"入力した有資格者数が３７の①技術職員の数を超えないように記入してください。","YES"]
["３６ 有資格者数　建設ｺﾝｻﾙﾀﾝﾄ業務実務経験者　相関チェック","AP259","KYII2","AP259","<,SAVE01",null,"入力した有資格者数が３７の①技術職員の数を超えないように記入してください。","YES"]
["３６ 有資格者数　用地調査等業務実務経験者　相関チェック","AT259","KYII2","AT259","<,SAVE01",null,"入力した有資格者数が３７の①技術職員の数を超えないように記入してください。","YES"]
["３６ 有資格者数　公共用地取得実務経験者　相関チェック","AX259","KYII2","AX259","<,SAVE01",null,"入力した有資格者数が３７の①技術職員の数を超えないように記入してください。","YES"]
["２０ 消防団協力事業所の認定有無","P75","IK7","Q18","1",null,null,"YES"]
["２１ 協力雇用主の登録または暴力団離脱者社会復帰支援事業協力事業所の登録有無","AD78","IK7","Q18","1",null,null,"YES"]
["２２ 障害者雇用の有無","L81","IK7","Q18","1",null,null,"YES"]
["２９ 希望業務実績高　②直前１期決算　測量","O182","IK8","J144,K144,L144","○","２９ 希望業務実績高　測量","２８ 希望業務の内容　測量","YES"]
["２９ 希望業務実績高　②直前１期決算　建築関係建設コンサルタント業務","O183","IK8","M144,N144,O144,P144,Q144,R144,S144,T144,U144,V144","○","２９ 希望業務実績高　建築関係建設コンサルタント業務","２８ 希望業務の内容　建築関係建設コンサルタント業務","YES"]
["２９ 希望業務実績高　②直前１期決算　地質調査業務","O184","IK8","W144","○","２９ 希望業務実績高　地質調査業務","２８ 希望業務の内容　地質調査業務","YES"]
["２９ 希望業務実績高　②直前１期決算　補償関係コンサルタント業務","O185","IK8","Z144,AA144,AB144,AC144,AD144,AE144,AF144,AG144","○","２９ 希望業務実績高　補償関係コンサルタント業務","２８ 希望業務の内容　補償関係コンサルタント業務","YES"]
["２９ 希望業務実績高　②直前１期決算　土木関係建設コンサルタント業務","O186","IK8","AH144,AJ144,AK144,AL144,AM144,AN144,AP144,AQ144,AR144,AS144,AT144,AU144,AV144,AX144,AY144,AZ144,BB144,BC144,BE144,BF144,BG144","○","２９ 希望業務実績高　土木関係建設コンサルタント業務","２８ 希望業務の内容　土木関係建設コンサルタント業務","YES"]
["２９ 希望業務実績高　②直前１期決算　その他業務（上記５業務以外）","O187","IK8","I148,J148,K148","○","２９ 希望業務実績高　その他業務（上記５業務以外）","２８ 希望業務の内容　その他業務（上記５業務以外）","YES"]
["２９ 希望業務実績高　③直前２期決算　測量","X182","IK8","J144,K144,L144","○","２９ 希望業務実績高　測量","２８ 希望業務の内容　測量","YES"]
["２９ 希望業務実績高　③直前２期決算　建築関係建設コンサルタント業務","X183","IK8","M144,N144,O144,P144,Q144,R144,S144,T144,U144,V144","○","２９ 希望業務実績高　建築関係建設コンサルタント業務","２８ 希望業務の内容　建築関係建設コンサルタント業務","YES"]
["２９ 希望業務実績高　③直前２期決算　地質調査業務","X184","IK8","W144","○","２９ 希望業務実績高　地質調査業務","２８ 希望業務の内容　地質調査業務","YES"]
["２９ 希望業務実績高　③直前２期決算　補償関係コンサルタント業務","X185","IK8","Z144,AA144,AB144,AC144,AD144,AE144,AF144,AG144","○","２９ 希望業務実績高　補償関係コンサルタント業務","２８ 希望業務の内容　補償関係コンサルタント業務","YES"]
["２９ 希望業務実績高　③直前２期決算　土木関係建設コンサルタント業務","X186","IK8","AH144,AJ144,AK144,AL144,AM144,AN144,AP144,AQ144,AR144,AS144,AT144,AU144,AV144,AX144,AY144,AZ144,BB144,BC144,BE144,BF144,BG144","○","２９ 希望業務実績高　土木関係建設コンサルタント業務","２８ 希望業務の内容　土木関係建設コンサルタント業務","YES"]
["２９ 希望業務実績高　③直前２期決算　その他業務（上記５業務以外）","X187","IK8","I148,J148,K148","○","２９ 希望業務実績高　その他業務（上記５業務以外）","２８ 希望業務の内容　その他業務（上記５業務以外）","YES"]
["２９ 希望業務実績高　④直前３期決算　測量","AG182","IK","AH178,AI178,AL178,AH179,AI179,AL179",null,null,null,"YES"]
["２９ 希望業務実績高　④直前３期決算　建築関係建設コンサルタント業務","AG183","IK","AH178,AI178,AL178,AH179,AI179,AL179",null,null,null,"YES"]
["２９ 希望業務実績高　④直前３期決算　地質調査業務","AG184","IK","AH178,AI178,AL178,AH179,AI179,AL179",null,null,null,"YES"]
["２９ 希望業務実績高　④直前３期決算　補償関係コンサルタント業務","AG185","IK","AH178,AI178,AL178,AH179,AI179,AL179",null,null,null,"YES"]
["２９ 希望業務実績高　④直前３期決算　土木関係建設コンサルタント業務","AG186","IK","AH178,AI178,AL178,AH179,AI179,AL179",null,null,null,"YES"]
["２９ 希望業務実績高　④直前３期決算　その他業務（上記５業務以外）","AG187","IK","AH178,AI178,AL178,AH179,AI179,AL179",null,null,null,"YES"]
["２９ 希望業務実績高　④直前３期決算　測量","AG182","IK8","J144,K144,L144","○","２９ 希望業務実績高　測量","２８ 希望業務の内容　測量","YES"]
["２９ 希望業務実績高　④直前３期決算　建築関係建設コンサルタント業務","AG183","IK8","M144,N144,O144,P144,Q144,R144,S144,T144,U144,V144","○","２９ 希望業務実績高　建築関係建設コンサルタント業務","２８ 希望業務の内容　建築関係建設コンサルタント業務","YES"]
["２９ 希望業務実績高　④直前３期決算　地質調査業務","AG184","IK8","W144","○","２９ 希望業務実績高　地質調査業務","２８ 希望業務の内容　地質調査業務","YES"]
["２９ 希望業務実績高　④直前３期決算　補償関係コンサルタント業務","AG185","IK8","Z144,AA144,AB144,AC144,AD144,AE144,AF144,AG144","○","２９ 希望業務実績高　補償関係コンサルタント業務","２８ 希望業務の内容　補償関係コンサルタント業務","YES"]
["２９ 希望業務実績高　④直前３期決算　土木関係建設コンサルタント業務","AG186","IK8","AH144,AJ144,AK144,AL144,AM144,AN144,AP144,AQ144,AR144,AS144,AT144,AU144,AV144,AX144,AY144,AZ144,BB144,BC144,BE144,BF144,BG144","○","２９ 希望業務実績高　土木関係建設コンサルタント業務","２８ 希望業務の内容　土木関係建設コンサルタント業務","YES"]
["２９ 希望業務実績高　④直前３期決算　その他業務（上記５業務以外）","AG187","IK8","I148,J148,K148","○","２９ 希望業務実績高　その他業務（上記５業務以外）","２８ 希望業務の内容　その他業務（上記５業務以外）","YES"]
["２９ 希望業務実績高　⑤直前４期決算　測量","AP182","IK","AQ178,AR178,AU178,AQ179,AR179,AU179",null,null,null,"YES"]
["２９ 希望業務実績高　⑤直前４期決算　建築関係建設コンサルタント業務","AP183","IK","AQ178,AR178,AU178,AQ179,AR179,AU179",null,null,null,"YES"]
["２９ 希望業務実績高　⑤直前４期決算　地質調査業務","AP184","IK","AQ178,AR178,AU178,AQ179,AR179,AU179",null,null,null,"YES"]
["２９ 希望業務実績高　⑤直前４期決算　補償関係コンサルタント業務","AP185","IK","AQ178,AR178,AU178,AQ179,AR179,AU179",null,null,null,"YES"]
["２９ 希望業務実績高　⑤直前４期決算　土木関係建設コンサルタント業務","AP186","IK","AQ178,AR178,AU178,AQ179,AR179,AU179",null,null,null,"YES"]
["２９ 希望業務実績高　⑤直前４期決算　その他業務（上記５業務以外）","AP187","IK","AQ178,AR178,AU178,AQ179,AR179,AU179",null,null,null,"YES"]
["２９ 希望業務実績高　⑤直前４期決算　測量","AP182","IK8","J144,K144,L144","○","２９ 希望業務実績高　測量","２８ 希望業務の内容　測量","YES"]
["２９ 希望業務実績高　⑤直前４期決算　建築関係建設コンサルタント業務","AP183","IK8","M144,N144,O144,P144,Q144,R144,S144,T144,U144,V144","○","２９ 希望業務実績高　建築関係建設コンサルタント業務","２８ 希望業務の内容　建築関係建設コンサルタント業務","YES"]
["２９ 希望業務実績高　⑤直前４期決算　地質調査業務","AP184","IK8","W144","○","２９ 希望業務実績高　地質調査業務","２８ 希望業務の内容　地質調査業務","YES"]
["２９ 希望業務実績高　⑤直前４期決算　補償関係コンサルタント業務","AP185","IK8","Z144,AA144,AB144,AC144,AD144,AE144,AF144,AG144","○","２９ 希望業務実績高　補償関係コンサルタント業務","２８ 希望業務の内容　補償関係コンサルタント業務","YES"]
["２９ 希望業務実績高　⑤直前４期決算　土木関係建設コンサルタント業務","AP186","IK8","AH144,AJ144,AK144,AL144,AM144,AN144,AP144,AQ144,AR144,AS144,AT144,AU144,AV144,AX144,AY144,AZ144,BB144,BC144,BE144,BF144,BG144","○","２９ 希望業務実績高　土木関係建設コンサルタント業務","２８ 希望業務の内容　土木関係建設コンサルタント業務","YES"]
["２９ 希望業務実績高　⑤直前４期決算　その他業務（上記５業務以外）","AP187","IK8","I148,J148,K148","○","２９ 希望業務実績高　その他業務（上記５業務以外）","２８ 希望業務の内容　その他業務（上記５業務以外）","YES"]

{"sheet":"受注者・コンサル　申請CSVレイアウト","index":5,"n_rows":504,"n_cols":59,"rows_kept":504,"cut":false,"hidden":true,"merged":[[492,0,492,1],[492,26,492,27],[492,28,492,29],[492,30,492,31],[492,32,492,53],[493,0,493,1],[493,26,493,27],[493,28,493,29],[493,30,493,31],[493,32,493,53],[498,26,498,27],[498,28,498,29],[498,30,498,31],[498,32,498,53],[140,32,140,53],[139,0,139,1],[139,26,139,27],[139,28,139,29],[139,30,139,31],[194,32,194,53],[195,0,195,1],[195,26,195,27],[195,28,195,29],[195,30,195,31],[467,0,467,1],[467,26,467,27],[467,28,467,29],[467,30,467,31],[467,32,467,53],[221,32,221,53],[222,0,222,1],[222,26,222,27],[464,32,464,53],[465,0,465,1],[465,26,465,27],[465,28,465,29],[465,30,465,31],[465,32,465,53],[195,32,195,53],[194,0,194,1],[194,26,194,27],[194,28,194,29],[194,30,194,31],[192,32,192,53],[193,0,193,1],[197,0,197,1],[197,26,197,27],[197,28,197,29],[197,30,197,31],[197,32,197,53],[196,0,196,1],[196,26,196,27],[196,28,196,29],[196,30,196,31],[248,32,248,53],[248,0,248,1],[248,26,248,27],[248,28,248,29],[248,30,248,31],[217,26,217,27],[217,28,217,29],[217,30,217,31],[219,32,219,53],[220,26,220,27],[139,32,139,53],[51,0,51,1],[51,26,51,27],[51,28,51,29],[51,30,51,31],[51,32,51,53],[52,0,52,1],[52,26,52,27],[52,28,52,29],[52,30,52,31],[52,32,52,53],[198,32,198,53],[198,0,198,1],[198,26,198,27],[198,28,198,29],[198,30,198,31],[196,32,196,53],[53,0,53,1],[53,26,53,27],[53,28,53,29],[53,30,53,31],[53,32,53,53],[54,0,54,1],[54,26,54,27],[54,28,54,29],[54,30,54,31],[54,32,54,53],[193,26,193,27],[193,28,193,29],[193,30,193,31],[193,32,193,53],[56,0,56,1],[190,32,190,53],[499,26,499,27],[499,28,499,29],[48,26,48,27],[44,0,44,1],[498,0,498,1],[42,30,42,31],[42,32,42,53],[43,26,43,27],[43,28,43,29],[43,30,43,31],[43,32,43,53],[46,30,46,31],[466,0,466,1],[466,26,466,27],[466,28,466,29],[466,30,466,31],[466,32,466,53],[499,0,499,1],[47,0,47,1],[46,0,46,1],[42,0,42,1],[43,0,43,1],[48,28,48,29],[48,30,48,31],[48,32,48,53],[499,30,499,31],[499,32,499,53],[47,26,47,27],[47,28,47,29],[47,30,47,31],[47,32,47,53],[46,32,46,53],[41,26,41,27],[41,28,41,29],[41,30,41,31],[41,32,41,53],[45,32,45,53],[45,0,45,1],[469,30,469,31],[475,0,475,1],[475,26,475,27],[475,28,475,29],[475,30,475,31],[475,32,475,53],[473,26,473,27],[473,28,473,29],[48,0,48,1],[46,26,46,27],[46,28,46,29],[42,26,42,27],[42,28,42,29],[44,26,44,27],[44,28,44,29],[41,0,41,1],[140,0,140,1],[140,26,140,27],[140,28,140,29],[140,30,140,31],[199,32,199,53],[200,0,200,1],[200,26,200,27],[212,0,212,1],[212,26,212,27],[191,0,191,1],[191,26,191,27],[191,28,191,29],[191,30,191,31],[191,32,191,53],[213,32,213,53],[214,32,214,53],[213,0,213,1],[213,26,213,27],[213,28,213,29],[213,30,213,31],[214,30,214,31],[192,0,192,1],[192,26,192,27],[192,28,192,29],[192,30,192,31],[207,32,207,53],[208,0,208,1],[208,26,208,27],[208,28,208,29],[208,30,208,31],[208,32,208,53],[207,0,207,1],[207,26,207,27],[207,28,207,29],[207,30,207,31],[209,32,209,53],[210,0,210,1],[210,26,210,27],[210,28,210,29],[209,28,209,29],[209,30,209,31],[190,0,190,1],[190,26,190,27],[190,28,190,29],[190,30,190,31],[188,32,188,53],[189,0,189,1],[189,26,189,27],[189,28,189,29],[189,30,189,31],[189,32,189,53],[188,0,188,1],[188,26,188,27],[188,28,188,29],[188,30,188,31],[212,32,212,53],[211,0,211,1],[211,26,211,27],[211,28,211,29],[211,30,211,31],[200,28,200,29],[200,30,200,31],[200,32,200,53],[199,0,199,1],[201,30,201,31],[201,32,201,53],[202,0,202,1],[202,26,202,27],[202,28,202,29],[202,30,202,31],[202,32,202,53],[201,0,201,1],[199,30,199,31],[186,32,186,53],[187,0,187,1],[187,26,187,27],[187,28,187,29],[187,30,187,31],[187,32,187,53],[186,0,186,1],[186,26,186,27],[186,28,186,29],[186,30,186,31],[176,32,176,53],[177,0,177,1],[177,26,177,27],[177,28,177,29],[177,30,177,31],[184,32,184,53],[185,0,185,1],[185,26,185,27],[185,28,185,29],[185,30,185,31],[185,32,185,53],[184,0,184,1],[184,26,184,27],[184,28,184,29],[184,30,184,31],[182,32,182,53],[183,0,183,1],[183,26,183,27],[183,28,183,29],[183,30,183,31],[183,32,183,53],[182,0,182,1],[182,26,182,27],[182,28,182,29],[182,30,182,31],[180,32,180,53],[181,0,181,1],[181,26,181,27],[181,28,181,29],[181,30,181,31],[181,32,181,53],[180,0,180,1],[180,26,180,27],[180,28,180,29],[180,30,180,31],[178,32,178,53],[179,0,179,1],[179,26,179,27],[179,28,179,29],[179,30,179,31],[179,32,179,53],[178,0,178,1],[178,26,178,27],[178,28,178,29],[178,30,178,31],[120,0,120,1],[121,0,121,1],[122,0,122,1],[123,0,123,1],[124,0,124,1],[125,0,125,1],[126,0,126,1],[161,26,161,27],[161,28,161,29],[158,28,158,29],[156,0,156,1],[156,26,156,27],[156,28,156,29],[134,28,134,29],[157,28,157,29],[158,0,158,1],[160,26,160,27],[151,28,151,29],[122,28,122,29],[142,0,142,1],[142,26,142,27],[142,28,142,29],[128,0,128,1],[128,26,128,27],[128,28,128,29],[127,0,127,1],[127,26,127,27],[127,28,127,29],[125,26,125,27],[125,28,125,29],[122,26,122,27],[131,0,131,1],[177,32,177,53],[176,0,176,1],[176,26,176,27],[176,28,176,29],[176,30,176,31],[174,32,174,53],[175,0,175,1],[175,26,175,27],[175,28,175,29],[175,30,175,31],[175,32,175,53],[174,0,174,1],[174,26,174,27],[174,28,174,29],[174,30,174,31],[164,32,164,53],[148,32,148,53],[149,0,149,1],[149,26,149,27],[149,28,149,29],[151,32,151,53],[167,28,167,29],[167,30,167,31],[148,30,148,31],[167,32,167,53],[166,32,166,53],[166,26,166,27],[166,28,166,29],[166,30,166,31],[158,26,158,27],[153,0,153,1],[153,26,153,27],[163,32,163,53],[161,30,161,31],[162,32,162,53],[158,32,158,53],[161,32,161,53],[162,30,162,31],[154,32,154,53],[155,32,155,53],[156,32,156,53],[157,32,157,53],[155,26,155,27],[155,28,155,29],[155,30,155,31],[154,0,154,1],[154,26,154,27],[152,26,152,27],[152,28,152,29],[154,30,154,31],[157,0,157,1],[157,30,157,31],[162,26,162,27],[163,26,163,27],[155,0,155,1],[163,0,163,1],[153,28,153,29],[147,32,147,53],[146,0,146,1],[150,0,150,1],[150,26,150,27],[150,28,150,29],[130,0,130,1],[147,30,147,31],[137,32,137,53],[136,0,136,1],[136,26,136,27],[136,28,136,29],[136,30,136,31],[137,0,137,1],[129,0,129,1],[138,0,138,1],[138,26,138,27],[138,28,138,29],[147,0,147,1],[137,30,137,31],[142,32,142,53],[143,0,143,1],[143,26,143,27],[144,0,144,1],[149,30,149,31],[149,32,149,53],[142,30,142,31],[146,30,146,31],[150,32,150,53],[146,32,146,53],[147,26,147,27],[147,28,147,29],[132,0,132,1],[132,26,132,27],[132,28,132,29],[133,0,133,1],[133,26,133,27],[133,28,133,29],[133,30,133,31],[144,26,144,27],[144,28,144,29],[154,28,154,29],[138,30,138,31],[145,0,145,1],[145,26,145,27],[150,30,150,31],[157,26,157,27],[161,0,161,1],[144,30,144,31],[151,0,151,1],[151,26,151,27],[151,30,151,31],[169,0,169,1],[169,26,169,27],[169,28,169,29],[169,30,169,31],[134,32,134,53],[135,0,135,1],[135,26,135,27],[135,28,135,29],[135,30,135,31],[135,32,135,53],[134,0,134,1],[134,26,134,27],[136,32,136,53],[164,0,164,1],[165,0,165,1],[168,0,168,1],[168,26,168,27],[166,0,166,1],[165,26,165,27],[143,30,143,31],[143,32,143,53],[169,32,169,53],[137,26,137,27],[137,28,137,29],[148,0,148,1],[153,30,153,31],[153,32,153,53],[152,0,152,1],[144,32,144,53],[168,32,168,53],[167,0,167,1],[167,26,167,27],[126,26,126,27],[126,28,126,29],[126,30,126,31],[130,32,130,53],[131,32,131,53],[160,28,160,29],[160,30,160,31],[134,30,134,31],[168,28,168,29],[168,30,168,31],[138,32,138,53],[141,0,141,1],[141,26,141,27],[141,28,141,29],[141,30,141,31],[165,30,165,31],[152,30,152,31],[164,26,164,27],[164,28,164,29],[164,30,164,31],[156,30,156,31],[152,32,152,53],[163,28,163,29],[162,28,162,29],[129,30,129,31],[165,32,165,53],[129,32,129,53],[128,30,128,31],[143,28,143,29],[163,30,163,31],[158,30,158,31],[162,0,162,1],[125,30,125,31],[125,32,125,53],[124,26,124,27],[124,28,124,29],[124,30,124,31],[123,26,123,27],[123,28,123,29],[123,30,123,31],[123,32,123,53],[128,32,128,53],[130,26,130,27],[130,28,130,29],[130,30,130,31],[148,26,148,27],[148,28,148,29],[132,32,132,53],[133,32,133,53],[131,26,131,27],[131,28,131,29],[131,30,131,31],[141,32,141,53],[132,30,132,31],[145,28,145,29],[145,30,145,31],[145,32,145,53],[129,26,129,27],[129,28,129,29],[146,26,146,27],[146,28,146,29],[126,32,126,53],[127,30,127,31],[127,32,127,53],[122,30,122,31],[171,0,171,1],[171,26,171,27],[171,28,171,29],[171,30,171,31],[113,32,113,53],[114,0,114,1],[114,26,114,27],[114,28,114,29],[114,30,114,31],[114,32,114,53],[113,0,113,1],[113,26,113,27],[113,28,113,29],[113,30,113,31],[119,26,119,27],[119,28,119,29],[119,30,119,31],[117,0,117,1],[117,30,117,31],[171,32,171,53],[120,30,120,31],[120,32,120,53],[121,26,121,27],[121,28,121,29],[121,30,121,31],[121,32,121,53],[122,32,122,53],[170,0,170,1],[170,26,170,27],[170,28,170,29],[124,32,124,53],[111,32,111,53],[112,32,112,53],[119,32,119,53],[117,32,117,53],[118,26,118,27],[118,28,118,29],[118,30,118,31],[118,32,118,53],[117,26,117,27],[117,28,117,29],[112,0,112,1],[112,26,112,27],[112,28,112,29],[112,30,112,31],[111,0,111,1],[111,26,111,27],[111,28,111,29],[111,30,111,31],[118,0,118,1],[119,0,119,1],[115,32,115,53],[116,0,116,1],[116,26,116,27],[116,28,116,29],[116,30,116,31],[116,32,116,53],[115,0,115,1],[115,26,115,27],[115,28,115,29],[115,30,115,31],[8,0,8,1],[9,0,9,1],[12,0,12,1],[13,0,13,1],[14,0,14,1],[15,0,15,1],[18,0,18,1],[19,0,19,1],[96,0,96,1],[96,26,96,27],[15,26,15,27],[19,26,19,27],[21,26,21,27],[20,26,20,27],[96,28,96,29],[96,30,96,31],[95,32,95,53],[94,0,94,1],[94,26,94,27],[94,28,94,29],[94,30,94,31],[95,0,95,1],[95,26,95,27],[95,28,95,29],[95,30,95,31],[44,30,44,31],[44,32,44,53],[56,26,56,27],[56,28,56,29],[56,30,56,31],[56,32,56,53],[92,32,92,53],[93,32,93,53],[92,0,92,1],[92,26,92,27],[92,30,92,31],[103,32,103,53],[100,28,100,29],[100,30,100,31],[102,26,102,27],[110,26,110,27],[110,28,110,29],[110,30,110,31],[110,32,110,53],[96,32,96,53],[103,0,103,1],[109,0,109,1],[105,32,105,53],[109,26,109,27],[109,28,109,29],[109,30,109,31],[90,26,90,27],[90,28,90,29],[90,30,90,31],[91,0,91,1],[91,26,91,27],[91,28,91,29],[91,30,91,31],[92,28,92,29],[103,26,103,27],[103,28,103,29],[103,30,103,31],[101,0,101,1],[102,0,102,1],[101,26,101,27],[101,28,101,29],[101,30,101,31],[93,0,93,1],[93,26,93,27],[93,28,93,29],[93,30,93,31],[88,32,88,53],[89,0,89,1],[89,26,89,27],[89,28,89,29],[89,30,89,31],[89,32,89,53],[88,0,88,1],[88,26,88,27],[88,28,88,29],[88,30,88,31],[104,32,104,53],[86,32,86,53],[87,0,87,1],[87,26,87,27],[87,28,87,29],[87,30,87,31],[87,32,87,53],[86,0,86,1],[86,26,86,27],[86,28,86,29],[86,30,86,31],[90,32,90,53],[91,32,91,53],[97,32,97,53],[98,32,98,53],[99,32,99,53],[100,32,100,53],[101,32,101,53],[94,32,94,53],[102,32,102,53],[104,30,104,31],[90,0,90,1],[83,28,83,29],[83,30,83,31],[83,32,83,53],[82,0,82,1],[82,26,82,27],[82,28,82,29],[82,30,82,31],[106,0,106,1],[106,26,106,27],[106,28,106,29],[106,30,106,31],[100,0,100,1],[100,26,100,27],[105,0,105,1],[105,26,105,27],[105,28,105,29],[105,30,105,31],[102,28,102,29],[102,30,102,31],[104,0,104,1],[104,26,104,27],[104,28,104,29],[84,32,84,53],[85,0,85,1],[85,26,85,27],[85,28,85,29],[85,30,85,31],[85,32,85,53],[84,0,84,1],[84,26,84,27],[84,28,84,29],[84,30,84,31],[77,28,77,29],[77,30,77,31],[77,32,77,53],[76,0,76,1],[76,26,76,27],[76,28,76,29],[76,30,76,31],[107,32,107,53],[80,32,80,53],[81,0,81,1],[81,26,81,27],[81,28,81,29],[81,30,81,31],[81,32,81,53],[80,0,80,1],[80,26,80,27],[80,28,80,29],[80,30,80,31],[106,32,106,53],[78,32,78,53],[79,0,79,1],[79,26,79,27],[79,28,79,29],[79,30,79,31],[79,32,79,53],[78,0,78,1],[78,26,78,27],[78,28,78,29],[78,30,78,31],[82,32,82,53],[83,0,83,1],[83,26,83,27],[72,32,72,53],[73,0,73,1],[73,26,73,27],[73,28,73,29],[73,30,73,31],[73,32,73,53],[72,0,72,1],[72,26,72,27],[72,28,72,29],[72,30,72,31],[108,32,108,53],[70,32,70,53],[71,0,71,1],[71,26,71,27],[71,28,71,29],[71,30,71,31],[71,32,71,53],[70,0,70,1],[97,0,97,1],[97,26,97,27],[74,32,74,53],[75,0,75,1],[75,26,75,27],[75,28,75,29],[75,30,75,31],[75,32,75,53],[74,0,74,1],[74,26,74,27],[74,28,74,29],[76,32,76,53],[77,0,77,1],[77,26,77,27],[0,49,0,53],[0,0,0,16],[0,17,0,26],[1,0,2,16],[1,17,2,26],[1,46,1,48],[1,49,1,53],[0,27,0,36],[0,37,0,39],[0,40,0,45],[2,49,2,53],[2,37,2,39],[2,40,2,45],[7,30,7,31],[7,32,7,53],[5,30,5,31],[5,32,5,53],[6,32,6,53],[0,46,0,48],[1,27,2,36],[1,37,1,39],[1,40,1,45],[2,46,2,48],[5,0,5,1],[5,2,5,25],[7,26,7,27],[5,26,5,27],[5,28,5,29],[7,28,7,29],[6,0,6,1],[7,0,7,1],[25,26,25,27],[28,26,28,27],[23,26,23,27],[25,28,25,29],[15,32,15,53],[14,30,14,31],[15,28,15,29],[14,26,14,27],[18,32,18,53],[18,26,18,27],[15,30,15,31],[19,32,19,53],[20,28,20,29],[20,30,20,31],[20,32,20,53],[19,28,19,29],[19,30,19,31],[23,32,23,53],[9,28,9,29],[13,28,13,29],[12,28,12,29],[13,32,13,53],[9,30,9,31],[13,30,13,31],[12,30,12,31],[14,32,14,53],[22,32,22,53],[21,28,21,29],[21,30,21,31],[16,32,16,53],[27,28,27,29],[27,30,27,31],[29,32,29,53],[18,28,18,29],[18,30,18,31],[8,30,8,31],[12,32,12,53],[8,32,8,53],[6,26,6,27],[6,28,6,29],[6,30,6,31],[9,26,9,27],[8,26,8,27],[12,26,12,27],[9,32,9,53],[8,28,8,29],[22,0,22,1],[21,0,21,1],[20,0,20,1],[10,0,10,1],[10,26,10,27],[10,28,10,29],[10,30,10,31],[10,32,10,53],[11,0,11,1],[11,26,11,27],[11,28,11,29],[11,30,11,31],[11,32,11,53],[16,0,16,1],[16,26,16,27],[16,28,16,29],[16,30,16,31],[21,32,21,53],[22,26,22,27],[22,28,22,29],[22,30,22,31],[17,0,17,1],[17,26,17,27],[17,28,17,29],[17,30,17,31],[17,32,17,53],[13,26,13,27],[14,28,14,29],[24,0,24,1],[24,26,24,27],[24,28,24,29],[24,30,24,31],[24,32,24,53],[23,0,23,1],[23,28,23,29],[23,30,23,31],[29,28,29,29],[29,30,29,31],[25,32,25,53],[26,0,26,1],[26,26,26,27],[26,28,26,29],[26,30,26,31],[26,32,26,53],[25,0,25,1],[25,30,25,31],[27,32,27,53],[28,0,28,1],[28,28,28,29],[28,30,28,31],[28,32,28,53],[27,0,27,1],[27,26,27,27],[31,0,31,1],[30,26,30,27],[30,28,30,29],[30,30,30,31],[30,32,30,53],[30,0,30,1],[29,0,29,1],[29,26,29,27],[31,26,31,27],[31,28,31,29],[31,30,31,31],[32,26,32,27],[32,28,32,29],[32,30,32,31],[32,32,32,53],[34,32,34,53],[34,0,34,1],[33,26,33,27],[33,28,33,29],[33,30,33,31],[33,32,33,53],[33,0,33,1],[32,0,32,1],[34,26,34,27],[34,28,34,29],[34,30,34,31],[31,32,31,53],[35,0,35,1],[37,26,37,27],[37,28,37,29],[37,30,37,31],[38,26,38,27],[38,28,38,29],[38,30,38,31],[38,32,38,53],[40,32,40,53],[40,0,40,1],[39,26,39,27],[39,28,39,29],[39,30,39,31],[39,32,39,53],[39,0,39,1],[38,0,38,1],[40,26,40,27],[40,28,40,29],[40,30,40,31],[35,26,35,27],[35,28,35,29],[35,30,35,31],[35,32,35,53],[500,32,500,53],[501,0,501,1],[501,26,501,27],[496,0,496,1],[49,30,49,31],[501,28,501,29],[501,30,501,31],[501,32,501,53],[500,0,500,1],[500,26,500,27],[500,28,500,29],[37,32,37,53],[37,0,37,1],[36,26,36,27],[36,28,36,29],[36,30,36,31],[36,32,36,53],[36,0,36,1],[109,32,109,53],[63,32,63,53],[63,0,63,1],[63,26,63,27],[63,28,63,29],[63,30,63,31],[74,30,74,31],[108,0,108,1],[108,26,108,27],[108,28,108,29],[108,30,108,31],[97,28,97,29],[97,30,97,31],[98,0,98,1],[495,32,495,53],[495,0,495,1],[494,26,494,27],[494,28,494,29],[494,30,494,31],[494,32,494,53],[494,0,494,1],[495,26,495,27],[495,28,495,29],[495,30,495,31],[496,26,496,27],[496,28,496,29]],"merged_total":2514,"flags":["merged_cut"]}
["【資料名】",null,null,null,null,null,null,null,null,null,null,null,null,null,null,null,null,"【システム名】",null,null,null,null,null,null,null,null,null,"【サブシステム名】",null,null,null,null,null,null,null,null,null,"作成日",null,null,null,null,null,null,null,null,"更新日"]
["受注者・コンサル　申請内容入力ＣＳＶレイアウト",null,null,null,null,null,null,null,null,null,null,null,null,null,null,null,null,"広島県電子入札等システム",null,null,null,null,null,null,null,null,null,"資格審査受付システム",null,null,null,null,null,null,null,null,null,"作成者",null,null,null,null,null,null,null,null,"更新者"]
[null,null,null,null,null,null,null,null,null,null,null,null,null,null,null,null,null,null,null,null,null,null,null,null,null,null,null,null,null,null,null,null,null,null,null,null,null,"開発工程",null,null,null,null,null,null,null,null,"Version"]
[]
["ＭＳ）仮申請書ＣＳＶレイアウト"]
["NO",null,"項目（日本語）",null,null,null,null,null,null,null,null,null,null,null,null,null,null,null,null,null,null,null,null,null,null,null,"桁",null,"PK",null,"必須",null,"備考",null,null,null,null,null,null,null,null,null,null,null,null,null,null,null,null,null,null,null,null,null,"セル位置","デフォルト","文字列置換え","CSV出力"]
[1,null,"登録番号チェック",null,null,null,null,null,null,null,null,null,null,null,null,null,null,null,null,null,null,null,null,null,null,null,1,null,null,null,null,null,"チェック在り：1、チェック無し：0☆☆☆☆☆☆☆☆☆☆☆☆☆☆☆☆☆☆☆☆☆☆",null,null,null,null,null,null,null,null,null,null,null,null,null,null,null,null,null,null,null,null,null,null,"0",null,"YES"]
[{"$f":"A7+1","v":2},null,"登録番号",null,null,null,null,null,null,null,null,null,null,null,null,null,null,null,null,null,null,null,null,null,null,null,6,null,null,null,null,null,"半角数字６桁",null,null,null,null,null,null,null,null,null,null,null,null,null,null,null,null,null,null,null,null,null,"K6",null,null,"YES"]
[3,null,"法人個人の区分チェック",null,null,null,null,null,null,null,null,null,null,null,null,null,null,null,null,null,null,null,null,null,null,null,1,null,null,null,null,null,"チェック在り：1、チェック無し：0☆☆☆☆☆☆☆☆☆☆☆☆☆☆☆☆☆☆☆☆☆☆",null,null,null,null,null,null,null,null,null,null,null,null,null,null,null,null,null,null,null,null,null,null,"0",null,"YES"]
[4,null,"法人個人の区分",null,null,null,null,null,null,null,null,null,null,null,null,null,null,null,null,null,null,null,null,null,null,null,1,null,null,null,"○",null,"0:法人/1:個人",null,null,null,null,null,null,null,null,null,null,null,null,null,null,null,null,null,null,null,null,null,"K7",null,null,"YES"]
[5,null,"法人番号チェック",null,null,null,null,null,null,null,null,null,null,null,null,null,null,null,null,null,null,null,null,null,null,null,1,null,null,null,null,null,"チェック在り：1、チェック無し：0",null,null,null,null,null,null,null,null,null,null,null,null,null,null,null,null,null,null,null,null,null,null,"0",null,"YES"]
[6,null,"法人番号",null,null,null,null,null,null,null,null,null,null,null,null,null,null,null,null,null,null,null,null,null,null,null,13,null,null,null,null,null,"半角数字１３桁",null,null,null,null,null,null,null,null,null,null,null,null,null,null,null,null,null,null,null,null,null,"K8",null,null,"YES"]
[7,null,"商号又は名称（フリガナ）チェック",null,null,null,null,null,null,null,null,null,null,null,null,null,null,null,null,null,null,null,null,null,null,null,1,null,null,null,null,null,"チェック在り：1、チェック無し：0☆☆☆☆☆☆☆☆☆☆☆",null,null,null,null,null,null,null,null,null,null,null,null,null,null,null,null,null,null,null,null,null,null,"0",null,"YES"]
[8,null,"商号又は名称（フリガナ）",null,null,null,null,null,null,null,null,null,null,null,null,null,null,null,null,null,null,null,null,null,null,null,60,null,null,null,"○",null,"全角カタカナ３０桁以内",null,null,null,null,null,null,null,null,null,null,null,null,null,null,null,null,null,null,null,null,null,"M10",null,null,"YES"]
[9,null,"商号又は名称（漢字等）チェック",null,null,null,null,null,null,null,null,null,null,null,null,null,null,null,null,null,null,null,null,null,null,null,1,null,null,null,null,null,"チェック在り：1、チェック無し：0☆☆☆☆☆☆☆☆☆☆☆",null,null,null,null,null,null,null,null,null,null,null,null,null,null,null,null,null,null,null,null,null,null,"0",null,"YES"]
[10,null,"商号又は名称（漢字等）",null,null,null,null,null,null,null,null,null,null,null,null,null,null,null,null,null,null,null,null,null,null,null,60,null,null,null,"○",null,"全角３０桁以内",null,null,null,null,null,null,null,null,null,null,null,null,null,null,null,null,null,null,null,null,null,"M11",null,null,"YES"]
[11,null,"代表者役職チェック",null,null,null,null,null,null,null,null,null,null,null,null,null,null,null,null,null,null,null,null,null,null,null,1,null,null,null,null,null,"チェック在り：1、チェック無し：0",null,null,null,null,null,null,null,null,null,null,null,null,null,null,null,null,null,null,null,null,null,null,"0",null,"YES"]
[12,null,"代表者役職",null,null,null,null,null,null,null,null,null,null,null,null,null,null,null,null,null,null,null,null,null,null,null,40,null,null,null,null,null,"全角２０桁以内",null,null,null,null,null,null,null,null,null,null,null,null,null,null,null,null,null,null,null,null,null,"M13",null,null,"YES"]
[13,null,"代表者氏名（漢字等）チェック",null,null,null,null,null,null,null,null,null,null,null,null,null,null,null,null,null,null,null,null,null,null,null,1,null,null,null,null,null,"チェック在り：1、チェック無し：0☆☆☆☆☆☆☆☆☆☆☆",null,null,null,null,null,null,null,null,null,null,null,null,null,null,null,null,null,null,null,null,null,null,"0",null,"YES"]
[14,null,"代表者氏名（漢字等）",null,null,null,null,null,null,null,null,null,null,null,null,null,null,null,null,null,null,null,null,null,null,null,60,null,null,null,"○",null,"全角３０桁以内",null,null,null,null,null,null,null,null,null,null,null,null,null,null,null,null,null,null,null,null,null,"M14",null,null,"YES"]
[15,null,"郵便番号（本店）チェック",null,null,null,null,null,null,null,null,null,null,null,null,null,null,null,null,null,null,null,null,null,null,null,1,null,null,null,null,null,"チェック在り：1、チェック無し：0☆☆☆☆☆☆☆☆☆☆☆",null,null,null,null,null,null,null,null,null,null,null,null,null,null,null,null,null,null,null,null,null,null,"0",null,"YES"]
[16,null,"郵便番号（本店）",null,null,null,null,null,null,null,null,null,null,null,null,null,null,null,null,null,null,null,null,null,null,null,8,null,null,null,"○",null,"ＮＮＮ－ＮＮＮＮ　半角数字。８桁。ハイフンを含む。",null,null,null,null,null,null,null,null,null,null,null,null,null,null,null,null,null,null,null,null,null,"M16,-,P16",null,null,"YES"]
[17,null,"本店所在地市区町村コ－ドチェック",null,null,null,null,null,null,null,null,null,null,null,null,null,null,null,null,null,null,null,null,null,null,null,1,null,null,null,null,null,"チェック在り：1、チェック無し：0☆☆☆☆☆☆☆☆☆☆☆",null,null,null,null,null,null,null,null,null,null,null,null,null,null,null,null,null,null,null,null,null,null,"0",null,"YES"]
[18,null,"本店所在地市区町村コ－ド",null,null,null,null,null,null,null,null,null,null,null,null,null,null,null,null,null,null,null,null,null,null,null,5,null,null,null,"○",null,null,null,null,null,null,null,null,null,null,null,null,null,null,null,null,null,null,null,null,null,null,null,"Q18",null,null,"YES"]
[19,null,"本店所在地（漢字等）チェック",null,null,null,null,null,null,null,null,null,null,null,null,null,null,null,null,null,null,null,null,null,null,null,1,null,null,null,null,null,"チェック在り：1、チェック無し：0☆☆☆☆☆☆☆☆☆☆☆",null,null,null,null,null,null,null,null,null,null,null,null,null,null,null,null,null,null,null,null,null,null,"0",null,"YES"]
[20,null,"本店所在地（漢字等）（　街区番号、住居番号等まで　）",null,null,null,null,null,null,null,null,null,null,null,null,null,null,null,null,null,null,null,null,null,null,null,70,null,null,null,"○",null,"全角３５桁以内",null,null,null,null,null,null,null,null,null,null,null,null,null,null,null,null,null,null,null,null,null,"Q19",null,null,"YES"]
[21,null,"本店所在地（漢字等）（　ビル名など　）",null,null,null,null,null,null,null,null,null,null,null,null,null,null,null,null,null,null,null,null,null,null,null,40,null,null,null,null,null,"全角２０桁以内",null,null,null,null,null,null,null,null,null,null,null,null,null,null,null,null,null,null,null,null,null,"Q20",null,null,"YES"]
[22,null,"電話番号チェック",null,null,null,null,null,null,null,null,null,null,null,null,null,null,null,null,null,null,null,null,null,null,null,1,null,null,null,null,null,"チェック在り：1、チェック無し：0☆☆☆☆☆☆☆☆☆☆☆",null,null,null,null,null,null,null,null,null,null,null,null,null,null,null,null,null,null,null,null,null,null,"0",null,"YES"]
[23,null,"電話番号",null,null,null,null,null,null,null,null,null,null,null,null,null,null,null,null,null,null,null,null,null,null,null,16,null,null,null,"○",null,"ＮＮＮＮＮＮ－ＮＮＮＮ－ＮＮＮＮ　半角数字。１６桁以内。ハイフンを含む。",null,null,null,null,null,null,null,null,null,null,null,null,null,null,null,null,null,null,null,null,null,"M22,-,R22,-,V22",null,null,"YES"]
[24,null,"ＦＡＸ番号チェック",null,null,null,null,null,null,null,null,null,null,null,null,null,null,null,null,null,null,null,null,null,null,null,1,null,null,null,null,null,"チェック在り：1、チェック無し：0☆☆☆☆☆☆☆☆☆☆☆",null,null,null,null,null,null,null,null,null,null,null,null,null,null,null,null,null,null,null,null,null,null,"0",null,"YES"]
[25,null,"ＦＡＸ番号",null,null,null,null,null,null,null,null,null,null,null,null,null,null,null,null,null,null,null,null,null,null,null,16,null,null,null,"○",null,"ＮＮＮＮＮＮ－ＮＮＮＮ－ＮＮＮＮ　半角数字。１６桁以内。ハイフンを含む。",null,null,null,null,null,null,null,null,null,null,null,null,null,null,null,null,null,null,null,null,null,"M23,-,R23,-,V23",null,null,"YES"]
[26,null,"Ｅメ－ルアドレスチェック",null,null,null,null,null,null,null,null,null,null,null,null,null,null,null,null,null,null,null,null,null,null,null,1,null,null,null,null,null,"チェック在り：1、チェック無し：0☆☆☆☆☆☆☆☆☆☆☆",null,null,null,null,null,null,null,null,null,null,null,null,null,null,null,null,null,null,null,null,null,null,"0",null,"YES"]
[27,null,"Ｅメ－ルアドレス",null,null,null,null,null,null,null,null,null,null,null,null,null,null,null,null,null,null,null,null,null,null,null,45,null,null,null,"○",null,"半角英数字４５桁以内",null,null,null,null,null,null,null,null,null,null,null,null,null,null,null,null,null,null,null,null,null,"M25",null,null,"YES"]
[28,null,"Ｅメ－ルアドレス区分チェック",null,null,null,null,null,null,null,null,null,null,null,null,null,null,null,null,null,null,null,null,null,null,null,1,null,null,null,null,null,"チェック在り：1、チェック無し：0☆☆☆☆☆☆☆☆☆☆☆",null,null,null,null,null,null,null,null,null,null,null,null,null,null,null,null,null,null,null,null,null,null,"0",null,"YES"]
[29,null,"Ｅメ－ルアドレス区分",null,null,null,null,null,null,null,null,null,null,null,null,null,null,null,null,null,null,null,null,null,null,null,1,null,null,null,"○",null,"0:法人用/1:担当者用",null,null,null,null,null,null,null,null,null,null,null,null,null,null,null,null,null,null,null,null,null,"M26",null,null,"YES"]
[30,null,"ＴＥＣＲＩＳ業者登録番号チェック",null,null,null,null,null,null,null,null,null,null,null,null,null,null,null,null,null,null,null,null,null,null,null,1,null,null,null,null,null,"チェック在り：1、チェック無し：0☆☆☆☆☆☆☆☆☆☆☆",null,null,null,null,null,null,null,null,null,null,null,null,null,null,null,null,null,null,null,null,null,null,"0",null,"YES"]
[31,null,"ＴＥＣＲＩＳ業者登録番号",null,null,null,null,null,null,null,null,null,null,null,null,null,null,null,null,null,null,null,null,null,null,null,10,null,null,null,null,null,"半角英数字１０桁",null,null,null,null,null,null,null,null,null,null,null,null,null,null,null,null,null,null,null,null,null,"N28",null,null,"YES"]
[32,null,"ＩＳＯ９００１取得有無チェック",null,null,null,null,null,null,null,null,null,null,null,null,null,null,null,null,null,null,null,null,null,null,null,1,null,null,null,null,null,"チェック在り：1、チェック無し：0☆☆☆☆☆☆☆☆☆☆☆",null,null,null,null,null,null,null,null,null,null,null,null,null,null,null,null,null,null,null,null,null,null,"0",null,"YES"]
[33,null,"ＩＳＯ９００１取得有無",null,null,null,null,null,null,null,null,null,null,null,null,null,null,null,null,null,null,null,null,null,null,null,1,null,null,null,"○",null,"0:なし/1:あり",null,null,null,null,null,null,null,null,null,null,null,null,null,null,null,null,null,null,null,null,null,"M32",null,null,"YES"]
[34,null,"ＩＳＯ９００１取得年月日チェック",null,null,null,null,null,null,null,null,null,null,null,null,null,null,null,null,null,null,null,null,null,null,null,1,null,null,null,null,null,"チェック在り：1、チェック無し：0☆☆☆☆☆☆☆☆☆☆☆",null,null,null,null,null,null,null,null,null,null,null,null,null,null,null,null,null,null,null,null,null,null,"0",null,"YES"]
[35,null,"ＩＳＯ９００１取得年月日",null,null,null,null,null,null,null,null,null,null,null,null,null,null,null,null,null,null,null,null,null,null,null,7,null,null,null,null,null,"ＧＹＹＭＭＤＤ　Ｇ：元号（１：明治　２：大正　３：昭和　４：平成　５：令和）　ＹＹ：年　ＭＭ：月　ＤＤ：日\n西暦変換をセルをBJ列で行いCSVは西暦年月日で出力させている。\nＩＳＯ９００１取得有無が1の場合、入力必須",null,null,null,null,null,null,null,null,null,null,null,null,null,null,null,null,null,null,null,null,null,"BJ33,Q33,T33",null,"-1,","YES"]
[36,null,"継続学習ＣＰＤ学習単位数・認定時間数　測量ＣＰＤチェック",null,null,null,null,null,null,null,null,null,null,null,null,null,null,null,null,null,null,null,null,null,null,null,1,null,null,null,null,null,"チェック在り：1、チェック無し：0",null,null,null,null,null,null,null,null,null,null,null,null,null,null,null,null,null,null,null,null,null,"B40",null,",0","YES"]
[37,null,"継続学習ＣＰＤ学習単位数・認定時間数　測量ＣＰＤ",null,null,null,null,null,null,null,null,null,null,null,null,null,null,null,null,null,null,null,null,null,null,null,4,null,null,null,null,null,"半角数字3桁",null,null,null,null,null,null,null,null,null,null,null,null,null,null,null,null,null,null,null,null,null,"S40",null,",0","YES"]
[38,null,"継続学習ＣＰＤ学習単位数・認定時間数　建築ＣＰＤチェック",null,null,null,null,null,null,null,null,null,null,null,null,null,null,null,null,null,null,null,null,null,null,null,1,null,null,null,null,null,"チェック在り：1、チェック無し：0",null,null,null,null,null,null,null,null,null,null,null,null,null,null,null,null,null,null,null,null,null,"B40",null,",0","YES"]
[39,null,"継続学習ＣＰＤ学習単位数・認定時間数　建築ＣＰＤ",null,null,null,null,null,null,null,null,null,null,null,null,null,null,null,null,null,null,null,null,null,null,null,4,null,null,null,null,null,"半角数字3桁",null,null,null,null,null,null,null,null,null,null,null,null,null,null,null,null,null,null,null,null,null,"X40",null,",0","YES"]
[40,null,"継続学習ＣＰＤ学習単位数・認定時間数　建設系ＣＰＤチェック",null,null,null,null,null,null,null,null,null,null,null,null,null,null,null,null,null,null,null,null,null,null,null,1,null,null,null,null,null,"チェック在り：1、チェック無し：0",null,null,null,null,null,null,null,null,null,null,null,null,null,null,null,null,null,null,null,null,null,"B40",null,",0","YES"]
[41,null,"継続学習ＣＰＤ学習単位数・認定時間数　建設系ＣＰＤ",null,null,null,null,null,null,null,null,null,null,null,null,null,null,null,null,null,null,null,null,null,null,null,4,null,null,null,null,null,"半角数字3桁",null,null,null,null,null,null,null,null,null,null,null,null,null,null,null,null,null,null,null,null,null,"AC40",null,",0","YES"]
[42,null,"社会資本維持管理活動への貢献認定有無チェック",null,null,null,null,null,null,null,null,null,null,null,null,null,null,null,null,null,null,null,null,null,null,null,1,null,null,null,null,null,"チェック在り：1、チェック無し：0",null,null,null,null,null,null,null,null,null,null,null,null,null,null,null,null,null,null,null,null,null,"B46",null,",0","YES"]
[43,null,"社会資本維持管理活動への貢献認定有無",null,null,null,null,null,null,null,null,null,null,null,null,null,null,null,null,null,null,null,null,null,null,null,1,null,null,null,"○",null,"0:なし/1:あり",null,null,null,null,null,null,null,null,null,null,null,null,null,null,null,null,null,null,null,null,null,"R46",null,null,"YES"]
[44,null,"県内営業所の有無チェック",null,null,null,null,null,null,null,null,null,null,null,null,null,null,null,null,null,null,null,null,null,null,null,1,null,null,null,null,null,"チェック在り：1、チェック無し：0☆☆☆☆☆☆☆☆☆☆☆",null,null,null,null,null,null,null,null,null,null,null,null,null,null,null,null,null,null,null,null,null,null,"0",null,"YES"]
[45,null,"県内営業所の有無",null,null,null,null,null,null,null,null,null,null,null,null,null,null,null,null,null,null,null,null,null,null,null,1,null,null,null,"○",null,"0:なし/1:あり",null,null,null,null,null,null,null,null,null,null,null,null,null,null,null,null,null,null,null,null,null,"K73",null,null,"YES"]
[46,null,"消防団協力事業所の認定有無チェック",null,null,null,null,null,null,null,null,null,null,null,null,null,null,null,null,null,null,null,null,null,null,null,1,null,null,null,null,null,"チェック在り：1、チェック無し：0",null,null,null,null,null,null,null,null,null,null,null,null,null,null,null,null,null,null,null,null,null,null,"0",null,"YES"]
[47,null,"消防団協力事業所の認定有無",null,null,null,null,null,null,null,null,null,null,null,null,null,null,null,null,null,null,null,null,null,null,null,1,null,null,null,null,null,"0:なし/1:あり",null,null,null,null,null,null,null,null,null,null,null,null,null,null,null,null,null,null,null,null,null,"P75",null,null,"YES"]
[48,null,"協力雇用主の登録または暴力団離脱者社会復帰支援事業協力事業所の登録有無チェック",null,null,null,null,null,null,null,null,null,null,null,null,null,null,null,null,null,null,null,null,null,null,null,1,null,null,null,null,null,"チェック在り：1、チェック無し：0",null,null,null,null,null,null,null,null,null,null,null,null,null,null,null,null,null,null,null,null,null,null,"0",null,"YES"]
[49,null,"協力雇用主の登録または暴力団離脱者社会復帰支援事業協力事業所の登録有無",null,null,null,null,null,null,null,null,null,null,null,null,null,null,null,null,null,null,null,null,null,null,null,1,null,null,null,null,null,"0:なし/1:あり",null,null,null,null,null,null,null,null,null,null,null,null,null,null,null,null,null,null,null,null,null,"AD78",null,null,"YES"]
[50,null,"障害者雇用の有無チェック",null,null,null,null,null,null,null,null,null,null,null,null,null,null,null,null,null,null,null,null,null,null,null,1,null,null,null,null,null,"チェック在り：1、チェック無し：0",null,null,null,null,null,null,null,null,null,null,null,null,null,null,null,null,null,null,null,null,null,null,"0",null,"YES"]
[51,null,"障害者雇用の有無",null,null,null,null,null,null,null,null,null,null,null,null,null,null,null,null,null,null,null,null,null,null,null,1,null,null,null,null,null,"0:なし/1:あり",null,null,null,null,null,null,null,null,null,null,null,null,null,null,null,null,null,null,null,null,null,"L81",null,null,"YES"]
[52,null,"広島県仕事と家庭の両立支援企業の登録有無チェック",null,null,null,null,null,null,null,null,null,null,null,null,null,null,null,null,null,null,null,null,null,null,null,1,null,null,null,null,null,"チェック在り：1、チェック無し：0",null,null,null,null,null,null,null,null,null,null,null,null,null,null,null,null,null,null,null,null,null,null,"0",null,"YES"]
[53,null,"広島県仕事と家庭の両立支援企業の登録有無",null,null,null,null,null,null,null,null,null,null,null,null,null,null,null,null,null,null,null,null,null,null,null,1,null,null,null,null,null,"0:なし/1:あり",null,null,null,null,null,null,null,null,null,null,null,null,null,null,null,null,null,null,null,null,null,"S84",null,null,"YES"]
[54,null,"申請事務担当者チェック",null,null,null,null,null,null,null,null,null,null,null,null,null,null,null,null,null,null,null,null,null,null,null,1,null,null,null,null,null,"チェック在り：1、チェック無し：0☆☆☆☆☆☆☆☆☆☆☆",null,null,null,null,null,null,null,null,null,null,null,null,null,null,null,null,null,null,null,null,null,null,"0",null,"YES"]
[55,null,"申請事務担当者－部署名等",null,null,null,null,null,null,null,null,null,null,null,null,null,null,null,null,null,null,null,null,null,null,null,60,null,null,null,"○",null,"全角３０桁以内",null,null,null,null,null,null,null,null,null,null,null,null,null,null,null,null,null,null,null,null,null,"J91",null,null,"YES"]
[56,null,"申請事務担当者－担当者氏名",null,null,null,null,null,null,null,null,null,null,null,null,null,null,null,null,null,null,null,null,null,null,null,60,null,null,null,"○",null,"全角３０桁以内",null,null,null,null,null,null,null,null,null,null,null,null,null,null,null,null,null,null,null,null,null,"J92",null,null,"YES"]
[57,null,"申請事務担当者－電話番号",null,null,null,null,null,null,null,null,null,null,null,null,null,null,null,null,null,null,null,null,null,null,null,16,null,null,null,"○",null,"ＮＮＮＮＮＮ－ＮＮＮＮ－ＮＮＮＮ　半角数字。１６桁以内。ハイフンを含む。",null,null,null,null,null,null,null,null,null,null,null,null,null,null,null,null,null,null,null,null,null,"J93,-,O93,-,S93",null,null,"YES"]
[58,null,"申請事務担当者－FAX番号",null,null,null,null,null,null,null,null,null,null,null,null,null,null,null,null,null,null,null,null,null,null,null,16,null,null,null,null,null,"ＮＮＮＮＮＮ－ＮＮＮＮ－ＮＮＮＮ　半角数字。１６桁以内。ハイフンを含む。",null,null,null,null,null,null,null,null,null,null,null,null,null,null,null,null,null,null,null,null,null,"J94,-,O94,-,S94",null,null,"YES"]
[59,null,"申請事務担当者－Ｅメ－ルアドレス",null,null,null,null,null,null,null,null,null,null,null,null,null,null,null,null,null,null,null,null,null,null,null,45,null,null,null,"○",null,"半角英数字４５桁以内",null,null,null,null,null,null,null,null,null,null,null,null,null,null,null,null,null,null,null,null,null,"J95",null,null,"YES"]
[60,null,"法令等の登録等の有無と登録等を受けている事業一覧－チェック－０１",null,null,null,null,null,null,null,null,null,null,null,null,null,null,null,null,null,null,null,null,null,null,null,1,null,null,null,null,null,"チェック在り：1、チェック無し：0☆☆☆☆☆☆☆☆☆☆☆",null,null,null,null,null,null,null,null,null,null,null,null,null,null,null,null,null,null,null,null,null,"A100",null,",0","YES"]
[61,null,"法令等の登録等の有無と登録等を受けている事業一覧－登録あり－０１",null,null,null,null,null,null,null,null,null,null,null,null,null,null,null,null,null,null,null,null,null,null,null,1,null,null,null,null,null,"選択：１、非選択：０\n１事業以上の入力必須",null,null,null,null,null,null,null,null,null,null,null,null,null,null,null,null,null,null,null,null,null,"J100",null,"○,1,,0","YES"]
[62,null,"法令等の登録等の有無と登録等を受けている事業一覧－登録番号－０１",null,null,null,null,null,null,null,null,null,null,null,null,null,null,null,null,null,null,null,null,null,null,null,16,null,null,null,null,null,"全角８桁以内\n登録あり－０１が選択された場合は入力必須",null,null,null,null,null,null,null,null,null,null,null,null,null,null,null,null,null,null,null,null,null,"O100",null,null,"YES"]
[63,null,"法令等の登録等の有無と登録等を受けている事業一覧－登録年月日－０１",null,null,null,null,null,null,null,null,null,null,null,null,null,null,null,null,null,null,null,null,null,null,null,7,null,null,null,null,null,"ＧＹＹＭＭＤＤ　Ｇ：元号（１：明治　２：大正　３：昭和　４：平成　５：令和）　ＹＹ：年　ＭＭ：月　ＤＤ：日\n西暦変換をセルをBJ列で行いCSVは西暦年月日で出力させている。\n登録あり－０１が選択された場合は入力必須",null,null,null,null,null,null,null,null,null,null,null,null,null,null,null,null,null,null,null,null,null,"BJ100,AB100,AE100",null,"-1,","YES"]
[64,null,"法令等の登録等の有無と登録等を受けている事業一覧－チェック－０２",null,null,null,null,null,null,null,null,null,null,null,null,null,null,null,null,null,null,null,null,null,null,null,1,null,null,null,null,null,"チェック在り：1、チェック無し：0☆☆☆☆☆☆☆☆☆☆☆",null,null,null,null,null,null,null,null,null,null,null,null,null,null,null,null,null,null,null,null,null,"A101",null,",0","YES"]
[65,null,"法令等の登録等の有無と登録等を受けている事業一覧－登録あり－０２",null,null,null,null,null,null,null,null,null,null,null,null,null,null,null,null,null,null,null,null,null,null,null,1,null,null,null,null,null,"選択：１、非選択：０\n１事業以上の入力必須",null,null,null,null,null,null,null,null,null,null,null,null,null,null,null,null,null,null,null,null,null,"J101",null,"○,1,,0","YES"]
[{"$f":"A71+1","v":66},null,"法令等の登録等の有無と登録等を受けている事業一覧－登録番号－０２",null,null,null,null,null,null,null,null,null,null,null,null,null,null,null,null,null,null,null,null,null,null,null,16,null,null,null,null,null,"全角８桁以内\n登録あり－０１が選択された場合は入力必須",null,null,null,null,null,null,null,null,null,null,null,null,null,null,null,null,null,null,null,null,null,"O101",null,null,"YES"]
[67,null,"法令等の登録等の有無と登録等を受けている事業一覧－登録年月日－０２",null,null,null,null,null,null,null,null,null,null,null,null,null,null,null,null,null,null,null,null,null,null,null,7,null,null,null,null,null,"ＧＹＹＭＭＤＤ　Ｇ：元号（１：明治　２：大正　３：昭和　４：平成　５：令和）　ＹＹ：年　ＭＭ：月　ＤＤ：日\n西暦変換をセルをBJ列で行いCSVは西暦年月日で出力させている。\n登録あり－０１が選択された場合は入力必須",null,null,null,null,null,null,null,null,null,null,null,null,null,null,null,null,null,null,null,null,null,"BJ101,AB101,AE101",null,"-1,","YES"]
[68,null,"法令等の登録等の有無と登録等を受けている事業一覧－チェック－０３",null,null,null,null,null,null,null,null,null,null,null,null,null,null,null,null,null,null,null,null,null,null,null,1,null,null,null,null,null,"チェック在り：1、チェック無し：0☆☆☆☆☆☆☆☆☆☆☆",null,null,null,null,null,null,null,null,null,null,null,null,null,null,null,null,null,null,null,null,null,"A102",null,",0","YES"]
[69,null,"法令等の登録等の有無と登録等を受けている事業一覧－登録あり－０３",null,null,null,null,null,null,null,null,null,null,null,null,null,null,null,null,null,null,null,null,null,null,null,1,null,null,null,null,null,"選択：１、非選択：０\n１事業以上の入力必須",null,null,null,null,null,null,null,null,null,null,null,null,null,null,null,null,null,null,null,null,null,"J102",null,"○,1,,0","YES"]
[70,null,"法令等の登録等の有無と登録等を受けている事業一覧－登録番号－０３",null,null,null,null,null,null,null,null,null,null,null,null,null,null,null,null,null,null,null,null,null,null,null,16,null,null,null,null,null,"全角８桁以内\n登録あり－０１が選択された場合は入力必須",null,null,null,null,null,null,null,null,null,null,null,null,null,null,null,null,null,null,null,null,null,"O102",null,null,"YES"]
[71,null,"法令等の登録等の有無と登録等を受けている事業一覧－登録年月日－０３",null,null,null,null,null,null,null,null,null,null,null,null,null,null,null,null,null,null,null,null,null,null,null,7,null,null,null,null,null,"ＧＹＹＭＭＤＤ　Ｇ：元号（１：明治　２：大正　３：昭和　４：平成　５：令和）　ＹＹ：年　ＭＭ：月　ＤＤ：日\n西暦変換をセルをBJ列で行いCSVは西暦年月日で出力させている。\n登録あり－０１が選択された場合は入力必須",null,null,null,null,null,null,null,null,null,null,null,null,null,null,null,null,null,null,null,null,null,"BJ102,AB102,AE102",null,"-1,","YES"]
[72,null,"法令等の登録等の有無と登録等を受けている事業一覧－チェック－０４",null,null,null,null,null,null,null,null,null,null,null,null,null,null,null,null,null,null,null,null,null,null,null,1,null,null,null,null,null,"チェック在り：1、チェック無し：0☆☆☆☆☆☆☆☆☆☆☆",null,null,null,null,null,null,null,null,null,null,null,null,null,null,null,null,null,null,null,null,null,"A103",null,",0","YES"]
[73,null,"法令等の登録等の有無と登録等を受けている事業一覧－登録あり－０４",null,null,null,null,null,null,null,null,null,null,null,null,null,null,null,null,null,null,null,null,null,null,null,1,null,null,null,null,null,"選択：１、非選択：０\n１事業以上の入力必須",null,null,null,null,null,null,null,null,null,null,null,null,null,null,null,null,null,null,null,null,null,"J103",null,"○,1,,0","YES"]
[74,null,"法令等の登録等の有無と登録等を受けている事業一覧－登録番号－０４",null,null,null,null,null,null,null,null,null,null,null,null,null,null,null,null,null,null,null,null,null,null,null,16,null,null,null,null,null,"全角８桁以内\n登録あり－０１が選択された場合は入力必須",null,null,null,null,null,null,null,null,null,null,null,null,null,null,null,null,null,null,null,null,null,"O103",null,null,"YES"]
[75,null,"法令等の登録等の有無と登録等を受けている事業一覧－登録年月日－０４",null,null,null,null,null,null,null,null,null,null,null,null,null,null,null,null,null,null,null,null,null,null,null,7,null,null,null,null,null,"ＧＹＹＭＭＤＤ　Ｇ：元号（１：明治　２：大正　３：昭和　４：平成　５：令和）　ＹＹ：年　ＭＭ：月　ＤＤ：日\n西暦変換をセルをBJ列で行いCSVは西暦年月日で出力させている。\n登録あり－０１が選択された場合は入力必須",null,null,null,null,null,null,null,null,null,null,null,null,null,null,null,null,null,null,null,null,null,"BJ103,AB103,AE103",null,"-1,","YES"]
[76,null,"法令等の登録等の有無と登録等を受けている事業一覧－チェック－０５",null,null,null,null,null,null,null,null,null,null,null,null,null,null,null,null,null,null,null,null,null,null,null,1,null,null,null,null,null,"チェック在り：1、チェック無し：0☆☆☆☆☆☆☆☆☆☆☆",null,null,null,null,null,null,null,null,null,null,null,null,null,null,null,null,null,null,null,null,null,"A104",null,",0","YES"]
[77,null,"法令等の登録等の有無と登録等を受けている事業一覧－登録あり－０５",null,null,null,null,null,null,null,null,null,null,null,null,null,null,null,null,null,null,null,null,null,null,null,1,null,null,null,null,null,"選択：１、非選択：０\n１事業以上の入力必須",null,null,null,null,null,null,null,null,null,null,null,null,null,null,null,null,null,null,null,null,null,"J104",null,"○,1,,0","YES"]
[78,null,"法令等の登録等の有無と登録等を受けている事業一覧－登録番号－０５",null,null,null,null,null,null,null,null,null,null,null,null,null,null,null,null,null,null,null,null,null,null,null,16,null,null,null,null,null,"全角８桁以内\n登録あり－０１が選択された場合は入力必須",null,null,null,null,null,null,null,null,null,null,null,null,null,null,null,null,null,null,null,null,null,"O104",null,null,"YES"]
[79,null,"法令等の登録等の有無と登録等を受けている事業一覧－登録年月日－０５",null,null,null,null,null,null,null,null,null,null,null,null,null,null,null,null,null,null,null,null,null,null,null,7,null,null,null,null,null,"ＧＹＹＭＭＤＤ　Ｇ：元号（１：明治　２：大正　３：昭和　４：平成　５：令和）　ＹＹ：年　ＭＭ：月　ＤＤ：日\n西暦変換をセルをBJ列で行いCSVは西暦年月日で出力させている。\n登録あり－０１が選択された場合は入力必須",null,null,null,null,null,null,null,null,null,null,null,null,null,null,null,null,null,null,null,null,null,"BJ104,AB104,AE104",null,"-1,","YES"]
[80,null,"法令等の登録等の有無と登録等を受けている事業一覧－チェック－０６",null,null,null,null,null,null,null,null,null,null,null,null,null,null,null,null,null,null,null,null,null,null,null,1,null,null,null,null,null,"チェック在り：1、チェック無し：0☆☆☆☆☆☆☆☆☆☆☆",null,null,null,null,null,null,null,null,null,null,null,null,null,null,null,null,null,null,null,null,null,"A105",null,",0","YES"]
[81,null,"法令等の登録等の有無と登録等を受けている事業一覧－登録あり－０６",null,null,null,null,null,null,null,null,null,null,null,null,null,null,null,null,null,null,null,null,null,null,null,1,null,null,null,null,null,"選択：１、非選択：０\n１事業以上の入力必須",null,null,null,null,null,null,null,null,null,null,null,null,null,null,null,null,null,null,null,null,null,"J105",null,"○,1,,0","YES"]
[82,null,"法令等の登録等の有無と登録等を受けている事業一覧－登録番号－０６",null,null,null,null,null,null,null,null,null,null,null,null,null,null,null,null,null,null,null,null,null,null,null,16,null,null,null,null,null,"全角８桁以内\n登録あり－０１が選択された場合は入力必須",null,null,null,null,null,null,null,null,null,null,null,null,null,null,null,null,null,null,null,null,null,"O105",null,null,"YES"]
[83,null,"法令等の登録等の有無と登録等を受けている事業一覧－登録年月日－０６",null,null,null,null,null,null,null,null,null,null,null,null,null,null,null,null,null,null,null,null,null,null,null,7,null,null,null,null,null,"ＧＹＹＭＭＤＤ　Ｇ：元号（１：明治　２：大正　３：昭和　４：平成　５：令和）　ＹＹ：年　ＭＭ：月　ＤＤ：日\n西暦変換をセルをBJ列で行いCSVは西暦年月日で出力させている。\n登録あり－０１が選択された場合は入力必須",null,null,null,null,null,null,null,null,null,null,null,null,null,null,null,null,null,null,null,null,null,"BJ105,AB105,AE105",null,"-1,","YES"]
[84,null,"法令等の登録等の有無と登録等を受けている事業一覧－チェック－０７",null,null,null,null,null,null,null,null,null,null,null,null,null,null,null,null,null,null,null,null,null,null,null,1,null,null,null,null,null,"チェック在り：1、チェック無し：0☆☆☆☆☆☆☆☆☆☆☆",null,null,null,null,null,null,null,null,null,null,null,null,null,null,null,null,null,null,null,null,null,"A106",null,",0","YES"]
[85,null,"法令等の登録等の有無と登録等を受けている事業一覧－登録あり－０７",null,null,null,null,null,null,null,null,null,null,null,null,null,null,null,null,null,null,null,null,null,null,null,1,null,null,null,null,null,"選択：１、非選択：０\n１事業以上の入力必須",null,null,null,null,null,null,null,null,null,null,null,null,null,null,null,null,null,null,null,null,null,"J106",null,"○,1,,0","YES"]
[86,null,"法令等の登録等の有無と登録等を受けている事業一覧－登録番号－０７",null,null,null,null,null,null,null,null,null,null,null,null,null,null,null,null,null,null,null,null,null,null,null,16,null,null,null,null,null,"全角８桁以内\n登録あり－０１が選択された場合は入力必須",null,null,null,null,null,null,null,null,null,null,null,null,null,null,null,null,null,null,null,null,null,"O106",null,null,"YES"]
[87,null,"法令等の登録等の有無と登録等を受けている事業一覧－登録年月日－０７",null,null,null,null,null,null,null,null,null,null,null,null,null,null,null,null,null,null,null,null,null,null,null,7,null,null,null,null,null,"ＧＹＹＭＭＤＤ　Ｇ：元号（１：明治　２：大正　３：昭和　４：平成　５：令和）　ＹＹ：年　ＭＭ：月　ＤＤ：日\n西暦変換をセルをBJ列で行いCSVは西暦年月日で出力させている。\n登録あり－０１が選択された場合は入力必須",null,null,null,null,null,null,null,null,null,null,null,null,null,null,null,null,null,null,null,null,null,"BJ106,AB106,AE106",null,"-1,","YES"]
[88,null,"法令等の登録等の有無と登録等を受けている事業一覧－チェック－０８",null,null,null,null,null,null,null,null,null,null,null,null,null,null,null,null,null,null,null,null,null,null,null,1,null,null,null,null,null,"チェック在り：1、チェック無し：0☆☆☆☆☆☆☆☆☆☆☆",null,null,null,null,null,null,null,null,null,null,null,null,null,null,null,null,null,null,null,null,null,"A107",null,",0","YES"]
[89,null,"法令等の登録等の有無と登録等を受けている事業一覧－登録あり－０８",null,null,null,null,null,null,null,null,null,null,null,null,null,null,null,null,null,null,null,null,null,null,null,1,null,null,null,null,null,"選択：１、非選択：０\n１事業以上の入力必須",null,null,null,null,null,null,null,null,null,null,null,null,null,null,null,null,null,null,null,null,null,"J107",null,"○,1,,0","YES"]
[90,null,"法令等の登録等の有無と登録等を受けている事業一覧－登録番号－０８",null,null,null,null,null,null,null,null,null,null,null,null,null,null,null,null,null,null,null,null,null,null,null,16,null,null,null,null,null,"全角８桁以内\n登録あり－０１が選択された場合は入力必須",null,null,null,null,null,null,null,null,null,null,null,null,null,null,null,null,null,null,null,null,null,"O107",null,null,"YES"]
[91,null,"法令等の登録等の有無と登録等を受けている事業一覧－登録年月日－０８",null,null,null,null,null,null,null,null,null,null,null,null,null,null,null,null,null,null,null,null,null,null,null,7,null,null,null,null,null,"ＧＹＹＭＭＤＤ　Ｇ：元号（１：明治　２：大正　３：昭和　４：平成　５：令和）　ＹＹ：年　ＭＭ：月　ＤＤ：日\n西暦変換をセルをBJ列で行いCSVは西暦年月日で出力させている。\n登録あり－０１が選択された場合は入力必須",null,null,null,null,null,null,null,null,null,null,null,null,null,null,null,null,null,null,null,null,null,"BJ107,AB107,AE107",null,"-1,","YES"]
[92,null,"法令等の登録等の有無と登録等を受けている事業一覧－チェック－０９",null,null,null,null,null,null,null,null,null,null,null,null,null,null,null,null,null,null,null,null,null,null,null,1,null,null,null,null,null,"チェック在り：1、チェック無し：0☆☆☆☆☆☆☆☆☆☆☆",null,null,null,null,null,null,null,null,null,null,null,null,null,null,null,null,null,null,null,null,null,"A108",null,",0","YES"]
[93,null,"法令等の登録等の有無と登録等を受けている事業一覧－登録あり－０９",null,null,null,null,null,null,null,null,null,null,null,null,null,null,null,null,null,null,null,null,null,null,null,1,null,null,null,null,null,"選択：１、非選択：０\n１事業以上の入力必須",null,null,null,null,null,null,null,null,null,null,null,null,null,null,null,null,null,null,null,null,null,"J108",null,"○,1,,0","YES"]
[94,null,"法令等の登録等の有無と登録等を受けている事業一覧－登録番号－０９",null,null,null,null,null,null,null,null,null,null,null,null,null,null,null,null,null,null,null,null,null,null,null,16,null,null,null,null,null,"全角８桁以内\n登録あり－０９が選択された場合は入力必須",null,null,null,null,null,null,null,null,null,null,null,null,null,null,null,null,null,null,null,null,null,"O108",null,null,"YES"]
[95,null,"法令等の登録等の有無と登録等を受けている事業一覧－登録年月日－０９",null,null,null,null,null,null,null,null,null,null,null,null,null,null,null,null,null,null,null,null,null,null,null,7,null,null,null,null,null,"ＧＹＹＭＭＤＤ　Ｇ：元号（１：明治　２：大正　３：昭和　４：平成　５：令和）　ＹＹ：年　ＭＭ：月　ＤＤ：日\n西暦変換をセルをBJ列で行いCSVは西暦年月日で出力させている。\n登録あり－０１が選択された場合は入力必須",null,null,null,null,null,null,null,null,null,null,null,null,null,null,null,null,null,null,null,null,null,"BJ108,AB108,AE108",null,"-1,","YES"]
[96,null,"補償関係コンサルタント登録業者の登録部門内容－チェック－０１",null,null,null,null,null,null,null,null,null,null,null,null,null,null,null,null,null,null,null,null,null,null,null,1,null,null,null,null,null,"チェック在り：1、チェック無し：0☆☆☆☆☆☆☆☆☆☆☆",null,null,null,null,null,null,null,null,null,null,null,null,null,null,null,null,null,null,null,null,null,"M118",null,",0","YES"]
[97,null,"補償関係コンサルタント登録業者の登録部門内容－登録あり－０１",null,null,null,null,null,null,null,null,null,null,null,null,null,null,null,null,null,null,null,null,null,null,null,1,null,null,null,null,null,"選択：１、非選択：０\n１部門以上の入力必須",null,null,null,null,null,null,null,null,null,null,null,null,null,null,null,null,null,null,null,null,null,"M117",null,"○,1,,0","YES"]
[98,null,"補償関係コンサルタント登録業者の登録部門内容－チェック－０２",null,null,null,null,null,null,null,null,null,null,null,null,null,null,null,null,null,null,null,null,null,null,null,1,null,null,null,null,null,"チェック在り：1、チェック無し：0☆☆☆☆☆☆☆☆☆☆☆",null,null,null,null,null,null,null,null,null,null,null,null,null,null,null,null,null,null,null,null,null,"N118",null,",0","YES"]
[99,null,"補償関係コンサルタント登録業者の登録部門内容－登録あり－０２",null,null,null,null,null,null,null,null,null,null,null,null,null,null,null,null,null,null,null,null,null,null,null,1,null,null,null,null,null,"選択：１、非選択：０\n１部門以上の入力必須",null,null,null,null,null,null,null,null,null,null,null,null,null,null,null,null,null,null,null,null,null,"N117",null,"○,1,,0","YES"]
[100,null,"補償関係コンサルタント登録業者の登録部門内容－チェック－０３",null,null,null,null,null,null,null,null,null,null,null,null,null,null,null,null,null,null,null,null,null,null,null,1,null,null,null,null,null,"チェック在り：1、チェック無し：0☆☆☆☆☆☆☆☆☆☆☆",null,null,null,null,null,null,null,null,null,null,null,null,null,null,null,null,null,null,null,null,null,"O118",null,",0","YES"]
[101,null,"補償関係コンサルタント登録業者の登録部門内容－登録あり－０３",null,null,null,null,null,null,null,null,null,null,null,null,null,null,null,null,null,null,null,null,null,null,null,1,null,null,null,null,null,"選択：１、非選択：０\n１部門以上の入力必須",null,null,null,null,null,null,null,null,null,null,null,null,null,null,null,null,null,null,null,null,null,"O117",null,"○,1,,0","YES"]
[102,null,"補償関係コンサルタント登録業者の登録部門内容－チェック－０４",null,null,null,null,null,null,null,null,null,null,null,null,null,null,null,null,null,null,null,null,null,null,null,1,null,null,null,null,null,"チェック在り：1、チェック無し：0☆☆☆☆☆☆☆☆☆☆☆",null,null,null,null,null,null,null,null,null,null,null,null,null,null,null,null,null,null,null,null,null,"P118",null,",0","YES"]
[103,null,"補償関係コンサルタント登録業者の登録部門内容－登録あり－０４",null,null,null,null,null,null,null,null,null,null,null,null,null,null,null,null,null,null,null,null,null,null,null,1,null,null,null,null,null,"選択：１、非選択：０\n１部門以上の入力必須",null,null,null,null,null,null,null,null,null,null,null,null,null,null,null,null,null,null,null,null,null,"P117",null,"○,1,,0","YES"]
[104,null,"補償関係コンサルタント登録業者の登録部門内容－チェック－０５",null,null,null,null,null,null,null,null,null,null,null,null,null,null,null,null,null,null,null,null,null,null,null,1,null,null,null,null,null,"チェック在り：1、チェック無し：0☆☆☆☆☆☆☆☆☆☆☆",null,null,null,null,null,null,null,null,null,null,null,null,null,null,null,null,null,null,null,null,null,"Q118",null,",0","YES"]
[105,null,"補償関係コンサルタント登録業者の登録部門内容－登録あり－０５",null,null,null,null,null,null,null,null,null,null,null,null,null,null,null,null,null,null,null,null,null,null,null,1,null,null,null,null,null,"選択：１、非選択：０\n１部門以上の入力必須",null,null,null,null,null,null,null,null,null,null,null,null,null,null,null,null,null,null,null,null,null,"Q117",null,"○,1,,0","YES"]
[106,null,"補償関係コンサルタント登録業者の登録部門内容－チェック－０６",null,null,null,null,null,null,null,null,null,null,null,null,null,null,null,null,null,null,null,null,null,null,null,1,null,null,null,null,null,"チェック在り：1、チェック無し：0☆☆☆☆☆☆☆☆☆☆☆",null,null,null,null,null,null,null,null,null,null,null,null,null,null,null,null,null,null,null,null,null,"R118",null,",0","YES"]
[107,null,"補償関係コンサルタント登録業者の登録部門内容－登録あり－０６",null,null,null,null,null,null,null,null,null,null,null,null,null,null,null,null,null,null,null,null,null,null,null,1,null,null,null,null,null,"選択：１、非選択：０\n１部門以上の入力必須",null,null,null,null,null,null,null,null,null,null,null,null,null,null,null,null,null,null,null,null,null,"R117",null,"○,1,,0","YES"]
[108,null,"補償関係コンサルタント登録業者の登録部門内容－チェック－０７",null,null,null,null,null,null,null,null,null,null,null,null,null,null,null,null,null,null,null,null,null,null,null,1,null,null,null,null,null,"チェック在り：1、チェック無し：0☆☆☆☆☆☆☆☆☆☆☆",null,null,null,null,null,null,null,null,null,null,null,null,null,null,null,null,null,null,null,null,null,"S118",null,",0","YES"]
[109,null,"補償関係コンサルタント登録業者の登録部門内容－登録あり－０７",null,null,null,null,null,null,null,null,null,null,null,null,null,null,null,null,null,null,null,null,null,null,null,1,null,null,null,null,null,"選択：１、非選択：０\n１部門以上の入力必須",null,null,null,null,null,null,null,null,null,null,null,null,null,null,null,null,null,null,null,null,null,"S117",null,"○,1,,0","YES"]
[110,null,"補償関係コンサルタント登録業者の登録部門内容－チェック－０８",null,null,null,null,null,null,null,null,null,null,null,null,null,null,null,null,null,null,null,null,null,null,null,1,null,null,null,null,null,"チェック在り：1、チェック無し：0☆☆☆☆☆☆☆☆☆☆☆",null,null,null,null,null,null,null,null,null,null,null,null,null,null,null,null,null,null,null,null,null,"T118",null,",0","YES"]
[111,null,"補償関係コンサルタント登録業者の登録部門内容－登録あり－０８",null,null,null,null,null,null,null,null,null,null,null,null,null,null,null,null,null,null,null,null,null,null,null,1,null,null,null,null,null,"選択：１、非選択：０\n１部門以上の入力必須",null,null,null,null,null,null,null,null,null,null,null,null,null,null,null,null,null,null,null,null,null,"T117",null,"○,1,,0","YES"]
[112,null,"建設コンサルタント登録業者の登録部門内容－チェック－０１",null,null,null,null,null,null,null,null,null,null,null,null,null,null,null,null,null,null,null,null,null,null,null,1,null,null,null,null,null,"チェック在り：1、チェック無し：0☆☆☆☆☆☆☆☆☆☆☆",null,null,null,null,null,null,null,null,null,null,null,null,null,null,null,null,null,null,null,null,null,"M134",null,",0","YES"]
[113,null,"建設コンサルタント登録業者の登録部門内容－登録あり－０１",null,null,null,null,null,null,null,null,null,null,null,null,null,null,null,null,null,null,null,null,null,null,null,1,null,null,null,null,null,"選択：１、非選択：０\n１部門以上の入力必須",null,null,null,null,null,null,null,null,null,null,null,null,null,null,null,null,null,null,null,null,null,"M133",null,"○,1,,0","YES"]
[114,null,"建設コンサルタント登録業者の登録部門内容－チェック－０２",null,null,null,null,null,null,null,null,null,null,null,null,null,null,null,null,null,null,null,null,null,null,null,1,null,null,null,null,null,"チェック在り：1、チェック無し：0☆☆☆☆☆☆☆☆☆☆☆",null,null,null,null,null,null,null,null,null,null,null,null,null,null,null,null,null,null,null,null,null,"N134",null,",0","YES"]
[115,null,"建設コンサルタント登録業者の登録部門内容－登録あり－０２",null,null,null,null,null,null,null,null,null,null,null,null,null,null,null,null,null,null,null,null,null,null,null,1,null,null,null,null,null,"選択：１、非選択：０\n１部門以上の入力必須",null,null,null,null,null,null,null,null,null,null,null,null,null,null,null,null,null,null,null,null,null,"N133",null,"○,1,,0","YES"]
[116,null,"建設コンサルタント登録業者の登録部門内容－チェック－０３",null,null,null,null,null,null,null,null,null,null,null,null,null,null,null,null,null,null,null,null,null,null,null,1,null,null,null,null,null,"チェック在り：1、チェック無し：0☆☆☆☆☆☆☆☆☆☆☆",null,null,null,null,null,null,null,null,null,null,null,null,null,null,null,null,null,null,null,null,null,"O134",null,",0","YES"]
[117,null,"建設コンサルタント登録業者の登録部門内容－登録あり－０３",null,null,null,null,null,null,null,null,null,null,null,null,null,null,null,null,null,null,null,null,null,null,null,1,null,null,null,null,null,"選択：１、非選択：０\n１部門以上の入力必須",null,null,null,null,null,null,null,null,null,null,null,null,null,null,null,null,null,null,null,null,null,"O133",null,"○,1,,0","YES"]
[118,null,"建設コンサルタント登録業者の登録部門内容－チェック－０４",null,null,null,null,null,null,null,null,null,null,null,null,null,null,null,null,null,null,null,null,null,null,null,1,null,null,null,null,null,"チェック在り：1、チェック無し：0☆☆☆☆☆☆☆☆☆☆☆",null,null,null,null,null,null,null,null,null,null,null,null,null,null,null,null,null,null,null,null,null,"P134",null,",0","YES"]
[119,null,"建設コンサルタント登録業者の登録部門内容－登録あり－０４",null,null,null,null,null,null,null,null,null,null,null,null,null,null,null,null,null,null,null,null,null,null,null,1,null,null,null,null,null,"選択：１、非選択：０\n１部門以上の入力必須",null,null,null,null,null,null,null,null,null,null,null,null,null,null,null,null,null,null,null,null,null,"P133",null,"○,1,,0","YES"]
[120,null,"建設コンサルタント登録業者の登録部門内容－チェック－０５",null,null,null,null,null,null,null,null,null,null,null,null,null,null,null,null,null,null,null,null,null,null,null,1,null,null,null,null,null,"チェック在り：1、チェック無し：0☆☆☆☆☆☆☆☆☆☆☆",null,null,null,null,null,null,null,null,null,null,null,null,null,null,null,null,null,null,null,null,null,"Q134",null,",0","YES"]
[121,null,"建設コンサルタント登録業者の登録部門内容－登録あり－０５",null,null,null,null,null,null,null,null,null,null,null,null,null,null,null,null,null,null,null,null,null,null,null,1,null,null,null,null,null,"選択：１、非選択：０\n１部門以上の入力必須",null,null,null,null,null,null,null,null,null,null,null,null,null,null,null,null,null,null,null,null,null,"Q133",null,"○,1,,0","YES"]
[122,null,"建設コンサルタント登録業者の登録部門内容－チェック－０６",null,null,null,null,null,null,null,null,null,null,null,null,null,null,null,null,null,null,null,null,null,null,null,1,null,null,null,null,null,"チェック在り：1、チェック無し：0☆☆☆☆☆☆☆☆☆☆☆",null,null,null,null,null,null,null,null,null,null,null,null,null,null,null,null,null,null,null,null,null,"R134",null,",0","YES"]
[123,null,"建設コンサルタント登録業者の登録部門内容－登録あり－０６",null,null,null,null,null,null,null,null,null,null,null,null,null,null,null,null,null,null,null,null,null,null,null,1,null,null,null,null,null,"選択：１、非選択：０\n１部門以上の入力必須",null,null,null,null,null,null,null,null,null,null,null,null,null,null,null,null,null,null,null,null,null,"R133",null,"○,1,,0","YES"]
[124,null,"建設コンサルタント登録業者の登録部門内容－チェック－０７",null,null,null,null,null,null,null,null,null,null,null,null,null,null,null,null,null,null,null,null,null,null,null,1,null,null,null,null,null,"チェック在り：1、チェック無し：0☆☆☆☆☆☆☆☆☆☆☆",null,null,null,null,null,null,null,null,null,null,null,null,null,null,null,null,null,null,null,null,null,"S134",null,",0","YES"]
[125,null,"建設コンサルタント登録業者の登録部門内容－登録あり－０７",null,null,null,null,null,null,null,null,null,null,null,null,null,null,null,null,null,null,null,null,null,null,null,1,null,null,null,null,null,"選択：１、非選択：０\n１部門以上の入力必須",null,null,null,null,null,null,null,null,null,null,null,null,null,null,null,null,null,null,null,null,null,"S133",null,"○,1,,0","YES"]
[126,null,"建設コンサルタント登録業者の登録部門内容－チェック－０８",null,null,null,null,null,null,null,null,null,null,null,null,null,null,null,null,null,null,null,null,null,null,null,1,null,null,null,null,null,"チェック在り：1、チェック無し：0☆☆☆☆☆☆☆☆☆☆☆",null,null,null,null,null,null,null,null,null,null,null,null,null,null,null,null,null,null,null,null,null,"T134",null,",0","YES"]
[127,null,"建設コンサルタント登録業者の登録部門内容－登録あり－０８",null,null,null,null,null,null,null,null,null,null,null,null,null,null,null,null,null,null,null,null,null,null,null,1,null,null,null,null,null,"選択：１、非選択：０\n１部門以上の入力必須",null,null,null,null,null,null,null,null,null,null,null,null,null,null,null,null,null,null,null,null,null,"T133",null,"○,1,,0","YES"]
[128,null,"建設コンサルタント登録業者の登録部門内容－チェック－０９",null,null,null,null,null,null,null,null,null,null,null,null,null,null,null,null,null,null,null,null,null,null,null,1,null,null,null,null,null,"チェック在り：1、チェック無し：0☆☆☆☆☆☆☆☆☆☆☆",null,null,null,null,null,null,null,null,null,null,null,null,null,null,null,null,null,null,null,null,null,"U134",null,",0","YES"]
[129,null,"建設コンサルタント登録業者の登録部門内容－登録あり－０９",null,null,null,null,null,null,null,null,null,null,null,null,null,null,null,null,null,null,null,null,null,null,null,1,null,null,null,null,null,"選択：１、非選択：０\n１部門以上の入力必須",null,null,null,null,null,null,null,null,null,null,null,null,null,null,null,null,null,null,null,null,null,"U133",null,"○,1,,0","YES"]
[{"$f":"A135+1","v":130},null,"建設コンサルタント登録業者の登録部門内容－チェック－１０",null,null,null,null,null,null,null,null,null,null,null,null,null,null,null,null,null,null,null,null,null,null,null,1,null,null,null,null,null,"チェック在り：1、チェック無し：0☆☆☆☆☆☆☆☆☆☆☆",null,null,null,null,null,null,null,null,null,null,null,null,null,null,null,null,null,null,null,null,null,"V134",null,",0","YES"]
[131,null,"建設コンサルタント登録業者の登録部門内容－登録あり－１０",null,null,null,null,null,null,null,null,null,null,null,null,null,null,null,null,null,null,null,null,null,null,null,1,null,null,null,null,null,"選択：１、非選択：０\n１部門以上の入力必須",null,null,null,null,null,null,null,null,null,null,null,null,null,null,null,null,null,null,null,null,null,"V133",null,"○,1,,0","YES"]
[132,null,"建設コンサルタント登録業者の登録部門内容－チェック－１１",null,null,null,null,null,null,null,null,null,null,null,null,null,null,null,null,null,null,null,null,null,null,null,1,null,null,null,null,null,"チェック在り：1、チェック無し：0☆☆☆☆☆☆☆☆☆☆☆",null,null,null,null,null,null,null,null,null,null,null,null,null,null,null,null,null,null,null,null,null,"W134",null,",0","YES"]
[133,null,"建設コンサルタント登録業者の登録部門内容－登録あり－１１",null,null,null,null,null,null,null,null,null,null,null,null,null,null,null,null,null,null,null,null,null,null,null,1,null,null,null,null,null,"選択：１、非選択：０\n１部門以上の入力必須",null,null,null,null,null,null,null,null,null,null,null,null,null,null,null,null,null,null,null,null,null,"W133",null,"○,1,,0","YES"]
[134,null,"建設コンサルタント登録業者の登録部門内容－チェック－１２",null,null,null,null,null,null,null,null,null,null,null,null,null,null,null,null,null,null,null,null,null,null,null,1,null,null,null,null,null,"チェック在り：1、チェック無し：0☆☆☆☆☆☆☆☆☆☆☆",null,null,null,null,null,null,null,null,null,null,null,null,null,null,null,null,null,null,null,null,null,"X134",null,",0","YES"]
[135,null,"建設コンサルタント登録業者の登録部門内容－登録あり－１２",null,null,null,null,null,null,null,null,null,null,null,null,null,null,null,null,null,null,null,null,null,null,null,1,null,null,null,null,null,"選択：１、非選択：０\n１部門以上の入力必須",null,null,null,null,null,null,null,null,null,null,null,null,null,null,null,null,null,null,null,null,null,"X133",null,"○,1,,0","YES"]
[136,null,"建設コンサルタント登録業者の登録部門内容－チェック－１３",null,null,null,null,null,null,null,null,null,null,null,null,null,null,null,null,null,null,null,null,null,null,null,1,null,null,null,null,null,"チェック在り：1、チェック無し：0☆☆☆☆☆☆☆☆☆☆☆",null,null,null,null,null,null,null,null,null,null,null,null,null,null,null,null,null,null,null,null,null,"Y134",null,",0","YES"]
[137,null,"建設コンサルタント登録業者の登録部門内容－登録あり－１３",null,null,null,null,null,null,null,null,null,null,null,null,null,null,null,null,null,null,null,null,null,null,null,1,null,null,null,null,null,"選択：１、非選択：０\n１部門以上の入力必須",null,null,null,null,null,null,null,null,null,null,null,null,null,null,null,null,null,null,null,null,null,"Y133",null,"○,1,,0","YES"]
[138,null,"建設コンサルタント登録業者の登録部門内容－チェック－１４",null,null,null,null,null,null,null,null,null,null,null,null,null,null,null,null,null,null,null,null,null,null,null,1,null,null,null,null,null,"チェック在り：1、チェック無し：0☆☆☆☆☆☆☆☆☆☆☆",null,null,null,null,null,null,null,null,null,null,null,null,null,null,null,null,null,null,null,null,null,"Z134",null,",0","YES"]
[139,null,"建設コンサルタント登録業者の登録部門内容－登録あり－１４",null,null,null,null,null,null,null,null,null,null,null,null,null,null,null,null,null,null,null,null,null,null,null,1,null,null,null,null,null,"選択：１、非選択：０\n１部門以上の入力必須",null,null,null,null,null,null,null,null,null,null,null,null,null,null,null,null,null,null,null,null,null,"Z133",null,"○,1,,0","YES"]
[140,null,"建設コンサルタント登録業者の登録部門内容－チェック－１５",null,null,null,null,null,null,null,null,null,null,null,null,null,null,null,null,null,null,null,null,null,null,null,1,null,null,null,null,null,"チェック在り：1、チェック無し：0☆☆☆☆☆☆☆☆☆☆☆",null,null,null,null,null,null,null,null,null,null,null,null,null,null,null,null,null,null,null,null,null,"AA134",null,",0","YES"]
[141,null,"建設コンサルタント登録業者の登録部門内容－登録あり－１５",null,null,null,null,null,null,null,null,null,null,null,null,null,null,null,null,null,null,null,null,null,null,null,1,null,null,null,null,null,"選択：１、非選択：０\n１部門以上の入力必須",null,null,null,null,null,null,null,null,null,null,null,null,null,null,null,null,null,null,null,null,null,"AA133",null,"○,1,,0","YES"]
[142,null,"建設コンサルタント登録業者の登録部門内容－チェック－１６",null,null,null,null,null,null,null,null,null,null,null,null,null,null,null,null,null,null,null,null,null,null,null,1,null,null,null,null,null,"チェック在り：1、チェック無し：0☆☆☆☆☆☆☆☆☆☆☆",null,null,null,null,null,null,null,null,null,null,null,null,null,null,null,null,null,null,null,null,null,"AB134",null,",0","YES"]
[143,null,"建設コンサルタント登録業者の登録部門内容－登録あり－１６",null,null,null,null,null,null,null,null,null,null,null,null,null,null,null,null,null,null,null,null,null,null,null,1,null,null,null,null,null,"選択：１、非選択：０\n１部門以上の入力必須",null,null,null,null,null,null,null,null,null,null,null,null,null,null,null,null,null,null,null,null,null,"AB133",null,"○,1,,0","YES"]
[144,null,"建設コンサルタント登録業者の登録部門内容－チェック－１７",null,null,null,null,null,null,null,null,null,null,null,null,null,null,null,null,null,null,null,null,null,null,null,1,null,null,null,null,null,"チェック在り：1、チェック無し：0☆☆☆☆☆☆☆☆☆☆☆",null,null,null,null,null,null,null,null,null,null,null,null,null,null,null,null,null,null,null,null,null,"AC134",null,",0","YES"]
[145,null,"建設コンサルタント登録業者の登録部門内容－登録あり－１７",null,null,null,null,null,null,null,null,null,null,null,null,null,null,null,null,null,null,null,null,null,null,null,1,null,null,null,null,null,"選択：１、非選択：０\n１部門以上の入力必須",null,null,null,null,null,null,null,null,null,null,null,null,null,null,null,null,null,null,null,null,null,"AC133",null,"○,1,,0","YES"]
[146,null,"建設コンサルタント登録業者の登録部門内容－チェック－１８",null,null,null,null,null,null,null,null,null,null,null,null,null,null,null,null,null,null,null,null,null,null,null,1,null,null,null,null,null,"チェック在り：1、チェック無し：0☆☆☆☆☆☆☆☆☆☆☆",null,null,null,null,null,null,null,null,null,null,null,null,null,null,null,null,null,null,null,null,null,"AD134",null,",0","YES"]
[147,null,"建設コンサルタント登録業者の登録部門内容－登録あり－１８",null,null,null,null,null,null,null,null,null,null,null,null,null,null,null,null,null,null,null,null,null,null,null,1,null,null,null,null,null,"選択：１、非選択：０\n１部門以上の入力必須",null,null,null,null,null,null,null,null,null,null,null,null,null,null,null,null,null,null,null,null,null,"AD133",null,"○,1,,0","YES"]
[148,null,"建設コンサルタント登録業者の登録部門内容－チェック－１９",null,null,null,null,null,null,null,null,null,null,null,null,null,null,null,null,null,null,null,null,null,null,null,1,null,null,null,null,null,"チェック在り：1、チェック無し：0☆☆☆☆☆☆☆☆☆☆☆",null,null,null,null,null,null,null,null,null,null,null,null,null,null,null,null,null,null,null,null,null,"AE134",null,",0","YES"]
[149,null,"建設コンサルタント登録業者の登録部門内容－登録あり－１９",null,null,null,null,null,null,null,null,null,null,null,null,null,null,null,null,null,null,null,null,null,null,null,1,null,null,null,null,null,"選択：１、非選択：０\n１部門以上の入力必須",null,null,null,null,null,null,null,null,null,null,null,null,null,null,null,null,null,null,null,null,null,"AE133",null,"○,1,,0","YES"]
[150,null,"建設コンサルタント登録業者の登録部門内容－チェック－２０",null,null,null,null,null,null,null,null,null,null,null,null,null,null,null,null,null,null,null,null,null,null,null,1,null,null,null,null,null,"チェック在り：1、チェック無し：0☆☆☆☆☆☆☆☆☆☆☆",null,null,null,null,null,null,null,null,null,null,null,null,null,null,null,null,null,null,null,null,null,"AF134",null,",0","YES"]
[151,null,"建設コンサルタント登録業者の登録部門内容－登録あり－２０",null,null,null,null,null,null,null,null,null,null,null,null,null,null,null,null,null,null,null,null,null,null,null,1,null,null,null,null,null,"選択：１、非選択：０\n１部門以上の入力必須",null,null,null,null,null,null,null,null,null,null,null,null,null,null,null,null,null,null,null,null,null,"AF133",null,"○,1,,0","YES"]
[152,null,"建設コンサルタント登録業者の登録部門内容－チェック－２１",null,null,null,null,null,null,null,null,null,null,null,null,null,null,null,null,null,null,null,null,null,null,null,1,null,null,null,null,null,"チェック在り：1、チェック無し：0☆☆☆☆☆☆☆☆☆☆☆",null,null,null,null,null,null,null,null,null,null,null,null,null,null,null,null,null,null,null,null,null,"AG134",null,",0","YES"]
[153,null,"建設コンサルタント登録業者の登録部門内容－登録あり－２１",null,null,null,null,null,null,null,null,null,null,null,null,null,null,null,null,null,null,null,null,null,null,null,1,null,null,null,null,null,"選択：１、非選択：０\n１部門以上の入力必須",null,null,null,null,null,null,null,null,null,null,null,null,null,null,null,null,null,null,null,null,null,"AG133",null,"○,1,,0","YES"]
[154,null,"希望業務の内容－チェック－０１",null,null,null,null,null,null,null,null,null,null,null,null,null,null,null,null,null,null,null,null,null,null,null,1,null,null,null,null,null,"チェック在り：1、チェック無し：0☆☆☆☆☆☆☆☆☆☆☆",null,null,null,null,null,null,null,null,null,null,null,null,null,null,null,null,null,null,null,null,null,"J145",null,",0","YES"]
[155,null,"希望業務の内容－希望あり－０１",null,null,null,null,null,null,null,null,null,null,null,null,null,null,null,null,null,null,null,null,null,null,null,1,null,null,null,null,null,"選択：１、非選択：０\n１業務以上の入力必須",null,null,null,null,null,null,null,null,null,null,null,null,null,null,null,null,null,null,null,null,null,"J144",null,"○,1,,0","YES"]
[156,null,"希望業務の内容－チェック－０２",null,null,null,null,null,null,null,null,null,null,null,null,null,null,null,null,null,null,null,null,null,null,null,1,null,null,null,null,null,"チェック在り：1、チェック無し：0☆☆☆☆☆☆☆☆☆☆☆",null,null,null,null,null,null,null,null,null,null,null,null,null,null,null,null,null,null,null,null,null,"K145",null,",0","YES"]
[157,null,"希望業務の内容－希望あり－０２",null,null,null,null,null,null,null,null,null,null,null,null,null,null,null,null,null,null,null,null,null,null,null,1,null,null,null,null,null,"選択：１、非選択：０\n１業務以上の入力必須",null,null,null,null,null,null,null,null,null,null,null,null,null,null,null,null,null,null,null,null,null,"K144",null,"○,1,,0","YES"]
[158,null,"希望業務の内容－チェック－０３",null,null,null,null,null,null,null,null,null,null,null,null,null,null,null,null,null,null,null,null,null,null,null,1,null,null,null,null,null,"チェック在り：1、チェック無し：0☆☆☆☆☆☆☆☆☆☆☆",null,null,null,null,null,null,null,null,null,null,null,null,null,null,null,null,null,null,null,null,null,"L145",null,",0","YES"]
[159,null,"希望業務の内容－希望あり－０３",null,null,null,null,null,null,null,null,null,null,null,null,null,null,null,null,null,null,null,null,null,null,null,1,null,null,null,null,null,"選択：１、非選択：０\n１業務以上の入力必須",null,null,null,null,null,null,null,null,null,null,null,null,null,null,null,null,null,null,null,null,null,"L144",null,"○,1,,0","YES"]
[160,null,"希望業務の内容－チェック－０４",null,null,null,null,null,null,null,null,null,null,null,null,null,null,null,null,null,null,null,null,null,null,null,1,null,null,null,null,null,"チェック在り：1、チェック無し：0☆☆☆☆☆☆☆☆☆☆☆",null,null,null,null,null,null,null,null,null,null,null,null,null,null,null,null,null,null,null,null,null,"M145",null,",0","YES"]
[161,null,"希望業務の内容－希望あり－０４",null,null,null,null,null,null,null,null,null,null,null,null,null,null,null,null,null,null,null,null,null,null,null,1,null,null,null,null,null,"選択：１、非選択：０\n１業務以上の入力必須",null,null,null,null,null,null,null,null,null,null,null,null,null,null,null,null,null,null,null,null,null,"M144",null,"○,1,,0","YES"]
[162,null,"希望業務の内容－チェック－０５",null,null,null,null,null,null,null,null,null,null,null,null,null,null,null,null,null,null,null,null,null,null,null,1,null,null,null,null,null,"チェック在り：1、チェック無し：0☆☆☆☆☆☆☆☆☆☆☆",null,null,null,null,null,null,null,null,null,null,null,null,null,null,null,null,null,null,null,null,null,"N145",null,",0","YES"]
[163,null,"希望業務の内容－希望あり－０５",null,null,null,null,null,null,null,null,null,null,null,null,null,null,null,null,null,null,null,null,null,null,null,1,null,null,null,null,null,"選択：１、非選択：０\n１業務以上の入力必須",null,null,null,null,null,null,null,null,null,null,null,null,null,null,null,null,null,null,null,null,null,"N144",null,"○,1,,0","YES"]
[164,null,"希望業務の内容－チェック－０６",null,null,null,null,null,null,null,null,null,null,null,null,null,null,null,null,null,null,null,null,null,null,null,1,null,null,null,null,null,"チェック在り：1、チェック無し：0☆☆☆☆☆☆☆☆☆☆☆",null,null,null,null,null,null,null,null,null,null,null,null,null,null,null,null,null,null,null,null,null,"O145",null,",0","YES"]
[165,null,"希望業務の内容－希望あり－０６",null,null,null,null,null,null,null,null,null,null,null,null,null,null,null,null,null,null,null,null,null,null,null,1,null,null,null,null,null,"選択：１、非選択：０\n１業務以上の入力必須",null,null,null,null,null,null,null,null,null,null,null,null,null,null,null,null,null,null,null,null,null,"O144",null,"○,1,,0","YES"]
[166,null,"希望業務の内容－チェック－０７",null,null,null,null,null,null,null,null,null,null,null,null,null,null,null,null,null,null,null,null,null,null,null,1,null,null,null,null,null,"チェック在り：1、チェック無し：0☆☆☆☆☆☆☆☆☆☆☆",null,null,null,null,null,null,null,null,null,null,null,null,null,null,null,null,null,null,null,null,null,"P145",null,",0","YES"]
[167,null,"希望業務の内容－希望あり－０７",null,null,null,null,null,null,null,null,null,null,null,null,null,null,null,null,null,null,null,null,null,null,null,1,null,null,null,null,null,"選択：１、非選択：０\n１業務以上の入力必須",null,null,null,null,null,null,null,null,null,null,null,null,null,null,null,null,null,null,null,null,null,"P144",null,"○,1,,0","YES"]
[168,null,"希望業務の内容－チェック－０８",null,null,null,null,null,null,null,null,null,null,null,null,null,null,null,null,null,null,null,null,null,null,null,1,null,null,null,null,null,"チェック在り：1、チェック無し：0☆☆☆☆☆☆☆☆☆☆☆",null,null,null,null,null,null,null,null,null,null,null,null,null,null,null,null,null,null,null,null,null,"Q145",null,",0","YES"]
[169,null,"希望業務の内容－希望あり－０８",null,null,null,null,null,null,null,null,null,null,null,null,null,null,null,null,null,null,null,null,null,null,null,1,null,null,null,null,null,"選択：１、非選択：０\n１業務以上の入力必須",null,null,null,null,null,null,null,null,null,null,null,null,null,null,null,null,null,null,null,null,null,"Q144",null,"○,1,,0","YES"]
[170,null,"希望業務の内容－チェック－０９",null,null,null,null,null,null,null,null,null,null,null,null,null,null,null,null,null,null,null,null,null,null,null,1,null,null,null,null,null,"チェック在り：1、チェック無し：0☆☆☆☆☆☆☆☆☆☆☆",null,null,null,null,null,null,null,null,null,null,null,null,null,null,null,null,null,null,null,null,null,"R145",null,",0","YES"]
[171,null,"希望業務の内容－希望あり－０９",null,null,null,null,null,null,null,null,null,null,null,null,null,null,null,null,null,null,null,null,null,null,null,1,null,null,null,null,null,"選択：１、非選択：０\n１業務以上の入力必須",null,null,null,null,null,null,null,null,null,null,null,null,null,null,null,null,null,null,null,null,null,"R144",null,"○,1,,0","YES"]
[172,null,"希望業務の内容－チェック－１０",null,null,null,null,null,null,null,null,null,null,null,null,null,null,null,null,null,null,null,null,null,null,null,1,null,null,null,null,null,"チェック在り：1、チェック無し：0☆☆☆☆☆☆☆☆☆☆☆",null,null,null,null,null,null,null,null,null,null,null,null,null,null,null,null,null,null,null,null,null,"S145",null,",0","YES"]
[173,null,"希望業務の内容－希望あり－１０",null,null,null,null,null,null,null,null,null,null,null,null,null,null,null,null,null,null,null,null,null,null,null,1,null,null,null,null,null,"選択：１、非選択：０\n１業務以上の入力必須",null,null,null,null,null,null,null,null,null,null,null,null,null,null,null,null,null,null,null,null,null,"S144",null,"○,1,,0","YES"]
[174,null,"希望業務の内容－チェック－１１",null,null,null,null,null,null,null,null,null,null,null,null,null,null,null,null,null,null,null,null,null,null,null,1,null,null,null,null,null,"チェック在り：1、チェック無し：0☆☆☆☆☆☆☆☆☆☆☆",null,null,null,null,null,null,null,null,null,null,null,null,null,null,null,null,null,null,null,null,null,"T145",null,",0","YES"]
[175,null,"希望業務の内容－希望あり－１１",null,null,null,null,null,null,null,null,null,null,null,null,null,null,null,null,null,null,null,null,null,null,null,1,null,null,null,null,null,"選択：１、非選択：０\n１業務以上の入力必須",null,null,null,null,null,null,null,null,null,null,null,null,null,null,null,null,null,null,null,null,null,"T144",null,"○,1,,0","YES"]
[176,null,"希望業務の内容－チェック－１２",null,null,null,null,null,null,null,null,null,null,null,null,null,null,null,null,null,null,null,null,null,null,null,1,null,null,null,null,null,"チェック在り：1、チェック無し：0☆☆☆☆☆☆☆☆☆☆☆",null,null,null,null,null,null,null,null,null,null,null,null,null,null,null,null,null,null,null,null,null,"U145",null,",0","YES"]
[177,null,"希望業務の内容－希望あり－１２",null,null,null,null,null,null,null,null,null,null,null,null,null,null,null,null,null,null,null,null,null,null,null,1,null,null,null,null,null,"選択：１、非選択：０\n１業務以上の入力必須",null,null,null,null,null,null,null,null,null,null,null,null,null,null,null,null,null,null,null,null,null,"U144",null,"○,1,,0","YES"]
[178,null,"希望業務の内容－チェック－１３",null,null,null,null,null,null,null,null,null,null,null,null,null,null,null,null,null,null,null,null,null,null,null,1,null,null,null,null,null,"チェック在り：1、チェック無し：0☆☆☆☆☆☆☆☆☆☆☆",null,null,null,null,null,null,null,null,null,null,null,null,null,null,null,null,null,null,null,null,null,"V145",null,",0","YES"]
[179,null,"希望業務の内容－希望あり－１３",null,null,null,null,null,null,null,null,null,null,null,null,null,null,null,null,null,null,null,null,null,null,null,1,null,null,null,null,null,"選択：１、非選択：０\n１業務以上の入力必須",null,null,null,null,null,null,null,null,null,null,null,null,null,null,null,null,null,null,null,null,null,"V144",null,"○,1,,0","YES"]
[180,null,"希望業務の内容－チェック－１４",null,null,null,null,null,null,null,null,null,null,null,null,null,null,null,null,null,null,null,null,null,null,null,1,null,null,null,null,null,"チェック在り：1、チェック無し：0☆☆☆☆☆☆☆☆☆☆☆",null,null,null,null,null,null,null,null,null,null,null,null,null,null,null,null,null,null,null,null,null,"W145",null,",0","YES"]
[181,null,"希望業務の内容－希望あり－１４",null,null,null,null,null,null,null,null,null,null,null,null,null,null,null,null,null,null,null,null,null,null,null,1,null,null,null,null,null,"選択：１、非選択：０\n１業務以上の入力必須",null,null,null,null,null,null,null,null,null,null,null,null,null,null,null,null,null,null,null,null,null,"W144",null,"○,1,,0","YES"]
[182,null,"希望業務の内容－チェック－１５",null,null,null,null,null,null,null,null,null,null,null,null,null,null,null,null,null,null,null,null,null,null,null,1,null,null,null,null,null,"チェック在り：1、チェック無し：0☆☆☆☆☆☆☆☆☆☆☆",null,null,null,null,null,null,null,null,null,null,null,null,null,null,null,null,null,null,null,null,null,"Z145",null,",0","YES"]
[183,null,"希望業務の内容－希望あり－１５",null,null,null,null,null,null,null,null,null,null,null,null,null,null,null,null,null,null,null,null,null,null,null,1,null,null,null,null,null,"選択：１、非選択：０\n１業務以上の入力必須",null,null,null,null,null,null,null,null,null,null,null,null,null,null,null,null,null,null,null,null,null,"Z144",null,"○,1,,0","YES"]
[184,null,"希望業務の内容－チェック－１６",null,null,null,null,null,null,null,null,null,null,null,null,null,null,null,null,null,null,null,null,null,null,null,1,null,null,null,null,null,"チェック在り：1、チェック無し：0☆☆☆☆☆☆☆☆☆☆☆",null,null,null,null,null,null,null,null,null,null,null,null,null,null,null,null,null,null,null,null,null,"AA145",null,",0","YES"]
[185,null,"希望業務の内容－希望あり－１６",null,null,null,null,null,null,null,null,null,null,null,null,null,null,null,null,null,null,null,null,null,null,null,1,null,null,null,null,null,"選択：１、非選択：０\n１業務以上の入力必須",null,null,null,null,null,null,null,null,null,null,null,null,null,null,null,null,null,null,null,null,null,"AA144",null,"○,1,,0","YES"]
[186,null,"希望業務の内容－チェック－１７",null,null,null,null,null,null,null,null,null,null,null,null,null,null,null,null,null,null,null,null,null,null,null,1,null,null,null,null,null,"チェック在り：1、チェック無し：0☆☆☆☆☆☆☆☆☆☆☆",null,null,null,null,null,null,null,null,null,null,null,null,null,null,null,null,null,null,null,null,null,"AB145",null,",0","YES"]
[187,null,"希望業務の内容－希望あり－１７",null,null,null,null,null,null,null,null,null,null,null,null,null,null,null,null,null,null,null,null,null,null,null,1,null,null,null,null,null,"選択：１、非選択：０\n１業務以上の入力必須",null,null,null,null,null,null,null,null,null,null,null,null,null,null,null,null,null,null,null,null,null,"AB144",null,"○,1,,0","YES"]
[188,null,"希望業務の内容－チェック－１８",null,null,null,null,null,null,null,null,null,null,null,null,null,null,null,null,null,null,null,null,null,null,null,1,null,null,null,null,null,"チェック在り：1、チェック無し：0☆☆☆☆☆☆☆☆☆☆☆",null,null,null,null,null,null,null,null,null,null,null,null,null,null,null,null,null,null,null,null,null,"AC145",null,",0","YES"]
[189,null,"希望業務の内容－希望あり－１８",null,null,null,null,null,null,null,null,null,null,null,null,null,null,null,null,null,null,null,null,null,null,null,1,null,null,null,null,null,"選択：１、非選択：０\n１業務以上の入力必須",null,null,null,null,null,null,null,null,null,null,null,null,null,null,null,null,null,null,null,null,null,"AC144",null,"○,1,,0","YES"]
[190,null,"希望業務の内容－チェック－１９",null,null,null,null,null,null,null,null,null,null,null,null,null,null,null,null,null,null,null,null,null,null,null,1,null,null,null,null,null,"チェック在り：1、チェック無し：0☆☆☆☆☆☆☆☆☆☆☆",null,null,null,null,null,null,null,null,null,null,null,null,null,null,null,null,null,null,null,null,null,"AD145",null,",0","YES"]
[191,null,"希望業務の内容－希望あり－１９",null,null,null,null,null,null,null,null,null,null,null,null,null,null,null,null,null,null,null,null,null,null,null,1,null,null,null,null,null,"選択：１、非選択：０\n１業務以上の入力必須",null,null,null,null,null,null,null,null,null,null,null,null,null,null,null,null,null,null,null,null,null,"AD144",null,"○,1,,0","YES"]
[192,null,"希望業務の内容－チェック－２０",null,null,null,null,null,null,null,null,null,null,null,null,null,null,null,null,null,null,null,null,null,null,null,1,null,null,null,null,null,"チェック在り：1、チェック無し：0☆☆☆☆☆☆☆☆☆☆☆",null,null,null,null,null,null,null,null,null,null,null,null,null,null,null,null,null,null,null,null,null,"AE145",null,",0","YES"]
[193,null,"希望業務の内容－希望あり－２０",null,null,null,null,null,null,null,null,null,null,null,null,null,null,null,null,null,null,null,null,null,null,null,1,null,null,null,null,null,"選択：１、非選択：０\n１業務以上の入力必須",null,null,null,null,null,null,null,null,null,null,null,null,null,null,null,null,null,null,null,null,null,"AE144",null,"○,1,,0","YES"]
[{"$f":"A199+1","v":194},null,"希望業務の内容－チェック－２１",null,null,null,null,null,null,null,null,null,null,null,null,null,null,null,null,null,null,null,null,null,null,null,1,null,null,null,null,null,"チェック在り：1、チェック無し：0☆☆☆☆☆☆☆☆☆☆☆",null,null,null,null,null,null,null,null,null,null,null,null,null,null,null,null,null,null,null,null,null,"AF145",null,",0","YES"]
[195,null,"希望業務の内容－希望あり－２１",null,null,null,null,null,null,null,null,null,null,null,null,null,null,null,null,null,null,null,null,null,null,null,1,null,null,null,null,null,"選択：１、非選択：０\n１業務以上の入力必須",null,null,null,null,null,null,null,null,null,null,null,null,null,null,null,null,null,null,null,null,null,"AF144",null,"○,1,,0","YES"]
[196,null,"希望業務の内容－チェック－２２",null,null,null,null,null,null,null,null,null,null,null,null,null,null,null,null,null,null,null,null,null,null,null,1,null,null,null,null,null,"チェック在り：1、チェック無し：0☆☆☆☆☆☆☆☆☆☆☆",null,null,null,null,null,null,null,null,null,null,null,null,null,null,null,null,null,null,null,null,null,"AG145",null,",0","YES"]
[197,null,"希望業務の内容－希望あり－２２",null,null,null,null,null,null,null,null,null,null,null,null,null,null,null,null,null,null,null,null,null,null,null,1,null,null,null,null,null,"選択：１、非選択：０\n１業務以上の入力必須",null,null,null,null,null,null,null,null,null,null,null,null,null,null,null,null,null,null,null,null,null,"AG144",null,"○,1,,0","YES"]
[198,null,"希望業務の内容－チェック－２３",null,null,null,null,null,null,null,null,null,null,null,null,null,null,null,null,null,null,null,null,null,null,null,1,null,null,null,null,null,"チェック在り：1、チェック無し：0☆☆☆☆☆☆☆☆☆☆☆",null,null,null,null,null,null,null,null,null,null,null,null,null,null,null,null,null,null,null,null,null,"AH145",null,",0","YES"]
[199,null,"希望業務の内容－希望あり－２３",null,null,null,null,null,null,null,null,null,null,null,null,null,null,null,null,null,null,null,null,null,null,null,1,null,null,null,null,null,"選択：１、非選択：０\n１業務以上の入力必須",null,null,null,null,null,null,null,null,null,null,null,null,null,null,null,null,null,null,null,null,null,"AH144",null,"○,1,,0","YES"]
[200,null,"希望業務の内容－チェック－２４",null,null,null,null,null,null,null,null,null,null,null,null,null,null,null,null,null,null,null,null,null,null,null,1,null,null,null,null,null,"チェック在り：1、チェック無し：0☆☆☆☆☆☆☆☆☆☆☆",null,null,null,null,null,null,null,null,null,null,null,null,null,null,null,null,null,null,null,null,null,"AJ145",null,",0","YES"]
[201,null,"希望業務の内容－希望あり－２４",null,null,null,null,null,null,null,null,null,null,null,null,null,null,null,null,null,null,null,null,null,null,null,1,null,null,null,null,null,"選択：１、非選択：０\n１業務以上の入力必須",null,null,null,null,null,null,null,null,null,null,null,null,null,null,null,null,null,null,null,null,null,"AJ144",null,"○,1,,0","YES"]
[202,null,"希望業務の内容－チェック－２５",null,null,null,null,null,null,null,null,null,null,null,null,null,null,null,null,null,null,null,null,null,null,null,1,null,null,null,null,null,"チェック在り：1、チェック無し：0☆☆☆☆☆☆☆☆☆☆☆",null,null,null,null,null,null,null,null,null,null,null,null,null,null,null,null,null,null,null,null,null,"AK145",null,",0","YES"]
[203,null,"希望業務の内容－希望あり－２５",null,null,null,null,null,null,null,null,null,null,null,null,null,null,null,null,null,null,null,null,null,null,null,1,null,null,null,null,null,"選択：１、非選択：０\n１業務以上の入力必須",null,null,null,null,null,null,null,null,null,null,null,null,null,null,null,null,null,null,null,null,null,"AK144",null,"○,1,,0","YES"]
[204,null,"希望業務の内容－チェック－２６",null,null,null,null,null,null,null,null,null,null,null,null,null,null,null,null,null,null,null,null,null,null,null,1,null,null,null,null,null,"チェック在り：1、チェック無し：0☆☆☆☆☆☆☆☆☆☆☆",null,null,null,null,null,null,null,null,null,null,null,null,null,null,null,null,null,null,null,null,null,"AL145",null,",0","YES"]
[205,null,"希望業務の内容－希望あり－２６",null,null,null,null,null,null,null,null,null,null,null,null,null,null,null,null,null,null,null,null,null,null,null,1,null,null,null,null,null,"選択：１、非選択：０\n１業務以上の入力必須",null,null,null,null,null,null,null,null,null,null,null,null,null,null,null,null,null,null,null,null,null,"AL144",null,"○,1,,0","YES"]
[206,null,"希望業務の内容－チェック－２７",null,null,null,null,null,null,null,null,null,null,null,null,null,null,null,null,null,null,null,null,null,null,null,1,null,null,null,null,null,"チェック在り：1、チェック無し：0☆☆☆☆☆☆☆☆☆☆☆",null,null,null,null,null,null,null,null,null,null,null,null,null,null,null,null,null,null,null,null,null,"AM145",null,",0","YES"]
[207,null,"希望業務の内容－希望あり－２７",null,null,null,null,null,null,null,null,null,null,null,null,null,null,null,null,null,null,null,null,null,null,null,1,null,null,null,null,null,"選択：１、非選択：０\n１業務以上の入力必須",null,null,null,null,null,null,null,null,null,null,null,null,null,null,null,null,null,null,null,null,null,"AM144",null,"○,1,,0","YES"]
[208,null,"希望業務の内容－チェック－２８",null,null,null,null,null,null,null,null,null,null,null,null,null,null,null,null,null,null,null,null,null,null,null,1,null,null,null,null,null,"チェック在り：1、チェック無し：0☆☆☆☆☆☆☆☆☆☆☆",null,null,null,null,null,null,null,null,null,null,null,null,null,null,null,null,null,null,null,null,null,"AN145",null,",0","YES"]
[209,null,"希望業務の内容－希望あり－２８",null,null,null,null,null,null,null,null,null,null,null,null,null,null,null,null,null,null,null,null,null,null,null,1,null,null,null,null,null,"選択：１、非選択：０\n１業務以上の入力必須",null,null,null,null,null,null,null,null,null,null,null,null,null,null,null,null,null,null,null,null,null,"AN144",null,"○,1,,0","YES"]
[210,null,"希望業務の内容－チェック－２９",null,null,null,null,null,null,null,null,null,null,null,null,null,null,null,null,null,null,null,null,null,null,null,1,null,null,null,null,null,"チェック在り：1、チェック無し：0☆☆☆☆☆☆☆☆☆☆☆",null,null,null,null,null,null,null,null,null,null,null,null,null,null,null,null,null,null,null,null,null,"AP145",null,",0","YES"]
[211,null,"希望業務の内容－希望あり－２９",null,null,null,null,null,null,null,null,null,null,null,null,null,null,null,null,null,null,null,null,null,null,null,1,null,null,null,null,null,"選択：１、非選択：０\n１業務以上の入力必須",null,null,null,null,null,null,null,null,null,null,null,null,null,null,null,null,null,null,null,null,null,"AP144",null,"○,1,,0","YES"]
[212,null,"希望業務の内容－チェック－３０",null,null,null,null,null,null,null,null,null,null,null,null,null,null,null,null,null,null,null,null,null,null,null,1,null,null,null,null,null,"チェック在り：1、チェック無し：0☆☆☆☆☆☆☆☆☆☆☆",null,null,null,null,null,null,null,null,null,null,null,null,null,null,null,null,null,null,null,null,null,"AQ145",null,",0","YES"]
[213,null,"希望業務の内容－希望あり－３０",null,null,null,null,null,null,null,null,null,null,null,null,null,null,null,null,null,null,null,null,null,null,null,1,null,null,null,null,null,"選択：１、非選択：０\n１業務以上の入力必須",null,null,null,null,null,null,null,null,null,null,null,null,null,null,null,null,null,null,null,null,null,"AQ144",null,"○,1,,0","YES"]
[214,null,"希望業務の内容－チェック－３１",null,null,null,null,null,null,null,null,null,null,null,null,null,null,null,null,null,null,null,null,null,null,null,1,null,null,null,null,null,"チェック在り：1、チェック無し：0☆☆☆☆☆☆☆☆☆☆☆",null,null,null,null,null,null,null,null,null,null,null,null,null,null,null,null,null,null,null,null,null,"AR145",null,",0","YES"]
[215,null,"希望業務の内容－希望あり－３１",null,null,null,null,null,null,null,null,null,null,null,null,null,null,null,null,null,null,null,null,null,null,null,1,null,null,null,null,null,"選択：１、非選択：０\n１業務以上の入力必須",null,null,null,null,null,null,null,null,null,null,null,null,null,null,null,null,null,null,null,null,null,"AR144",null,"○,1,,0","YES"]
[216,null,"希望業務の内容－チェック－３２",null,null,null,null,null,null,null,null,null,null,null,null,null,null,null,null,null,null,null,null,null,null,null,1,null,null,null,null,null,"チェック在り：1、チェック無し：0☆☆☆☆☆☆☆☆☆☆☆",null,null,null,null,null,null,null,null,null,null,null,null,null,null,null,null,null,null,null,null,null,"AS145",null,",0","YES"]
[217,null,"希望業務の内容－希望あり－３２",null,null,null,null,null,null,null,null,null,null,null,null,null,null,null,null,null,null,null,null,null,null,null,1,null,null,null,null,null,"選択：１、非選択：０\n１業務以上の入力必須",null,null,null,null,null,null,null,null,null,null,null,null,null,null,null,null,null,null,null,null,null,"AS144",null,"○,1,,0","YES"]
[218,null,"希望業務の内容－チェック－３３",null,null,null,null,null,null,null,null,null,null,null,null,null,null,null,null,null,null,null,null,null,null,null,1,null,null,null,null,null,"チェック在り：1、チェック無し：0☆☆☆☆☆☆☆☆☆☆☆",null,null,null,null,null,null,null,null,null,null,null,null,null,null,null,null,null,null,null,null,null,"AT145",null,",0","YES"]
[219,null,"希望業務の内容－希望あり－３３",null,null,null,null,null,null,null,null,null,null,null,null,null,null,null,null,null,null,null,null,null,null,null,1,null,null,null,null,null,"選択：１、非選択：０\n１業務以上の入力必須",null,null,null,null,null,null,null,null,null,null,null,null,null,null,null,null,null,null,null,null,null,"AT144",null,"○,1,,0","YES"]
[220,null,"希望業務の内容－チェック－３４",null,null,null,null,null,null,null,null,null,null,null,null,null,null,null,null,null,null,null,null,null,null,null,1,null,null,null,null,null,"チェック在り：1、チェック無し：0☆☆☆☆☆☆☆☆☆☆☆",null,null,null,null,null,null,null,null,null,null,null,null,null,null,null,null,null,null,null,null,null,"AU145",null,",0","YES"]
[221,null,"希望業務の内容－希望あり－３４",null,null,null,null,null,null,null,null,null,null,null,null,null,null,null,null,null,null,null,null,null,null,null,1,null,null,null,null,null,"選択：１、非選択：０\n１業務以上の入力必須",null,null,null,null,null,null,null,null,null,null,null,null,null,null,null,null,null,null,null,null,null,"AU144",null,"○,1,,0","YES"]
[222,null,"希望業務の内容－チェック－３５",null,null,null,null,null,null,null,null,null,null,null,null,null,null,null,null,null,null,null,null,null,null,null,1,null,null,null,null,null,"チェック在り：1、チェック無し：0☆☆☆☆☆☆☆☆☆☆☆",null,null,null,null,null,null,null,null,null,null,null,null,null,null,null,null,null,null,null,null,null,"AV145",null,",0","YES"]
[223,null,"希望業務の内容－希望あり－３５",null,null,null,null,null,null,null,null,null,null,null,null,null,null,null,null,null,null,null,null,null,null,null,1,null,null,null,null,null,"選択：１、非選択：０\n１業務以上の入力必須",null,null,null,null,null,null,null,null,null,null,null,null,null,null,null,null,null,null,null,null,null,"AV144",null,"○,1,,0","YES"]
[224,null,"希望業務の内容－チェック－３６",null,null,null,null,null,null,null,null,null,null,null,null,null,null,null,null,null,null,null,null,null,null,null,1,null,null,null,null,null,"チェック在り：1、チェック無し：0☆☆☆☆☆☆☆☆☆☆☆",null,null,null,null,null,null,null,null,null,null,null,null,null,null,null,null,null,null,null,null,null,"AX145",null,",0","YES"]
[225,null,"希望業務の内容－希望あり－３６",null,null,null,null,null,null,null,null,null,null,null,null,null,null,null,null,null,null,null,null,null,null,null,1,null,null,null,null,null,"選択：１、非選択：０\n１業務以上の入力必須",null,null,null,null,null,null,null,null,null,null,null,null,null,null,null,null,null,null,null,null,null,"AX144",null,"○,1,,0","YES"]
[226,null,"希望業務の内容－チェック－３７",null,null,null,null,null,null,null,null,null,null,null,null,null,null,null,null,null,null,null,null,null,null,null,1,null,null,null,null,null,"チェック在り：1、チェック無し：0☆☆☆☆☆☆☆☆☆☆☆",null,null,null,null,null,null,null,null,null,null,null,null,null,null,null,null,null,null,null,null,null,"AY145",null,",0","YES"]
[227,null,"希望業務の内容－希望あり－３７",null,null,null,null,null,null,null,null,null,null,null,null,null,null,null,null,null,null,null,null,null,null,null,1,null,null,null,null,null,"選択：１、非選択：０\n１業務以上の入力必須",null,null,null,null,null,null,null,null,null,null,null,null,null,null,null,null,null,null,null,null,null,"AY144",null,"○,1,,0","YES"]
[228,null,"希望業務の内容－チェック－３８",null,null,null,null,null,null,null,null,null,null,null,null,null,null,null,null,null,null,null,null,null,null,null,1,null,null,null,null,null,"チェック在り：1、チェック無し：0☆☆☆☆☆☆☆☆☆☆☆",null,null,null,null,null,null,null,null,null,null,null,null,null,null,null,null,null,null,null,null,null,"AZ145",null,",0","YES"]
[229,null,"希望業務の内容－希望あり－３８",null,null,null,null,null,null,null,null,null,null,null,null,null,null,null,null,null,null,null,null,null,null,null,1,null,null,null,null,null,"選択：１、非選択：０\n１業務以上の入力必須",null,null,null,null,null,null,null,null,null,null,null,null,null,null,null,null,null,null,null,null,null,"AZ144",null,"○,1,,0","YES"]
[230,null,"希望業務の内容－チェック－３９",null,null,null,null,null,null,null,null,null,null,null,null,null,null,null,null,null,null,null,null,null,null,null,1,null,null,null,null,null,"チェック在り：1、チェック無し：0☆☆☆☆☆☆☆☆☆☆☆",null,null,null,null,null,null,null,null,null,null,null,null,null,null,null,null,null,null,null,null,null,"BB145",null,",0","YES"]
[231,null,"希望業務の内容－希望あり－３９",null,null,null,null,null,null,null,null,null,null,null,null,null,null,null,null,null,null,null,null,null,null,null,1,null,null,null,null,null,"選択：１、非選択：０\n１業務以上の入力必須",null,null,null,null,null,null,null,null,null,null,null,null,null,null,null,null,null,null,null,null,null,"BB144",null,"○,1,,0","YES"]
[232,null,"希望業務の内容－チェック－４０",null,null,null,null,null,null,null,null,null,null,null,null,null,null,null,null,null,null,null,null,null,null,null,1,null,null,null,null,null,"チェック在り：1、チェック無し：0☆☆☆☆☆☆☆☆☆☆☆",null,null,null,null,null,null,null,null,null,null,null,null,null,null,null,null,null,null,null,null,null,"BC145",null,",0","YES"]
[233,null,"希望業務の内容－希望あり－４０",null,null,null,null,null,null,null,null,null,null,null,null,null,null,null,null,null,null,null,null,null,null,null,1,null,null,null,null,null,"選択：１、非選択：０\n１業務以上の入力必須",null,null,null,null,null,null,null,null,null,null,null,null,null,null,null,null,null,null,null,null,null,"BC144",null,"○,1,,0","YES"]
[234,null,"希望業務の内容－チェック－４１",null,null,null,null,null,null,null,null,null,null,null,null,null,null,null,null,null,null,null,null,null,null,null,1,null,null,null,null,null,"チェック在り：1、チェック無し：0☆☆☆☆☆☆☆☆☆☆☆",null,null,null,null,null,null,null,null,null,null,null,null,null,null,null,null,null,null,null,null,null,"BE145",null,",0","YES"]
[235,null,"希望業務の内容－希望あり－４１",null,null,null,null,null,null,null,null,null,null,null,null,null,null,null,null,null,null,null,null,null,null,null,1,null,null,null,null,null,"選択：１、非選択：０\n１業務以上の入力必須",null,null,null,null,null,null,null,null,null,null,null,null,null,null,null,null,null,null,null,null,null,"BE144",null,"○,1,,0","YES"]
[236,null,"希望業務の内容－チェック－４２",null,null,null,null,null,null,null,null,null,null,null,null,null,null,null,null,null,null,null,null,null,null,null,1,null,null,null,null,null,"チェック在り：1、チェック無し：0☆☆☆☆☆☆☆☆☆☆☆",null,null,null,null,null,null,null,null,null,null,null,null,null,null,null,null,null,null,null,null,null,"BF145",null,",0","YES"]
[237,null,"希望業務の内容－希望あり－４２",null,null,null,null,null,null,null,null,null,null,null,null,null,null,null,null,null,null,null,null,null,null,null,1,null,null,null,null,null,"選択：１、非選択：０\n１業務以上の入力必須",null,null,null,null,null,null,null,null,null,null,null,null,null,null,null,null,null,null,null,null,null,"BF144",null,"○,1,,0","YES"]
[238,null,"希望業務の内容－チェック－４３",null,null,null,null,null,null,null,null,null,null,null,null,null,null,null,null,null,null,null,null,null,null,null,1,null,null,null,null,null,"チェック在り：1、チェック無し：0☆☆☆☆☆☆☆☆☆☆☆",null,null,null,null,null,null,null,null,null,null,null,null,null,null,null,null,null,null,null,null,null,"BG145",null,",0","YES"]
[239,null,"希望業務の内容－希望あり－４３",null,null,null,null,null,null,null,null,null,null,null,null,null,null,null,null,null,null,null,null,null,null,null,1,null,null,null,null,null,"選択：１、非選択：０\n１業務以上の入力必須",null,null,null,null,null,null,null,null,null,null,null,null,null,null,null,null,null,null,null,null,null,"BG144",null,"○,1,,0","YES"]
[240,null,"希望業務の内容－チェック－４４",null,null,null,null,null,null,null,null,null,null,null,null,null,null,null,null,null,null,null,null,null,null,null,1,null,null,null,null,null,"チェック在り：1、チェック無し：0☆☆☆☆☆☆☆☆☆☆☆",null,null,null,null,null,null,null,null,null,null,null,null,null,null,null,null,null,null,null,null,null,"I149",null,",0","YES"]
[241,null,"希望業務の内容－希望あり－４４",null,null,null,null,null,null,null,null,null,null,null,null,null,null,null,null,null,null,null,null,null,null,null,1,null,null,null,null,null,"選択：１、非選択：０\n１業務以上の入力必須",null,null,null,null,null,null,null,null,null,null,null,null,null,null,null,null,null,null,null,null,null,"I148",null,"○,1,,0","YES"]
[242,null,"希望業務の内容－チェック－４５",null,null,null,null,null,null,null,null,null,null,null,null,null,null,null,null,null,null,null,null,null,null,null,1,null,null,null,null,null,"チェック在り：1、チェック無し：0☆☆☆☆☆☆☆☆☆☆☆",null,null,null,null,null,null,null,null,null,null,null,null,null,null,null,null,null,null,null,null,null,"J149",null,",0","YES"]
[243,null,"希望業務の内容－希望あり－４５",null,null,null,null,null,null,null,null,null,null,null,null,null,null,null,null,null,null,null,null,null,null,null,1,null,null,null,null,null,"選択：１、非選択：０\n１業務以上の入力必須",null,null,null,null,null,null,null,null,null,null,null,null,null,null,null,null,null,null,null,null,null,"J148",null,"○,1,,0","YES"]
[244,null,"希望業務の内容－チェック－４６",null,null,null,null,null,null,null,null,null,null,null,null,null,null,null,null,null,null,null,null,null,null,null,1,null,null,null,null,null,"チェック在り：1、チェック無し：0☆☆☆☆☆☆☆☆☆☆☆",null,null,null,null,null,null,null,null,null,null,null,null,null,null,null,null,null,null,null,null,null,"K149",null,",0","YES"]
[245,null,"希望業務の内容－希望あり－４６",null,null,null,null,null,null,null,null,null,null,null,null,null,null,null,null,null,null,null,null,null,null,null,1,null,null,null,null,null,"選択：１、非選択：０\n１業務以上の入力必須",null,null,null,null,null,null,null,null,null,null,null,null,null,null,null,null,null,null,null,null,null,"K148",null,"○,1,,0","YES"]
[246,null,"その他業務の具体的内容－チェック－０１",null,null,null,null,null,null,null,null,null,null,null,null,null,null,null,null,null,null,null,null,null,null,null,1,null,null,null,null,null,"チェック在り：1、チェック無し：0☆☆☆☆☆☆☆☆☆☆☆",null,null,null,null,null,null,null,null,null,null,null,null,null,null,null,null,null,null,null,null,null,"A153",null,",0","YES"]
[247,null,"その他業務の具体的内容－希望業務名－０１",null,null,null,null,null,null,null,null,null,null,null,null,null,null,null,null,null,null,null,null,null,null,null,30,null,null,null,null,null,"全角15桁以内\n『２５　希望業務の内容』の『４４　その他』の『希望あり』が選択された場合、1業務以上の入力必須",null,null,null,null,null,null,null,null,null,null,null,null,null,null,null,null,null,null,null,null,null,"C153",null,null,"YES"]
[248,null,"その他業務の具体的内容－チェック－０２",null,null,null,null,null,null,null,null,null,null,null,null,null,null,null,null,null,null,null,null,null,null,null,1,null,null,null,null,null,"チェック在り：1、チェック無し：0☆☆☆☆☆☆☆☆☆☆☆",null,null,null,null,null,null,null,null,null,null,null,null,null,null,null,null,null,null,null,null,null,"A1314",null,",0","YES"]
[249,null,"その他業務の具体的内容－希望業務名－０２",null,null,null,null,null,null,null,null,null,null,null,null,null,null,null,null,null,null,null,null,null,null,null,30,null,null,null,null,null,"全角15桁以内\n『２５　希望業務の内容』の『４４　その他』の『希望あり』が選択された場合、1業務以上の入力必須",null,null,null,null,null,null,null,null,null,null,null,null,null,null,null,null,null,null,null,null,null,"C154",null,null,"YES"]
[250,null,"その他業務の具体的内容－チェック－０３",null,null,null,null,null,null,null,null,null,null,null,null,null,null,null,null,null,null,null,null,null,null,null,1,null,null,null,null,null,"チェック在り：1、チェック無し：0☆☆☆☆☆☆☆☆☆☆☆",null,null,null,null,null,null,null,null,null,null,null,null,null,null,null,null,null,null,null,null,null,"A1315",null,",0","YES"]
[251,null,"その他業務の具体的内容－希望業務名－０３",null,null,null,null,null,null,null,null,null,null,null,null,null,null,null,null,null,null,null,null,null,null,null,30,null,null,null,null,null,"全角15桁以内\n『２５　希望業務の内容』の『４４　その他』の『希望あり』が選択された場合、1業務以上の入力必須",null,null,null,null,null,null,null,null,null,null,null,null,null,null,null,null,null,null,null,null,null,"C155",null,null,"YES"]
[252,null,"その他業務の具体的内容－チェック－０４",null,null,null,null,null,null,null,null,null,null,null,null,null,null,null,null,null,null,null,null,null,null,null,1,null,null,null,null,null,"チェック在り：1、チェック無し：0☆☆☆☆☆☆☆☆☆☆☆",null,null,null,null,null,null,null,null,null,null,null,null,null,null,null,null,null,null,null,null,null,"A156",null,",0","YES"]
[253,null,"その他業務の具体的内容－希望業務名－０４",null,null,null,null,null,null,null,null,null,null,null,null,null,null,null,null,null,null,null,null,null,null,null,30,null,null,null,null,null,"全角15桁以内\n『２５　希望業務の内容』の『４４　その他』の『希望あり』が選択された場合、1業務以上の入力必須",null,null,null,null,null,null,null,null,null,null,null,null,null,null,null,null,null,null,null,null,null,"C156",null,null,"YES"]
[254,null,"その他業務の具体的内容－チェック－０５",null,null,null,null,null,null,null,null,null,null,null,null,null,null,null,null,null,null,null,null,null,null,null,1,null,null,null,null,null,"チェック在り：1、チェック無し：0☆☆☆☆☆☆☆☆☆☆☆",null,null,null,null,null,null,null,null,null,null,null,null,null,null,null,null,null,null,null,null,null,"A157",null,",0","YES"]
[255,null,"その他業務の具体的内容－希望業務名－０５",null,null,null,null,null,null,null,null,null,null,null,null,null,null,null,null,null,null,null,null,null,null,null,30,null,null,null,null,null,"全角15桁以内\n『２５　希望業務の内容』の『４４　その他』の『希望あり』が選択された場合、1業務以上の入力必須",null,null,null,null,null,null,null,null,null,null,null,null,null,null,null,null,null,null,null,null,null,"C157",null,null,"YES"]
[256,null,"測量等実績高－直前１期チェック",null,null,null,null,null,null,null,null,null,null,null,null,null,null,null,null,null,null,null,null,null,null,null,1,null,null,null,null,null,"チェック在り：1、チェック無し：0☆☆☆☆☆☆☆☆☆☆☆",null,null,null,null,null,null,null,null,null,null,null,null,null,null,null,null,null,null,null,null,null,null,"0",null,"YES"]
[257,null,"測量等実績高－直前１期決算年月（自）",null,null,null,null,null,null,null,null,null,null,null,null,null,null,null,null,null,null,null,null,null,null,null,5,null,null,null,"○",null,"ＧＹＹＭＭ　Ｇ：元号（４：平成　５：令和）　ＹＹ：年　ＭＭ：月\n西暦変換をセルをBJ列で行いCSVは西暦年月で出力させている。",null,null,null,null,null,null,null,null,null,null,null,null,null,null,null,null,null,null,null,null,null,"BJ178,T178",null,"-1,","YES"]
[{"$f":"A263+1","v":258},null,"測量等実績高－直前１期決算年月（至）",null,null,null,null,null,null,null,null,null,null,null,null,null,null,null,null,null,null,null,null,null,null,null,5,null,null,null,"○",null,"ＧＹＹＭＭ　Ｇ：元号（４：平成　５：令和）　ＹＹ：年　ＭＭ：月\n西暦変換をセルをBJ列で行いCSVは西暦年月で出力させている。",null,null,null,null,null,null,null,null,null,null,null,null,null,null,null,null,null,null,null,null,null,"BJ179,T179",null,"-1,","YES"]
[259,null,"測量等実績高－直前１期決算－０１",null,null,null,null,null,null,null,null,null,null,null,null,null,null,null,null,null,null,null,null,null,null,null,9,null,null,null,"○",null,"半角数字9桁以内",null,null,null,null,null,null,null,null,null,null,null,null,null,null,null,null,null,null,null,null,null,"O182",null,null,"YES"]
[260,null,"測量等実績高－直前１期決算－０２",null,null,null,null,null,null,null,null,null,null,null,null,null,null,null,null,null,null,null,null,null,null,null,9,null,null,null,"○",null,"半角数字9桁以内",null,null,null,null,null,null,null,null,null,null,null,null,null,null,null,null,null,null,null,null,null,"O183",null,null,"YES"]
[261,null,"測量等実績高－直前１期決算－０３",null,null,null,null,null,null,null,null,null,null,null,null,null,null,null,null,null,null,null,null,null,null,null,9,null,null,null,"○",null,"半角数字9桁以内",null,null,null,null,null,null,null,null,null,null,null,null,null,null,null,null,null,null,null,null,null,"O184",null,null,"YES"]
[262,null,"測量等実績高－直前１期決算－０４",null,null,null,null,null,null,null,null,null,null,null,null,null,null,null,null,null,null,null,null,null,null,null,9,null,null,null,"○",null,"半角数字9桁以内",null,null,null,null,null,null,null,null,null,null,null,null,null,null,null,null,null,null,null,null,null,"O185",null,null,"YES"]
[263,null,"測量等実績高－直前１期決算－０５",null,null,null,null,null,null,null,null,null,null,null,null,null,null,null,null,null,null,null,null,null,null,null,9,null,null,null,"○",null,"半角数字9桁以内",null,null,null,null,null,null,null,null,null,null,null,null,null,null,null,null,null,null,null,null,null,"O186",null,null,"YES"]
[264,null,"測量等実績高－直前１期決算－０６",null,null,null,null,null,null,null,null,null,null,null,null,null,null,null,null,null,null,null,null,null,null,null,9,null,null,null,"○",null,"半角数字9桁以内",null,null,null,null,null,null,null,null,null,null,null,null,null,null,null,null,null,null,null,null,null,"O187",null,null,"YES"]
[265,null,"測量等実績高－直前２期チェック",null,null,null,null,null,null,null,null,null,null,null,null,null,null,null,null,null,null,null,null,null,null,null,1,null,null,null,null,null,"チェック在り：1、チェック無し：0☆☆☆☆☆☆☆☆☆☆☆",null,null,null,null,null,null,null,null,null,null,null,null,null,null,null,null,null,null,null,null,null,null,"0",null,"YES"]
[266,null,"測量等実績高－直前２期決算年月（自）",null,null,null,null,null,null,null,null,null,null,null,null,null,null,null,null,null,null,null,null,null,null,null,5,null,null,null,"○",null,"ＧＹＹＭＭ　Ｇ：元号（４：平成　５：令和）　ＹＹ：年　ＭＭ：月\n西暦変換をセルをBL列で行いCSVは西暦年月で出力させている。",null,null,null,null,null,null,null,null,null,null,null,null,null,null,null,null,null,null,null,null,null,"BL178,AC178",null,"-1,","YES"]
[267,null,"測量等実績高－直前２期決算年月（至）",null,null,null,null,null,null,null,null,null,null,null,null,null,null,null,null,null,null,null,null,null,null,null,5,null,null,null,"○",null,"ＧＹＹＭＭ　Ｇ：元号（４：平成　５：令和）　ＹＹ：年　ＭＭ：月\n西暦変換をセルをBL列で行いCSVは西暦年月で出力させている。",null,null,null,null,null,null,null,null,null,null,null,null,null,null,null,null,null,null,null,null,null,"BL179,AC179",null,"-1,","YES"]
[268,null,"測量等実績高－直前２期決算－０１",null,null,null,null,null,null,null,null,null,null,null,null,null,null,null,null,null,null,null,null,null,null,null,9,null,null,null,"○",null,"半角数字9桁以内",null,null,null,null,null,null,null,null,null,null,null,null,null,null,null,null,null,null,null,null,null,"X182",null,null,"YES"]
[269,null,"測量等実績高－直前２期決算－０２",null,null,null,null,null,null,null,null,null,null,null,null,null,null,null,null,null,null,null,null,null,null,null,9,null,null,null,"○",null,"半角数字9桁以内",null,null,null,null,null,null,null,null,null,null,null,null,null,null,null,null,null,null,null,null,null,"X183",null,null,"YES"]
[270,null,"測量等実績高－直前２期決算－０３",null,null,null,null,null,null,null,null,null,null,null,null,null,null,null,null,null,null,null,null,null,null,null,9,null,null,null,"○",null,"半角数字9桁以内",null,null,null,null,null,null,null,null,null,null,null,null,null,null,null,null,null,null,null,null,null,"X184",null,null,"YES"]
[271,null,"測量等実績高－直前２期決算－０４",null,null,null,null,null,null,null,null,null,null,null,null,null,null,null,null,null,null,null,null,null,null,null,9,null,null,null,"○",null,"半角数字9桁以内",null,null,null,null,null,null,null,null,null,null,null,null,null,null,null,null,null,null,null,null,null,"X185",null,null,"YES"]
[272,null,"測量等実績高－直前２期決算－０５",null,null,null,null,null,null,null,null,null,null,null,null,null,null,null,null,null,null,null,null,null,null,null,9,null,null,null,"○",null,"半角数字9桁以内",null,null,null,null,null,null,null,null,null,null,null,null,null,null,null,null,null,null,null,null,null,"X186",null,null,"YES"]
[273,null,"測量等実績高－直前２期決算－０６",null,null,null,null,null,null,null,null,null,null,null,null,null,null,null,null,null,null,null,null,null,null,null,9,null,null,null,"○",null,"半角数字9桁以内",null,null,null,null,null,null,null,null,null,null,null,null,null,null,null,null,null,null,null,null,null,"X187",null,null,"YES"]
[274,null,"測量等実績高－直前３期チェック",null,null,null,null,null,null,null,null,null,null,null,null,null,null,null,null,null,null,null,null,null,null,null,1,null,null,null,null,null,"チェック在り：1、チェック無し：0☆☆☆☆☆☆☆☆☆☆☆",null,null,null,null,null,null,null,null,null,null,null,null,null,null,null,null,null,null,null,null,null,null,"0",null,"YES"]
[275,null,"測量等実績高－直前３期決算年月（自）",null,null,null,null,null,null,null,null,null,null,null,null,null,null,null,null,null,null,null,null,null,null,null,5,null,null,null,null,null,"ＧＹＹＭＭ　Ｇ：元号（４：平成　５：令和）　ＹＹ：年　ＭＭ：月\n西暦変換をセルをBN列で行いCSVは西暦年月で出力させている。\n直前１期と直前２期の期間の合計が２４ヶ月未満の場合、入力必須",null,null,null,null,null,null,null,null,null,null,null,null,null,null,null,null,null,null,null,null,null,"BN178,AL178",null,"-1,","YES"]
[276,null,"測量等実績高－直前３期決算年月（至）",null,null,null,null,null,null,null,null,null,null,null,null,null,null,null,null,null,null,null,null,null,null,null,5,null,null,null,null,null,"ＧＹＹＭＭ　Ｇ：元号（４：平成　５：令和）　ＹＹ：年　ＭＭ：月\n西暦変換をセルをBN列で行いCSVは西暦年月で出力させている。\n直前１期と直前２期の期間の合計が２４ヶ月未満の場合、入力必須",null,null,null,null,null,null,null,null,null,null,null,null,null,null,null,null,null,null,null,null,null,"BN179,AL179",null,"-1,","YES"]
[277,null,"測量等実績高－直前３期決算－０１",null,null,null,null,null,null,null,null,null,null,null,null,null,null,null,null,null,null,null,null,null,null,null,9,null,null,null,null,null,"半角数字9桁以内\n直前１期と直前２期の期間の合計が２４ヶ月未満の場合、入力必須",null,null,null,null,null,null,null,null,null,null,null,null,null,null,null,null,null,null,null,null,null,"AG182",null,null,"YES"]
[278,null,"測量等実績高－直前３期決算－０２",null,null,null,null,null,null,null,null,null,null,null,null,null,null,null,null,null,null,null,null,null,null,null,9,null,null,null,null,null,"半角数字9桁以内\n直前１期と直前２期の期間の合計が２４ヶ月未満の場合、入力必須",null,null,null,null,null,null,null,null,null,null,null,null,null,null,null,null,null,null,null,null,null,"AG183",null,null,"YES"]
[279,null,"測量等実績高－直前３期決算－０３",null,null,null,null,null,null,null,null,null,null,null,null,null,null,null,null,null,null,null,null,null,null,null,9,null,null,null,null,null,"半角数字9桁以内\n直前１期と直前２期の期間の合計が２４ヶ月未満の場合、入力必須",null,null,null,null,null,null,null,null,null,null,null,null,null,null,null,null,null,null,null,null,null,"AG184",null,null,"YES"]
[280,null,"測量等実績高－直前３期決算－０４",null,null,null,null,null,null,null,null,null,null,null,null,null,null,null,null,null,null,null,null,null,null,null,9,null,null,null,null,null,"半角数字9桁以内\n直前１期と直前２期の期間の合計が２４ヶ月未満の場合、入力必須",null,null,null,null,null,null,null,null,null,null,null,null,null,null,null,null,null,null,null,null,null,"AG185",null,null,"YES"]
[281,null,"測量等実績高－直前３期決算－０５",null,null,null,null,null,null,null,null,null,null,null,null,null,null,null,null,null,null,null,null,null,null,null,9,null,null,null,null,null,"半角数字9桁以内\n直前１期と直前２期の期間の合計が２４ヶ月未満の場合、入力必須",null,null,null,null,null,null,null,null,null,null,null,null,null,null,null,null,null,null,null,null,null,"AG186",null,null,"YES"]
[282,null,"測量等実績高－直前３期決算－０６",null,null,null,null,null,null,null,null,null,null,null,null,null,null,null,null,null,null,null,null,null,null,null,9,null,null,null,null,null,"半角数字9桁以内\n直前１期と直前２期の期間の合計が２４ヶ月未満の場合、入力必須",null,null,null,null,null,null,null,null,null,null,null,null,null,null,null,null,null,null,null,null,null,"AG187",null,null,"YES"]
[283,null,"測量等実績高－直前４期チェック",null,null,null,null,null,null,null,null,null,null,null,null,null,null,null,null,null,null,null,null,null,null,null,1,null,null,null,null,null,"チェック在り：1、チェック無し：0☆☆☆☆☆☆☆☆☆☆☆",null,null,null,null,null,null,null,null,null,null,null,null,null,null,null,null,null,null,null,null,null,null,"0",null,"YES"]
[284,null,"測量等実績高－直前４期決算年月（自）",null,null,null,null,null,null,null,null,null,null,null,null,null,null,null,null,null,null,null,null,null,null,null,5,null,null,null,null,null,"ＧＹＹＭＭ　Ｇ：元号（４：平成　５：令和）　ＹＹ：年　ＭＭ：月\n西暦変換をセルをBP列で行いCSVは西暦年月で出力させている。\n直前１期と直前２期の期間の合計が２４ヶ月未満の場合、入力必須",null,null,null,null,null,null,null,null,null,null,null,null,null,null,null,null,null,null,null,null,null,"BP178,AU178",null,"-1,","YES"]
[285,null,"測量等実績高－直前４期決算年月（至）",null,null,null,null,null,null,null,null,null,null,null,null,null,null,null,null,null,null,null,null,null,null,null,5,null,null,null,null,null,"ＧＹＹＭＭ　Ｇ：元号（４：平成　５：令和）　ＹＹ：年　ＭＭ：月\n西暦変換をセルをBP列で行いCSVは西暦年月で出力させている。\n直前１期と直前２期の期間の合計が２４ヶ月未満の場合、入力必須",null,null,null,null,null,null,null,null,null,null,null,null,null,null,null,null,null,null,null,null,null,"BP179,AU179",null,"-1,","YES"]
[286,null,"測量等実績高－直前４期決算－０１",null,null,null,null,null,null,null,null,null,null,null,null,null,null,null,null,null,null,null,null,null,null,null,9,null,null,null,null,null,"半角数字9桁以内\n直前１期と直前２期と直前３期の期間の合計が２４ヶ月未満の場合、入力必須",null,null,null,null,null,null,null,null,null,null,null,null,null,null,null,null,null,null,null,null,null,"AP182",null,null,"YES"]
[287,null,"測量等実績高－直前４期決算－０２",null,null,null,null,null,null,null,null,null,null,null,null,null,null,null,null,null,null,null,null,null,null,null,9,null,null,null,null,null,"半角数字9桁以内\n直前１期と直前２期と直前３期の期間の合計が２４ヶ月未満の場合、入力必須",null,null,null,null,null,null,null,null,null,null,null,null,null,null,null,null,null,null,null,null,null,"AP183",null,null,"YES"]
[288,null,"測量等実績高－直前４期決算－０３",null,null,null,null,null,null,null,null,null,null,null,null,null,null,null,null,null,null,null,null,null,null,null,9,null,null,null,null,null,"半角数字9桁以内\n直前１期と直前２期と直前３期の期間の合計が２４ヶ月未満の場合、入力必須",null,null,null,null,null,null,null,null,null,null,null,null,null,null,null,null,null,null,null,null,null,"AP184",null,null,"YES"]
[289,null,"測量等実績高－直前４期決算－０４",null,null,null,null,null,null,null,null,null,null,null,null,null,null,null,null,null,null,null,null,null,null,null,9,null,null,null,null,null,"半角数字9桁以内\n直前１期と直前２期と直前３期の期間の合計が２４ヶ月未満の場合、入力必須",null,null,null,null,null,null,null,null,null,null,null,null,null,null,null,null,null,null,null,null,null,"AP185",null,null,"YES"]
[290,null,"測量等実績高－直前４期決算－０５",null,null,null,null,null,null,null,null,null,null,null,null,null,null,null,null,null,null,null,null,null,null,null,9,null,null,null,null,null,"半角数字9桁以内\n直前１期と直前２期と直前３期の期間の合計が２４ヶ月未満の場合、入力必須",null,null,null,null,null,null,null,null,null,null,null,null,null,null,null,null,null,null,null,null,null,"AP186",null,null,"YES"]
[291,null,"測量等実績高－直前４期決算－０６",null,null,null,null,null,null,null,null,null,null,null,null,null,null,null,null,null,null,null,null,null,null,null,9,null,null,null,null,null,"半角数字9桁以内\n直前１期と直前２期と直前３期の期間の合計が２４ヶ月未満の場合、入力必須",null,null,null,null,null,null,null,null,null,null,null,null,null,null,null,null,null,null,null,null,null,"AP187",null,null,"YES"]
[292,null,"自己資本金額－チェック－０１",null,null,null,null,null,null,null,null,null,null,null,null,null,null,null,null,null,null,null,null,null,null,null,1,null,null,null,null,null,"チェック在り：1、チェック無し：0☆☆☆☆☆☆☆☆☆☆☆",null,null,null,null,null,null,null,null,null,null,null,null,null,null,null,null,null,null,null,null,null,"B196","0",",0","YES"]
[293,null,"自己資本金額－（うち外国資本）－０１",null,null,null,null,null,null,null,null,null,null,null,null,null,null,null,null,null,null,null,null,null,null,null,9,null,null,null,"○",null,"半角数字9桁以内",null,null,null,null,null,null,null,null,null,null,null,null,null,null,null,null,null,null,null,null,null,"O196","0",",0","YES"]
[294,null,"自己資本金額－剰余（欠損）金処分－０１",null,null,null,null,null,null,null,null,null,null,null,null,null,null,null,null,null,null,null,null,null,null,null,9,null,null,null,"○",null,"半角数字9桁以内",null,null,null,null,null,null,null,null,null,null,null,null,null,null,null,null,null,null,null,null,null,"X196","0",",0","YES"]
[295,null,"自己資本金額－決算後の増減額－０１",null,null,null,null,null,null,null,null,null,null,null,null,null,null,null,null,null,null,null,null,null,null,null,9,null,null,null,"○",null,"半角数字9桁以内",null,null,null,null,null,null,null,null,null,null,null,null,null,null,null,null,null,null,null,null,null,"AP196","0",",0","YES"]
[296,null,"自己資本金額－チェック－０２",null,null,null,null,null,null,null,null,null,null,null,null,null,null,null,null,null,null,null,null,null,null,null,1,null,null,null,null,null,"チェック在り：1、チェック無し：0☆☆☆☆☆☆☆☆☆☆☆",null,null,null,null,null,null,null,null,null,null,null,null,null,null,null,null,null,null,null,null,null,"B197","0",",0","YES"]
[297,null,"自己資本金額－株主資本－０２",null,null,null,null,null,null,null,null,null,null,null,null,null,null,null,null,null,null,null,null,null,null,null,9,null,null,null,"○",null,"半角数字9桁以内",null,null,null,null,null,null,null,null,null,null,null,null,null,null,null,null,null,null,null,null,null,"O197","0",",0","YES"]
[298,null,"自己資本金額－剰余（欠損）金処分－０２",null,null,null,null,null,null,null,null,null,null,null,null,null,null,null,null,null,null,null,null,null,null,null,9,null,null,null,"○",null,"半角数字9桁以内",null,null,null,null,null,null,null,null,null,null,null,null,null,null,null,null,null,null,null,null,null,"X197","0",",0","YES"]
[299,null,"自己資本金額－決算後の増減額－０２",null,null,null,null,null,null,null,null,null,null,null,null,null,null,null,null,null,null,null,null,null,null,null,9,null,null,null,"○",null,"半角数字9桁以内",null,null,null,null,null,null,null,null,null,null,null,null,null,null,null,null,null,null,null,null,null,"AP197","0",",0","YES"]
[300,null,"自己資本金額－チェック－０３",null,null,null,null,null,null,null,null,null,null,null,null,null,null,null,null,null,null,null,null,null,null,null,1,null,null,null,null,null,"チェック在り：1、チェック無し：0☆☆☆☆☆☆☆☆☆☆☆",null,null,null,null,null,null,null,null,null,null,null,null,null,null,null,null,null,null,null,null,null,"B198","0",",0","YES"]
[301,null,"自己資本金額－評価・換算差額等－０３",null,null,null,null,null,null,null,null,null,null,null,null,null,null,null,null,null,null,null,null,null,null,null,9,null,null,null,"○",null,"半角数字9桁以内",null,null,null,null,null,null,null,null,null,null,null,null,null,null,null,null,null,null,null,null,null,"O198","0",",0","YES"]
[302,null,"自己資本金額－剰余（欠損）金処分－０３",null,null,null,null,null,null,null,null,null,null,null,null,null,null,null,null,null,null,null,null,null,null,null,9,null,null,null,"○",null,"半角数字9桁以内",null,null,null,null,null,null,null,null,null,null,null,null,null,null,null,null,null,null,null,null,null,"X198","0",",0","YES"]
[303,null,"自己資本金額－決算後の増減額－０３",null,null,null,null,null,null,null,null,null,null,null,null,null,null,null,null,null,null,null,null,null,null,null,9,null,null,null,"○",null,"半角数字9桁以内",null,null,null,null,null,null,null,null,null,null,null,null,null,null,null,null,null,null,null,null,null,"AP198","0",",0","YES"]
[304,null,"自己資本金額－チェック－０４",null,null,null,null,null,null,null,null,null,null,null,null,null,null,null,null,null,null,null,null,null,null,null,1,null,null,null,null,null,"チェック在り：1、チェック無し：0☆☆☆☆☆☆☆☆☆☆☆",null,null,null,null,null,null,null,null,null,null,null,null,null,null,null,null,null,null,null,null,null,"B199","0",",0","YES"]
[305,null,"自己資本金額－新株予約権－０４",null,null,null,null,null,null,null,null,null,null,null,null,null,null,null,null,null,null,null,null,null,null,null,9,null,null,null,"○",null,"半角数字9桁以内",null,null,null,null,null,null,null,null,null,null,null,null,null,null,null,null,null,null,null,null,null,"O199","0",",0","YES"]
[306,null,"自己資本金額－剰余（欠損）金処分－０４",null,null,null,null,null,null,null,null,null,null,null,null,null,null,null,null,null,null,null,null,null,null,null,9,null,null,null,"○",null,"半角数字9桁以内",null,null,null,null,null,null,null,null,null,null,null,null,null,null,null,null,null,null,null,null,null,"X199","0",",0","YES"]
[307,null,"自己資本金額－決算後の増減額－０４",null,null,null,null,null,null,null,null,null,null,null,null,null,null,null,null,null,null,null,null,null,null,null,9,null,null,null,"○",null,"半角数字9桁以内",null,null,null,null,null,null,null,null,null,null,null,null,null,null,null,null,null,null,null,null,null,"AP199","0",",0","YES"]
[308,null,"損益計算書－チェック",null,null,null,null,null,null,null,null,null,null,null,null,null,null,null,null,null,null,null,null,null,null,null,1,null,null,null,null,null,"チェック在り：1、チェック無し：0☆☆☆☆☆☆☆☆☆☆☆",null,null,null,null,null,null,null,null,null,null,null,null,null,null,null,null,null,null,null,null,null,null,"0",null,"YES"]
[309,null,"損益計算書－税引前当期利益",null,null,null,null,null,null,null,null,null,null,null,null,null,null,null,null,null,null,null,null,null,null,null,11,null,null,null,"○",null,"半角数字11桁以内",null,null,null,null,null,null,null,null,null,null,null,null,null,null,null,null,null,null,null,null,null,"Q202",null,null,"YES"]
[310,null,"貸借対照表－流動資産－チェック",null,null,null,null,null,null,null,null,null,null,null,null,null,null,null,null,null,null,null,null,null,null,null,1,null,null,null,null,null,"チェック在り：1、チェック無し：0☆☆☆☆☆☆☆☆☆☆☆",null,null,null,null,null,null,null,null,null,null,null,null,null,null,null,null,null,null,null,null,null,null,"0",null,"YES"]
[311,null,"貸借対照表－流動資産",null,null,null,null,null,null,null,null,null,null,null,null,null,null,null,null,null,null,null,null,null,null,null,11,null,null,null,"○",null,"半角数字11桁以内",null,null,null,null,null,null,null,null,null,null,null,null,null,null,null,null,null,null,null,null,null,"Q203",null,null,"YES"]
[312,null,"貸借対照表－流動負債－チェック",null,null,null,null,null,null,null,null,null,null,null,null,null,null,null,null,null,null,null,null,null,null,null,1,null,null,null,null,null,"チェック在り：1、チェック無し：0☆☆☆☆☆☆☆☆☆☆☆",null,null,null,null,null,null,null,null,null,null,null,null,null,null,null,null,null,null,null,null,null,null,"0",null,"YES"]
[313,null,"貸借対照表－流動負債",null,null,null,null,null,null,null,null,null,null,null,null,null,null,null,null,null,null,null,null,null,null,null,11,null,null,null,"○",null,"半角数字11桁以内",null,null,null,null,null,null,null,null,null,null,null,null,null,null,null,null,null,null,null,null,null,"Q204",null,null,"YES"]
[314,null,"貸借対照表－固定資産－チェック",null,null,null,null,null,null,null,null,null,null,null,null,null,null,null,null,null,null,null,null,null,null,null,1,null,null,null,null,null,"チェック在り：1、チェック無し：0☆☆☆☆☆☆☆☆☆☆☆",null,null,null,null,null,null,null,null,null,null,null,null,null,null,null,null,null,null,null,null,null,null,"0",null,"YES"]
[315,null,"貸借対照表－固定資産",null,null,null,null,null,null,null,null,null,null,null,null,null,null,null,null,null,null,null,null,null,null,null,11,null,null,null,"○",null,"半角数字11桁以内",null,null,null,null,null,null,null,null,null,null,null,null,null,null,null,null,null,null,null,null,null,"Q205",null,null,"YES"]
[316,null,"貸借対照表－総資本額－チェック",null,null,null,null,null,null,null,null,null,null,null,null,null,null,null,null,null,null,null,null,null,null,null,1,null,null,null,null,null,"チェック在り：1、チェック無し：0☆☆☆☆☆☆☆☆☆☆☆",null,null,null,null,null,null,null,null,null,null,null,null,null,null,null,null,null,null,null,null,null,null,"0",null,"YES"]
[317,null,"貸借対照表－総資本額",null,null,null,null,null,null,null,null,null,null,null,null,null,null,null,null,null,null,null,null,null,null,null,11,null,null,null,"○",null,"半角数字11桁以内",null,null,null,null,null,null,null,null,null,null,null,null,null,null,null,null,null,null,null,null,null,"Q206",null,null,"YES"]
[318,null,"外資状況－チェック",null,null,null,null,null,null,null,null,null,null,null,null,null,null,null,null,null,null,null,null,null,null,null,1,null,null,null,null,null,"チェック在り：1、チェック無し：0☆☆☆☆☆☆☆☆☆☆☆",null,null,null,null,null,null,null,null,null,null,null,null,null,null,null,null,null,null,null,null,null,null,"0",null,"YES"]
[319,null,"外資状況－外国籍会社－選択",null,null,null,null,null,null,null,null,null,null,null,null,null,null,null,null,null,null,null,null,null,null,null,1,null,null,null,"○",null,"選択：１、非選択：０",null,null,null,null,null,null,null,null,null,null,null,null,null,null,null,null,null,null,null,null,null,"E210",null,"○,1,,0","YES"]
[320,null,"外資状況－外国籍会社－国名",null,null,null,null,null,null,null,null,null,null,null,null,null,null,null,null,null,null,null,null,null,null,null,20,null,null,null,"○",null,"全角10桁以内",null,null,null,null,null,null,null,null,null,null,null,null,null,null,null,null,null,null,null,null,null,"O210",null,null,"YES"]
[321,null,"外資状況－日本国籍会社（１００％外資）－選択",null,null,null,null,null,null,null,null,null,null,null,null,null,null,null,null,null,null,null,null,null,null,null,1,null,null,null,"○",null,"選択：１、非選択：０",null,null,null,null,null,null,null,null,null,null,null,null,null,null,null,null,null,null,null,null,null,"E211",null,"○,1,,0","YES"]
[{"$f":"A327+1","v":322},null,"外資状況－日本国籍会社（１００％外資）－国名",null,null,null,null,null,null,null,null,null,null,null,null,null,null,null,null,null,null,null,null,null,null,null,20,null,null,null,"○",null,"全角10桁以内",null,null,null,null,null,null,null,null,null,null,null,null,null,null,null,null,null,null,null,null,null,"O211",null,null,"YES"]
[323,null,"外資状況－日本国籍会社（一部外資）－選択",null,null,null,null,null,null,null,null,null,null,null,null,null,null,null,null,null,null,null,null,null,null,null,1,null,null,null,"○",null,"選択：１、非選択：０",null,null,null,null,null,null,null,null,null,null,null,null,null,null,null,null,null,null,null,null,null,"E212",null,"○,1,,0","YES"]
[324,null,"外資状況－日本国籍会社（一部外資）－国名－０１",null,null,null,null,null,null,null,null,null,null,null,null,null,null,null,null,null,null,null,null,null,null,null,20,null,null,null,"○",null,"全角10桁以内",null,null,null,null,null,null,null,null,null,null,null,null,null,null,null,null,null,null,null,null,null,"O212",null,null,"YES"]
[325,null,"外資状況－日本国籍会社（一部外資）－外資比率－０１",null,null,null,null,null,null,null,null,null,null,null,null,null,null,null,null,null,null,null,null,null,null,null,2,null,null,null,"○",null,"半角数字2桁以内",null,null,null,null,null,null,null,null,null,null,null,null,null,null,null,null,null,null,null,null,null,"Y212",null,null,"YES"]
[326,null,"外資状況－日本国籍会社（一部外資）－国名－０２",null,null,null,null,null,null,null,null,null,null,null,null,null,null,null,null,null,null,null,null,null,null,null,20,null,null,null,"○",null,"全角10桁以内",null,null,null,null,null,null,null,null,null,null,null,null,null,null,null,null,null,null,null,null,null,"O213",null,null,"YES"]
[327,null,"外資状況－日本国籍会社（一部外資）－外資比率－０２",null,null,null,null,null,null,null,null,null,null,null,null,null,null,null,null,null,null,null,null,null,null,null,2,null,null,null,"○",null,"半角数字2桁以内",null,null,null,null,null,null,null,null,null,null,null,null,null,null,null,null,null,null,null,null,null,"Y213",null,null,"YES"]
[328,null,"外資状況－外資なし－選択",null,null,null,null,null,null,null,null,null,null,null,null,null,null,null,null,null,null,null,null,null,null,null,1,null,null,null,"○",null,"選択：１、非選択：０",null,null,null,null,null,null,null,null,null,null,null,null,null,null,null,null,null,null,null,null,null,"E214",null,"○,1,,0","YES"]
[329,null,"営業年数等－創業－チェック",null,null,null,null,null,null,null,null,null,null,null,null,null,null,null,null,null,null,null,null,null,null,null,1,null,null,null,null,null,"チェック在り：1、チェック無し：0☆☆☆☆☆☆☆☆☆☆☆",null,null,null,null,null,null,null,null,null,null,null,null,null,null,null,null,null,null,null,null,null,null,"0",null,"YES"]
[330,null,"営業年数等－創業",null,null,null,null,null,null,null,null,null,null,null,null,null,null,null,null,null,null,null,null,null,null,null,7,null,null,null,"○",null,"ＧＹＹＭＭＤＤ　Ｇ：元号（１：明治　２：大正　３：昭和　４：平成　５：令和）　ＹＹ：年　ＭＭ：月　ＤＤ：日\n西暦変換をセルをBJ列で行いCSVは西暦年月日で出力させている。",null,null,null,null,null,null,null,null,null,null,null,null,null,null,null,null,null,null,null,null,null,"BJ218,T218,W218",null,"-1,","YES"]
[331,null,"営業年数等－休業又は転（廃）業期間－チェック",null,null,null,null,null,null,null,null,null,null,null,null,null,null,null,null,null,null,null,null,null,null,null,1,null,null,null,null,null,"チェック在り：1、チェック無し：0☆☆☆☆☆☆☆☆☆☆☆",null,null,null,null,null,null,null,null,null,null,null,null,null,null,null,null,null,null,null,null,null,null,"0",null,"YES"]
[332,null,"営業年数等－休業又は転（廃）業期間（自）",null,null,null,null,null,null,null,null,null,null,null,null,null,null,null,null,null,null,null,null,null,null,null,7,null,null,null,"○",null,"ＧＹＹＭＭＤＤ　Ｇ：元号（１：明治　２：大正　３：昭和　４：平成　５：令和）　ＹＹ：年　ＭＭ：月　ＤＤ：日\n西暦変換をセルをBJ列で行いCSVは西暦年月日で出力させている。",null,null,null,null,null,null,null,null,null,null,null,null,null,null,null,null,null,null,null,null,null,"BJ219,T219,W219",null,"-1,","YES"]
[333,null,"営業年数等－休業又は転（廃）業期間（至）",null,null,null,null,null,null,null,null,null,null,null,null,null,null,null,null,null,null,null,null,null,null,null,7,null,null,null,"○",null,"ＧＹＹＭＭＤＤ　Ｇ：元号（１：明治　２：大正　３：昭和　４：平成　５：令和）　ＹＹ：年　ＭＭ：月　ＤＤ：日\n西暦変換をセルをBJ列で行いCSVは西暦年月日で出力させている。",null,null,null,null,null,null,null,null,null,null,null,null,null,null,null,null,null,null,null,null,null,"BJ220,T220,W220",null,"-1,","YES"]
[334,null,"営業年数等－現組織への変更－チェック",null,null,null,null,null,null,null,null,null,null,null,null,null,null,null,null,null,null,null,null,null,null,null,1,null,null,null,null,null,"チェック在り：1、チェック無し：0☆☆☆☆☆☆☆☆☆☆☆",null,null,null,null,null,null,null,null,null,null,null,null,null,null,null,null,null,null,null,null,null,null,"0",null,"YES"]
[335,null,"営業年数等－現組織への変更",null,null,null,null,null,null,null,null,null,null,null,null,null,null,null,null,null,null,null,null,null,null,null,7,null,null,null,"○",null,"ＧＹＹＭＭＤＤ　Ｇ：元号（１：明治　２：大正　３：昭和　４：平成　５：令和）　ＹＹ：年　ＭＭ：月　ＤＤ：日\n西暦変換をセルをBJ列で行いCSVは西暦年月日で出力させている。",null,null,null,null,null,null,null,null,null,null,null,null,null,null,null,null,null,null,null,null,null,"BJ221,T221,W221",null,"-1,","YES"]
[336,null,"営業年数等－営業年数－チェック",null,null,null,null,null,null,null,null,null,null,null,null,null,null,null,null,null,null,null,null,null,null,null,1,null,null,null,null,null,"チェック在り：1、チェック無し：0☆☆☆☆☆☆☆☆☆☆☆",null,null,null,null,null,null,null,null,null,null,null,null,null,null,null,null,null,null,null,null,null,null,"0",null,"YES"]
[337,null,"営業年数等－営業年数",null,null,null,null,null,null,null,null,null,null,null,null,null,null,null,null,null,null,null,null,null,null,null,4,null,null,null,"○",null,"半角数字4桁以内",null,null,null,null,null,null,null,null,null,null,null,null,null,null,null,null,null,null,null,null,null,"P222",null,null,"YES"]
[338,null,"常勤職員の数－チェック",null,null,null,null,null,null,null,null,null,null,null,null,null,null,null,null,null,null,null,null,null,null,null,1,null,null,null,null,null,"チェック在り：1、チェック無し：0☆☆☆☆☆☆☆☆☆☆☆",null,null,null,null,null,null,null,null,null,null,null,null,null,null,null,null,null,null,null,null,null,null,"0",null,"YES"]
[339,null,"常勤職員の数－技術職員",null,null,null,null,null,null,null,null,null,null,null,null,null,null,null,null,null,null,null,null,null,null,null,6,null,null,null,"○",null,"半角数字6桁以内",null,null,null,null,null,null,null,null,null,null,null,null,null,null,null,null,null,null,null,null,null,"C226",null,null,"YES"]
[340,null,"常勤職員の数－事務職員",null,null,null,null,null,null,null,null,null,null,null,null,null,null,null,null,null,null,null,null,null,null,null,6,null,null,null,"○",null,"半角数字6桁以内",null,null,null,null,null,null,null,null,null,null,null,null,null,null,null,null,null,null,null,null,null,"K226",null,null,"YES"]
[341,null,"常勤職員の数－その他職員",null,null,null,null,null,null,null,null,null,null,null,null,null,null,null,null,null,null,null,null,null,null,null,6,null,null,null,"○",null,"半角数字6桁以内",null,null,null,null,null,null,null,null,null,null,null,null,null,null,null,null,null,null,null,null,null,"S226",null,null,"YES"]
[342,null,"常勤職員の数－役職員等",null,null,null,null,null,null,null,null,null,null,null,null,null,null,null,null,null,null,null,null,null,null,null,3,null,null,null,"○",null,"半角数字3桁以内",null,null,null,null,null,null,null,null,null,null,null,null,null,null,null,null,null,null,null,null,null,"AI226",null,null,"YES"]
[343,null,"有資格者数－構造設計一級建築士－チェック",null,null,null,null,null,null,null,null,null,null,null,null,null,null,null,null,null,null,null,null,null,null,null,1,null,null,null,null,null,"チェック在り：1、チェック無し：0☆☆☆☆☆☆☆☆☆☆☆",null,null,null,null,null,null,null,null,null,null,null,null,null,null,null,null,null,null,null,null,null,null,"0",null,"YES"]
[344,null,"有資格者数－構造設計一級建築士",null,null,null,null,null,null,null,null,null,null,null,null,null,null,null,null,null,null,null,null,null,null,null,3,null,null,null,"○",null,"半角数字3桁以内",null,null,null,null,null,null,null,null,null,null,null,null,null,null,null,null,null,null,null,null,null,"F235",null,",0","YES"]
[345,null,"有資格者数－設備設計一級建築士－チェック",null,null,null,null,null,null,null,null,null,null,null,null,null,null,null,null,null,null,null,null,null,null,null,1,null,null,null,null,null,"チェック在り：1、チェック無し：0☆☆☆☆☆☆☆☆☆☆☆",null,null,null,null,null,null,null,null,null,null,null,null,null,null,null,null,null,null,null,null,null,null,"0",null,"YES"]
[346,null,"有資格者数－設備設計一級建築士",null,null,null,null,null,null,null,null,null,null,null,null,null,null,null,null,null,null,null,null,null,null,null,3,null,null,null,"○",null,"半角数字3桁以内",null,null,null,null,null,null,null,null,null,null,null,null,null,null,null,null,null,null,null,null,null,"J235",null,",0","YES"]
[347,null,"有資格者数－一級建築士－チェック",null,null,null,null,null,null,null,null,null,null,null,null,null,null,null,null,null,null,null,null,null,null,null,1,null,null,null,null,null,"チェック在り：1、チェック無し：0☆☆☆☆☆☆☆☆☆☆☆",null,null,null,null,null,null,null,null,null,null,null,null,null,null,null,null,null,null,null,null,null,null,"0",null,"YES"]
[348,null,"有資格者数－一級建築士",null,null,null,null,null,null,null,null,null,null,null,null,null,null,null,null,null,null,null,null,null,null,null,3,null,null,null,"○",null,"半角数字3桁以内",null,null,null,null,null,null,null,null,null,null,null,null,null,null,null,null,null,null,null,null,null,"N235",null,",0","YES"]
[349,null,"有資格者数－二級建築士－チェック",null,null,null,null,null,null,null,null,null,null,null,null,null,null,null,null,null,null,null,null,null,null,null,1,null,null,null,null,null,"チェック在り：1、チェック無し：0☆☆☆☆☆☆☆☆☆☆☆",null,null,null,null,null,null,null,null,null,null,null,null,null,null,null,null,null,null,null,null,null,null,"0",null,"YES"]
[350,null,"有資格者数－二級建築士",null,null,null,null,null,null,null,null,null,null,null,null,null,null,null,null,null,null,null,null,null,null,null,3,null,null,null,"○",null,"半角数字3桁以内",null,null,null,null,null,null,null,null,null,null,null,null,null,null,null,null,null,null,null,null,null,"R235",null,",0","YES"]
[351,null,"有資格者数－建築設備士－チェック",null,null,null,null,null,null,null,null,null,null,null,null,null,null,null,null,null,null,null,null,null,null,null,1,null,null,null,null,null,"チェック在り：1、チェック無し：0☆☆☆☆☆☆☆☆☆☆☆",null,null,null,null,null,null,null,null,null,null,null,null,null,null,null,null,null,null,null,null,null,null,"0",null,"YES"]
[352,null,"有資格者数－建築設備士",null,null,null,null,null,null,null,null,null,null,null,null,null,null,null,null,null,null,null,null,null,null,null,3,null,null,null,"○",null,"半角数字3桁以内",null,null,null,null,null,null,null,null,null,null,null,null,null,null,null,null,null,null,null,null,null,"V235",null,",0","YES"]
[353,null,"有資格者数－一級土木施行管理技士－チェック",null,null,null,null,null,null,null,null,null,null,null,null,null,null,null,null,null,null,null,null,null,null,null,1,null,null,null,null,null,"チェック在り：1、チェック無し：0☆☆☆☆☆☆☆☆☆☆☆",null,null,null,null,null,null,null,null,null,null,null,null,null,null,null,null,null,null,null,null,null,null,"0",null,"YES"]
[354,null,"有資格者数－一級土木施行管理技士",null,null,null,null,null,null,null,null,null,null,null,null,null,null,null,null,null,null,null,null,null,null,null,3,null,null,null,"○",null,"半角数字3桁以内",null,null,null,null,null,null,null,null,null,null,null,null,null,null,null,null,null,null,null,null,null,"Z235",null,",0","YES"]
[355,null,"有資格者数－測量士－チェック",null,null,null,null,null,null,null,null,null,null,null,null,null,null,null,null,null,null,null,null,null,null,null,1,null,null,null,null,null,"チェック在り：1、チェック無し：0☆☆☆☆☆☆☆☆☆☆☆",null,null,null,null,null,null,null,null,null,null,null,null,null,null,null,null,null,null,null,null,null,null,"0",null,"YES"]
[356,null,"有資格者数－測量士",null,null,null,null,null,null,null,null,null,null,null,null,null,null,null,null,null,null,null,null,null,null,null,3,null,null,null,"○",null,"半角数字3桁以内",null,null,null,null,null,null,null,null,null,null,null,null,null,null,null,null,null,null,null,null,null,"AD235",null,",0","YES"]
[357,null,"有資格者数－測量士補－チェック",null,null,null,null,null,null,null,null,null,null,null,null,null,null,null,null,null,null,null,null,null,null,null,1,null,null,null,null,null,"チェック在り：1、チェック無し：0☆☆☆☆☆☆☆☆☆☆☆",null,null,null,null,null,null,null,null,null,null,null,null,null,null,null,null,null,null,null,null,null,null,"0",null,"YES"]
[358,null,"有資格者数－測量士補",null,null,null,null,null,null,null,null,null,null,null,null,null,null,null,null,null,null,null,null,null,null,null,3,null,null,null,"○",null,"半角数字3桁以内",null,null,null,null,null,null,null,null,null,null,null,null,null,null,null,null,null,null,null,null,null,"AH235",null,",0","YES"]
[359,null,"有資格者数－環境計量士－チェック",null,null,null,null,null,null,null,null,null,null,null,null,null,null,null,null,null,null,null,null,null,null,null,1,null,null,null,null,null,"チェック在り：1、チェック無し：0☆☆☆☆☆☆☆☆☆☆☆",null,null,null,null,null,null,null,null,null,null,null,null,null,null,null,null,null,null,null,null,null,null,"0",null,"YES"]
[360,null,"有資格者数－環境計量士",null,null,null,null,null,null,null,null,null,null,null,null,null,null,null,null,null,null,null,null,null,null,null,3,null,null,null,"○",null,"半角数字3桁以内",null,null,null,null,null,null,null,null,null,null,null,null,null,null,null,null,null,null,null,null,null,"AL235",null,",0","YES"]
[361,null,"有資格者数－不動産鑑定士－チェック",null,null,null,null,null,null,null,null,null,null,null,null,null,null,null,null,null,null,null,null,null,null,null,1,null,null,null,null,null,"チェック在り：1、チェック無し：0☆☆☆☆☆☆☆☆☆☆☆",null,null,null,null,null,null,null,null,null,null,null,null,null,null,null,null,null,null,null,null,null,null,"0",null,"YES"]
[362,null,"有資格者数－不動産鑑定士",null,null,null,null,null,null,null,null,null,null,null,null,null,null,null,null,null,null,null,null,null,null,null,3,null,null,null,"○",null,"半角数字3桁以内",null,null,null,null,null,null,null,null,null,null,null,null,null,null,null,null,null,null,null,null,null,"AP235",null,",0","YES"]
[363,null,"有資格者数－不動産鑑定士補－チェック",null,null,null,null,null,null,null,null,null,null,null,null,null,null,null,null,null,null,null,null,null,null,null,1,null,null,null,null,null,"チェック在り：1、チェック無し：0☆☆☆☆☆☆☆☆☆☆☆",null,null,null,null,null,null,null,null,null,null,null,null,null,null,null,null,null,null,null,null,null,null,"0",null,"YES"]
[364,null,"有資格者数－不動産鑑定士補",null,null,null,null,null,null,null,null,null,null,null,null,null,null,null,null,null,null,null,null,null,null,null,3,null,null,null,"○",null,"半角数字3桁以内",null,null,null,null,null,null,null,null,null,null,null,null,null,null,null,null,null,null,null,null,null,"AT235",null,",0","YES"]
[365,null,"有資格者数－土地家屋調査士－チェック",null,null,null,null,null,null,null,null,null,null,null,null,null,null,null,null,null,null,null,null,null,null,null,1,null,null,null,null,null,"チェック在り：1、チェック無し：0☆☆☆☆☆☆☆☆☆☆☆",null,null,null,null,null,null,null,null,null,null,null,null,null,null,null,null,null,null,null,null,null,null,"0",null,"YES"]
[366,null,"有資格者数－土地家屋調査士",null,null,null,null,null,null,null,null,null,null,null,null,null,null,null,null,null,null,null,null,null,null,null,3,null,null,null,"○",null,"半角数字3桁以内",null,null,null,null,null,null,null,null,null,null,null,null,null,null,null,null,null,null,null,null,null,"AX235",null,",0","YES"]
[367,null,"有資格者数－司法書士－チェック",null,null,null,null,null,null,null,null,null,null,null,null,null,null,null,null,null,null,null,null,null,null,null,1,null,null,null,null,null,"チェック在り：1、チェック無し：0☆☆☆☆☆☆☆☆☆☆☆",null,null,null,null,null,null,null,null,null,null,null,null,null,null,null,null,null,null,null,null,null,null,"0",null,"YES"]
[368,null,"有資格者数－司法書士",null,null,null,null,null,null,null,null,null,null,null,null,null,null,null,null,null,null,null,null,null,null,null,3,null,null,null,"○",null,"半角数字3桁以内",null,null,null,null,null,null,null,null,null,null,null,null,null,null,null,null,null,null,null,null,null,"F239",null,",0","YES"]
[369,null,"有資格者数－建築積算士（建築積算資格者）－チェック",null,null,null,null,null,null,null,null,null,null,null,null,null,null,null,null,null,null,null,null,null,null,null,1,null,null,null,null,null,"チェック在り：1、チェック無し：0☆☆☆☆☆☆☆☆☆☆☆",null,null,null,null,null,null,null,null,null,null,null,null,null,null,null,null,null,null,null,null,null,null,"0",null,"YES"]
[370,null,"有資格者数－建築積算士（建築積算資格者）",null,null,null,null,null,null,null,null,null,null,null,null,null,null,null,null,null,null,null,null,null,null,null,3,null,null,null,"○",null,"半角数字3桁以内",null,null,null,null,null,null,null,null,null,null,null,null,null,null,null,null,null,null,null,null,null,"J239",null,",0","YES"]
[371,null,"有資格者数－技術士－機械部門（※）－チェック",null,null,null,null,null,null,null,null,null,null,null,null,null,null,null,null,null,null,null,null,null,null,null,1,null,null,null,null,null,"チェック在り：1、チェック無し：0☆☆☆☆☆☆☆☆☆☆☆",null,null,null,null,null,null,null,null,null,null,null,null,null,null,null,null,null,null,null,null,null,null,"0",null,"YES"]
[372,null,"有資格者数－技術士－機械部門（※）",null,null,null,null,null,null,null,null,null,null,null,null,null,null,null,null,null,null,null,null,null,null,null,3,null,null,null,"○",null,"半角数字3桁以内",null,null,null,null,null,null,null,null,null,null,null,null,null,null,null,null,null,null,null,null,null,"F243",null,",0","YES"]
[373,null,"有資格者数－技術士－機械部門（その他）－チェック",null,null,null,null,null,null,null,null,null,null,null,null,null,null,null,null,null,null,null,null,null,null,null,1,null,null,null,null,null,"チェック在り：1、チェック無し：0☆☆☆☆☆☆☆☆☆☆☆",null,null,null,null,null,null,null,null,null,null,null,null,null,null,null,null,null,null,null,null,null,null,"0",null,"YES"]
[374,null,"有資格者数－技術士－機械部門（その他）",null,null,null,null,null,null,null,null,null,null,null,null,null,null,null,null,null,null,null,null,null,null,null,3,null,null,null,"○",null,"半角数字3桁以内",null,null,null,null,null,null,null,null,null,null,null,null,null,null,null,null,null,null,null,null,null,"J243",null,",0","YES"]
[375,null,"有資格者数－技術士－電気・電子部門－チェック",null,null,null,null,null,null,null,null,null,null,null,null,null,null,null,null,null,null,null,null,null,null,null,1,null,null,null,null,null,"チェック在り：1、チェック無し：0☆☆☆☆☆☆☆☆☆☆☆",null,null,null,null,null,null,null,null,null,null,null,null,null,null,null,null,null,null,null,null,null,null,"0",null,"YES"]
[376,null,"有資格者数－技術士－電気・電子部門",null,null,null,null,null,null,null,null,null,null,null,null,null,null,null,null,null,null,null,null,null,null,null,3,null,null,null,"○",null,"半角数字3桁以内",null,null,null,null,null,null,null,null,null,null,null,null,null,null,null,null,null,null,null,null,null,"N243",null,",0","YES"]
[377,null,"有資格者数－技術士－建設部門（土質及び基礎）－チェック",null,null,null,null,null,null,null,null,null,null,null,null,null,null,null,null,null,null,null,null,null,null,null,1,null,null,null,null,null,"チェック在り：1、チェック無し：0☆☆☆☆☆☆☆☆☆☆☆",null,null,null,null,null,null,null,null,null,null,null,null,null,null,null,null,null,null,null,null,null,null,"0",null,"YES"]
[378,null,"有資格者数－技術士－建設部門（土質及び基礎）",null,null,null,null,null,null,null,null,null,null,null,null,null,null,null,null,null,null,null,null,null,null,null,3,null,null,null,"○",null,"半角数字3桁以内",null,null,null,null,null,null,null,null,null,null,null,null,null,null,null,null,null,null,null,null,null,"R243",null,",0","YES"]
[379,null,"有資格者数－技術士－建設部門（鋼構造及びｺﾝｸﾘ－ﾄ）－チェック",null,null,null,null,null,null,null,null,null,null,null,null,null,null,null,null,null,null,null,null,null,null,null,1,null,null,null,null,null,"チェック在り：1、チェック無し：0☆☆☆☆☆☆☆☆☆☆☆",null,null,null,null,null,null,null,null,null,null,null,null,null,null,null,null,null,null,null,null,null,null,"0",null,"YES"]
[380,null,"有資格者数－技術士－建設部門（鋼構造及びｺﾝｸﾘ－ﾄ）",null,null,null,null,null,null,null,null,null,null,null,null,null,null,null,null,null,null,null,null,null,null,null,3,null,null,null,"○",null,"半角数字3桁以内",null,null,null,null,null,null,null,null,null,null,null,null,null,null,null,null,null,null,null,null,null,"V243",null,",0","YES"]
[381,null,"有資格者数－技術士－建設部門（都市及び地方計画）－チェック",null,null,null,null,null,null,null,null,null,null,null,null,null,null,null,null,null,null,null,null,null,null,null,1,null,null,null,null,null,"チェック在り：1、チェック無し：0☆☆☆☆☆☆☆☆☆☆☆",null,null,null,null,null,null,null,null,null,null,null,null,null,null,null,null,null,null,null,null,null,null,"0",null,"YES"]
[382,null,"有資格者数－技術士－建設部門（都市及び地方計画）",null,null,null,null,null,null,null,null,null,null,null,null,null,null,null,null,null,null,null,null,null,null,null,3,null,null,null,"○",null,"半角数字3桁以内",null,null,null,null,null,null,null,null,null,null,null,null,null,null,null,null,null,null,null,null,null,"Z243",null,",0","YES"]
[383,null,"有資格者数－技術士－建設部門（河川砂防及び海岸）－チェック",null,null,null,null,null,null,null,null,null,null,null,null,null,null,null,null,null,null,null,null,null,null,null,1,null,null,null,null,null,"チェック在り：1、チェック無し：0☆☆☆☆☆☆☆☆☆☆☆",null,null,null,null,null,null,null,null,null,null,null,null,null,null,null,null,null,null,null,null,null,null,"0",null,"YES"]
[384,null,"有資格者数－技術士－建設部門（河川砂防及び海岸）",null,null,null,null,null,null,null,null,null,null,null,null,null,null,null,null,null,null,null,null,null,null,null,3,null,null,null,"○",null,"半角数字3桁以内",null,null,null,null,null,null,null,null,null,null,null,null,null,null,null,null,null,null,null,null,null,"AD243",null,",0","YES"]
[385,null,"有資格者数－技術士－建設部門（港湾及び空港）－チェック",null,null,null,null,null,null,null,null,null,null,null,null,null,null,null,null,null,null,null,null,null,null,null,1,null,null,null,null,null,"チェック在り：1、チェック無し：0☆☆☆☆☆☆☆☆☆☆☆",null,null,null,null,null,null,null,null,null,null,null,null,null,null,null,null,null,null,null,null,null,null,"0",null,"YES"]
[{"$f":"A391+1","v":386},null,"有資格者数－技術士－建設部門（港湾及び空港）",null,null,null,null,null,null,null,null,null,null,null,null,null,null,null,null,null,null,null,null,null,null,null,3,null,null,null,"○",null,"半角数字3桁以内",null,null,null,null,null,null,null,null,null,null,null,null,null,null,null,null,null,null,null,null,null,"AH243",null,",0","YES"]
[387,null,"有資格者数－技術士－建設部門（電力土木）－チェック",null,null,null,null,null,null,null,null,null,null,null,null,null,null,null,null,null,null,null,null,null,null,null,1,null,null,null,null,null,"チェック在り：1、チェック無し：0☆☆☆☆☆☆☆☆☆☆☆",null,null,null,null,null,null,null,null,null,null,null,null,null,null,null,null,null,null,null,null,null,null,"0",null,"YES"]
[388,null,"有資格者数－技術士－建設部門（電力土木）",null,null,null,null,null,null,null,null,null,null,null,null,null,null,null,null,null,null,null,null,null,null,null,3,null,null,null,"○",null,"半角数字3桁以内",null,null,null,null,null,null,null,null,null,null,null,null,null,null,null,null,null,null,null,null,null,"AL243",null,",0","YES"]
[389,null,"有資格者数－技術士－建設部門（道路）－チェック",null,null,null,null,null,null,null,null,null,null,null,null,null,null,null,null,null,null,null,null,null,null,null,1,null,null,null,null,null,"チェック在り：1、チェック無し：0☆☆☆☆☆☆☆☆☆☆☆",null,null,null,null,null,null,null,null,null,null,null,null,null,null,null,null,null,null,null,null,null,null,"0",null,"YES"]
[390,null,"有資格者数－技術士－建設部門（道路）",null,null,null,null,null,null,null,null,null,null,null,null,null,null,null,null,null,null,null,null,null,null,null,3,null,null,null,"○",null,"半角数字3桁以内",null,null,null,null,null,null,null,null,null,null,null,null,null,null,null,null,null,null,null,null,null,"AP243",null,",0","YES"]
[391,null,"有資格者数－技術士－建設部門（鉄道）－チェック",null,null,null,null,null,null,null,null,null,null,null,null,null,null,null,null,null,null,null,null,null,null,null,1,null,null,null,null,null,"チェック在り：1、チェック無し：0☆☆☆☆☆☆☆☆☆☆☆",null,null,null,null,null,null,null,null,null,null,null,null,null,null,null,null,null,null,null,null,null,null,"0",null,"YES"]
[392,null,"有資格者数－技術士－建設部門（鉄道）",null,null,null,null,null,null,null,null,null,null,null,null,null,null,null,null,null,null,null,null,null,null,null,3,null,null,null,"○",null,"半角数字3桁以内",null,null,null,null,null,null,null,null,null,null,null,null,null,null,null,null,null,null,null,null,null,"AT243",null,",0","YES"]
[393,null,"有資格者数－技術士－建設部門（トンネル）－チェック",null,null,null,null,null,null,null,null,null,null,null,null,null,null,null,null,null,null,null,null,null,null,null,1,null,null,null,null,null,"チェック在り：1、チェック無し：0☆☆☆☆☆☆☆☆☆☆☆",null,null,null,null,null,null,null,null,null,null,null,null,null,null,null,null,null,null,null,null,null,null,"0",null,"YES"]
[394,null,"有資格者数－技術士－建設部門（トンネル）",null,null,null,null,null,null,null,null,null,null,null,null,null,null,null,null,null,null,null,null,null,null,null,3,null,null,null,"○",null,"半角数字3桁以内",null,null,null,null,null,null,null,null,null,null,null,null,null,null,null,null,null,null,null,null,null,"AX243",null,",0","YES"]
[395,null,"有資格者数－技術士－建設部門（施工計画施工設備及び積算）－チェック",null,null,null,null,null,null,null,null,null,null,null,null,null,null,null,null,null,null,null,null,null,null,null,1,null,null,null,null,null,"チェック在り：1、チェック無し：0☆☆☆☆☆☆☆☆☆☆☆",null,null,null,null,null,null,null,null,null,null,null,null,null,null,null,null,null,null,null,null,null,null,"0",null,"YES"]
[396,null,"有資格者数－技術士－建設部門（施工計画施工設備及び積算）",null,null,null,null,null,null,null,null,null,null,null,null,null,null,null,null,null,null,null,null,null,null,null,3,null,null,null,"○",null,"半角数字3桁以内",null,null,null,null,null,null,null,null,null,null,null,null,null,null,null,null,null,null,null,null,null,"F247",null,",0","YES"]
[397,null,"有資格者数－技術士－建設部門（建設環境）－チェック",null,null,null,null,null,null,null,null,null,null,null,null,null,null,null,null,null,null,null,null,null,null,null,1,null,null,null,null,null,"チェック在り：1、チェック無し：0☆☆☆☆☆☆☆☆☆☆☆",null,null,null,null,null,null,null,null,null,null,null,null,null,null,null,null,null,null,null,null,null,null,"0",null,"YES"]
[398,null,"有資格者数－技術士－建設部門（建設環境）",null,null,null,null,null,null,null,null,null,null,null,null,null,null,null,null,null,null,null,null,null,null,null,3,null,null,null,"○",null,"半角数字3桁以内",null,null,null,null,null,null,null,null,null,null,null,null,null,null,null,null,null,null,null,null,null,"J247",null,",0","YES"]
[399,null,"有資格者数－技術士－農業部門（農林土木）－チェック",null,null,null,null,null,null,null,null,null,null,null,null,null,null,null,null,null,null,null,null,null,null,null,1,null,null,null,null,null,"チェック在り：1、チェック無し：0☆☆☆☆☆☆☆☆☆☆☆",null,null,null,null,null,null,null,null,null,null,null,null,null,null,null,null,null,null,null,null,null,null,"0",null,"YES"]
[400,null,"有資格者数－技術士－農業部門（農林土木）",null,null,null,null,null,null,null,null,null,null,null,null,null,null,null,null,null,null,null,null,null,null,null,3,null,null,null,"○",null,"半角数字3桁以内",null,null,null,null,null,null,null,null,null,null,null,null,null,null,null,null,null,null,null,null,null,"N247",null,",0","YES"]
[401,null,"有資格者数－技術士－森林部門（森林土木）－チェック",null,null,null,null,null,null,null,null,null,null,null,null,null,null,null,null,null,null,null,null,null,null,null,1,null,null,null,null,null,"チェック在り：1、チェック無し：0☆☆☆☆☆☆☆☆☆☆☆",null,null,null,null,null,null,null,null,null,null,null,null,null,null,null,null,null,null,null,null,null,null,"0",null,"YES"]
[402,null,"有資格者数－技術士－森林部門（森林土木）",null,null,null,null,null,null,null,null,null,null,null,null,null,null,null,null,null,null,null,null,null,null,null,3,null,null,null,"○",null,"半角数字3桁以内",null,null,null,null,null,null,null,null,null,null,null,null,null,null,null,null,null,null,null,null,null,"R247",null,",0","YES"]
[403,null,"有資格者数－技術士－水産部門（水産土木）－チェック",null,null,null,null,null,null,null,null,null,null,null,null,null,null,null,null,null,null,null,null,null,null,null,1,null,null,null,null,null,"チェック在り：1、チェック無し：0☆☆☆☆☆☆☆☆☆☆☆",null,null,null,null,null,null,null,null,null,null,null,null,null,null,null,null,null,null,null,null,null,null,"0",null,"YES"]
[404,null,"有資格者数－技術士－水産部門（水産土木）",null,null,null,null,null,null,null,null,null,null,null,null,null,null,null,null,null,null,null,null,null,null,null,3,null,null,null,"○",null,"半角数字3桁以内",null,null,null,null,null,null,null,null,null,null,null,null,null,null,null,null,null,null,null,null,null,"V247",null,",0","YES"]
[405,null,"有資格者数－技術士－情報工学部門－チェック",null,null,null,null,null,null,null,null,null,null,null,null,null,null,null,null,null,null,null,null,null,null,null,1,null,null,null,null,null,"チェック在り：1、チェック無し：0☆☆☆☆☆☆☆☆☆☆☆",null,null,null,null,null,null,null,null,null,null,null,null,null,null,null,null,null,null,null,null,null,null,"0",null,"YES"]
[406,null,"有資格者数－技術士－情報工学部門",null,null,null,null,null,null,null,null,null,null,null,null,null,null,null,null,null,null,null,null,null,null,null,3,null,null,null,"○",null,"半角数字3桁以内",null,null,null,null,null,null,null,null,null,null,null,null,null,null,null,null,null,null,null,null,null,"Z247",null,",0","YES"]
[407,null,"有資格者数－技術士－応用理学部門（地質）－チェック",null,null,null,null,null,null,null,null,null,null,null,null,null,null,null,null,null,null,null,null,null,null,null,1,null,null,null,null,null,"チェック在り：1、チェック無し：0☆☆☆☆☆☆☆☆☆☆☆",null,null,null,null,null,null,null,null,null,null,null,null,null,null,null,null,null,null,null,null,null,null,"0",null,"YES"]
[408,null,"有資格者数－技術士－応用理学部門（地質）",null,null,null,null,null,null,null,null,null,null,null,null,null,null,null,null,null,null,null,null,null,null,null,3,null,null,null,"○",null,"半角数字3桁以内",null,null,null,null,null,null,null,null,null,null,null,null,null,null,null,null,null,null,null,null,null,"AD247",null,",0","YES"]
[409,null,"有資格者数－技術士－応用理学部門（その他）－チェック",null,null,null,null,null,null,null,null,null,null,null,null,null,null,null,null,null,null,null,null,null,null,null,1,null,null,null,null,null,"チェック在り：1、チェック無し：0☆☆☆☆☆☆☆☆☆☆☆",null,null,null,null,null,null,null,null,null,null,null,null,null,null,null,null,null,null,null,null,null,null,"0",null,"YES"]
[410,null,"有資格者数－技術士－応用理学部門（その他）",null,null,null,null,null,null,null,null,null,null,null,null,null,null,null,null,null,null,null,null,null,null,null,3,null,null,null,"○",null,"半角数字3桁以内",null,null,null,null,null,null,null,null,null,null,null,null,null,null,null,null,null,null,null,null,null,"AH247",null,",0","YES"]
[411,null,"有資格者数－技術士－上下水道部門（上水道及び工業用水道）－チェック",null,null,null,null,null,null,null,null,null,null,null,null,null,null,null,null,null,null,null,null,null,null,null,1,null,null,null,null,null,"チェック在り：1、チェック無し：0☆☆☆☆☆☆☆☆☆☆☆",null,null,null,null,null,null,null,null,null,null,null,null,null,null,null,null,null,null,null,null,null,null,"0",null,"YES"]
[412,null,"有資格者数－技術士－上下水道部門（上水道及び工業用水道）",null,null,null,null,null,null,null,null,null,null,null,null,null,null,null,null,null,null,null,null,null,null,null,3,null,null,null,"○",null,"半角数字3桁以内",null,null,null,null,null,null,null,null,null,null,null,null,null,null,null,null,null,null,null,null,null,"AL247",null,",0","YES"]
[413,null,"有資格者数－技術士－上下水道部門（下水道）－チェック",null,null,null,null,null,null,null,null,null,null,null,null,null,null,null,null,null,null,null,null,null,null,null,1,null,null,null,null,null,"チェック在り：1、チェック無し：0☆☆☆☆☆☆☆☆☆☆☆",null,null,null,null,null,null,null,null,null,null,null,null,null,null,null,null,null,null,null,null,null,null,"0",null,"YES"]
[414,null,"有資格者数－技術士－上下水道部門（下水道）",null,null,null,null,null,null,null,null,null,null,null,null,null,null,null,null,null,null,null,null,null,null,null,3,null,null,null,"○",null,"半角数字3桁以内",null,null,null,null,null,null,null,null,null,null,null,null,null,null,null,null,null,null,null,null,null,"AP247",null,",0","YES"]
[415,null,"有資格者数－技術士－上下水道部門（水道環境）－チェック",null,null,null,null,null,null,null,null,null,null,null,null,null,null,null,null,null,null,null,null,null,null,null,1,null,null,null,null,null,"チェック在り：1、チェック無し：0☆☆☆☆☆☆☆☆☆☆☆",null,null,null,null,null,null,null,null,null,null,null,null,null,null,null,null,null,null,null,null,null,null,"0",null,"YES"]
[416,null,"有資格者数－技術士－上下水道部門（水道環境）",null,null,null,null,null,null,null,null,null,null,null,null,null,null,null,null,null,null,null,null,null,null,null,3,null,null,null,"○",null,"半角数字3桁以内",null,null,null,null,null,null,null,null,null,null,null,null,null,null,null,null,null,null,null,null,null,"AT247",null,",0","YES"]
[417,null,"有資格者数－技術士－その他の部門－チェック",null,null,null,null,null,null,null,null,null,null,null,null,null,null,null,null,null,null,null,null,null,null,null,1,null,null,null,null,null,"チェック在り：1、チェック無し：0☆☆☆☆☆☆☆☆☆☆☆",null,null,null,null,null,null,null,null,null,null,null,null,null,null,null,null,null,null,null,null,null,null,"0",null,"YES"]
[418,null,"有資格者数－技術士－その他の部門",null,null,null,null,null,null,null,null,null,null,null,null,null,null,null,null,null,null,null,null,null,null,null,3,null,null,null,"○",null,"半角数字3桁以内",null,null,null,null,null,null,null,null,null,null,null,null,null,null,null,null,null,null,null,null,null,"AX247",null,",0","YES"]
[419,null,"有資格者数－ＲＣＣＭ－河川・砂防及び海岸－チェック",null,null,null,null,null,null,null,null,null,null,null,null,null,null,null,null,null,null,null,null,null,null,null,1,null,null,null,null,null,"チェック在り：1、チェック無し：0☆☆☆☆☆☆☆☆☆☆☆",null,null,null,null,null,null,null,null,null,null,null,null,null,null,null,null,null,null,null,null,null,null,"0",null,"YES"]
[420,null,"有資格者数－ＲＣＣＭ－河川・砂防及び海岸",null,null,null,null,null,null,null,null,null,null,null,null,null,null,null,null,null,null,null,null,null,null,null,3,null,null,null,"○",null,"半角数字3桁以内",null,null,null,null,null,null,null,null,null,null,null,null,null,null,null,null,null,null,null,null,null,"F251",null,",0","YES"]
[421,null,"有資格者数－ＲＣＣＭ－港湾及び空港－チェック",null,null,null,null,null,null,null,null,null,null,null,null,null,null,null,null,null,null,null,null,null,null,null,1,null,null,null,null,null,"チェック在り：1、チェック無し：0☆☆☆☆☆☆☆☆☆☆☆",null,null,null,null,null,null,null,null,null,null,null,null,null,null,null,null,null,null,null,null,null,null,"0",null,"YES"]
[422,null,"有資格者数－ＲＣＣＭ－港湾及び空港",null,null,null,null,null,null,null,null,null,null,null,null,null,null,null,null,null,null,null,null,null,null,null,3,null,null,null,"○",null,"半角数字3桁以内",null,null,null,null,null,null,null,null,null,null,null,null,null,null,null,null,null,null,null,null,null,"J251",null,",0","YES"]
[423,null,"有資格者数－ＲＣＣＭ－電力土木－チェック",null,null,null,null,null,null,null,null,null,null,null,null,null,null,null,null,null,null,null,null,null,null,null,1,null,null,null,null,null,"チェック在り：1、チェック無し：0☆☆☆☆☆☆☆☆☆☆☆",null,null,null,null,null,null,null,null,null,null,null,null,null,null,null,null,null,null,null,null,null,null,"0",null,"YES"]
[424,null,"有資格者数－ＲＣＣＭ－電力土木",null,null,null,null,null,null,null,null,null,null,null,null,null,null,null,null,null,null,null,null,null,null,null,3,null,null,null,"○",null,"半角数字3桁以内",null,null,null,null,null,null,null,null,null,null,null,null,null,null,null,null,null,null,null,null,null,"N251",null,",0","YES"]
[425,null,"有資格者数－ＲＣＣＭ－道路－チェック",null,null,null,null,null,null,null,null,null,null,null,null,null,null,null,null,null,null,null,null,null,null,null,1,null,null,null,null,null,"チェック在り：1、チェック無し：0☆☆☆☆☆☆☆☆☆☆☆",null,null,null,null,null,null,null,null,null,null,null,null,null,null,null,null,null,null,null,null,null,null,"0",null,"YES"]
[426,null,"有資格者数－ＲＣＣＭ－道路",null,null,null,null,null,null,null,null,null,null,null,null,null,null,null,null,null,null,null,null,null,null,null,3,null,null,null,"○",null,"半角数字3桁以内",null,null,null,null,null,null,null,null,null,null,null,null,null,null,null,null,null,null,null,null,null,"R251",null,",0","YES"]
[427,null,"有資格者数－ＲＣＣＭ－鉄道－チェック",null,null,null,null,null,null,null,null,null,null,null,null,null,null,null,null,null,null,null,null,null,null,null,1,null,null,null,null,null,"チェック在り：1、チェック無し：0☆☆☆☆☆☆☆☆☆☆☆",null,null,null,null,null,null,null,null,null,null,null,null,null,null,null,null,null,null,null,null,null,null,"0",null,"YES"]
[428,null,"有資格者数－ＲＣＣＭ－鉄道",null,null,null,null,null,null,null,null,null,null,null,null,null,null,null,null,null,null,null,null,null,null,null,3,null,null,null,"○",null,"半角数字3桁以内",null,null,null,null,null,null,null,null,null,null,null,null,null,null,null,null,null,null,null,null,null,"V251",null,",0","YES"]
[429,null,"有資格者数－ＲＣＣＭ－造園－チェック",null,null,null,null,null,null,null,null,null,null,null,null,null,null,null,null,null,null,null,null,null,null,null,1,null,null,null,null,null,"チェック在り：1、チェック無し：0☆☆☆☆☆☆☆☆☆☆☆",null,null,null,null,null,null,null,null,null,null,null,null,null,null,null,null,null,null,null,null,null,null,"0",null,"YES"]
[430,null,"有資格者数－ＲＣＣＭ－造園",null,null,null,null,null,null,null,null,null,null,null,null,null,null,null,null,null,null,null,null,null,null,null,3,null,null,null,"○",null,"半角数字3桁以内",null,null,null,null,null,null,null,null,null,null,null,null,null,null,null,null,null,null,null,null,null,"Z251",null,",0","YES"]
[431,null,"有資格者数－ＲＣＣＭ－都市計画及び地方計画－チェック",null,null,null,null,null,null,null,null,null,null,null,null,null,null,null,null,null,null,null,null,null,null,null,1,null,null,null,null,null,"チェック在り：1、チェック無し：0☆☆☆☆☆☆☆☆☆☆☆",null,null,null,null,null,null,null,null,null,null,null,null,null,null,null,null,null,null,null,null,null,null,"0",null,"YES"]
[432,null,"有資格者数－ＲＣＣＭ－都市計画及び地方計画",null,null,null,null,null,null,null,null,null,null,null,null,null,null,null,null,null,null,null,null,null,null,null,3,null,null,null,"○",null,"半角数字3桁以内",null,null,null,null,null,null,null,null,null,null,null,null,null,null,null,null,null,null,null,null,null,"AD251",null,",0","YES"]
[433,null,"有資格者数－ＲＣＣＭ－地質－チェック",null,null,null,null,null,null,null,null,null,null,null,null,null,null,null,null,null,null,null,null,null,null,null,1,null,null,null,null,null,"チェック在り：1、チェック無し：0☆☆☆☆☆☆☆☆☆☆☆",null,null,null,null,null,null,null,null,null,null,null,null,null,null,null,null,null,null,null,null,null,null,"0",null,"YES"]
[434,null,"有資格者数－ＲＣＣＭ－地質",null,null,null,null,null,null,null,null,null,null,null,null,null,null,null,null,null,null,null,null,null,null,null,3,null,null,null,"○",null,"半角数字3桁以内",null,null,null,null,null,null,null,null,null,null,null,null,null,null,null,null,null,null,null,null,null,"AH251",null,",0","YES"]
[435,null,"有資格者数－ＲＣＣＭ－土質及び基礎－チェック",null,null,null,null,null,null,null,null,null,null,null,null,null,null,null,null,null,null,null,null,null,null,null,1,null,null,null,null,null,"チェック在り：1、チェック無し：0☆☆☆☆☆☆☆☆☆☆☆",null,null,null,null,null,null,null,null,null,null,null,null,null,null,null,null,null,null,null,null,null,null,"0",null,"YES"]
[436,null,"有資格者数－ＲＣＣＭ－土質及び基礎",null,null,null,null,null,null,null,null,null,null,null,null,null,null,null,null,null,null,null,null,null,null,null,3,null,null,null,"○",null,"半角数字3桁以内",null,null,null,null,null,null,null,null,null,null,null,null,null,null,null,null,null,null,null,null,null,"AL251",null,",0","YES"]
[437,null,"有資格者数－ＲＣＣＭ－鋼構造及びコンクリ－ト－チェック",null,null,null,null,null,null,null,null,null,null,null,null,null,null,null,null,null,null,null,null,null,null,null,1,null,null,null,null,null,"チェック在り：1、チェック無し：0☆☆☆☆☆☆☆☆☆☆☆",null,null,null,null,null,null,null,null,null,null,null,null,null,null,null,null,null,null,null,null,null,null,"0",null,"YES"]
[438,null,"有資格者数－ＲＣＣＭ－鋼構造及びコンクリ－ト",null,null,null,null,null,null,null,null,null,null,null,null,null,null,null,null,null,null,null,null,null,null,null,3,null,null,null,"○",null,"半角数字3桁以内",null,null,null,null,null,null,null,null,null,null,null,null,null,null,null,null,null,null,null,null,null,"AP251",null,",0","YES"]
[439,null,"有資格者数－ＲＣＣＭ－トンネル－チェック",null,null,null,null,null,null,null,null,null,null,null,null,null,null,null,null,null,null,null,null,null,null,null,1,null,null,null,null,null,"チェック在り：1、チェック無し：0☆☆☆☆☆☆☆☆☆☆☆",null,null,null,null,null,null,null,null,null,null,null,null,null,null,null,null,null,null,null,null,null,null,"0",null,"YES"]
[440,null,"有資格者数－ＲＣＣＭ－トンネル",null,null,null,null,null,null,null,null,null,null,null,null,null,null,null,null,null,null,null,null,null,null,null,3,null,null,null,"○",null,"半角数字3桁以内",null,null,null,null,null,null,null,null,null,null,null,null,null,null,null,null,null,null,null,null,null,"AT251",null,",0","YES"]
[441,null,"有資格者数－ＲＣＣＭ－施工計画、施工設備及び積算－チェック",null,null,null,null,null,null,null,null,null,null,null,null,null,null,null,null,null,null,null,null,null,null,null,1,null,null,null,null,null,"チェック在り：1、チェック無し：0☆☆☆☆☆☆☆☆☆☆☆",null,null,null,null,null,null,null,null,null,null,null,null,null,null,null,null,null,null,null,null,null,null,"0",null,"YES"]
[442,null,"有資格者数－ＲＣＣＭ－施工計画、施工設備及び積算",null,null,null,null,null,null,null,null,null,null,null,null,null,null,null,null,null,null,null,null,null,null,null,3,null,null,null,"○",null,"半角数字3桁以内",null,null,null,null,null,null,null,null,null,null,null,null,null,null,null,null,null,null,null,null,null,"AX251",null,",0","YES"]
[443,null,"有資格者数－ＲＣＣＭ－建設環境－チェック",null,null,null,null,null,null,null,null,null,null,null,null,null,null,null,null,null,null,null,null,null,null,null,1,null,null,null,null,null,"チェック在り：1、チェック無し：0☆☆☆☆☆☆☆☆☆☆☆",null,null,null,null,null,null,null,null,null,null,null,null,null,null,null,null,null,null,null,null,null,null,"0",null,"YES"]
[444,null,"有資格者数－ＲＣＣＭ－建設環境",null,null,null,null,null,null,null,null,null,null,null,null,null,null,null,null,null,null,null,null,null,null,null,3,null,null,null,"○",null,"半角数字3桁以内",null,null,null,null,null,null,null,null,null,null,null,null,null,null,null,null,null,null,null,null,null,"F255",null,",0","YES"]
[445,null,"有資格者数－ＲＣＣＭ－上水道及び工業用水道－チェック",null,null,null,null,null,null,null,null,null,null,null,null,null,null,null,null,null,null,null,null,null,null,null,1,null,null,null,null,null,"チェック在り：1、チェック無し：0☆☆☆☆☆☆☆☆☆☆☆",null,null,null,null,null,null,null,null,null,null,null,null,null,null,null,null,null,null,null,null,null,null,"0",null,"YES"]
[446,null,"有資格者数－ＲＣＣＭ－上水道及び工業用水道",null,null,null,null,null,null,null,null,null,null,null,null,null,null,null,null,null,null,null,null,null,null,null,3,null,null,null,"○",null,"半角数字3桁以内",null,null,null,null,null,null,null,null,null,null,null,null,null,null,null,null,null,null,null,null,null,"J255",null,",0","YES"]
[447,null,"有資格者数－ＲＣＣＭ－下水道－チェック",null,null,null,null,null,null,null,null,null,null,null,null,null,null,null,null,null,null,null,null,null,null,null,1,null,null,null,null,null,"チェック在り：1、チェック無し：0☆☆☆☆☆☆☆☆☆☆☆",null,null,null,null,null,null,null,null,null,null,null,null,null,null,null,null,null,null,null,null,null,null,"0",null,"YES"]
[448,null,"有資格者数－ＲＣＣＭ－下水道",null,null,null,null,null,null,null,null,null,null,null,null,null,null,null,null,null,null,null,null,null,null,null,3,null,null,null,"○",null,"半角数字3桁以内",null,null,null,null,null,null,null,null,null,null,null,null,null,null,null,null,null,null,null,null,null,"N255",null,",0","YES"]
[449,null,"有資格者数－ＲＣＣＭ－農業土木－チェック",null,null,null,null,null,null,null,null,null,null,null,null,null,null,null,null,null,null,null,null,null,null,null,1,null,null,null,null,null,"チェック在り：1、チェック無し：0☆☆☆☆☆☆☆☆☆☆☆",null,null,null,null,null,null,null,null,null,null,null,null,null,null,null,null,null,null,null,null,null,null,"0",null,"YES"]
[{"$f":"A455+1","v":450},null,"有資格者数－ＲＣＣＭ－農業土木",null,null,null,null,null,null,null,null,null,null,null,null,null,null,null,null,null,null,null,null,null,null,null,3,null,null,null,"○",null,"半角数字3桁以内",null,null,null,null,null,null,null,null,null,null,null,null,null,null,null,null,null,null,null,null,null,"R255",null,",0","YES"]
[451,null,"有資格者数－ＲＣＣＭ－森林土木－チェック",null,null,null,null,null,null,null,null,null,null,null,null,null,null,null,null,null,null,null,null,null,null,null,1,null,null,null,null,null,"チェック在り：1、チェック無し：0☆☆☆☆☆☆☆☆☆☆☆",null,null,null,null,null,null,null,null,null,null,null,null,null,null,null,null,null,null,null,null,null,null,"0",null,"YES"]
[452,null,"有資格者数－ＲＣＣＭ－森林土木",null,null,null,null,null,null,null,null,null,null,null,null,null,null,null,null,null,null,null,null,null,null,null,3,null,null,null,"○",null,"半角数字3桁以内",null,null,null,null,null,null,null,null,null,null,null,null,null,null,null,null,null,null,null,null,null,"V255",null,",0","YES"]
[453,null,"有資格者数－ＲＣＣＭ－機械－チェック",null,null,null,null,null,null,null,null,null,null,null,null,null,null,null,null,null,null,null,null,null,null,null,1,null,null,null,null,null,"チェック在り：1、チェック無し：0☆☆☆☆☆☆☆☆☆☆☆",null,null,null,null,null,null,null,null,null,null,null,null,null,null,null,null,null,null,null,null,null,null,"0",null,"YES"]
[454,null,"有資格者数－ＲＣＣＭ－機械",null,null,null,null,null,null,null,null,null,null,null,null,null,null,null,null,null,null,null,null,null,null,null,3,null,null,null,"○",null,"半角数字3桁以内",null,null,null,null,null,null,null,null,null,null,null,null,null,null,null,null,null,null,null,null,null,"Z255",null,",0","YES"]
[455,null,"有資格者数－ＲＣＣＭ－電気・電子－チェック",null,null,null,null,null,null,null,null,null,null,null,null,null,null,null,null,null,null,null,null,null,null,null,1,null,null,null,null,null,"チェック在り：1、チェック無し：0☆☆☆☆☆☆☆☆☆☆☆",null,null,null,null,null,null,null,null,null,null,null,null,null,null,null,null,null,null,null,null,null,null,"0",null,"YES"]
[456,null,"有資格者数－ＲＣＣＭ－電気・電子",null,null,null,null,null,null,null,null,null,null,null,null,null,null,null,null,null,null,null,null,null,null,null,3,null,null,null,"○",null,"半角数字3桁以内",null,null,null,null,null,null,null,null,null,null,null,null,null,null,null,null,null,null,null,null,null,"AD255",null,",0","YES"]
[457,null,"有資格者数－ＲＣＣＭ－水産土木－チェック",null,null,null,null,null,null,null,null,null,null,null,null,null,null,null,null,null,null,null,null,null,null,null,1,null,null,null,null,null,"チェック在り：1、チェック無し：0☆☆☆☆☆☆☆☆☆☆☆",null,null,null,null,null,null,null,null,null,null,null,null,null,null,null,null,null,null,null,null,null,null,"0",null,"YES"]
[458,null,"有資格者数－ＲＣＣＭ－水産土木",null,null,null,null,null,null,null,null,null,null,null,null,null,null,null,null,null,null,null,null,null,null,null,3,null,null,null,"○",null,"半角数字3桁以内",null,null,null,null,null,null,null,null,null,null,null,null,null,null,null,null,null,null,null,null,null,"AH255",null,",0","YES"]
[459,null,"有資格者数ーＲＣＣＭー廃棄物ーチェック",null,null,null,null,null,null,null,null,null,null,null,null,null,null,null,null,null,null,null,null,null,null,null,1,null,null,null,null,null,"チェック在り：1、チェック無し：0",null,null,null,null,null,null,null,null,null,null,null,null,null,null,null,null,null,null,null,null,null,null,"0",null,"YES"]
[460,null,"有資格者数ーＲＣＣＭー廃棄物",null,null,null,null,null,null,null,null,null,null,null,null,null,null,null,null,null,null,null,null,null,null,null,3,null,null,null,"○",null,"半角数字3桁以内",null,null,null,null,null,null,null,null,null,null,null,null,null,null,null,null,null,null,null,null,null,"AL255",null,",0","YES"]
[461,null,"有資格者数ーＲＣＣＭー建設情報ーチェック",null,null,null,null,null,null,null,null,null,null,null,null,null,null,null,null,null,null,null,null,null,null,null,1,null,null,null,null,null,"チェック在り：1、チェック無し：0",null,null,null,null,null,null,null,null,null,null,null,null,null,null,null,null,null,null,null,null,null,null,"0",null,"YES"]
[462,null,"有資格者数ーＲＣＣＭー建設情報",null,null,null,null,null,null,null,null,null,null,null,null,null,null,null,null,null,null,null,null,null,null,null,3,null,null,null,"○",null,"半角数字3桁以内",null,null,null,null,null,null,null,null,null,null,null,null,null,null,null,null,null,null,null,null,null,"AP255",null,",0","YES"]
[463,null,"有資格者数－公認会計士－チェック",null,null,null,null,null,null,null,null,null,null,null,null,null,null,null,null,null,null,null,null,null,null,null,1,null,null,null,null,null,"チェック在り：1、チェック無し：0☆☆☆☆☆☆☆☆☆☆☆",null,null,null,null,null,null,null,null,null,null,null,null,null,null,null,null,null,null,null,null,null,null,"0",null,"YES"]
[464,null,"有資格者数－公認会計士",null,null,null,null,null,null,null,null,null,null,null,null,null,null,null,null,null,null,null,null,null,null,null,3,null,null,null,"○",null,"半角数字3桁以内",null,null,null,null,null,null,null,null,null,null,null,null,null,null,null,null,null,null,null,null,null,"F259",null,",0","YES"]
[465,null,"有資格者数－会計士補－チェック",null,null,null,null,null,null,null,null,null,null,null,null,null,null,null,null,null,null,null,null,null,null,null,1,null,null,null,null,null,"チェック在り：1、チェック無し：0☆☆☆☆☆☆☆☆☆☆☆",null,null,null,null,null,null,null,null,null,null,null,null,null,null,null,null,null,null,null,null,null,null,"0",null,"YES"]
[466,null,"有資格者数－会計士補",null,null,null,null,null,null,null,null,null,null,null,null,null,null,null,null,null,null,null,null,null,null,null,3,null,null,null,"○",null,"半角数字3桁以内",null,null,null,null,null,null,null,null,null,null,null,null,null,null,null,null,null,null,null,null,null,"J259",null,",0","YES"]
[467,null,"有資格者数－税理士－チェック",null,null,null,null,null,null,null,null,null,null,null,null,null,null,null,null,null,null,null,null,null,null,null,1,null,null,null,null,null,"チェック在り：1、チェック無し：0☆☆☆☆☆☆☆☆☆☆☆",null,null,null,null,null,null,null,null,null,null,null,null,null,null,null,null,null,null,null,null,null,null,"0",null,"YES"]
[468,null,"有資格者数－税理士",null,null,null,null,null,null,null,null,null,null,null,null,null,null,null,null,null,null,null,null,null,null,null,3,null,null,null,"○",null,"半角数字3桁以内",null,null,null,null,null,null,null,null,null,null,null,null,null,null,null,null,null,null,null,null,null,"N259",null,",0","YES"]
[469,null,"有資格者数－第一種電気主任技術者－チェック",null,null,null,null,null,null,null,null,null,null,null,null,null,null,null,null,null,null,null,null,null,null,null,1,null,null,null,null,null,"チェック在り：1、チェック無し：0☆☆☆☆☆☆☆☆☆☆☆",null,null,null,null,null,null,null,null,null,null,null,null,null,null,null,null,null,null,null,null,null,null,"0",null,"YES"]
[470,null,"有資格者数－第一種電気主任技術者",null,null,null,null,null,null,null,null,null,null,null,null,null,null,null,null,null,null,null,null,null,null,null,3,null,null,null,"○",null,"半角数字3桁以内",null,null,null,null,null,null,null,null,null,null,null,null,null,null,null,null,null,null,null,null,null,"R259",null,",0","YES"]
[471,null,"有資格者数－第一種伝送交換主任技術者－チェック",null,null,null,null,null,null,null,null,null,null,null,null,null,null,null,null,null,null,null,null,null,null,null,1,null,null,null,null,null,"チェック在り：1、チェック無し：0☆☆☆☆☆☆☆☆☆☆☆",null,null,null,null,null,null,null,null,null,null,null,null,null,null,null,null,null,null,null,null,null,null,"0",null,"YES"]
[472,null,"有資格者数－第一種伝送交換主任技術者",null,null,null,null,null,null,null,null,null,null,null,null,null,null,null,null,null,null,null,null,null,null,null,3,null,null,null,"○",null,"半角数字3桁以内",null,null,null,null,null,null,null,null,null,null,null,null,null,null,null,null,null,null,null,null,null,"V259",null,",0","YES"]
[473,null,"有資格者数－線路主任技術者－チェック",null,null,null,null,null,null,null,null,null,null,null,null,null,null,null,null,null,null,null,null,null,null,null,1,null,null,null,null,null,"チェック在り：1、チェック無し：0☆☆☆☆☆☆☆☆☆☆☆",null,null,null,null,null,null,null,null,null,null,null,null,null,null,null,null,null,null,null,null,null,null,"0",null,"YES"]
[474,null,"有資格者数－線路主任技術者",null,null,null,null,null,null,null,null,null,null,null,null,null,null,null,null,null,null,null,null,null,null,null,3,null,null,null,"○",null,"半角数字3桁以内",null,null,null,null,null,null,null,null,null,null,null,null,null,null,null,null,null,null,null,null,null,"Z259",null,",0","YES"]
[475,null,"有資格者数－中小企業診断士－チェック",null,null,null,null,null,null,null,null,null,null,null,null,null,null,null,null,null,null,null,null,null,null,null,1,null,null,null,null,null,"チェック在り：1、チェック無し：0☆☆☆☆☆☆☆☆☆☆☆",null,null,null,null,null,null,null,null,null,null,null,null,null,null,null,null,null,null,null,null,null,null,"0",null,"YES"]
[476,null,"有資格者数－中小企業診断士",null,null,null,null,null,null,null,null,null,null,null,null,null,null,null,null,null,null,null,null,null,null,null,3,null,null,null,"○",null,"半角数字3桁以内",null,null,null,null,null,null,null,null,null,null,null,null,null,null,null,null,null,null,null,null,null,"AD259",null,",0","YES"]
[477,null,"有資格者数－地質調査技士－チェック",null,null,null,null,null,null,null,null,null,null,null,null,null,null,null,null,null,null,null,null,null,null,null,1,null,null,null,null,null,"チェック在り：1、チェック無し：0☆☆☆☆☆☆☆☆☆☆☆",null,null,null,null,null,null,null,null,null,null,null,null,null,null,null,null,null,null,null,null,null,null,"0",null,"YES"]
[478,null,"有資格者数－地質調査技士",null,null,null,null,null,null,null,null,null,null,null,null,null,null,null,null,null,null,null,null,null,null,null,3,null,null,null,"○",null,"半角数字3桁以内",null,null,null,null,null,null,null,null,null,null,null,null,null,null,null,null,null,null,null,null,null,"AH259",null,",0","YES"]
[479,null,"有資格者数－土地区画整理士－チェック",null,null,null,null,null,null,null,null,null,null,null,null,null,null,null,null,null,null,null,null,null,null,null,1,null,null,null,null,null,"チェック在り：1、チェック無し：0☆☆☆☆☆☆☆☆☆☆☆",null,null,null,null,null,null,null,null,null,null,null,null,null,null,null,null,null,null,null,null,null,null,"0",null,"YES"]
[480,null,"有資格者数－土地区画整理士",null,null,null,null,null,null,null,null,null,null,null,null,null,null,null,null,null,null,null,null,null,null,null,3,null,null,null,"○",null,"半角数字3桁以内",null,null,null,null,null,null,null,null,null,null,null,null,null,null,null,null,null,null,null,null,null,"AL259",null,",0","YES"]
[481,null,"有資格者数－建設ｺﾝｻﾙﾀﾝﾄ業務実務経験者－チェック",null,null,null,null,null,null,null,null,null,null,null,null,null,null,null,null,null,null,null,null,null,null,null,1,null,null,null,null,null,"チェック在り：1、チェック無し：0☆☆☆☆☆☆☆☆☆☆☆",null,null,null,null,null,null,null,null,null,null,null,null,null,null,null,null,null,null,null,null,null,null,"0",null,"YES"]
[482,null,"有資格者数－建設ｺﾝｻﾙﾀﾝﾄ業務実務経験者",null,null,null,null,null,null,null,null,null,null,null,null,null,null,null,null,null,null,null,null,null,null,null,3,null,null,null,"○",null,"半角数字3桁以内",null,null,null,null,null,null,null,null,null,null,null,null,null,null,null,null,null,null,null,null,null,"AP259",null,",0","YES"]
[483,null,"有資格者数－用地調査等業務実務経験者－チェック",null,null,null,null,null,null,null,null,null,null,null,null,null,null,null,null,null,null,null,null,null,null,null,1,null,null,null,null,null,"チェック在り：1、チェック無し：0☆☆☆☆☆☆☆☆☆☆☆",null,null,null,null,null,null,null,null,null,null,null,null,null,null,null,null,null,null,null,null,null,null,"0",null,"YES"]
[484,null,"有資格者数－用地調査等業務実務経験者",null,null,null,null,null,null,null,null,null,null,null,null,null,null,null,null,null,null,null,null,null,null,null,3,null,null,null,"○",null,"半角数字3桁以内",null,null,null,null,null,null,null,null,null,null,null,null,null,null,null,null,null,null,null,null,null,"AT259",null,",0","YES"]
[485,null,"有資格者数－公共用地取得実務経験者－チェック",null,null,null,null,null,null,null,null,null,null,null,null,null,null,null,null,null,null,null,null,null,null,null,1,null,null,null,null,null,"チェック在り：1、チェック無し：0☆☆☆☆☆☆☆☆☆☆☆",null,null,null,null,null,null,null,null,null,null,null,null,null,null,null,null,null,null,null,null,null,null,"0",null,"YES"]
[486,null,"有資格者数－公共用地取得実務経験者",null,null,null,null,null,null,null,null,null,null,null,null,null,null,null,null,null,null,null,null,null,null,null,3,null,null,null,"○",null,"半角数字3桁以内",null,null,null,null,null,null,null,null,null,null,null,null,null,null,null,null,null,null,null,null,null,"AX259",null,",0","YES"]
[]
[]
[null,null,"ＩＳＯ１４００１取得有無チェック",null,null,null,null,null,null,null,null,null,null,null,null,null,null,null,null,null,null,null,null,null,null,null,1,null,null,null,null,null,"チェック在り：1、チェック無し：0☆☆☆☆☆☆☆☆☆☆☆",null,null,null,null,null,null,null,null,null,null,null,null,null,null,null,null,null,null,null,null,null,null,"0",null,"NO","※未使用"]
[null,null,"ＩＳＯ１４００１取得有無",null,null,null,null,null,null,null,null,null,null,null,null,null,null,null,null,null,null,null,null,null,null,null,1,null,null,null,"○",null,"0:なし/1:あり",null,null,null,null,null,null,null,null,null,null,null,null,null,null,null,null,null,null,null,null,null,"M36",null,",0","NO","※未使用"]
[null,null,"ＩＳＯ１４００１取得年月日チェック",null,null,null,null,null,null,null,null,null,null,null,null,null,null,null,null,null,null,null,null,null,null,null,1,null,null,null,null,null,"チェック在り：1、チェック無し：0☆☆☆☆☆☆☆☆☆☆☆",null,null,null,null,null,null,null,null,null,null,null,null,null,null,null,null,null,null,null,null,null,null,"0",null,"NO","※未使用"]
[null,null,"ＩＳＯ１４００１取得年月日",null,null,null,null,null,null,null,null,null,null,null,null,null,null,null,null,null,null,null,null,null,null,null,7,null,null,null,null,null,"ＧＹＹＭＭＤＤ　Ｇ：元号（１：明治　２：大正　３：昭和　４：平成）　ＹＹ：年　ＭＭ：月　ＤＤ：日\nＩＳＯ１４００１取得有無が1の場合、入力必須",null,null,null,null,null,null,null,null,null,null,null,null,null,null,null,null,null,null,null,null,null,"M37,N37,Q37,T37",null,null,"NO","※未使用"]
[null,null,"地域防災活動への貢献認定有無チェック",null,null,null,null,null,null,null,null,null,null,null,null,null,null,null,null,null,null,null,null,null,null,null,1,null,null,null,null,null,"チェック在り：1、チェック無し：0",null,null,null,null,null,null,null,null,null,null,null,null,null,null,null,null,null,null,null,null,null,"B43",null,",0","NO","※未使用"]
[null,null,"地域防災活動への貢献認定有無",null,null,null,null,null,null,null,null,null,null,null,null,null,null,null,null,null,null,null,null,null,null,null,1,null,null,null,"○",null,"0:なし/1:あり",null,null,null,null,null,null,null,null,null,null,null,null,null,null,null,null,null,null,null,null,null,"O43",null,null,"NO","※未使用"]
[null,null,"不当要求防止責任者の選任の届出の有無チェック",null,null,null,null,null,null,null,null,null,null,null,null,null,null,null,null,null,null,null,null,null,null,null,1,null,null,null,null,null,"チェック在り：1、チェック無し：0☆☆☆☆☆☆☆☆☆☆☆",null,null,null,null,null,null,null,null,null,null,null,null,null,null,null,null,null,null,null,null,null,null,"0",null,"NO","※未使用"]
[null,null,"不当要求防止責任者の選任の届出の有無",null,null,null,null,null,null,null,null,null,null,null,null,null,null,null,null,null,null,null,null,null,null,null,1,null,null,null,"○",null,"0:なし/1:あり",null,null,null,null,null,null,null,null,null,null,null,null,null,null,null,null,null,null,null,null,null,"R49","0",",0","NO","※未使用"]
[null,null,"広島県働き方改革実践企業認定制度の登録有無チェック",null,null,null,null,null,null,null,null,null,null,null,null,null,null,null,null,null,null,null,null,null,null,null,1,null,null,null,null,null,"チェック在り：1、チェック無し：0",null,null,null,null,null,null,null,null,null,null,null,null,null,null,null,null,null,null,null,null,null,null,"0",null,"NO","※未使用"]
[null,null,"広島県働き方改革実践企業認定制度の登録有無",null,null,null,null,null,null,null,null,null,null,null,null,null,null,null,null,null,null,null,null,null,null,null,1,null,null,null,null,null,"0:なし/1:あり",null,null,null,null,null,null,null,null,null,null,null,null,null,null,null,null,null,null,null,null,null,"T87",null,null,"NO","※未使用"]